Workbook

Sheet Contents
A1: 80 | M1: ESC USE ONLY
D2: ESSENTIAL SERVICES COMMISSION
D3: Water Price Review
D4: Financial Model Template
B7: Table of Contents | F7: Water Business: | H7: =+N24 -> City West Water | I7: =+O24 -> CWW
B8: Section & Sheet Titles | F8: Regulatory Period: | H8: 2018-19 to 2022-23 (Fourth) | N8: [Decision] | O8: [Month] | P8: [Year] | Q8: [Version]
F9: Model Name: | H9: =I7&"_Price Review Template_"&O9&P9&Q9 -> CWW_Price Review Template_Mar2017- v1.2 | N9: Draft | O9: Mar | P9: 2017 | Q9: - v1.2 | R9: << Select
B10: a. | C10: =+KeyAssumptionsPriceControl_FO!B1 -> Key Assumptions Price Control | F10: Decision type: | H10: =+N9&" Decision" -> Draft Decision | N10: Draft | O10: Jan | P10: 2016 | Q10: - v1
B11: b. | C11: Expenditure Detail - Removed as it contained confidential information | N11: Final | O11: Feb | P11: 2017 | Q11: - v1.2
B12: c. | C12: =Opex_FO!B1 -> Operating Expenditure - Forecast | F12: Model Key: | O12: Mar | P12: 2018 | Q12: - v3
B13: d. | C13: =Opex_Breakdown!B1 -> Operating Expenditure - Breakdown | O13: Apr | P13: 2019 | Q13: - v3.1
B14: e. | C14: =+'Capex_FO input'!B1 -> Capital Expenditure - Forecast Input | G14: BLUE | H14: =+I7&" - DATA INPUT CELL" -> CWW - DATA INPUT CELL | O14: May | P14: 2020 | Q14: - v4
B15: f. | C15: =Capex_FO_AC!B1 -> Capital Expenditure - Asset Category Breakdown | O15: Jun | P15: 2021 | Q15: - v4.1
B16: g. | C16: =ExpSummary_FO!B1 -> Expenditure Summary | G16: YELLOW | H16: NOTES / INSTRUCTIONS | O16: Jul | Q16: - v5
B17: h. | C17: =RollForward_FO!B1 -> Rolled forward regulatory asset base (RAB) | O17: Aug | Q17: - v5.1
B18: i. | C18: =PrevPerAdj_FO!B1 -> Previous period adjustments | G18: GREY | H18: MODEL PARAMETERS / ASSUMPTIONS | O18: Sep | Q18: - v6
B19: j. | C19: =RevenuePriceCap_FO!C1 -> Revenue forecast (price caps) | O19: Oct | Q19: - v6.1
B20: k. | C20: Revenue forecast (tariff basket) | G20: WHITE | H20: FORMULA / HARDCODED VALUES | O20: Nov | Q20: - v7
B21: l. | C21: =NotPres_FO!B1 -> Non Prescribed Services | O21: Dec | Q21: - v7.1
B22: m. | C22: ='Finance&Tax_FO'!B1 -> Cash, debt and tax assumptions | G22: ORANGE | H22: FORMULA DIFFERENT TO ADJACENT CELL
B23: n. | C23: ='Rev&RAV_FO'!B1 -> Revenue requirement detail | N23: [Business]
B24: o. | C24: =Indicators_FO!B1 -> Financial indicators | G24: GREEN | H24: DATA FROM 2013 DECISION OR PERFORMANCE REPORT | N24: City West Water | O24: =+VLOOKUP(N24,N25:O42,2,FALSE) -> CWW
B25: p. | C25: =Outcomes!B1 -> Outcomes | N25: Barwon Water | O25: BW
B26: q. | C26: =GSL!B1 -> Guaranteed Service Levels (GSL) | G26: RED | H26: ERROR CHECK | N26: Central Highlands Water | O26: CHW
N27: City West Water | O27: CWW
N28: Coliban Water | O28: CW
N29: East Gippsland Water | O29: EGW
N30: Gippsland Water | O30: CGW
N31: Goulburn Valley Water | O31: GVW
N32: GWM Water | O32: GWMW | P32: diff model
N33: Lower Murray Water - Urban | O33: LMW-U | P33: diff model
N34: Lower Murray Water - Rural | O34: LMW-R
N35: North East Water | O35: NEW
N36: South East Water | O36: SEW
N37: South Gippsland Water | O37: SGW
N38: Southern Rural Water | O38: SRW | P38: diff model
N39: Wannon Water | O39: WNW
N40: Western Water | O40: WW
N41: Westernport Water | O41: WPW
N42: Yarra Valley Water | O42: YVW

Sheet KeyAssumptionsPriceControl_FO
A1: 80 | B1: Key Assumptions Price Control
B2: =+Contents!H7 -> City West Water
B3: Go to Table of Contents
L4: FIRST REG PERIOD | P4: SECOND REG PERIOD | U4: THIRD REG PERIOD | Z4: FOURTH REG PERIOD | AC4: FIFTH REG PERIOD
F6: Straight Line | K6: 2006 | L6: 2007 | M6: 2008 | N6: 2009 | O6: 2010 | P6: 2011 | Q6: 2012 | R6: 2013 | S6: 2014 | T6: 2015 | U6: 2016 | V6: 2017 | W6: 2018 | X6: 2019 | Y6: 2020 | Z6: 2021 | AA6: 2022 | AB6: 2023 | AC6: 2024 | AD6: 2025 | AE6: 2026 | AF6: 2027 | AG6: 2028
F7: Declining Balance | I7: 2003-04 | J7: 2004-05 | K7: =+CONCATENATE(K6-1,"-",RIGHT(K6,2)) -> 2005-06 | L7: =+CONCATENATE(L6-1,"-",RIGHT(L6,2)) -> 2006-07 | M7: 2007-08 | N7: 2008-09 | O7: 2009-10 | P7: 2010-11 | Q7: 2011-12 | R7: 2012-13 | S7: 2013-14 | T7: 2014-15 | U7: 2015-16 | V7: 2016-17 | W7: 2017-18 | X7: 2018-19 | Y7: 2019-20 | Z7: 2020-21 | AA7: 2021-22 | AB7: 2022-23 | AC7: 2023-24 | AD7: 2024-25 | AE7: 2025-26 | AF7: 2026-27 | AG7: 2027-28
E11: Inflation assumptions
W12: Estimate
F13: March quarter annual CPI | I13: 141.3 | J13: 144.1 | K13: 147.5 | L13: 151.9 | M13: 155.6 | N13: 162.2 | O13: 166.2 | P13: 171 | Q13: 176.7 | R13: 99.9 | S13: 102.4 | T13: 105.4 | U13: 106.8 | V13: 108.2 | W13: 110.5
F14: Inflation | J14: =+J13/I13-1 -> 0.01981599434 | K14: 0.02359472588 | L14: 0.02983050847 | M14: 0.02435813035 | N14: 0.04241645244 | O14: 0.02466091245 | P14: 0.02888086643 | Q14: 0.03333333333 | R14: 0.01584606678 | S14: =+IF(S13=0,$X$44,S13/R13-1) -> 0.02502502503 | T14: 0.029296875 | U14: 0.01328273245 | V14: 0.01310861423 | W14: 0.02125693161 | X14: 0.023 | Y14: 0.023 | Z14: 0.023 | AA14: 0.023 | AB14: 0.023 | AC14: 0.023 | AD14: 0.023 | AE14: 0.023 | AF14: 0.023 | AG14: 0.023
F15: Inflation factor | I15: 0.7871866295 | J15: 0.8027855153 | K15: 0.8217270195 | L15: 0.8462395543 | M15: 0.8668523677 | N15: 0.9036211699 | O15: 0.9259052925 | P15: 0.9526462396 | Q15: 0.9844011142 | R15: =+R13/$W$13 -> 0.9040723982 | S15: 0.9266968326 | T15: 0.9538461538 | U15: 0.9665158371 | V15: =+V13/$W$13 -> 0.9791855204 | W15: =+W13/$W$13 -> 1 | X15: =+W15*(1+X14) -> 1.023 | Y15: =+X15*(1+Y14) -> 1.046529 | Z15: 1.070599167 | AA15: 1.095222948 | AB15: 1.120413076 | AC15: 1.146182576 | AD15: 1.172544776 | AE15: 1.199513305 | AF15: 1.227102112 | AG15: 1.25532546
I16: CPI index re-referenced in 2012-13, shaded values have been hardcoded to lock in RAB value.
E21: Cost of debt - 10 year trailing average (Nominal)
V22: Estimate | W22: Estimate
E23: Cost of debt | L23: 0.06981666667 | M23: 0.07414 | N23: 0.0691525788 | O23: 0.07361870984 | P23: 0.07046784142 | Q23: 0.06308887941 | R23: 0.0526945046 | S23: 0.070525 | T23: 0.05360833333 | U23: 0.05270138413 | V23: 0.04908333333 | W23: 0.04908333333
E24: Re-financing weightings - average 10 yrs | L24: =1/10 -> 0.1 | M24: =1/10 -> 0.1 | N24: =1/10 -> 0.1 | O24: =1/10 -> 0.1 | P24: =1/10 -> 0.1 | Q24: 0.1 | R24: 0.1 | S24: 0.1 | T24: 0.1 | U24: 0.1 | V24: 0.1 | W24: 0.1 | X24: 0.1 | Y24: 0.1 | Z24: 0.1 | AA24: 0.1 | AB24: 0.1 | AC24: 0.1 | AD24: 0.1 | AE24: 0.1 | AF24: 0.1 | AG24: 0.1
E26: Cost of debt - 10 year trailing average | V26: =IF(U23<>"",SUMPRODUCT(L23:U23,L24:U24),"") -> 0.06498138982 | W26: =IF(V23<>"",SUMPRODUCT(M23:V23,M24:V24),"") -> 0.06290805649 | X26: =IF(W23<>"",SUMPRODUCT(N23:W23,N24:W24),"") -> 0.06040238982 | Y26: =IF(X23<>"",SUMPRODUCT(O23:X23,O24:X24),"") ->  | Z26: =IF(Y23<>"",SUMPRODUCT(P23:Y23,P24:Y24),"") -> 
E30: WACC assumptions (retained for historical purposes only) | U30: Regulatory Rate of Return (RRR) - Nominal
K32: 1st period | M32: 2nd period | O32: 3rd period | U32: Cost of Debt | X32: =+X26 -> 0.06040238982 | Y32: =+$X$32 -> 0.06040238982 | Z32: 0.06040238982 | AA32: 0.06040238982 | AB32: 0.06040238982 | AC32: 0.06040238982 | AD32: 0.06040238982 | AE32: 0.06040238982 | AF32: 0.06040238982 | AG32: 0.06040238982 | AI32: << Linked to Benchmark tax liability calculation (Rev&RAV_FO)
E33: Parameters
F34: Risk Free Rate (Real) | K34: =+HLOOKUP(Contents!$I$7&1,Determination_Lookup!$C$54:$BD$61,2,FALSE) -> 0.0267 | M34: =+HLOOKUP(Contents!$I$7&2,Determination_Lookup!$C$54:$BD$61,2,FALSE) -> 0.022185 | O34: =+HLOOKUP(Contents!$I$7&3,Determination_Lookup!$C$54:$BD$61,2,FALSE) -> 0.005959
F35: Debt Premium | K35: =+HLOOKUP(Contents!$I$7&1,Determination_Lookup!$C$54:$BD$61,3,FALSE) -> 0.0116 | M35: =+HLOOKUP(Contents!$I$7&2,Determination_Lookup!$C$54:$BD$61,3,FALSE) -> 0.0225 | O35: =+HLOOKUP(Contents!$I$7&3,Determination_Lookup!$C$54:$BD$61,3,FALSE) -> 0.0399
F36: Equity Premium | K36: =+HLOOKUP(Contents!$I$7&1,Determination_Lookup!$C$54:$BD$61,4,FALSE) -> 0.06 | M36: =+HLOOKUP(Contents!$I$7&2,Determination_Lookup!$C$54:$BD$61,4,FALSE) -> 0.06 | O36: =+HLOOKUP(Contents!$I$7&3,Determination_Lookup!$C$54:$BD$61,4,FALSE) -> 0.06 | U36: Regulatory Rate of Return (RRR) - Real
F37: Equity Beta | K37: =+HLOOKUP(Contents!$I$7&1,Determination_Lookup!$C$54:$BD$61,5,FALSE) -> 0.75 | M37: =+HLOOKUP(Contents!$I$7&2,Determination_Lookup!$C$54:$BD$61,5,FALSE) -> 0.65 | O37: =+HLOOKUP(Contents!$I$7&3,Determination_Lookup!$C$54:$BD$61,5,FALSE) -> 0.65
F38: Gearing (Debt/Assets) | K38: =+HLOOKUP(Contents!$I$7&1,Determination_Lookup!$C$54:$BD$61,6,FALSE) -> 0.6 | M38: =+HLOOKUP(Contents!$I$7&2,Determination_Lookup!$C$54:$BD$61,6,FALSE) -> 0.6 | O38: =+HLOOKUP(Contents!$I$7&3,Determination_Lookup!$C$54:$BD$61,6,FALSE) -> 0.6 | U38: Cost of Debt | X38: =(1+X32)/(1+X44)-1 -> 0.03656147587 | Y38: =+$X$38 -> 0.03656147587 | Z38: =+$X$38 -> 0.03656147587 | AA38: 0.03656147587 | AB38: 0.03656147587 | AC38: 0.03656147587 | AD38: 0.03656147587 | AE38: 0.03656147587 | AF38: 0.03656147587 | AG38: 0.03656147587
F39: Forecast Inflation | K39: =+HLOOKUP(Contents!$I$7&1,Determination_Lookup!$C$54:$BD$61,7,FALSE) -> 0.0255 | M39: =+HLOOKUP(Contents!$I$7&2,Determination_Lookup!$C$54:$BD$61,7,FALSE) -> 0.025 | O39: =+HLOOKUP(Contents!$I$7&3,Determination_Lookup!$C$54:$BD$61,7,FALSE) -> 0.0275
F40: Franking credit value | K40: =+HLOOKUP(Contents!$I$7&1,Determination_Lookup!$C$54:$BD$61,8,FALSE) -> 0.5 | M40: =+HLOOKUP(Contents!$I$7&2,Determination_Lookup!$C$54:$BD$61,8,FALSE) -> 0.5 | O40: =+HLOOKUP(Contents!$I$7&3,Determination_Lookup!$C$54:$BD$61,8,FALSE) -> 0.5 | U40: Return on Equity | X40: =IF(AG65<>0,(AG65/100),IF(AG63<>0,(AG63/100),(AG61/100))) -> 0.049 | Y40: =+$X$40 -> 0.049 | Z40: 0.049 | AA40: 0.049 | AB40: 0.049 | AC40: 0.049 | AD40: 0.049 | AE40: 0.049 | AF40: 0.049 | AG40: 0.049 | AI40: << Source: PREMO Assessment Matrix
E42: 'Vanilla' After Tax WACC (Real) | K42: =ROUND(((K34+K36*K37)*(1-K38))+((K34+K35)*K38),3) -> 0.052 | M42: =ROUND(((M34+M36*M37)*(1-M38))+((M34+M35)*M38),3) -> 0.051 | O42: =ROUND(((O34+O36*O37)*(1-O38))+((O34+O35)*O38),3) -> 0.045 | U42: RRR (real) | X42: =ROUND((X40*(1-X43)+X38*X43),3) -> 0.042 | Y42: 0.042 | Z42: 0.042 | AA42: 0.042 | AB42: 0.042 | AC42: 0.042 | AD42: 0.042 | AE42: 0.042 | AF42: 0.042 | AG42: 0.042
U43: Gearing | X43: 0.6 | Y43: =+X43 -> 0.6 | Z43: =+Y43 -> 0.6 | AA43: 0.6 | AB43: 0.6 | AC43: 0.6 | AD43: 0.6 | AE43: 0.6 | AF43: 0.6 | AG43: 0.6
U44: Forecast Inflation | X44: 0.023 | Y44: =+X44 -> 0.023 | Z44: 0.023 | AA44: 0.023 | AB44: 0.023 | AC44: 0.023 | AD44: 0.023 | AE44: 0.023 | AF44: 0.023 | AG44: 0.023
E46: Form of price control selected
E48: Price caps | I48: 1
U49: PREMO Graded Scoring System (for reference only) | AB49: PREMO Assessment Matrix (linked to Regulatory Rate of Return calculation above)
E50: Revenue cap / Hybrid Tariff Basket
V52: Water business | X52: ESC assessment | Z52: Difference | AD52: Water business self-assessment
V53: self-assessment | X53: of submission
AD54: Leading | AE54: Advanced | AF54: Standard | AG54: Basic
U55: Risk | V55: 3 | Z55: =IFERROR(IF(X55=0,"",X55-V55),"") ->  | AB55: ESC assessment of submission | AC55: Leading | AD55: 5.3
U56: Engagement | V56: 3 | Z56: =IFERROR(IF(X56=0,"",X56-V56),"") ->  | AC56: Advanced | AD56: 4.7 | AE56: 4.9
U57: Management | V57: 3 | Z57: =IFERROR(IF(X57=0,"",X57-V57),"") ->  | AC57: Standard | AD57: 4.1 | AE57: 4.3 | AF57: 4.5
U58: Outcomes | V58: 2.75 | Z58: =IFERROR(IF(X58=0,"",X58-V58),"") ->  | AC58: Basic | AF58: 3.9 | AG58: 4.1
U60: Total Score | V60: =SUM(V55:V58) -> 11.75 | X60: =SUM(X55:X58) -> 0 | Z60: =IFERROR(IF(X60=0,"",X60-V60),"") -> 
AB61: Water business self-assessment (Maximum allowable ROE) | AF61: Advanced | AG61: =+VLOOKUP(AF61,$AF$72:$AG$76,2,FALSE) -> 4.9
AB63: ROE Override (Must be less than Maximum allowable ROE) | AG63: =+IF(AF63<=AG61,AF63,"CHECK") -> 0
U64: Rating | V64: =IF(V60<4,"",IF(AND(V60>=4,V60<=7.25),"Basic",IF(AND(V60>=7.5,V60<=11.25),"Standard",IF(AND(V60>=11.5,V60<=15.25),"Advanced",IF(AND(V60>=15.5,V60<=16),"Leading"))))) -> Advanced | X64: =IF(X60<4,"",IF(AND(X60>=4,X60<=7.25),"Basic",IF(AND(X60>=7.5,X60<=11.25),"Standard",IF(AND(X60>=11.5,X60<=15.25),"Advanced",IF(AND(X60>=15.5,X60<=16),"Leading"))))) -> 
AB65: ESC assessment of submission | AG65: =IFERROR(IF(AF65=AF61,AG61,VLOOKUP(AF61&AF65,AF79:AG83,2,FALSE)),0) -> 0
AF67: Difference | AG67: =IFERROR(IF(AG65=0,"",AG65-AG61),"") -> 
U70: ESC USE ONLY
W71: [Select] | Y71: Rating | Z71: Aggregate score for overall PREMO rating | AF71: Business self assessment
W72: 1 | Y72: Leading | Z72: 15.5 to 16.0 | AF72: [Select]
W73: 1.25 | Y73: Advanced | Z73: 11.5 to 15.25 | AF73: Leading | AG73: =+AD55 -> 5.3
W74: 1.5 | Y74: Standard | Z74: 7.5 to 11.25 | AF74: Advanced | AG74: =+AE56 -> 4.9
W75: 1.75 | Y75: Basic | Z75: 4.0 to 7.25 | AF75: Standard | AG75: =+AF57 -> 4.5
W76: 2 | AF76: Basic | AG76: =+AG58 -> 4.1
W77: 2.25
W78: 2.5 | AF78: downgrading
W79: 2.75 | AF79: =AF54&AC58 -> StandardBasic | AG79: =+AF58 -> 3.9
W80: 3 | AF80: =+AE54&AC57 -> AdvancedStandard | AG80: =+AE57 -> 4.3
W81: 3.25 | AF81: =+AD54&AC56 -> LeadingAdvanced | AG81: =+AD56 -> 4.7
W82: 3.5 | AF82: =+AD54&AC57 -> LeadingStandard | AG82: =+AD57 -> 4.1
W83: 3.75 | AF83: =+AF61&"Basic" -> AdvancedBasic | AG83: CHECK
W84: 4

Sheet Opex_FO
B1: Operating Expenditure - Forecast
B2: =+Model_Name -> City West Water
B3: Go to Table of Contents
L4: FIRST REG PERIOD | P4: SECOND REG PERIOD | S4: THIRD REG PERIOD | X4: FOURTH REG PERIOD | AC4: FIFTH REG PERIOD
K5: 2006 | L5: 2007 | M5: 2008 | N5: 2009 | O5: 2010 | P5: 2011 | Q5: 2012 | R5: 2013 | S5: 2014 | T5: 2015 | U5: 2016 | V5: 2017 | W5: 2018 | X5: 2019 | Y5: 2020 | Z5: 2021 | AA5: 2022 | AB5: 2023 | AC5: 2024 | AD5: 2025 | AE5: 2026 | AF5: 2027 | AG5: 2028
B6: $m, 01/01/18 | K6: =+CONCATENATE(K5-1,"-",RIGHT(K5,2)) -> 2005-06 | L6: =+CONCATENATE(L5-1,"-",RIGHT(L5,2)) -> 2006-07 | M6: 2007-08 | N6: 2008-09 | O6: 2009-10 | P6: 2010-11 | Q6: 2011-12 | R6: 2012-13 | S6: 2013-14 | T6: 2014-15 | U6: 2015-16 | V6: 2016-17 | W6: 2017-18 | X6: 2018-19 | Y6: 2019-20 | Z6: 2020-21 | AA6: 2021-22 | AB6: 2022-23 | AC6: 2023-24 | AD6: 2024-25 | AE6: 2025-26 | AF6: 2026-27 | AG6: 2027-28
C9: Parameters | F9: 3rd period | H9: 4th period
D11: Cost efficiency improvement rate (% per annum) | F11: 0.02 | H11: =+SUM(X11:AB11)/5 -> 0.02 | X11: 0.02 | Y11: 0.02 | Z11: 0.02 | AA11: 0.02 | AB11: 0.02 | AC11: 0.02 | AD11: 0.02 | AE11: 0.02 | AF11: 0.02 | AG11: 0.02
D13: Customer growth forecast (% per annum) | F13: =AVERAGE(T13:W13) -> 0.03443382811 | H13: =+SUM(X13:AB13)/5 -> 0.02616673892 | T13: =IF(T15="","",T15/S15-1) -> 0.0273794908 | U13: =IF(U15="","",U15/T15-1) -> 0.03623401831 | V13: 0.04612180331 | W13: 0.028 | X13: 0.03011991203 | Y13: 0.02735282715 | Z13: 0.02547695912 | AA13: 0.0243963695 | AB13: 0.02348762682 | AC13: 0.02284188048 | AD13: 0.0222274265 | AE13: 0.02164202585 | AF13: 0.02108364797 | AG13: 0.02055044707
E14: Net baseline opex growth | F14: =IFERROR(F13-F11,"-") -> 0.01443382811 | H14: =IFERROR(H13-H11,"-") -> 0.006166738924
D15: Water customers (No.) - Residential & Non-Residential - [BED 1] | S15: =+Determination_Lookup!BF3 -> 403185 | T15: =+Determination_Lookup!BG3 -> 414224 | U15: =+Determination_Lookup!BH3 -> 429233 | V15: 449030 | W15: =+V$15*(1+W$13) -> 461602.84 | X15: =+W$15*(1+X$13) -> 475506.2769 | Y15: =+X$15*(1+Y$13) -> 488512.7179 | Z15: 500958.5365 | AA15: 513180.106 | AB15: 525233.4889 | AC15: 537230.8094 | AD15: 549172.0678 | AE15: 561057.2639 | AF15: 572886.3977 | AG15: 584659.4693 | AI15: << Used as normalising metric for dashboard graphs
D17: Sewer customers (No.) - Residential & Non-Residential - [BED 2] | S17: =+Determination_Lookup!BJ3 -> 399764 | T17: =+Determination_Lookup!BK3 -> 410794 | U17: =+Determination_Lookup!BL3 -> 425764 | V17: 441214 | W17: =+V$17*(1+W$13) -> 453567.992 | X17: =+W$17*(1+X$13) -> 467229.42 | Y17: =+X$17*(1+Y$13) -> 480009.4656 | Z17: 492238.6471 | AA17: 504247.483 | AB17: 516091.0597 | AC17: 527879.55 | AD17: 539612.9539 | AE17: 551291.2714 | AF17: 562914.5025 | AG17: 574482.6472 | AI17: << Used as normalising metric for dashboard graphs
D19: Total metered volume of water delivered to customers (ML) - [BED 10] | S19: =+Determination_Lookup!BB3 -> 93745 | T19: =+Determination_Lookup!BC3 -> 97231 | U19: =+Determination_Lookup!BD3 -> 103642.45 | V19: 105900.6327 | W19: 106553.6213 | X19: 107991.5037 | Y19: 109217.2453 | Z19: 110399.8168 | AA19: 111565.2355 | AB19: 112706.8061 | AC19: 113898.4713 | AD19: 115141.4917 | AE19: 116399.7273 | AF19: 117518.2397 | AG19: 118655.1409 | AI19: << Used as normalising metric for dashboard graphs
D20: Residential, Non-Residential & Recycled (Residential & Non-Residential)
C24: Baseline Forecast
D26: Baseline year - total prescribed operating expenditure in 2016-17: | V26: =+Opex_Breakdown!V37 -> 469.6975823
D28: Less non-controllable expenditure items incurred in 2016-17:
E29: External bulk water charges (excl. temporary purchases) | V29: =+Opex_Breakdown!V29 -> 350.8231631
E30: External temporary water purchases | V30: =+Opex_Breakdown!V30 -> 0 | X30: Comparison with approved 2016-17 total controllable opex
E31: Licence fees | V31: =+Opex_Breakdown!V31 -> 0.8464466465 | X31: per 2013 determination model
E32: Environment Contribution | V32: =+Opex_Breakdown!V32 -> 18.95759242
E33: Other non-controllable | V33: =+Opex_Breakdown!V33 -> 0
V34: =SUM(V29:V33) -> 370.6272022 | Y34: 2016-17 | Z34: Difference | AA34: %
D36: Baseline year - total controllable operating expenditure in 2016-17: | V36: =+V26-V34 -> 99.07038008 | Y36: =+Determination_Lookup!AX3 -> 113.9292288 | Z36: =+V52-Y36 -> -14.12579874 | AA36: =+Z36/Y36 -> -0.1239874866
D38: Adjustments for non-recurring expenditure items incurred in 2016-17 and any efficiency savings to be realised from 2016-17: | X38: ($, 2017-18)
D40: 1 | E40: Abatement on maintenance service contract | V40: -1
D41: 2 | E41: Guaraneed Service Level Scheme Payments | V41: 0.18195
D42: 3 | E42: Carbon offsets | V42: 0.035
D43: 4 | E43: Sponsorships | V43: 0.05
D44: 5
D45: 6
D46: 7
D47: 8
D48: 9
D49: 10
V50: =SUM(V40:V49) -> -0.73305
D52: Baseline controllable operating expenditure (2016-17) | V52: =+V36-V50 -> 99.80343008
D54: Adjusted Baseline controllable operating expenditure (Forecast) | W54: =+V52*(1+$W$13-$F$11) -> 100.6018575 | X54: =+$W$54*(1+X$13-X$11) -> 101.6199395 | Y54: =+X$54*(1+Y$13-Y$11) -> 102.3671333 | Z54: 102.9277939 | AA54: 103.3803025 | AB54: 103.7408544 | AC54: 104.0356736 | AD54: 104.2674054 | AE54: 104.4386152 | AF54: 104.5517898 | AG54: 104.6093401
C58: Operating expenditure - reconciliation
D61: Adjusted Baseline controllable operating expenditure (Forecast) | X61: =+X54 -> 101.6199395 | Y61: 102.3671333 | Z61: 102.9277939 | AA61: 103.3803025 | AB61: 103.7408544 | AC61: 104.0356736 | AD61: 104.2674054 | AE61: 104.4386152 | AF61: 104.5517898 | AG61: 104.6093401
H62: Controllable
D63: Forecast variations to baseline operating expenditure (above or below baseline) | H63: only
D65: 1 | E65: Transfer from capex to opex for software as a service | H65: Water | X65: 2 | Y65: 2.2 | Z65: 2.4 | AA65: 2.6 | AB65: 2.6 | AC65: 2.6 | AD65: 2.6 | AE65: 2.6 | AF65: 2.6 | AG65: 2.6
D66: 2 | E66: West Werribee Recycled Water Production (including energy) | H66: Recycled Water | X66: 1.284450354 | Y66: 1.329078228 | Z66: 1.371693404 | AA66: 1.414568302 | AB66: 1.457786016 | AC66: 1.457786016 | AD66: 1.457786016 | AE66: 1.457786016 | AF66: 1.457786016 | AG66: 1.457786016
D67: 3 | E67: Wholesale electricity market movements reletive to base year (exluding west werribee) | H67: Sewerage | X67: 0.6752819773 | Y67: 0.4444781234 | Z67: 0.4462665947 | AA67: 0.4484627304 | AB67: 0.4506871307 | AC67: 0.4506871307 | AD67: 0.4506871307 | AE67: 0.4506871307 | AF67: 0.4506871307 | AG67: 0.4506871307
D68: 4 | H68: [Service]
D69: 5 | H69: [Service]
D70: 6 | H70: [Service]
D71: 7 | H71: [Service]
D72: 8 | H72: [Service]
D73: 9 | H73: [Service]
D74: 10 | H74: [Service]
D75: 11 | H75: [Service]
D76: 12 | H76: [Service]
D77: 13 | H77: [Service]
D78: 14 | H78: [Service]
D79: 15 | H79: [Service]
D81: Total changes required to baseline operating expenditure | X81: =SUM(X65:X80) -> 3.959732331 | Y81: 3.973556352 | Z81: 4.217959998 | AA81: 4.463031033 | AB81: 4.508473147 | AC81: 4.508473147 | AD81: 4.508473147 | AE81: 4.508473147 | AF81: 4.508473147 | AG81: 4.508473147
W82: % Change in baseline opex per annum | X82: =IFERROR(X81/X61,"-") -> 0.03896609614 | Y82: =IFERROR(Y81/Y61,"-") -> 0.03881672001 | Z82: 0.04097979601 | AA82: 0.04317099992 | AB82: 0.04345899376 | AC82: 0.04333583849 | AD82: 0.04323952562 | AE82: 0.0431686416 | AF82: 0.04312191263 | AG82: 0.04309818935
W83: % Change in baseline opex per reg period | AB83: =IFERROR(AVERAGE(X82:AB82),"-") -> 0.04107852117 | AG83: =IFERROR(AVERAGE(AC82:AG82),"-") -> 0.04319282154
D84: Total controllable operating expenditure | X84: =+X81+X61 -> 105.5796718 | Y84: 106.3406897 | Z84: 107.1457539 | AA84: 107.8433336 | AB84: 108.2493276 | AC84: 108.5441467 | AD84: 108.7758785 | AE84: 108.9470883 | AF84: 109.060263 | AG84: 109.1178132
W85: Controllable Opex growth from baseline to 5th year | AB85: =IFERROR(AB84-V52,"-") -> 8.445897519 | AC85: =IFERROR(AB84/V52-1,"-") -> 0.08462532312
D86: Non-controllable operating expenditure
D87: External bulk water charges (excl. temporary purchases) | X87: =+Opex_Breakdown!X29 -> 344.1133473 | Y87: =+Opex_Breakdown!Y29 -> 342.6553092 | Z87: =+Opex_Breakdown!Z29 -> 334.7173475 | AA87: =+Opex_Breakdown!AA29 -> 335.2602142 | AB87: =+Opex_Breakdown!AB29 -> 335.8634494 | AC87: =+Opex_Breakdown!AC29 -> 336.1814649 | AD87: =+Opex_Breakdown!AD29 -> 336.2073405 | AE87: =+Opex_Breakdown!AE29 -> 336.2230696 | AF87: =+Opex_Breakdown!AF29 -> 336.2391043 | AG87: =+Opex_Breakdown!AG29 -> 336.2554508
D88: External temporary water purchases | X88: =+Opex_Breakdown!X30 -> 0 | Y88: =+Opex_Breakdown!Y30 -> 0 | Z88: =+Opex_Breakdown!Z30 -> 0 | AA88: =+Opex_Breakdown!AA30 -> 0 | AB88: =+Opex_Breakdown!AB30 -> 0 | AC88: =+Opex_Breakdown!AC30 -> 0 | AD88: =+Opex_Breakdown!AD30 -> 0 | AE88: =+Opex_Breakdown!AE30 -> 0 | AF88: =+Opex_Breakdown!AF30 -> 0 | AG88: =+Opex_Breakdown!AG30 -> 0
D89: Licence fees | X89: =+Opex_Breakdown!X31 -> 0.7436068 | Y89: =+Opex_Breakdown!Y31 -> 0.7436068 | Z89: =+Opex_Breakdown!Z31 -> 0.7436068 | AA89: =+Opex_Breakdown!AA31 -> 0.7436068 | AB89: =+Opex_Breakdown!AB31 -> 0.7436068 | AC89: =+Opex_Breakdown!AC31 -> 0.7436068 | AD89: =+Opex_Breakdown!AD31 -> 0.7436068 | AE89: =+Opex_Breakdown!AE31 -> 0.7436068 | AF89: =+Opex_Breakdown!AF31 -> 0.7436068 | AG89: =+Opex_Breakdown!AG31 -> 0.7436068
D90: Environment Contribution | X90: =+Opex_Breakdown!X32 -> 25.86217009 | Y90: =+Opex_Breakdown!Y32 -> 25.28071367 | Z90: =+Opex_Breakdown!Z32 -> 24.71233008 | AA90: =+Opex_Breakdown!AA32 -> 24.1567254 | AB90: =+Opex_Breakdown!AB32 -> 23.61361231 | AC90: =+Opex_Breakdown!AC32 -> 23.08270998 | AD90: =+Opex_Breakdown!AD32 -> 22.56374388 | AE90: =+Opex_Breakdown!AE32 -> 22.05644563 | AF90: =+Opex_Breakdown!AF32 -> 21.56055291 | AG90: =+Opex_Breakdown!AG32 -> 21.0758093
D91: Other non-controllable | X91: =+Opex_Breakdown!X33 -> 0 | Y91: =+Opex_Breakdown!Y33 -> 0 | Z91: =+Opex_Breakdown!Z33 -> 0 | AA91: =+Opex_Breakdown!AA33 -> 0 | AB91: =+Opex_Breakdown!AB33 -> 0 | AC91: =+Opex_Breakdown!AC33 -> 0 | AD91: =+Opex_Breakdown!AD33 -> 0 | AE91: =+Opex_Breakdown!AE33 -> 0 | AF91: =+Opex_Breakdown!AF33 -> 0 | AG91: =+Opex_Breakdown!AG33 -> 0
D92: Total non-controllable operating expenditure | X92: =SUM(X87:X91) -> 370.7191242 | Y92: 368.6796297 | Z92: 360.1732844 | AA92: 360.1605464 | AB92: 360.2206686 | AC92: 360.0077817 | AD92: 359.5146912 | AE92: 359.023122 | AF92: 358.543264 | AG92: 358.0748669
W93: Non-controllable Opex growth from baseline to 5th year | AB93: =IFERROR(AB92-V34,"-") -> -10.40653363 | AC93: =IFERROR(AB92/V34-1,"-") -> -0.0280781701
D95: Total prescribed operating expenditure | X95: =+X92+X84 -> 476.298796 | Y95: 475.0203193 | Z95: 467.3190383 | AA95: 468.0038799 | AB95: 468.4699962 | AC95: 468.5519284 | AD95: 468.2905697 | AE95: 467.9702103 | AF95: 467.603527 | AG95: =+AG92+AG84 -> 467.1926801
W96: Prescribed Opex growth from baseline to 5th year | AB96: =IFERROR(AB95-(V52+V34),"-") -> -1.960636109 | AC96: =IFERROR((AB95/(V52+V34))-1,"-") -> -0.004167747536
W98: To reconcile to 'Opex_Breakdown' tab row 37 >> | X98: =+Opex_Breakdown!X37 -> 476.298796 | Y98: =+Opex_Breakdown!Y37 -> 475.0203193 | Z98: =+Opex_Breakdown!Z37 -> 467.3190383 | AA98: =+Opex_Breakdown!AA37 -> 468.0038799 | AB98: =+Opex_Breakdown!AB37 -> 468.4699962 | AC98: =+Opex_Breakdown!AC37 -> 468.5519284 | AD98: =+Opex_Breakdown!AD37 -> 468.2905697 | AE98: =+Opex_Breakdown!AE37 -> 467.9702103 | AF98: =+Opex_Breakdown!AF37 -> 467.603527 | AG98: =+Opex_Breakdown!AG37 -> 467.1926801
W99: Difference | X99: =+X98-X95 -> 0 | Y99: 0 | Z99: 0 | AA99: 0 | AB99: 0 | AC99: 0 | AD99: 0 | AE99: 0 | AF99: 0 | AG99: 0
W100: Test | X100: =ROUND(X98,2)=ROUND(X95,2) -> TRUE | Y100: =ROUND(Y98,2)=ROUND(Y95,2) -> TRUE | Z100: TRUE | AA100: TRUE | AB100: TRUE | AC100: TRUE | AD100: TRUE | AE100: TRUE | AF100: TRUE | AG100: TRUE
X139: =+X$160 -> 2018-19 | Y139: 2019-20 | Z139: 2020-21 | AA139: 2021-22 | AB139: 2022-23 | AC139: 2023-24 | AD139: 2024-25 | AE139: 2025-26 | AF139: 2026-27 | AG139: 2027-28
W140: Total controllable opex | X140: =+X84 -> 105.5796718 | Y140: 106.3406897 | Z140: 107.1457539 | AA140: 107.8433336 | AB140: 108.2493276 | AC140: 108.5441467 | AD140: 108.7758785 | AE140: 108.9470883 | AF140: 109.060263 | AG140: 109.1178132
W141: Change - $ | Y141: =+Y140-X140 -> 0.7610178706 | Z141: 0.8050642507 | AA141: 0.6975796487 | AB141: 0.4059940298 | AC141: 0.2948191095 | AD141: 0.2317318166 | AE141: 0.1712097749 | AF141: 0.1131746931 | AG141: 0.05755022682
W142: Change - % | Y142: =IFERROR(Y141/X140,"") -> 0.007207996176 | Z142: 0.007570613405 | AA142: 0.006510567364 | AB142: 0.00376466506 | AC142: 0.002723519084 | AD142: 0.002134908456 | AE142: 0.001573968211 | AF142: 0.001038804202 | AG142: 0.0005276919864
X144: =+X$160 -> 2018-19 | Y144: 2019-20 | Z144: 2020-21 | AA144: 2021-22 | AB144: 2022-23 | AC144: 2023-24 | AD144: 2024-25 | AE144: 2025-26 | AF144: 2026-27 | AG144: 2027-28
W145: Total non-controllable opex | X145: =+X92 -> 370.7191242 | Y145: 368.6796297 | Z145: 360.1732844 | AA145: 360.1605464 | AB145: 360.2206686 | AC145: 360.0077817 | AD145: 359.5146912 | AE145: 359.023122 | AF145: 358.543264 | AG145: 358.0748669
W146: Change - $ | Y146: =+Y145-X145 -> -2.039494535 | Z146: -8.506345311 | AA146: -0.0127379973 | AB146: 0.06012220128 | AC146: -0.2128868909 | AD146: -0.4930904512 | AE146: -0.4915692153 | AF146: -0.4798580131 | AG146: -0.4683971269
W147: Change - % | Y147: =IFERROR(Y146/X145,"") -> -0.00550145488 | Z147: -0.02307245811 | AA147: -3.536630243e-05 | AB147: 0.0001669316695 | AC147: -0.0005909902165 | AD147: -0.001369666091 | AE147: -0.00136731329 | AF147: -0.001336565763 | AG147: -0.001306389421
X149: =+X$160 -> 2018-19 | Y149: 2019-20 | Z149: 2020-21 | AA149: 2021-22 | AB149: 2022-23 | AC149: 2023-24 | AD149: 2024-25 | AE149: 2025-26 | AF149: 2026-27 | AG149: 2027-28
W150: Total prescribed opex | X150: =+X140+X145 -> 476.298796 | Y150: 475.0203193 | Z150: 467.3190383 | AA150: 468.0038799 | AB150: 468.4699962 | AC150: 468.5519284 | AD150: 468.2905697 | AE150: 467.9702103 | AF150: 467.603527 | AG150: 467.1926801
W151: Change - $ | Y151: =+Y150-X150 -> -1.278476664 | Z151: -7.701281061 | AA151: 0.6848416514 | AB151: 0.4661162311 | AC151: 0.08193221863 | AD151: -0.2613586346 | AE151: -0.3203594404 | AF151: -0.3666833201 | AG151: -0.4108469001
W152: Change - % | Y152: =IFERROR(Y151/X150,"") -> -0.002684190418 | Z152: -0.01621252975 | AA152: 0.001465469188 | AB152: 0.0009959665958 | AC152: 0.000174893204 | AD152: -0.0005578007874 | AE152: -0.0006841039754 | AF152: -0.0007835612438 | AG152: -0.0008786223294
W155: Controllable vs. Non-controllable opex - % | X155: =+X$160 -> 2018-19 | Y155: 2019-20 | Z155: 2020-21 | AA155: 2021-22 | AB155: 2022-23 | AC155: 2023-24 | AD155: 2024-25 | AE155: 2025-26 | AF155: 2026-27 | AG155: 2027-28
W156: Controllable opex - % | X156: =+X84/X95 -> 0.2216668878 | Y156: 0.2238655597 | Z156: 0.2292775281 | AA156: 0.230432563 | AB156: 0.2310699265 | AC156: 0.2316587344 | AD156: 0.2322828721 | AE156: 0.2328077427 | AF156: 0.2332323362 | AG156: 0.2335606226
W157: Non-controllable opex - % | X157: =+X92/X95 -> 0.7783331122 | Y157: 0.7761344403 | Z157: 0.7707224719 | AA157: 0.769567437 | AB157: 0.7689300735 | AC157: 0.7683412656 | AD157: 0.7677171279 | AE157: 0.7671922573 | AF157: 0.7667676638 | AG157: 0.7664393774
X158: =SUM(X156:X157) -> 1 | Y158: 1 | Z158: 1 | AA158: 1 | AB158: 1 | AC158: 1 | AD158: 1 | AE158: 1 | AF158: 1 | AG158: 1
V160: =+V6 -> 2016-17 | W160: 2017-18 | X160: 2018-19 | Y160: 2019-20 | Z160: 2020-21 | AA160: 2021-22 | AB160: 2022-23 | AC160: 2023-24 | AD160: 2024-25 | AE160: 2025-26 | AF160: 2026-27 | AG160: 2027-28
U161: Third Reg period Opex | V161: =+V169-SUM(V162:V168) -> 99.07038008 | W161: =+W169-SUM(W162:W168) -> 101.4051377
U162: Adjusted baseline opex | X162: =+X61 -> 101.6199395 | Y162: 102.3671333 | Z162: 102.9277939 | AA162: 103.3803025 | AB162: 103.7408544 | AC162: 104.0356736 | AD162: 104.2674054 | AE162: 104.4386152 | AF162: 104.5517898 | AG162: 104.6093401
U163: Forecast variations to baseline operating expenditure | X163: =+X81 -> 3.959732331 | Y163: 3.973556352 | Z163: 4.217959998 | AA163: 4.463031033 | AB163: 4.508473147 | AC163: 4.508473147 | AD163: 4.508473147 | AE163: 4.508473147 | AF163: 4.508473147 | AG163: 4.508473147
U164: Licence fees | V164: =+V193 -> 0.8464466465 | W164: =+W193 -> 0.899027 | X164: =+X89 -> 0.7436068 | Y164: 0.7436068 | Z164: 0.7436068 | AA164: 0.7436068 | AB164: 0.7436068 | AC164: 0.7436068 | AD164: 0.7436068 | AE164: 0.7436068 | AF164: 0.7436068 | AG164: 0.7436068
U165: Environment Contribution | V165: =+V194 -> 18.95759242 | W165: =+W194 -> 18.563 | X165: =+X90 -> 25.86217009 | Y165: 25.28071367 | Z165: 24.71233008 | AA165: 24.1567254 | AB165: 23.61361231 | AC165: 23.08270998 | AD165: 22.56374388 | AE165: 22.05644563 | AF165: 21.56055291 | AG165: 21.0758093
U166: External bulk water charges | V166: =+V191 -> 350.8231631 | W166: =+W191 -> 342.706805 | X166: =+X87 -> 344.1133473 | Y166: 342.6553092 | Z166: 334.7173475 | AA166: 335.2602142 | AB166: 335.8634494 | AC166: 336.1814649 | AD166: 336.2073405 | AE166: 336.2230696 | AF166: 336.2391043 | AG166: 336.2554508
U167: External temporary water purchases | V167: =+V192 -> 0 | W167: =+W192 -> 0 | X167: =+X88 -> 0 | Y167: 0 | Z167: 0 | AA167: 0 | AB167: 0 | AC167: 0 | AD167: 0 | AE167: 0 | AF167: 0 | AG167: 0
U168: Other non-controllable | V168: =+V195 -> 0 | W168: =+W195 -> 0 | X168: =+X91 -> 0 | Y168: 0 | Z168: 0 | AA168: 0 | AB168: 0 | AC168: 0 | AD168: 0 | AE168: 0 | AF168: 0 | AG168: 0
U169: Total prescribed opex | V169: =+Opex_Breakdown!V37 -> 469.6975823 | W169: =+Opex_Breakdown!W37 -> 463.5739697 | X169: =SUM(X162:X168) -> 476.298796 | Y169: 475.0203193 | Z169: 467.3190383 | AA169: 468.0038799 | AB169: 468.4699962 | AC169: 468.5519284 | AD169: 468.2905697 | AE169: 467.9702103 | AF169: 467.603527 | AG169: 467.1926801
X171: =+X$160 -> 2018-19 | Y171: 2019-20 | Z171: 2020-21 | AA171: 2021-22 | AB171: 2022-23 | AC171: 2023-24 | AD171: 2024-25 | AE171: 2025-26 | AF171: 2026-27 | AG171: 2027-28
W172: Adjusted baseline opex | X172: =+X162/X$169 -> 0.2133533411 | Y172: 0.2155005358 | Z172: 0.22025166 | AA172: 0.220896251 | AB172: 0.2214461018 | AC172: 0.2220365924 | AD172: 0.22265536 | AE172: 0.2231736398 | AF172: 0.2235906784 | AG172: 0.223910486
W173: Forecast variations to baseline operating expenditure | X173: =+X163/X$169 -> 0.008313546799 | Y173: 0.008365023958 | Z173: 0.009025868096 | AA173: 0.009536312036 | AB173: 0.009623824756 | AC173: 0.009622141909 | AD173: 0.009627512143 | AE173: 0.009634102871 | AF173: 0.0096416577 | AG173: 0.009650136526
W174: Licence fees | X174: =+X164/X$169 -> 0.001561219147 | Y174: 0.001565421035 | Z174: 0.001591218716 | AA174: 0.001588890246 | AB174: 0.001587309339 | AC174: 0.001587031778 | AD174: 0.00158791752 | AE174: 0.001589004564 | AF174: 0.001590250623 | AG174: 0.001591649081
W175: Environment Contribution | X175: =+X165/X$169 -> 0.05429820588 | Y175: 0.05322027847 | Z175: 0.05288106852 | AA175: 0.05161650669 | AB175: 0.05040581576 | AC175: 0.04926393125 | AD175: 0.04818321216 | AE175: 0.04713215743 | AF175: 0.04610861909 | AG175: 0.04511159998
W176: External bulk water charges (excl. temporary purchases) | X176: =+X166/X$169 -> 0.7224736871 | Y176: 0.7213487408 | Z176: 0.7162501847 | AA176: 0.71636204 | AB176: 0.7169369484 | AC176: 0.7174903026 | AD176: 0.7179459982 | AE176: 0.7184710953 | AF176: 0.7190687941 | AG176: 0.7197361284
W177: External temporary water purchases | X177: =+X167/X$169 -> 0 | Y177: 0 | Z177: 0 | AA177: 0 | AB177: 0 | AC177: 0 | AD177: 0 | AE177: 0 | AF177: 0 | AG177: 0
W178: Other non-controllable | X178: =+X168/X$169 -> 0 | Y178: 0 | Z178: 0 | AA178: 0 | AB178: 0 | AC178: 0 | AD178: 0 | AE178: 0 | AF178: 0 | AG178: 0
W179: Total prescribed opex | X179: =+X169/X$169 -> 1 | Y179: 1 | Z179: 1 | AA179: 1 | AB179: 1 | AC179: 1 | AD179: 1 | AE179: 1 | AF179: 1 | AG179: 1
X181: =+X$160 -> 2018-19 | Y181: 2019-20 | Z181: 2020-21 | AA181: 2021-22 | AB181: 2022-23 | AC181: 2023-24 | AD181: 2024-25 | AE181: 2025-26 | AF181: 2026-27 | AG181: 2027-28
W182: Water | X182: =+SUMIF($H$65:$H$80,$W182,X$65:X$80) -> 2 | Y182: 2.2 | Z182: 2.4 | AA182: 2.6 | AB182: 2.6 | AC182: 2.6 | AD182: 2.6 | AE182: 2.6 | AF182: 2.6 | AG182: 2.6
W183: Sewerage | X183: 0.6752819773 | Y183: 0.4444781234 | Z183: 0.4462665947 | AA183: 0.4484627304 | AB183: 0.4506871307 | AC183: 0.4506871307 | AD183: 0.4506871307 | AE183: 0.4506871307 | AF183: 0.4506871307 | AG183: 0.4506871307
W184: Recycled Water | X184: 1.284450354 | Y184: 1.329078228 | Z184: 1.371693404 | AA184: 1.414568302 | AB184: 1.457786016 | AC184: 1.457786016 | AD184: 1.457786016 | AE184: 1.457786016 | AF184: 1.457786016 | AG184: 1.457786016
W185: Rural water | X185: 0 | Y185: 0 | Z185: 0 | AA185: 0 | AB185: 0 | AC185: 0 | AD185: 0 | AE185: 0 | AF185: 0 | AG185: 0
W186: Bulk Water | X186: 0 | Y186: 0 | Z186: 0 | AA186: 0 | AB186: 0 | AC186: 0 | AD186: 0 | AE186: 0 | AF186: 0 | AG186: 0
W187: Forecast variations to baseline operating expenditure | X187: =SUM(X182:X186) -> 3.959732331 | Y187: 3.973556352 | Z187: 4.217959998 | AA187: 4.463031033 | AB187: 4.508473147 | AC187: 4.508473147 | AD187: 4.508473147 | AE187: 4.508473147 | AF187: 4.508473147 | AG187: 4.508473147
V190: =+V6 -> 2016-17 | W190: 2017-18 | X190: 2018-19 | Y190: 2019-20 | Z190: 2020-21 | AA190: 2021-22 | AB190: 2022-23 | AC190: 2023-24 | AD190: 2024-25 | AE190: 2025-26 | AF190: 2026-27 | AG190: 2027-28
U191: External bulk water charges (excl. temporary purchases) | V191: =+Opex_Breakdown!V29 -> 350.8231631 | W191: =+Opex_Breakdown!W29 -> 342.706805 | X191: =+X87 -> 344.1133473 | Y191: 342.6553092 | Z191: 334.7173475 | AA191: 335.2602142 | AB191: 335.8634494 | AC191: 336.1814649 | AD191: 336.2073405 | AE191: 336.2230696 | AF191: 336.2391043 | AG191: 336.2554508
U192: External temporary water purchases | V192: =+Opex_Breakdown!V30 -> 0 | W192: =+Opex_Breakdown!W30 -> 0 | X192: =+X88 -> 0 | Y192: 0 | Z192: 0 | AA192: 0 | AB192: 0 | AC192: 0 | AD192: 0 | AE192: 0 | AF192: 0 | AG192: 0
U193: Licence fees | V193: =+Opex_Breakdown!V31 -> 0.8464466465 | W193: =+Opex_Breakdown!W31 -> 0.899027 | X193: =+X89 -> 0.7436068 | Y193: 0.7436068 | Z193: 0.7436068 | AA193: 0.7436068 | AB193: 0.7436068 | AC193: 0.7436068 | AD193: 0.7436068 | AE193: 0.7436068 | AF193: 0.7436068 | AG193: 0.7436068
U194: Environment Contribution | V194: =+Opex_Breakdown!V32 -> 18.95759242 | W194: =+Opex_Breakdown!W32 -> 18.563 | X194: =+X90 -> 25.86217009 | Y194: 25.28071367 | Z194: 24.71233008 | AA194: 24.1567254 | AB194: 23.61361231 | AC194: 23.08270998 | AD194: 22.56374388 | AE194: 22.05644563 | AF194: 21.56055291 | AG194: 21.0758093
U195: Other non-controllable | V195: =+Opex_Breakdown!V33 -> 0 | W195: =+Opex_Breakdown!W33 -> 0 | X195: =+X91 -> 0 | Y195: 0 | Z195: 0 | AA195: 0 | AB195: 0 | AC195: 0 | AD195: 0 | AE195: 0 | AF195: 0 | AG195: 0
U196: Total Non-controllable operating expenditure | V196: =+Opex_Breakdown!V34 -> 370.6272022 | W196: =+Opex_Breakdown!W34 -> 362.168832 | X196: =SUM(X191:X195) -> 370.7191242 | Y196: 368.6796297 | Z196: 360.1732844 | AA196: 360.1605464 | AB196: 360.2206686 | AC196: 360.0077817 | AD196: 359.5146912 | AE196: 359.023122 | AF196: 358.543264 | AG196: 358.0748669
V198: ERROR CHECK | X198: =+X169=X95 -> TRUE | Y198: TRUE | Z198: TRUE | AA198: TRUE | AB198: TRUE | AC198: TRUE | AD198: TRUE | AE198: TRUE | AF198: TRUE | AG198: TRUE
X199: =+X187=X163 -> TRUE | Y199: TRUE | Z199: TRUE | AA199: TRUE | AB199: TRUE | AC199: TRUE | AD199: TRUE | AE199: TRUE | AF199: TRUE | AG199: TRUE
X200: =+X150=X169 -> TRUE | Y200: TRUE | Z200: TRUE | AA200: TRUE | AB200: TRUE | AC200: TRUE | AD200: TRUE | AE200: TRUE | AF200: TRUE | AG200: TRUE
X201: =+X196=X145 -> TRUE | Y201: TRUE | Z201: TRUE | AA201: TRUE | AB201: TRUE | AC201: TRUE | AD201: TRUE | AE201: TRUE | AF201: TRUE | AG201: TRUE

Sheet Opex_Breakdown
A1: 80 | B1: Operating Expenditure - Breakdown
B2: =+Contents!H7 -> City West Water
B3: Go to Table of Contents
L4: FIRST REG PERIOD | P4: SECOND REG PERIOD | U4: THIRD REG PERIOD | Z4: FOURTH REG PERIOD | AC4: FIFTH REG PERIOD
K6: 2006 | L6: 2007 | M6: 2008 | N6: 2009 | O6: 2010 | P6: 2011 | Q6: 2012 | R6: 2013 | S6: 2014 | T6: 2015 | U6: 2016 | V6: 2017 | W6: 2018 | X6: 2019 | Y6: 2020 | Z6: 2021 | AA6: 2022 | AB6: 2023 | AC6: 2024 | AD6: 2025 | AE6: 2026 | AF6: 2027 | AG6: 2028
B7: $m, 01/01/18 | K7: =+CONCATENATE(K6-1,"-",RIGHT(K6,2)) -> 2005-06 | L7: =+CONCATENATE(L6-1,"-",RIGHT(L6,2)) -> 2006-07 | M7: 2007-08 | N7: 2008-09 | O7: 2009-10 | P7: 2010-11 | Q7: 2011-12 | R7: 2012-13 | S7: 2013-14 | T7: 2014-15 | U7: 2015-16 | V7: 2016-17 | W7: 2017-18 | X7: =+CONCATENATE(X6-1,"-",RIGHT(X6,2)) -> 2018-19 | Y7: =+CONCATENATE(Y6-1,"-",RIGHT(Y6,2)) -> 2019-20 | Z7: =+CONCATENATE(Z6-1,"-",RIGHT(Z6,2)) -> 2020-21 | AA7: =+CONCATENATE(AA6-1,"-",RIGHT(AA6,2)) -> 2021-22 | AB7: =+CONCATENATE(AB6-1,"-",RIGHT(AB6,2)) -> 2022-23 | AC7: =+CONCATENATE(AC6-1,"-",RIGHT(AC6,2)) -> 2023-24 | AD7: 2024-25 | AE7: 2025-26 | AF7: 2026-27 | AG7: 2027-28
D10: Operating Expenditure Summary
E12: =C48 -> Water | K12: =+K57-K50-K54 -> 0 | L12: =+L57-L50-L54 -> 0 | M12: 0 | N12: 0 | O12: 0 | P12: 0 | Q12: =+Q57-Q50-Q54 -> 0 | R12: 46.82876147 | S12: 38.19001878 | T12: 36.29612127 | U12: 37.11091402 | V12: 37.46365113 | W12: 38.21076486 | X12: 39.3962239 | Y12: 39.66762567 | Z12: 39.95268796 | AA12: 40.19699995 | AB12: 40.33414857 | AC12: =+AC57-AC50-AC54 -> 40.44563497 | AD12: 40.53326479 | AE12: 40.59800809 | AF12: 40.64080532 | AG12: 40.66256804
E13: =C59 -> Sewerage | K13: =K68-K61-K65 -> 0 | L13: =L68-L61-L65 -> 0 | M13: 0 | N13: 0 | O13: 0 | P13: 0 | Q13: 0 | R13: 47.71194288 | S13: 54.45254395 | T13: 55.94612903 | U13: 58.08503511 | V13: 53.53511472 | W13: 54.8322882 | X13: 56.16753904 | Y13: 56.55685659 | Z13: 56.95446212 | AA13: 57.29381626 | AB13: 57.48969259 | AC13: =AC68-AC61-AC65 -> 57.64900534 | AD13: 57.77422733 | AE13: 57.86674474 | AF13: 57.92790146 | AG13: 57.95900014
E14: =C70 -> Recycled Water | K14: =K79-K72-K76 -> 0 | L14: =L79-L72-L76 -> 0 | M14: 0 | N14: 0 | O14: 0 | P14: 0 | Q14: 0 | R14: 9.770821087 | S14: 8.244335938 | T14: 8.773951613 | U14: 9.182958129 | V14: 8.071614232 | W14: 8.362084683 | X14: 10.01590886 | Y14: 10.11620741 | Z14: 10.23860384 | AA14: 10.35251736 | AB14: 10.42548644 | AC14: =AC79-AC72-AC76 -> 10.44950639 | AD14: 10.4683864 | AE14: 10.48233547 | AF14: 10.49155621 | AG14: 10.49624503
E15: =C81 -> Rural Water | K15: =K90-K83-K87 -> 0 | L15: =L90-L83-L87 -> 0 | M15: 0 | N15: 0 | O15: 0 | P15: 0 | Q15: 0 | R15: 0 | S15: 0 | T15: 0 | U15: 0 | V15: 0 | W15: 0 | X15: 0 | Y15: 0 | Z15: 0 | AA15: 0 | AB15: 0 | AC15: =AC90-AC83-AC87 -> 0 | AD15: 0 | AE15: 0 | AF15: 0 | AG15: 0
E16: Bulk Water | K16: =K100-K97 -> 0 | L16: =L100-L97 -> 0 | M16: 0 | N16: 0 | O16: 0 | P16: 0 | Q16: 0 | R16: 0 | S16: 0 | T16: 0 | U16: 0 | V16: 0 | W16: 0 | X16: 0 | Y16: 0 | Z16: 0 | AA16: 0 | AB16: 0 | AC16: =AC100-AC97 -> 0 | AD16: 0 | AE16: 0 | AF16: 0 | AG16: 0
E17: Total controllable operating expenditure | K17: =SUM(K12:K16) -> 0 | L17: 0 | M17: 0 | N17: 0 | O17: 0 | P17: 0 | Q17: 0 | R17: 104.3115254 | S17: 100.8868987 | T17: 101.0162019 | U17: 104.3789073 | V17: 99.07038008 | W17: 101.4051377 | X17: 105.5796718 | Y17: 106.3406897 | Z17: 107.1457539 | AA17: 107.8433336 | AB17: 108.2493276 | AC17: 108.5441467 | AD17: 108.7758785 | AE17: 108.9470883 | AF17: 109.060263 | AG17: 109.1178132
V18: Controllable Opex for 3rd Reg Period | W18: =SUM(S17:W17) -> 506.7575256 | AA18: Controllable Opex for 4th Reg Period | AB18: =SUM(X17:AB17) -> 535.1587765
AA19: Controllable Opex growth from 3rd to 4th Reg Period | AB19: =IFERROR(AB18-W18,"-") -> 28.4012509 | AC19: =IFERROR(AB18/W18-1,"-") -> 0.05604505007
E20: Operations & Maintenance | K20: =K49+K60+K71+K82+K93 -> 0 | L20: 0 | M20: 0 | N20: 0 | O20: 0 | P20: 0 | Q20: 0 | R20: 51.02408403 | S20: 46.99440843 | T20: 42.08531482 | U20: 45.72433184 | V20: 52.55935885 | W20: 51.51326802 | X20: 54.58724699 | Y20: 54.7528485 | Z20: 55.05208169 | AA20: 55.29434517 | AB20: 55.48785154 | AC20: 55.64426058 | AD20: 55.76720021 | AE20: 55.85803136 | AF20: 55.91807341 | AG20: 55.94860527
E21: Treatment | K21: =K51+K62+K73+K84+K94 -> 0 | L21: 0 | M21: 0 | N21: 0 | O21: 0 | P21: 0 | Q21: 0 | R21: 6.92315462 | S21: 5.377163086 | T21: 8.255 | U21: 8.792406367 | V21: 7.469176424 | W21: 7.552923814 | X21: 8.945844763 | Y21: 9.046805547 | Z21: 9.131690399 | AA21: 9.208681112 | AB21: 9.279081782 | AC21: 9.30130897 | AD21: 9.318779841 | AE21: 9.331687796 | AF21: 9.340220334 | AG21: 9.344559197
E22: Customer Service and billing | K22: =K52+K63+K74+K85+K95 -> 0 | L22: 0 | M22: 0 | N22: 0 | O22: 0 | P22: 0 | Q22: 0 | R22: 13.33077428 | S22: 15.17216797 | T22: 15.63145161 | U22: 16.28840356 | V22: 14.01808834 | W22: 14.44290251 | X22: 14.37884146 | Y22: 14.48456659 | Z22: 14.56389797 | AA22: 14.62792625 | AB22: 14.678943 | AC22: 14.7206588 | AD22: 14.75344798 | AE22: 14.77767353 | AF22: 14.79368732 | AG22: 14.80183046
E23: GSL Payments | K23: =K53+K64+K75+K86+K96 -> 0 | L23: 0 | M23: 0 | N23: 0 | O23: 0 | P23: 0 | Q23: 0 | R23: 0.07165908408 | S23: 0.07122070312 | T23: 0.04822580645 | U23: 0.08691011236 | V23: 0.1858176987 | W23: 0.085 | X23: 0.1905996856 | Y23: 0.1920011321 | Z23: 0.1930527145 | AA23: 0.1939014456 | AB23: 0.1945777014 | AC23: 0.195130668 | AD23: 0.1955653072 | AE23: 0.1958864305 | AF23: 0.1960987025 | AG23: 0.1962066444
E24: Corporate | K24: =K55+K66+K77+K88+K98 -> 0 | L24: 0 | M24: 0 | N24: 0 | O24: 0 | P24: 0 | Q24: 0 | R24: 32.96185249 | S24: 32.01802246 | T24: 34.41645161 | U24: 33.23026362 | V24: 23.96869547 | W24: 26.9628484 | X24: 26.58552577 | Y24: 26.96629889 | Z24: 27.3019429 | AA24: 27.61142104 | AB24: 27.69865155 | AC24: 27.76997891 | AD24: 27.82604319 | AE24: 27.86746501 | AF24: 27.89484604 | AG24: 27.90876952
E25: Other operating expenditure | K25: =K56+K67+K78+K89+K99 -> 0 | L25: 0 | M25: 0 | N25: 0 | O25: 0 | P25: 0 | Q25: 0 | R25: 9.339063569e-07 | S25: 1.253916016 | T25: 0.5797580645 | U25: 0.2565917603 | V25: 0.8692432969 | W25: 0.848195 | X25: 0.8916131254 | Y25: 0.8981690026 | Z25: 0.9030882375 | AA25: 0.9070585471 | AB25: 0.9102220288 | AC25: 0.912808771 | AD25: 0.9148419854 | AE25: 0.9163441796 | AF25: 0.9173371741 | AG25: 0.9178421197
E26: Total controllable operating expenditure | K26: =SUM(K20:K25) -> 0 | L26: =SUM(L20:L25) -> 0 | M26: 0 | N26: 0 | O26: 0 | P26: 0 | Q26: 0 | R26: 104.3115254 | S26: 100.8868987 | T26: 101.0162019 | U26: 104.3789073 | V26: 99.07038008 | W26: 101.4051377 | X26: 105.5796718 | Y26: 106.3406897 | Z26: 107.1457539 | AA26: 107.8433336 | AB26: 108.2493276 | AC26: 108.5441467 | AD26: 108.7758785 | AE26: 108.9470883 | AF26: 109.060263 | AG26: 109.1178132
E29: External bulk water charges (excl. temporary purchases) | K29: =K50+K61+K72+K83 -> 0 | L29: 0 | M29: 0 | N29: 0 | O29: 0 | P29: 0 | Q29: 0 | R29: 251.333438 | S29: 381.3632801 | T29: 339.2518924 | U29: 367.3623657 | V29: 350.8231631 | W29: 342.706805 | X29: =X50+X61+X72+X83 -> 344.1133473 | Y29: =Y50+Y61+Y72+Y83 -> 342.6553092 | Z29: 334.7173475 | AA29: 335.2602142 | AB29: 335.8634494 | AC29: 336.1814649 | AD29: 336.2073405 | AE29: 336.2230696 | AF29: 336.2391043 | AG29: 336.2554508
E30: External temporary water purchases | K30: =+K102 -> 0 | L30: 0 | M30: 0 | N30: 0 | O30: 0 | P30: 0 | Q30: 0 | R30: 0 | S30: 0 | T30: 0 | U30: 0 | V30: 0 | W30: 0 | X30: 0 | Y30: 0 | Z30: 0 | AA30: 0 | AB30: 0 | AC30: 0 | AD30: 0 | AE30: 0 | AF30: 0 | AG30: 0
E31: Licence fees | K31: =+K109 -> 0 | L31: 0 | M31: 0 | N31: 0 | O31: 0 | P31: 0 | Q31: 0 | R31: 3.069196964 | S31: 0.8384619141 | T31: 0.5755645161 | U31: 0.6445833333 | V31: 0.8464466465 | W31: 0.899027 | X31: 0.7436068 | Y31: 0.7436068 | Z31: 0.7436068 | AA31: 0.7436068 | AB31: 0.7436068 | AC31: 0.7436068 | AD31: 0.7436068 | AE31: 0.7436068 | AF31: 0.7436068 | AG31: 0.7436068
E32: Environment Contribution | K32: =K111 -> 0 | L32: 0 | M32: 0 | N32: 0 | O32: 0 | P32: 0 | Q32: 0 | R32: 11.93156657 | S32: 20.0313623 | T32: 19.46120968 | U32: 19.20610019 | V32: 18.95759242 | W32: 18.563 | X32: 25.86217009 | Y32: 25.28071367 | Z32: 24.71233008 | AA32: 24.1567254 | AB32: 23.61361231 | AC32: 23.08270998 | AD32: 22.56374388 | AE32: 22.05644563 | AF32: 21.56055291 | AG32: 21.0758093
E33: Other non-controllable | K33: =+K124 -> 0 | L33: 0 | M33: 0 | N33: 0 | O33: 0 | P33: 0 | Q33: 0 | R33: 0 | S33: 0 | T33: 0 | U33: 0 | V33: 0 | W33: 0 | X33: 0 | Y33: 0 | Z33: 0 | AA33: 0 | AB33: 0 | AC33: 0 | AD33: 0 | AE33: 0 | AF33: 0 | AG33: =+AG124 -> 0
E34: Total non-controllable operating expenditure | K34: =SUM(K29:K33) -> 0 | L34: =SUM(L29:L33) -> 0 | M34: 0 | N34: 0 | O34: 0 | P34: 0 | Q34: 0 | R34: 266.3342015 | S34: 402.2331043 | T34: 359.2886666 | U34: 387.2130493 | V34: 370.6272022 | W34: 362.168832 | X34: 370.7191242 | Y34: 368.6796297 | Z34: 360.1732844 | AA34: 360.1605464 | AB34: 360.2206686 | AC34: 360.0077817 | AD34: 359.5146912 | AE34: 359.023122 | AF34: 358.543264 | AG34: 358.0748669
V35: Non-controllable Opex for 3rd Reg Period | W35: =SUM(S34:W34) -> 1881.530854 | AA35: Non-controllable Opex for 4th Reg Period | AB35: =SUM(X34:AB34) -> 1819.953253
AA36: Non-controllable Opex growth from 3rd to 4th Reg Period | AB36: =IFERROR(AB35-W35,"-") -> -61.57760117 | AC36: =IFERROR(AB35/W35-1,"-") -> -0.03272739378
E37: Total prescribed operating expenditure | K37: =+K34+K17 -> 0 | L37: 0 | M37: 0 | N37: 0 | O37: 0 | P37: 0 | Q37: 0 | R37: 370.6457269 | S37: 503.120003 | T37: 460.3048685 | U37: 491.5919565 | V37: 469.6975823 | W37: 463.5739697 | X37: 476.298796 | Y37: 475.0203193 | Z37: 467.3190383 | AA37: 468.0038799 | AB37: 468.4699962 | AC37: 468.5519284 | AD37: 468.2905697 | AE37: 467.9702103 | AF37: 467.603527 | AG37: 467.1926801
V38: Prescribed Opex for 3rd Reg Period | W38: =SUM(S37:W37) -> 2388.28838 | AA38: Prescribed Opex for 4th Reg Period | AB38: =SUM(X37:AB37) -> 2355.11203
AA39: Prescribed Opex growth from 3rd to 4th Reg Period | AB39: =IFERROR(AB38-W38,"-") -> -33.17635027 | AC39: =IFERROR(AB38/W38-1,"-") -> -0.01389126646
W40: To reconcile to 'Opex_FO' tab row 123>> | X40: =+Opex_FO!X95 -> 476.298796 | Y40: =+Opex_FO!Y95 -> 475.0203193 | Z40: =+Opex_FO!Z95 -> 467.3190383 | AA40: =+Opex_FO!AA95 -> 468.0038799 | AB40: =+Opex_FO!AB95 -> 468.4699962 | AC40: =+Opex_FO!AC95 -> 468.5519284 | AD40: =+Opex_FO!AD95 -> 468.2905697 | AE40: =+Opex_FO!AE95 -> 467.9702103 | AF40: =+Opex_FO!AF95 -> 467.603527 | AG40: =+Opex_FO!AG95 -> 467.1926801
W41: Difference | X41: =+X40-X37 -> 0 | Y41: 0 | Z41: 0 | AA41: 0 | AB41: 0 | AC41: 0 | AD41: 0 | AE41: 0 | AF41: 0 | AG41: 0
W42: Test | X42: =ROUND(X40,2)=ROUND(X37,2) -> TRUE | Y42: =ROUND(Y40,2)=ROUND(Y37,2) -> TRUE | Z42: TRUE | AA42: TRUE | AB42: TRUE | AC42: TRUE | AD42: TRUE | AE42: TRUE | AF42: TRUE | AG42: TRUE
B46: Total operating expenditure
C48: Water
D49: Operations & Maintenance | R49: 26.09165503 | S49: 19.87766526 | T49: 17.80781482 | U49: 19.09155562 | V49: 22.25002582 | W49: 21.80813249 | X49: 23.06707853 | Y49: 23.15133836 | Z49: 23.27790348 | AA49: 23.38032651 | AB49: 23.46210741 | AC49: 23.52832026 | AD49: 23.58036447 | AE49: 23.61881614 | AF49: 23.64423383 | AG49: 23.65715892
D50: External bulk charges (excl. temporary purchases) | R50: =+R131 -> 149.4760168 | S50: =+S131 -> 239.1579797 | T50: =+T131 -> 201.3515719 | U50: 227.3170943 | V50: 249.958192 | W50: 243.2010748 | X50: 243.0273727 | Y50: 240.5288346 | Z50: 232.1499725 | AA50: 232.315668 | AB50: 232.5658384 | AC50: 232.5658384 | AD50: 232.5658384 | AE50: 232.5658384 | AF50: 232.5658384 | AG50: 232.5658384 | AH50: see reconciliation below
D51: Treatment | R51: 0 | S51: 0 | T51: 0 | U51: 0 | V51: 0 | W51: 0 | X51: 0 | Y51: 0 | Z51: 0 | AA51: 0 | AB51: 0 | AC51: 0 | AD51: 0 | AE51: 0 | AF51: 0 | AG51: 0
D52: Customer Service and billing | R52: 7.254703332 | S52: 6.285766602 | T52: 6.053387097 | U52: 6.383754682 | V52: 5.494078263 | W52: 5.66057474 | X52: 5.635467433 | Y52: 5.676904051 | Z52: 5.707996223 | AA52: 5.733090683 | AB52: 5.753085564 | AC52: 5.769435146 | AD52: 5.782286138 | AE52: 5.791780802 | AF52: 5.798057053 | AG52: 5.801248577
D53: GSL Payments | R53: 0.03582954204 | S53: 0.03561035156 | T53: 0.02411290323 | U53: 0.04345505618 | V53: 0.09290884935 | W53: 0.0425 | X53: 0.0952998428 | Y53: 0.09600056607 | Z53: 0.09652635724 | AA53: 0.09695072278 | AB53: 0.09728885072 | AC53: 0.097565334 | AD53: 0.09778265361 | AE53: 0.09794321526 | AF53: 0.09804935123 | AG53: 0.0981033222
D54: Licence Fees | R54: 1.555699093 | S54: 0.3571826172 | T54: 0.2589516129 | U54: 0.2845271536 | V54: 0.3902039575 | W54: 0.4195831522 | X54: 0.4002457901 | Y54: 0.4031887282 | Z54: 0.4053969763 | AA54: 0.4071792513 | AB54: 0.4085993405 | AC54: 0.409760531 | AD54: 0.4106732425 | AE54: 0.4113475786 | AF54: 0.4117933345 | AG54: 0.412020005
D55: Corporate | R55: 13.44657312 | S55: 11.50322266 | T55: 12.13612903 | U55: 11.46488742 | V55: 8.757394896 | W55: 9.851362634 | X55: 9.706764965 | Y55: 9.845213683 | Z55: 9.967173665 | AA55: 10.07957348 | AB55: 10.11144471 | AC55: 10.13750545 | AD55: 10.15798955 | AE55: 10.17312375 | AF55: 10.18312791 | AG55: 10.1882151
D56: Other operating expenditure | R56: 4.512507595e-07 | S56: 0.4877539062 | T56: 0.2746774194 | U56: 0.127261236 | V56: 0.8692432969 | W56: 0.848195 | X56: 0.8916131254 | Y56: 0.8981690026 | Z56: 0.9030882375 | AA56: 0.9070585471 | AB56: 0.9102220288 | AC56: 0.912808771 | AD56: 0.9148419854 | AE56: 0.9163441796 | AF56: 0.9173371741 | AG56: 0.9178421197
C57: =+CONCATENATE("Total ",C48) -> Total Water | K57: =+SUM(K49:K56) -> 0 | L57: =+SUM(L49:L56) -> 0 | M57: 0 | N57: 0 | O57: 0 | P57: 0 | Q57: 0 | R57: 197.8604774 | S57: 277.7051811 | T57: 237.9066448 | U57: 264.7125354 | V57: 287.8120471 | W57: 281.8314228 | X57: 282.8238424 | Y57: 280.5996489 | Z57: 272.5080575 | AA57: 272.9198472 | AB57: 273.3085863 | AC57: =+SUM(AC49:AC56) -> 273.4212339 | AD57: 273.5097765 | AE57: 273.5751941 | AF57: 273.6184371 | AG57: 273.6404265
C59: Sewerage
D60: =+D49 -> Operations & Maintenance | R60: 20.65517116 | S60: 23.59131836 | T60: 20.61129032 | U60: 22.71044007 | V60: 25.82587805 | W60: 25.31105541 | X60: 26.80720987 | Y60: 26.89374295 | Z60: 27.04073595 | AA60: 27.15972685 | AB60: 27.25475953 | AC60: 27.33161361 | AD60: 27.39202195 | AE60: 27.43665328 | AF60: 27.4661559 | AG60: 27.48115822
D61: =+D50 -> External bulk charges (excl. temporary purchases) | R61: =+R132 -> 101.6888141 | S61: =+S132 -> 142.1521483 | T61: =+T132 -> 137.7515964 | U61: 139.6071528 | V61: 100.1148575 | W61: 98.77122975 | X61: 100.3514742 | Y61: 101.3919742 | Z61: 101.8328745 | AA61: 102.2100458 | AB61: 102.5631106 | AC61: 102.866436 | AD61: 102.8773279 | AE61: 102.8777734 | AF61: 102.878219 | AG61: 102.8786645 | AH61: see reconciliation below
D62: Treatment | R62: 6.92315462 | S62: 5.377163086 | T62: 8.255 | U62: 8.792406367 | V62: 7.469176424 | W62: 7.552923814 | X62: 7.66139441 | Y62: 7.717727318 | Z62: 7.759996996 | AA62: 7.79411281 | AB62: 7.821295767 | AC62: 7.843522954 | AD62: 7.860993825 | AE62: 7.87390178 | AF62: 7.882434318 | AG62: 7.886773181
D63: Customer Service and billing | R63: 5.714215377 | S63: 8.75043457 | T63: 9.090564516 | U63: 9.06451779 | V63: 7.801234954 | W63: 8.037649157 | X63: 8.001998409 | Y63: 8.06083572 | Z63: 8.104984588 | AA63: 8.140617095 | AB63: 8.16900853 | AC63: 8.192223875 | AD63: 8.210471452 | AE63: 8.223953258 | AF63: 8.232865129 | AG63: 8.237396885
D64: GSL Payments | R64: 0.03582954204 | S64: 0.03561035156 | T64: 0.02411290323 | U64: 0.04345505618 | V64: 0.09290884935 | W64: 0.0425 | X64: 0.0952998428 | Y64: 0.09600056607 | Z64: 0.09652635724 | AA64: 0.09695072278 | AB64: 0.09728885072 | AC64: 0.097565334 | AD64: 0.09778265361 | AE64: 0.09794321526 | AF64: 0.09804935123 | AG64: 0.0981033222
D65: Licence Fees | R65: 1.504925383 | S65: 0.3906347656 | T65: 0.2673387097 | U65: 0.3000468165 | V65: 0.373945127 | W65: 0.3909499466 | X65: 0.3835685413 | Y65: 0.3863888544 | Z65: 0.3885050904 | AA65: 0.3902131023 | AB65: 0.39157402 | AC65: 0.3926868266 | AD65: 0.3935615076 | AE65: 0.3942077458 | AF65: 0.3946349282 | AG65: 0.3948521539
D66: Corporate | R66: 14.38357169 | S66: 16.16602051 | T66: 17.80056452 | U66: 17.41420646 | V66: 12.34591644 | W66: 13.88815982 | X66: 13.6016365 | Y66: 13.78855003 | Z66: 13.95221823 | AA66: 14.10240878 | AB66: 14.14733991 | AC66: 14.18407957 | AD66: 14.21295744 | AE66: 14.2342932 | AF66: 14.24839676 | AG66: 14.25556854
D67: Other operating expenditure | R67: 4.826555974e-07 | S67: 0.5319970703 | T67: 0.1645967742 | U67: 0.0600093633 | V67: 0 | W67: 0 | X67: 0 | Y67: 0 | Z67: 0 | AA67: 0 | AB67: 0 | AC67: 0 | AD67: 0 | AE67: 0 | AF67: 0 | AG67: 0
C68: =+CONCATENATE("Total ",C59) -> Total Sewerage | K68: =+SUM(K60:K67) -> 0 | L68: 0 | M68: 0 | N68: 0 | O68: 0 | P68: 0 | Q68: 0 | R68: 150.9056823 | S68: 196.995327 | T68: 193.9650642 | U68: 197.9922348 | V68: 154.0239173 | W68: 153.9944679 | X68: 156.9025818 | Y68: 158.3352197 | Z68: 159.1758417 | AA68: 159.8940751 | AB68: 160.4443772 | AC68: =+SUM(AC60:AC67) -> 160.9081282 | AD68: 161.0451167 | AE68: 161.1387259 | AF68: 161.2007554 | AG68: 161.2325168
C70: Recycled Water
D71: =+D60 -> Operations & Maintenance | R71: 4.277257837 | S71: 3.525424805 | T71: 3.666209677 | U71: 3.922336142 | V71: 4.483454981 | W71: 4.394080125 | X71: 4.712958587 | Y71: 4.707767181 | Z71: 4.73344227 | AA71: 4.754291808 | AB71: 4.770984599 | AC71: 4.784326712 | AD71: 4.794813794 | AE71: 4.802561935 | AF71: 4.807683684 | AG71: 4.810288134
D72: =+D61 -> External bulk charges (excl. temporary purchases) | R72: =+R133 -> 0.1686070721 | S72: =+S133 -> 0.05315208628 | T72: =+T133 -> 0.1487240677 | U72: 0.4381186461 | V72: 0.7501136312 | W72: 0.7345004062 | X72: 0.7345004062 | Y72: 0.7345004062 | Z72: 0.7345004062 | AA72: 0.7345004062 | AB72: 0.7345004062 | AC72: 0.7491904144 | AD72: 0.7641742227 | AE72: 0.7794577071 | AF72: 0.7950468613 | AG72: 0.8109477985 | AH72: see reconciliation below
D73: Treatment | R73: 0 | S73: 0 | T73: 0 | U73: 0 | V73: 0 | W73: 0 | X73: 1.284450354 | Y73: 1.329078228 | Z73: 1.371693404 | AA73: 1.414568302 | AB73: 1.457786016 | AC73: 1.457786016 | AD73: 1.457786016 | AE73: 1.457786016 | AF73: 1.457786016 | AG73: 1.457786016
D74: Customer Service and billing | R74: 0.3618555677 | S74: 0.1359667969 | T74: 0.4875 | U74: 0.8401310861 | V74: 0.7227751189 | W74: 0.744678613 | X74: 0.7413756137 | Y74: 0.7468268205 | Z74: 0.7509171604 | AA74: 0.7542184697 | AB74: 0.7568489023 | AC74: 0.7589997764 | AD74: 0.7606903926 | AE74: 0.7619394659 | AF74: 0.7627651401 | AG74: 0.7631850019
D75: GSL Payments | R75: 0 | S75: 0 | T75: 0 | U75: 0 | V75: 0 | W75: 0 | X75: 0 | Y75: 0 | Z75: 0 | AA75: 0 | AB75: 0 | AC75: 0 | AD75: 0 | AE75: 0 | AF75: 0 | AG75: 0
D76: Licence Fees | R76: 0.008572488238 | S76: 0.09064453125 | T76: 0.04927419355 | U76: 0.0600093633 | V76: 0.08229756196 | W76: 0.08849390119 | X76: 0.08441547572 | Y76: 0.08503616812 | Z76: 0.08550190774 | AA76: 0.08587780572 | AB76: 0.08617731546 | AC76: 0.08642222109 | AD76: 0.08661472023 | AE76: 0.08675694384 | AF76: 0.08685095783 | AG76: 0.08689876468
D77: Corporate | R77: 5.131707683 | S77: 4.348779297 | T77: 4.479758065 | U77: 4.35116974 | V77: 2.865384132 | W77: 3.223325945 | X77: 3.277124306 | Y77: 3.332535179 | Z77: 3.382551004 | AA77: 3.429438781 | AB77: 3.439866921 | AC77: 3.448393889 | AD77: 3.455096202 | AE77: 3.460048053 | AF77: 3.463321372 | AG77: 3.464985881
D78: Other operating expenditure | R78: 0 | S78: 0.2341650391 | T78: 0.140483871 | U78: 0.06932116105 | V78: 0 | W78: 0 | X78: 0 | Y78: 0 | Z78: 0 | AA78: 0 | AB78: 0 | AC78: 0 | AD78: 0 | AE78: 0 | AF78: 0 | AG78: 0
C79: =+CONCATENATE("Total ",C70) -> Total Recycled Water | K79: =+SUM(K71:K78) -> 0 | L79: =+SUM(L71:L78) -> 0 | M79: =+SUM(M71:M78) -> 0 | N79: =+SUM(N71:N78) -> 0 | O79: 0 | P79: 0 | Q79: 0 | R79: 9.948000648 | S79: 8.388132555 | T79: 8.971949874 | U79: 9.681086139 | V79: 8.904025425 | W79: 9.18507899 | X79: =+SUM(X71:X78) -> 10.83482474 | Y79: =+SUM(Y71:Y78) -> 10.93574398 | Z79: =+SUM(Z71:Z78) -> 11.05860615 | AA79: =+SUM(AA71:AA78) -> 11.17289557 | AB79: =+SUM(AB71:AB78) -> 11.24616416 | AC79: =+SUM(AC71:AC78) -> 11.28511903 | AD79: 11.31917535 | AE79: 11.34855012 | AF79: 11.37345403 | AG79: 11.3940916
C81: Rural Water
D82: =+D60 -> Operations & Maintenance
D83: =+D61 -> External bulk charges (excl. temporary purchases) | R83: =+R134 -> 0 | S83: =+S134 -> 0 | T83: =+T134 -> 0 | U83: 0 | V83: 0 | W83: 0 | X83: 0 | Y83: 0 | Z83: 0 | AA83: 0 | AB83: 0 | AC83: 0 | AD83: 0 | AE83: 0 | AF83: 0 | AG83: 0 | AH83: see reconciliation below
D84: Treatment
D85: Customer Service and billing
D86: GSL Payments
D87: Licence Fees
D88: Corporate
D89: Other operating expenditure
C90: =+CONCATENATE("Total ",C81) -> Total Rural Water | K90: =+SUM(K82:K89) -> 0 | L90: 0 | M90: 0 | N90: 0 | O90: 0 | P90: 0 | Q90: 0 | R90: 0 | S90: 0 | T90: 0 | U90: 0 | V90: 0 | W90: 0 | X90: =+SUM(X82:X89) -> 0 | Y90: =+SUM(Y82:Y89) -> 0 | Z90: =+SUM(Z82:Z89) -> 0 | AA90: =+SUM(AA82:AA89) -> 0 | AB90: =+SUM(AB82:AB89) -> 0 | AC90: =+SUM(AC82:AC89) -> 0 | AD90: 0 | AE90: 0 | AF90: 0 | AG90: 0
C92: Bulk Water
D93: Operations & Maintenance
D94: Treatment
D95: Customer Service and billing
D96: GSL Payments
D97: Licence Fees
D98: Corporate
D99: Other operating expenditure
C100: Total Bulk water | K100: =+SUM(K93:K99) -> 0 | L100: 0 | M100: 0 | N100: 0 | O100: 0 | P100: 0 | Q100: 0 | R100: 0 | S100: 0 | T100: 0 | U100: 0 | V100: 0 | W100: 0 | X100: 0 | Y100: 0 | Z100: 0 | AA100: 0 | AB100: 0 | AC100: =+SUM(AC93:AC99) -> 0 | AD100: 0 | AE100: 0 | AF100: 0 | AG100: 0
C102: External temporary water purchases | R102: 0 | S102: 0 | T102: 0 | U102: 0 | V102: 0 | W102: 0 | X102: 0 | Y102: 0 | Z102: 0 | AA102: 0 | AB102: 0 | AC102: 0 | AD102: 0 | AE102: 0 | AF102: 0 | AG102: 0
C105: Licence fees
D106: Essential Services Commission | R106: 0.135523726 | S106: 0.7197607422 | T106: 0.4560483871 | U106: 0.5235299625 | V106: 0.7179752819 | W106: 0.772033 | X106: 0.6166128 | Y106: 0.6166128 | Z106: 0.6166128 | AA106: 0.6166128 | AB106: 0.6166128 | AC106: 0.6166128 | AD106: 0.6166128 | AE106: 0.6166128 | AF106: 0.6166128 | AG106: 0.6166128
D107: Department of Human Services | R107: 2.857495711 | S107: 0 | T107: 0 | U107: 0 | V107: 0 | W107: 0 | X107: 0 | Y107: 0 | Z107: 0 | AA107: 0 | AB107: 0 | AC107: 0 | AD107: 0 | AE107: 0 | AF107: 0 | AG107: 0
D108: Environment Protection Authority | R108: 0.07617752753 | S108: 0.1187011719 | T108: 0.119516129 | U108: 0.1210533708 | V108: 0.1284713646 | W108: 0.126994 | X108: 0.126994 | Y108: 0.126994 | Z108: 0.126994 | AA108: 0.126994 | AB108: 0.126994 | AC108: 0.126994 | AD108: 0.126994 | AE108: 0.126994 | AF108: 0.126994 | AG108: 0.126994
C109: =+CONCATENATE("Total ",C105) -> Total Licence fees | K109: =+SUM(K106:K108) -> 0 | L109: =+SUM(L106:L108) -> 0 | M109: 0 | N109: 0 | O109: 0 | P109: 0 | Q109: 0 | R109: 3.069196964 | S109: 0.8384619141 | T109: 0.5755645161 | U109: 0.6445833333 | V109: 0.8464466465 | W109: 0.899027 | X109: =+SUM(X106:X108) -> 0.7436068 | Y109: =+SUM(Y106:Y108) -> 0.7436068 | Z109: =+SUM(Z106:Z108) -> 0.7436068 | AA109: =+SUM(AA106:AA108) -> 0.7436068 | AB109: =+SUM(AB106:AB108) -> 0.7436068 | AC109: =+SUM(AC106:AC108) -> 0.7436068 | AD109: 0.7436068 | AE109: 0.7436068 | AF109: 0.7436068 | AG109: 0.7436068
C111: Environment Contribution | R111: 11.93156657 | S111: 20.0313623 | T111: 19.46120968 | U111: 19.20610019 | V111: 18.95759242 | W111: 18.563 | X111: 25.86217009 | Y111: 25.28071367 | Z111: 24.71233008 | AA111: 24.1567254 | AB111: 23.61361231 | AC111: 23.08270998 | AD111: 22.56374388 | AE111: 22.05644563 | AF111: 21.56055291 | AG111: 21.0758093
C113: Other non-controllable
D114: [Non-controllable 1] | R114: 0 | S114: 0 | T114: 0 | U114: 0 | V114: 0 | W114: 0 | X114: 0 | Y114: 0 | Z114: 0 | AA114: 0 | AB114: 0 | AC114: 0 | AD114: 0 | AE114: 0 | AF114: 0 | AG114: 0
D115: [Non-controllable 2] | R115: 0 | S115: 0 | T115: 0 | U115: 0 | V115: 0 | W115: 0 | X115: 0 | Y115: 0 | Z115: 0 | AA115: 0 | AB115: 0 | AC115: 0 | AD115: 0 | AE115: 0 | AF115: 0 | AG115: 0
D116: [Non-controllable 3] | R116: 0 | S116: 0 | T116: 0 | U116: 0 | V116: 0 | W116: 0 | X116: 0 | Y116: 0 | Z116: 0 | AA116: 0 | AB116: 0 | AC116: 0 | AD116: 0 | AE116: 0 | AF116: 0 | AG116: 0
D117: [Non-controllable 4] | R117: 0 | S117: 0 | T117: 0 | U117: 0 | V117: 0 | W117: 0 | X117: 0 | Y117: 0 | Z117: 0 | AA117: 0 | AB117: 0 | AC117: 0 | AD117: 0 | AE117: 0 | AF117: 0 | AG117: 0
D118: [Non-controllable 5] | R118: 0 | S118: 0 | T118: 0 | U118: 0 | V118: 0 | W118: 0 | X118: 0 | Y118: 0 | Z118: 0 | AA118: 0 | AB118: 0 | AC118: 0 | AD118: 0 | AE118: 0 | AF118: 0 | AG118: 0
D119: [Non-controllable 6] | R119: 0 | S119: 0 | T119: 0 | U119: 0 | V119: 0 | W119: 0 | X119: 0 | Y119: 0 | Z119: 0 | AA119: 0 | AB119: 0 | AC119: 0 | AD119: 0 | AE119: 0 | AF119: 0 | AG119: 0
D120: [Non-controllable 7] | R120: 0 | S120: 0 | T120: 0 | U120: 0 | V120: 0 | W120: 0 | X120: 0 | Y120: 0 | Z120: 0 | AA120: 0 | AB120: 0 | AC120: 0 | AD120: 0 | AE120: 0 | AF120: 0 | AG120: 0
D121: [Non-controllable 8] | R121: 0 | S121: 0 | T121: 0 | U121: 0 | V121: 0 | W121: 0 | X121: 0 | Y121: 0 | Z121: 0 | AA121: 0 | AB121: 0 | AC121: 0 | AD121: 0 | AE121: 0 | AF121: 0 | AG121: 0
D122: [Non-controllable 9] | R122: 0 | S122: 0 | T122: 0 | U122: 0 | V122: 0 | W122: 0 | X122: 0 | Y122: 0 | Z122: 0 | AA122: 0 | AB122: 0 | AC122: 0 | AD122: 0 | AE122: 0 | AF122: 0 | AG122: 0
D123: [Non-controllable 10] | R123: 0 | S123: 0 | T123: 0 | U123: 0 | V123: 0 | W123: 0 | X123: 0 | Y123: 0 | Z123: 0 | AA123: 0 | AB123: 0 | AC123: 0 | AD123: 0 | AE123: 0 | AF123: 0 | AG123: 0
K124: =SUM(K114:K123) -> 0 | L124: 0 | M124: 0 | N124: 0 | O124: 0 | P124: 0 | Q124: 0 | R124: 0 | S124: 0 | T124: 0 | U124: 0 | V124: 0 | W124: 0 | X124: 0 | Y124: 0 | Z124: 0 | AA124: 0 | AB124: 0 | AC124: 0 | AD124: 0 | AE124: 0 | AF124: 0 | AG124: 0
C127: External bulk charges (excl. temporary purchases)
C128: Reconciliation
C130: Service | R130: =+R7 -> 2012-13 | S130: 2013-14 | T130: 2014-15 | U130: 2015-16 | V130: 2016-17 | W130: 2017-18 | X130: 2018-19 | Y130: 2019-20 | Z130: 2020-21 | AA130: 2021-22 | AB130: 2022-23 | AC130: 2023-24 | AD130: 2024-25 | AE130: 2025-26 | AF130: 2026-27 | AG130: 2027-28
D131: Water | R131: =+SUMIF($I$138:$I$179,$D$131,R$138:R$179) -> 149.4760168 | S131: 239.1579797 | T131: 201.3515719 | U131: 227.3170943 | V131: 249.958192 | W131: 243.2010748 | X131: 243.0273727 | Y131: 240.5288346 | Z131: 232.1499725 | AA131: 232.315668 | AB131: 232.5658384 | AC131: 232.5658384 | AD131: 232.5658384 | AE131: 232.5658384 | AF131: 232.5658384 | AG131: 232.5658384
D132: Sewerage | R132: =+SUMIF($I$138:$I$179,$D$132,R$138:R$179) -> 101.6888141 | S132: 142.1521483 | T132: 137.7515964 | U132: 139.6071528 | V132: 100.1148575 | W132: 98.77122975 | X132: 100.3514742 | Y132: 101.3919742 | Z132: 101.8328745 | AA132: 102.2100458 | AB132: 102.5631106 | AC132: 102.866436 | AD132: 102.8773279 | AE132: 102.8777734 | AF132: 102.878219 | AG132: 102.8786645
D133: Recycled Water | R133: =+SUMIF($I$138:$I$179,$D$133,R$138:R$179) -> 0.1686070721 | S133: 0.05315208628 | T133: 0.1487240677 | U133: 0.4381186461 | V133: 0.7501136312 | W133: 0.7345004062 | X133: 0.7345004062 | Y133: 0.7345004062 | Z133: 0.7345004062 | AA133: 0.7345004062 | AB133: 0.7345004062 | AC133: 0.7491904144 | AD133: 0.7641742227 | AE133: 0.7794577071 | AF133: 0.7950468613 | AG133: 0.8109477985
D134: Rural Water | R134: =+SUMIF($I$138:$I$179,$D$134,R$138:R$179) -> 0 | S134: 0 | T134: 0 | U134: 0 | V134: 0 | W134: 0 | X134: 0 | Y134: 0 | Z134: 0 | AA134: 0 | AB134: 0 | AC134: 0 | AD134: 0 | AE134: 0 | AF134: 0 | AG134: 0
C135: Total External Bulk Charges | R135: =SUM(R131:R134) -> 251.333438 | S135: =SUM(S131:S134) -> 381.3632801 | T135: =SUM(T131:T134) -> 339.2518924 | U135: 367.3623657 | V135: 350.8231631 | W135: 342.706805 | X135: 344.1133473 | Y135: 342.6553092 | Z135: 334.7173475 | AA135: 335.2602142 | AB135: 335.8634494 | AC135: 336.1814649 | AD135: 336.2073405 | AE135: 336.2230696 | AF135: 336.2391043 | AG135: 336.2554508
C137: Description | H137: Source | I137: Service | J137: Price
B138: 1 | C138: Goulburn and Murray System Storage | H138: Goulburn-Murray Water | I138: Water | J138: Fixed | K138: 0 | L138: 0 | M138: 0 | N138: 0 | O138: 0 | P138: 0 | Q138: 0 | R138: 0.2842936036 | S138: 0.3255274642 | T138: 0.3773216347 | U138: 0.3883706874 | V138: 0.3929588336 | W138: 0.4143056331 | X138: 0.4302604654 | Y138: 0.4413807638 | Z138: 0.4467004917 | AA138: 0.4467004917 | AB138: 0.4467004917 | AC138: 0.4467004917 | AD138: 0.4467004917 | AE138: 0.4467004917 | AF138: 0.4467004917 | AG138: 0.4467004917 | AJ138: ESC USE ONLY
B139: 2 | C139: Bulk Supply Water Service fees | H139: Melbourne Water | I139: Water | J139: Fixed | K139: 0 | L139: 0 | M139: 0 | N139: 0 | O139: 0 | P139: 0 | Q139: 0 | R139: 45.80416135 | S139: 55.39406645 | T139: 49.91962494 | U139: 52.3510037 | V139: 0 | W139: 0 | X139: 0 | Y139: 0 | Z139: 0 | AA139: 0 | AB139: 0 | AC139: 0 | AD139: 0 | AE139: 0 | AF139: 0 | AG139: 0
B140: 3 | C140: Bulk Supply Water Usage Fees | H140: Melbourne Water | I140: Water | J140: Variable | K140: 0 | L140: 0 | M140: 0 | N140: 0 | O140: 0 | P140: 0 | Q140: 0 | R140: 108.3990643 | S140: 184.6809853 | T140: 179.851119 | U140: 191.9446192 | V140: 0 | W140: 0 | X140: 0 | Y140: 0 | Z140: 0 | AA140: 0 | AB140: 0 | AC140: 0 | AD140: 0 | AE140: 0 | AF140: 0 | AG140: 0 | AJ140: [Service]
B141: 4 | C141: Bulk Sewage Availability Fee | H141: Melbourne Water | I141: Sewerage | J141: Fixed | K141: 0 | L141: 0 | M141: 0 | N141: 0 | O141: 0 | P141: 0 | Q141: 0 | R141: 75.26481412 | S141: 109.3872188 | T141: 107.5775004 | U141: 107.4382022 | V141: 0 | W141: 0 | X141: 0 | Y141: 0 | Z141: 0 | AA141: 0 | AB141: 0 | AC141: 0 | AD141: 0 | AE141: 0 | AF141: 0 | AG141: 0 | AJ141: Water
B142: 5 | C142: Bulk Sewage Volume and Load fees | H142: Melbourne Water | I142: Sewerage | J142: Variable | K142: 0 | L142: 0 | M142: 0 | N142: 0 | O142: 0 | P142: 0 | Q142: 0 | R142: 26.42399994 | S142: 32.76492949 | T142: 30.17409605 | U142: 32.16895065 | V142: 0 | W142: 0 | X142: 0 | Y142: 0 | Z142: 0 | AA142: 0 | AB142: 0 | AC142: 0 | AD142: 0 | AE142: 0 | AF142: 0 | AG142: 0 | AJ142: Sewerage
B143: 6 | C143: Bulk Recycling Charges | H143: Melbourne Water | I143: Recycled Water | J143: Variable | K143: 0 | L143: 0 | M143: 0 | N143: 0 | O143: 0 | P143: 0 | Q143: 0 | R143: 0.1686070721 | S143: 0.05315208628 | T143: 0.1487240677 | U143: 0.4381186461 | V143: 0.7501136312 | W143: 0.7345004062 | X143: 0.7345004062 | Y143: 0.7345004062 | Z143: 0.7345004062 | AA143: 0.7345004062 | AB143: 0.7345004062 | AC143: 0.7491904144 | AD143: 0.7641742227 | AE143: 0.7794577071 | AF143: 0.7950468613 | AG143: 0.8109477985 | AJ143: Recycled Water
B144: 7 | C144: Bulk Charges - Desal Cost Return | H144: Melbourne Water | I144: Water | J144: Variable | K144: 0 | L144: 0 | M144: 0 | N144: 0 | O144: 0 | P144: 0 | Q144: 0 | R144: -5.011502407 | S144: -1.242599478 | T144: 0 | U144: 0 | V144: 0 | W144: 0 | X144: 0 | Y144: 0 | Z144: 0 | AA144: 0 | AB144: 0 | AC144: 0 | AD144: 0 | AE144: 0 | AF144: 0 | AG144: 0 | AJ144: Rural Water
B145: 8 | C145: Fairer Water Bill Return from MWC | H145: Melbourne Water | I145: Water | J145: Fixed | K145: 0 | L145: 0 | M145: 0 | N145: 0 | O145: 0 | P145: 0 | Q145: 0 | R145: 0 | S145: 0 | T145: -28.79649364 | U145: -17.36689932 | V145: 0 | W145: 0 | X145: 0 | Y145: 0 | Z145: 0 | AA145: 0 | AB145: 0 | AC145: 0 | AD145: 0 | AE145: 0 | AF145: 0 | AG145: 0
B146: 9 | C146: Bulk water charges - Greater Yarra – Thomson | H146: Melbourne Water | I146: Water | J146: Fixed | K146: 0 | L146: 0 | M146: 0 | N146: 0 | O146: 0 | P146: 0 | Q146: 0 | R146: 0 | S146: 0 | T146: 0 | U146: 0 | V146: 52.95110041 | W146: 53.10154141 | X146: 53.63255682 | Y146: 53.90071961 | Z146: 54.17022321 | AA146: 54.17022321 | AB146: 54.17022321 | AC146: 54.17022321 | AD146: 54.17022321 | AE146: 54.17022321 | AF146: 54.17022321 | AG146: 54.17022321 | AJ146: [Source]
B147: 10 | C147: Bulk water charges - Desalination Security | H147: Melbourne Water | I147: Water | J147: Fixed | K147: 0 | L147: 0 | M147: 0 | N147: 0 | O147: 0 | P147: 0 | Q147: 0 | R147: 0 | S147: 0 | T147: 0 | U147: 0 | V147: 156.1294013 | W147: 149.7102788 | X147: 148.6623068 | Y147: 145.5403984 | Z147: 136.8079745 | AA147: 136.8079745 | AB147: 136.8079745 | AC147: 136.8079745 | AD147: 136.8079745 | AE147: 136.8079745 | AF147: 136.8079745 | AG147: 136.8079745 | AJ147: Melbourne Water
B148: 11 | C148: Bulk water charges - Desalination Orders | H148: Melbourne Water | I148: Water | J148: Variable | K148: 0 | L148: 0 | M148: 0 | N148: 0 | O148: 0 | P148: 0 | Q148: 0 | R148: 0 | S148: 0 | T148: 0 | U148: 0 | V148: 0 | W148: 0 | X148: 0 | Y148: 0 | Z148: 0 | AA148: 0 | AB148: 0 | AC148: 0 | AD148: 0 | AE148: 0 | AF148: 0 | AG148: 0 | AJ148: Goulburn-Murray Water
B149: 12 | C149: Bulk water charges - North-South Pipeline | H149: Melbourne Water | I149: Water | J149: Fixed | K149: 0 | L149: 0 | M149: 0 | N149: 0 | O149: 0 | P149: 0 | Q149: 0 | R149: 0 | S149: 0 | T149: 0 | U149: 0 | V149: 13.45231688 | W149: 12.78125 | X149: 12.43615625 | Y149: 12.336667 | Z149: 12.00357699 | AA149: 12.00357699 | AB149: 12.00357699 | AC149: 12.00357699 | AD149: 12.00357699 | AE149: 12.00357699 | AF149: 12.00357699 | AG149: 12.00357699 | AJ149: Other Sources
B150: 13 | C150: Bulk water charges - Transfers | H150: Melbourne Water | I150: Water | J150: Variable | K150: 0 | L150: 0 | M150: 0 | N150: 0 | O150: 0 | P150: 0 | Q150: 0 | R150: 0 | S150: 0 | T150: 0 | U150: 0 | V150: 27.03241461 | W150: 27.19369898 | X150: 27.68609231 | Y150: 28.12966877 | Z150: 28.54149735 | AA150: 28.70719278 | AB150: 28.95736325 | AC150: 28.95736325 | AD150: 28.95736325 | AE150: 28.95736325 | AF150: 28.95736325 | AG150: 28.95736325
B151: 14 | C151: Bulk sewage charges - Service | H151: Melbourne Water | I151: Sewerage | J151: Fixed | K151: 0 | L151: 0 | M151: 0 | N151: 0 | O151: 0 | P151: 0 | Q151: 0 | R151: 0 | S151: 0 | T151: 0 | U151: 0 | V151: 65.54124253 | W151: 65.0799456 | X151: 66.12122473 | Y151: 66.78243698 | Z151: 66.84921941 | AA151: 66.84921941 | AB151: 66.84921941 | AC151: 66.84921941 | AD151: 66.84921941 | AE151: 66.84921941 | AF151: 66.84921941 | AG151: 66.84921941
B152: 15 | C152: Bulk sewage charges - Treatment | H152: Melbourne Water | I152: Sewerage | J152: Variable | K152: 0 | L152: 0 | M152: 0 | N152: 0 | O152: 0 | P152: 0 | Q152: 0 | R152: 0 | S152: 0 | T152: 0 | U152: 0 | V152: 27.18139504 | W152: 26.45086353 | X152: 26.81670069 | Y152: 27.12312475 | Z152: 27.41897001 | AA152: 27.71697881 | AB152: 28.00821497 | AC152: 28.00821497 | AD152: 28.00821497 | AE152: 28.00821497 | AF152: 28.00821497 | AG152: 28.00821497
B153: 16 | C153: Bulk sewage charges - Transfers | H153: Melbourne Water | I153: Sewerage | J153: Variable | K153: 0 | L153: 0 | M153: 0 | N153: 0 | O153: 0 | P153: 0 | Q153: 0 | R153: 0 | S153: 0 | T153: 0 | U153: 0 | V153: 3.718338298 | W153: 3.618397904 | X153: 3.668443319 | Y153: 3.710361201 | Z153: 3.750831934 | AA153: 3.791598635 | AB153: 3.831438858 | AC153: 3.831438858 | AD153: 3.831438858 | AE153: 3.831438858 | AF153: 3.831438858 | AG153: 3.831438858
B154: 17 | C154: Bulk sewage charges - BOD | H154: Melbourne Water | I154: Sewerage | J154: Variable | K154: 0 | L154: 0 | M154: 0 | N154: 0 | O154: 0 | P154: 0 | Q154: 0 | R154: 0 | S154: 0 | T154: 0 | U154: 0 | V154: 2.243257231 | W154: 2.194344263 | X154: 2.190644475 | Y154: 2.217097959 | Z154: 2.243551443 | AA154: 2.273704715 | AB154: 2.290168772 | AC154: 2.290168772 | AD154: 2.290168772 | AE154: 2.290168772 | AF154: 2.290168772 | AG154: 2.290168772
B155: 18 | C155: Bulk sewage charges - SS | H155: Melbourne Water | I155: Sewerage | J155: Variable | K155: 0 | L155: 0 | M155: 0 | N155: 0 | O155: 0 | P155: 0 | Q155: 0 | R155: 0 | S155: 0 | T155: 0 | U155: 0 | V155: 0.4461710969 | W155: 0.4643973145 | X155: 0.4669767025 | Y155: 0.467084177 | Z155: 0.473532647 | AA155: 0.476541933 | AB155: 0.480196066 | AC155: 0.480196066 | AD155: 0.480196066 | AE155: 0.480196066 | AF155: 0.480196066 | AG155: 0.480196066
B156: 19 | C156: Bulk sewage charges - TKN | H156: Melbourne Water | I156: Sewerage | J156: Variable | K156: 0 | L156: 0 | M156: 0 | N156: 0 | O156: 0 | P156: 0 | Q156: 0 | R156: 0 | S156: 0 | T156: 0 | U156: 0 | V156: 0.2353461221 | W156: 0.2301918949 | X156: 0.2238047724 | Y156: 0.224826712 | Z156: 0.2258486516 | AA156: 0.2268705912 | AB156: 0.2278925308 | AC156: 0.2278925308 | AD156: 0.2278925308 | AE156: 0.2278925308 | AF156: 0.2278925308 | AG156: 0.2278925308
B157: 20 | C157: Bulk sewage charges - ITDS | H157: Melbourne Water | I157: Sewerage | J157: Variable | K157: 0 | L157: 0 | M157: 0 | N157: 0 | O157: 0 | P157: 0 | Q157: 0 | R157: 0 | S157: 0 | T157: 0 | U157: 0 | V157: 0.7491071736 | W157: 0.7330892499 | X157: 0.7357856562 | Y157: 0.7391485899 | Z157: 0.7430265675 | AA157: 0.7472378088 | AB157: 0.7480861164 | AC157: 0.7480861164 | AD157: 0.7480861164 | AE157: 0.7480861164 | AF157: 0.7480861164 | AG157: 0.7480861164
B158: 21 | C158: Access to Barwon Water's M-G Pipeline | H158: Other Sources | I158: Water | J158: Fixed | K158: 0 | L158: 0 | M158: 0 | N158: 0 | O158: 0 | P158: 0 | Q158: 0 | R158: 0 | S158: 0 | T158: 0 | U158: 0 | V158: 0 | W158: 0 | X158: 0.18 | Y158: 0.18 | Z158: 0.18 | AA158: 0.18 | AB158: 0.18 | AC158: 0.18 | AD158: 0.18 | AE158: 0.18 | AF158: 0.18 | AG158: 0.18
B159: 22 | C159: Access to Western Water's Sewers | H159: Other Sources | I159: Sewerage | J159: Fixed | R159: 0 | S159: 0 | T159: 0 | U159: 0 | V159: 0 | W159: 0 | X159: 0.1278938722 | Y159: 0.1278938722 | Z159: 0.1278938722 | AA159: 0.1278938722 | AB159: 0.1278938722 | AC159: 0.4312193028 | AD159: 0.4421111524 | AE159: 0.442556702 | AF159: 0.4430022516 | AG159: 0.4434478013
B160: 23 | H160: [Source] | I160: [Service] | J160: [Price]
B161: 24 | H161: [Source] | I161: [Service] | J161: [Price]
B162: 25 | H162: [Source] | I162: [Service] | J162: [Price]
B163: 26 | H163: [Source] | I163: [Service] | J163: [Price]
B164: 27 | H164: [Source] | I164: [Service] | J164: [Price]
B165: 28 | H165: [Source] | I165: [Service] | J165: [Price]
B166: 29 | H166: [Source] | I166: [Service] | J166: [Price]
B167: 30 | H167: [Source] | I167: [Service] | J167: [Price]
B168: 31 | H168: [Source] | I168: [Service] | J168: [Price]
B169: 32 | H169: [Source] | I169: [Service] | J169: [Price]
B170: 33 | H170: [Source] | I170: [Service] | J170: [Price]
B171: 34 | H171: [Source] | I171: [Service] | J171: [Price]
B172: 35 | H172: [Source] | I172: [Service] | J172: [Price]
B173: 36 | H173: [Source] | I173: [Service] | J173: [Price]
B174: 37 | H174: [Source] | I174: [Service] | J174: [Price]
B175: 38 | H175: [Source] | I175: [Service] | J175: [Price]
B176: 39 | H176: [Source] | I176: [Service] | J176: [Price]
B177: 40 | H177: [Source] | I177: [Service] | J177: [Price]

Sheet Capex_FO input
B1: Capital Expenditure - Forecast Input
B2: =+Contents!H7 -> City West Water
B3: Go to Table of Contents
C7: Input Summary | F7: FOURTH REG PERIOD | K7: FIFTH REG PERIOD
D9: =+O39 -> 2018-19 | E9: 2019-20 | F9: 2020-21 | G9: 2021-22 | H9: 2022-23 | I9: 2023-24 | J9: 2024-25 | K9: 2025-26 | L9: 2026-27 | M9: 2027-28 | P9: 4th Reg Period | S9: 5th Reg Period
C10: By Cost Driver | P10: Total | Q10: % of Total | S10: Total | T10: % of Total
C11: Net capital expenditure - Renewals | D11: =+SUMIF($F$42:$F$1019,"Renewals",AV$42:AV$1019) -> 56.00305557 | E11: 61.47202168 | F11: 64.98290795 | G11: 62.92139765 | H11: 54.21198388 | I11: 50.55178032 | J11: 49.93810589 | K11: 49.03699137 | L11: 45.4873939 | M11: 42.50537319 | P11: =SUM(D11:H11) -> 299.5913667 | Q11: =IFERROR(P11/$P$16,"-") -> 0.5455951889 | S11: =SUM(I11:M11) -> 237.5196447 | T11: =IFERROR(S11/$S$16,"-") -> 0.5753265037
C12: Net capital expenditure - Growth | D12: =+SUMIF($F$42:$F$1019,"Growth",AV$42:AV$1019) -> 39.408669 | E12: 36.51103 | F12: 13.803896 | G12: 7.879467 | H12: 11.956683 | I12: 19.901683 | J12: 35.5995392 | K12: 3.6689118 | L12: -0.06479247234 | M12: -11.47814207 | P12: =SUM(D12:H12) -> 109.559745 | Q12: =IFERROR(P12/$P$16,"-") -> 0.1995226712 | S12: =SUM(I12:M12) -> 47.62719946 | T12: =IFERROR(S12/$S$16,"-") -> 0.1153638899
C13: Net capital expenditure - Improvements / Compliance | D13: =+SUMIF($F$42:$F$1019,"Improvements / Compliance",AV$42:AV$1019) -> 4.731754926 | E13: 4.661100043 | F13: 3.090841346 | G13: 2.32167975 | H13: 4.181350422 | I13: 4.096388689 | J13: 3.633803097 | K13: 2.465036668 | L13: 2.168215052 | M13: 1.41868948 | P13: 18.98672649 | Q13: 0.03457732022 | S13: 13.78213299 | T13: 0.03338345506
C14: Government Contributions | D14: =+Z41 -> 0 | E14: =+AA41 -> 0 | F14: 0 | G14: 0 | H14: 0 | I14: 0 | J14: 0 | K14: 0 | L14: 0 | M14: 0 | P14: 0 | Q14: 0 | S14: 0 | T14: 0
C15: Customer Contributions | D15: =+AK41 -> 24.321492 | E15: =+AL41 -> 24.460428 | F15: 24.241638 | G15: 24.155122 | H15: 23.792735 | I15: 23.486106 | J15: 23.166977 | K15: 22.745348 | L15: 22.396219 | M15: 22.11959 | P15: 120.971415 | Q15: 0.2203048197 | S15: 113.91424 | T15: 0.2759261513
C16: Total prescribed capex | D16: =SUM(D11:D15) -> 124.4649715 | E16: 127.1045797 | F16: 106.1192833 | G16: 97.2776664 | H16: 94.1427523 | I16: 98.03595801 | J16: 112.3384252 | K16: 77.91628783 | L16: 69.98703548 | M16: 54.56551059 | P16: 549.1092532 | Q16: 1 | S16: 412.8432171 | T16: 1
C18: By Capital Type
C19: Top 10 Major Projects | D19: =+SUMIF($H$42:$H$1019,$C$19,O$42:O$1019) -> 34.130614 | E19: 28.73983 | F19: 14.05777271 | G19: 15.337239 | H19: 10.04036929 | I19: 0 | J19: 0 | K19: 5 | L19: 0 | M19: 0 | P19: =SUM(D19:H19) -> 102.305825 | Q19: =IFERROR(P19/$P$23,"-") -> 0.1863123311 | S19: =SUM(I19:M19) -> 5 | T19: =IFERROR(S19/$S$23,"-") -> 0.01211113515
C20: Significant projects | D20: =+SUMIF($H$42:$H$1019,$C$20,O$42:O$1019) -> 0.364532 | E20: 1.961384 | F20: 1.030068 | G20: 0.130068 | H20: 1.030068 | I20: 0.14 | J20: 0.14 | K20: 0 | L20: 0 | M20: 0 | P20: =SUM(D20:H20) -> 4.51612 | Q20: =IFERROR(P20/$P$23,"-") -> 0.008224447091 | S20: =SUM(I20:M20) -> 0.28 | T20: =IFERROR(S20/$S$23,"-") -> 0.0006782235687
C21: Capital Programs / Allocation | D21: =+SUMIF($H$42:$H$1019,$C$21,O$42:O$1019) -> 81.38053303 | E21: 90.70607693 | F21: 85.1932245 | G21: 76.94162356 | H21: 78.19144132 | I21: 69.89252539 | J21: 67.65338842 | K21: 63.75749147 | L21: 59.74211538 | M21: 49.9934201 | P21: 412.4128993 | Q21: 0.7510580033 | S21: 311.0389408 | T21: 0.75340693
C22: Other Capital expenditure | D22: =+SUMIF($H$42:$H$1019,$C$22,O$42:O$1019) -> 8.589292466 | E22: 5.697288798 | F22: 5.838218087 | G22: 4.86873584 | H22: 4.880873694 | I22: 28.00343262 | J22: 44.54503677 | K22: 9.158796368 | L22: 10.2449201 | M22: 4.572090497 | P22: 29.87440889 | Q22: 0.05440521847 | S22: 96.52427635 | T22: 0.2338037113
C23: Total prescribed capex | D23: =SUM(D19:D22) -> 124.4649715 | E23: =SUM(E19:E22) -> 127.1045797 | F23: 106.1192833 | G23: 97.2776664 | H23: 94.1427523 | I23: 98.03595801 | J23: 112.3384252 | K23: 77.91628783 | L23: 69.98703548 | M23: 54.56551059 | P23: 549.1092532 | Q23: 1 | S23: 412.8432171 | T23: 1
C25: Difference | D25: =+D23-D16 -> 0 | E25: =+E23-E16 -> 0 | F25: 0 | G25: 0 | H25: 0 | I25: 0 | J25: 0 | K25: 0 | L25: 0 | M25: 0
C26: Test | D26: =ROUND(D23,9)=ROUND(D16,9) -> TRUE | E26: =ROUND(E23,9)=ROUND(E16,9) -> TRUE | F26: TRUE | G26: TRUE | H26: TRUE | I26: TRUE | J26: TRUE | K26: TRUE | L26: TRUE | M26: TRUE
C29: Total prescribed capex | D29: =+D23 -> 124.4649715 | E29: =+E23 -> 127.1045797 | F29: 106.1192833 | G29: 97.2776664 | H29: 94.1427523 | I29: 98.03595801 | J29: 112.3384252 | K29: 77.91628783 | L29: 69.98703548 | M29: 54.56551059
C32: Regulatory Depreciation | D32: =+BG41 -> 1.835839638 | E32: =+BH41 -> 5.926444237 | F32: 9.465610798 | G32: 11.96413518 | H32: 15.92412187 | I32: 19.40084847 | J32: 20.75465435 | K32: 22.3656635 | L32: 24.08925289 | M32: 23.64355613
B35: $m, 01/01/18
O36: Gross capital expenditure | Z36: Government contributions | AK36: Customer contributions | AV36: Net capital expenditure | BG36: Regulatory Depreciation | BR36: Accumulated capex | CC36: Gross capital expenditure | CN36: Tax Depreciation
O37: $m, 01/01/18 | Z37: $m, 01/01/18 | AK37: $m, 01/01/18 | AV37: $m, 01/01/18 | BG37: $m, 01/01/18 | BR37: $m, 01/01/18 | CC37: Nominal,$ | CN37: Nominal,$
O39: 2018-19 | P39: 2019-20 | Q39: 2020-21 | R39: 2021-22 | S39: 2022-23 | T39: 2023-24 | U39: 2024-25 | V39: 2025-26 | W39: 2026-27 | X39: 2027-28 | Z39: 2018-19 | AA39: 2019-20 | AB39: 2020-21 | AC39: 2021-22 | AD39: 2022-23 | AE39: 2023-24 | AF39: 2024-25 | AG39: 2025-26 | AH39: 2026-27 | AI39: 2027-28 | AK39: 2018-19 | AL39: 2019-20 | AM39: 2020-21 | AN39: 2021-22 | AO39: 2022-23 | AP39: 2023-24 | AQ39: 2024-25 | AR39: 2025-26 | AS39: 2026-27 | AT39: 2027-28 | AV39: 2018-19 | AW39: 2019-20 | AX39: 2020-21 | AY39: 2021-22 | AZ39: 2022-23 | BA39: 2023-24 | BB39: 2024-25 | BC39: 2025-26 | BD39: 2026-27 | BE39: 2027-28 | BG39: 2018-19 | BH39: 2019-20 | BI39: 2020-21 | BJ39: 2021-22 | BK39: 2022-23 | BL39: 2023-24 | BM39: 2024-25 | BN39: 2025-26 | BO39: 2026-27 | BP39: 2027-28 | BR39: 2018-19 | BS39: 2019-20 | BT39: 2020-21 | BU39: 2021-22 | BV39: 2022-23 | BW39: 2023-24 | BX39: 2024-25 | BY39: 2025-26 | BZ39: 2026-27 | CA39: 2027-28 | CC39: 2018-19 | CD39: 2019-20 | CE39: 2020-21 | CF39: 2021-22 | CG39: 2022-23 | CH39: 2023-24 | CI39: 2024-25 | CJ39: 2025-26 | CK39: 2026-27 | CL39: 2027-28 | CN39: 2018-19 | CO39: 2019-20 | CP39: 2020-21 | CQ39: 2021-22 | CR39: 2022-23 | CS39: 2023-24 | CT39: 2024-25 | CU39: 2025-26 | CV39: 2026-27 | CW39: 2027-28
BG40: 1 | BH40: 2 | BI40: 3 | BJ40: 4 | BK40: 5 | BL40: 6 | BM40: 7 | BN40: 8 | BO40: 9 | BP40: 10 | CN40: 1 | CO40: 2 | CP40: 3 | CQ40: 4 | CR40: 5 | CS40: 6 | CT40: 7 | CU40: 8 | CV40: 9 | CW40: 10
C41: Project/program Name | E41: Service | F41: Major cost driver | G41: Asset category | H41: Capital type | J41: Depreciation Method | K41: Year asset operational | L41: Asset life (Regulatory) | M41: Asset life (Tax) | O41: =SUM(O42:O1019) -> 124.4649715 | P41: 127.1045797 | Q41: 106.1192833 | R41: 97.2776664 | S41: 94.1427523 | T41: 98.03595801 | U41: 112.3384252 | V41: 77.91628783 | W41: 69.98703548 | X41: 54.56551059 | Z41: =SUM(Z42:Z1019) -> 0 | AA41: 0 | AB41: 0 | AC41: 0 | AD41: 0 | AE41: 0 | AF41: 0 | AG41: 0 | AH41: 0 | AI41: 0 | AK41: =SUM(AK42:AK1019) -> 24.321492 | AL41: 24.460428 | AM41: 24.241638 | AN41: 24.155122 | AO41: 23.792735 | AP41: 23.486106 | AQ41: 23.166977 | AR41: 22.745348 | AS41: 22.396219 | AT41: 22.11959 | AV41: =SUM(AV42:AV1019) -> 100.1434795 | AW41: 102.6441517 | AX41: 81.8776453 | AY41: 73.1225444 | AZ41: 70.3500173 | BA41: 74.54985201 | BB41: 89.17144819 | BC41: 55.17093983 | BD41: 47.59081648 | BE41: 32.44592059 | BG41: =SUM(BG42:BG1019) -> 1.835839638 | BH41: 5.926444237 | BI41: 9.465610798 | BJ41: 11.96413518 | BK41: 15.92412187 | BL41: 19.40084847 | BM41: 20.75465435 | BN41: 22.3656635 | BO41: 24.08925289 | BP41: 23.64355613 | BR41: =SUM(BR42:BR1019) -> 77.9748965 | BS41: 122.6172777 | BT41: 76.90597355 | BU41: 58.79718337 | BV41: 91.84250707 | BW41: 74.54985201 | BX41: 89.17144819 | BY41: 55.17093983 | BZ41: 47.59081648 | CA41: 32.44592059 | CC41: =SUM(CC42:CC1019) -> 127.3276658 | CD41: 133.0186287 | CE41: 113.6112163 | CF41: 106.5407325 | CG41: 105.4787707 | CH41: 112.3671069 | CI41: 131.7218336 | CJ41: 93.46162397 | CK41: 85.88123901 | CL41: 68.49747469 | CN41: =SUM(CN42:CN1019) -> 2.162283099 | CO41: 6.703525093 | CP41: 11.28441298 | CQ41: 15.57900695 | CR41: 19.55396039 | CS41: 22.56769072 | CT41: 24.74183764 | CU41: 26.50860028 | CV41: 27.82802289 | CW41: 28.64729066
C42: CBD sewerage strategy Phase 1 (Spencer Street) | E42: Sewerage | F42: Growth | G42: Pipelines/network | H42: Top 10 Major Projects | J42: Straight line | K42: 2018-19 | L42: 80 | M42: 80 | O42: 12.226563 | P42: 0 | Q42: 0 | R42: 0 | S42: 0 | T42: 0 | U42: 0 | V42: 0 | W42: 0 | X42: 0 | Z42: 0 | AA42: 0 | AB42: 0 | AC42: 0 | AD42: 0 | AE42: 0 | AF42: 0 | AG42: 0 | AH42: 0 | AI42: 0 | AK42: 0 | AL42: 0 | AM42: 0 | AN42: 0 | AO42: 0 | AP42: 0 | AQ42: 0 | AR42: 0 | AS42: 0 | AT42: 0 | AV42: =+O42-Z42-AK42 -> 12.226563 | AW42: =+P42-AA42-AL42 -> 0 | AX42: 0 | AY42: 0 | AZ42: 0 | BA42: 0 | BB42: 0 | BC42: 0 | BD42: 0 | BE42: 0 | BG42: =IF($L42=0,0, IF($L42<=0.5,BR42, IF($J42="straight line", IF((LEFT(BG$39,4)*1)-INT($L42)<LEFT($BG$39,4)*1,0,((OFFSET(BR42,0,-INT($L42+0.5),1,1))/$L42)*(IF($L42-INT($L42)>0.5,$L42-0.5-INT($L42),IF($L42-INT($L42)<=0.5,$L42-0.5-INT($L42)+1,0)))) +BR42/$L42*0.5, IF($J42="Declining Balance",-$BG$38,0)))) -> 0.07641601875 | BH42: =IF($L42=0,0, IF($L42<=0.5,BS42, IF(AND($J42="straight line",$L42<1.51),(BR42-((BR42/$L42)*0.5))+BS42/$L42*0.5, IF($J42="straight line", IF((LEFT(BH$39,4)*1)-INT($L42)<LEFT($BG$39,4)*1,0,((OFFSET(BS42,0,-INT($L42+0.5),1,1))/$L42)*(IF($L42-INT($L42)>0.5,$L42-0.5-INT($L42),IF($L42-INT($L42)<=0.5,$L42-0.5-INT($L42)+1,0)))) +BS42/$L42*0.5 +SUM(OFFSET(BS42,0,MAX(-INT($L42+(0.5-(10^-12))),-BH$40)+1,1,MIN(INT($L42+(0.5-(10^-12))),BH$40)-1))*1/$L42, IF($J42="Declining Balance",-$BG$38,0))))) -> 0.1528320375 | BI42: =IF($L42=0,0, IF($L42<=0.5,BT42, IF(AND($J42="straight line",$L42<1.51),(BS42-((BS42/$L42)*0.5))+BT42/$L42*0.5, IF($J42="straight line", IF((LEFT(BI$39,4)*1)-INT($L42)<LEFT($BG$39,4)*1,0,((OFFSET(BT42,0,-INT($L42+0.5),1,1))/$L42)*(IF($L42-INT($L42)>0.5,$L42-0.5-INT($L42),IF($L42-INT($L42)<=0.5,$L42-0.5-INT($L42)+1,0)))) +BT42/$L42*0.5 +SUM(OFFSET(BT42,0,MAX(-INT($L42+(0.5-(10^-12))),-BI$40)+1,1,MIN(INT($L42+(0.5-(10^-12))),BI$40)-1))*1/$L42, IF($J42="Declining Balance",-$BG$38,0))))) -> 0.1528320375 | BJ42: 0.1528320375 | BK42: 0.1528320375 | BL42: 0.1528320375 | BM42: 0.1528320375 | BN42: 0.1528320375 | BO42: 0.1528320375 | BP42: 0.1528320375 | BR42: =+IF($K42="Ongoing",AV42,IF(RIGHT($K42,2)=RIGHT(BR$39,2),SUM($AV42:AV42),0)+IF(RIGHT(BR$39,2)>RIGHT($K42,2),AV42,0)) -> 12.226563 | BS42: =+IF($K42="Ongoing",AW42,IF(RIGHT($K42,2)=RIGHT(BS$39,2),SUM($AV42:AW42),0)+IF(RIGHT(BS$39,2)>RIGHT($K42,2),AW42,0)) -> 0 | BT42: =+IF($K42="Ongoing",AX42,IF(RIGHT($K42,2)=RIGHT(BT$39,2),SUM($AV42:AX42),0)+IF(RIGHT(BT$39,2)>RIGHT($K42,2),AX42,0)) -> 0 | BU42: =+IF($K42="Ongoing",AY42,IF(RIGHT($K42,2)=RIGHT(BU$39,2),SUM($AV42:AY42),0)+IF(RIGHT(BU$39,2)>RIGHT($K42,2),AY42,0)) -> 0 | BV42: =+IF($K42="Ongoing",AZ42,IF(RIGHT($K42,2)=RIGHT(BV$39,2),SUM($AV42:AZ42),0)+IF(RIGHT(BV$39,2)>RIGHT($K42,2),AZ42,0)) -> 0 | BW42: =+IF($K42="Ongoing",BA42,IF(RIGHT($K42,2)=RIGHT(BW$39,2),SUM($AV42:BA42),0)+IF(RIGHT(BW$39,2)>RIGHT($K42,2),BA42,0)) -> 0 | BX42: =+IF($K42="Ongoing",BB42,IF(RIGHT($K42,2)=RIGHT(BX$39,2),SUM($AV42:BB42),0)+IF(RIGHT(BX$39,2)>RIGHT($K42,2),BB42,0)) -> 0 | BY42: =+IF($K42="Ongoing",BC42,IF(RIGHT($K42,2)=RIGHT(BY$39,2),SUM($AV42:BC42),0)+IF(RIGHT(BY$39,2)>RIGHT($K42,2),BC42,0)) -> 0 | BZ42: =+IF($K42="Ongoing",BD42,IF(RIGHT($K42,2)=RIGHT(BZ$39,2),SUM($AV42:BD42),0)+IF(RIGHT(BZ$39,2)>RIGHT($K42,2),BD42,0)) -> 0 | CA42: =+IF($K42="Ongoing",BE42,IF(RIGHT($K42,2)=RIGHT(CA$39,2),SUM($AV42:BE42),0)+IF(RIGHT(CA$39,2)>RIGHT($K42,2),BE42,0)) -> 0 | CC42: =+O42*KeyAssumptionsPriceControl_FO!X$15 -> 12.50777395 | CD42: =+P42*KeyAssumptionsPriceControl_FO!Y$15 -> 0 | CE42: =+Q42*KeyAssumptionsPriceControl_FO!Z$15 -> 0 | CF42: =+R42*KeyAssumptionsPriceControl_FO!AA$15 -> 0 | CG42: =+S42*KeyAssumptionsPriceControl_FO!AB$15 -> 0 | CH42: =+T42*KeyAssumptionsPriceControl_FO!AC$15 -> 0 | CI42: =+U42*KeyAssumptionsPriceControl_FO!AD$15 -> 0 | CJ42: =+V42*KeyAssumptionsPriceControl_FO!AE$15 -> 0 | CK42: =+W42*KeyAssumptionsPriceControl_FO!AF$15 -> 0 | CL42: =+X42*KeyAssumptionsPriceControl_FO!AG$15 -> 0 | CN42: =IF($M42=0,0, IF($M42<=0.5,CC42, IF($J42="straight line", IF((LEFT(CN$39,4)*1)-INT($M42)<LEFT($CN$39,4)*1,0,((OFFSET(CC42,0,-INT($M42+0.5),1,1))/$M42)*(IF($M42-INT($M42)>0.5,$M42-0.5-INT($M42),IF($M42-INT($M42)<=0.5,$M42-0.5-INT($M42)+1,0)))) +CC42/$M42*0.5, IF($J42="Declining Balance",-$CN$38,0)))) -> 0.07817358718 | CO42: =IF($M42=0,0, IF($M42<=0.5,CD42, IF(AND($J42="straight line",$M42<1.51),(CC42-((CC42/$M42)*0.5))+CD42/$M42*0.5, IF($J42="straight line", IF((LEFT(CO$39,4)*1)-INT($M42)<LEFT($CN$39,4)*1,0,((OFFSET(CD42,0,-INT($M42+0.5),1,1))/$M42)*(IF($M42-INT($M42)>0.5,$M42-0.5-INT($M42),IF($M42-INT($M42)<=0.5,$M42-0.5-INT($M42)+1,0)))) +CD42/$M42*0.5 +SUM(OFFSET(CD42,0,MAX(-INT($M42+(0.5-(10^-12))),-CO$40)+1,1,MIN(INT($M42+(0.5-(10^-12))),CO$40)-1))*1/$M42, IF($J42="Declining Balance",-$CN$38,0))))) -> 0.1563471744 | CP42: =IF($M42=0,0, IF($M42<=0.5,CE42, IF(AND($J42="straight line",$M42<1.51),(CD42-((CD42/$M42)*0.5))+CE42/$M42*0.5, IF($J42="straight line", IF((LEFT(CP$39,4)*1)-INT($M42)<LEFT($CN$39,4)*1,0,((OFFSET(CE42,0,-INT($M42+0.5),1,1))/$M42)*(IF($M42-INT($M42)>0.5,$M42-0.5-INT($M42),IF($M42-INT($M42)<=0.5,$M42-0.5-INT($M42)+1,0)))) +CE42/$M42*0.5 +SUM(OFFSET(CE42,0,MAX(-INT($M42+(0.5-(10^-12))),-CP$40)+1,1,MIN(INT($M42+(0.5-(10^-12))),CP$40)-1))*1/$M42, IF($J42="Declining Balance",-$CN$38,0))))) -> 0.1563471744 | CQ42: 0.1563471744 | CR42: 0.1563471744 | CS42: 0.1563471744 | CT42: 0.1563471744 | CU42: 0.1563471744 | CV42: 0.1563471744 | CW42: 0.1563471744
C43: CBD sewerage strategy Phase 2 (Lonsdale Street) | E43: Sewerage | F43: Growth | G43: Pipelines/network | H43: Top 10 Major Projects | J43: Straight line | K43: 2019-20 | L43: 80 | M43: 80 | O43: 5 | P43: 20 | Q43: 2.898685 | R43: 0 | S43: 0 | T43: 0 | U43: 0 | V43: 5 | W43: 0 | X43: 0 | Z43: 0 | AA43: 0 | AB43: 0 | AC43: 0 | AD43: 0 | AE43: 0 | AF43: 0 | AG43: 0 | AH43: 0 | AI43: 0 | AK43: 0 | AL43: 0 | AM43: 0 | AN43: 0 | AO43: 0 | AP43: 0 | AQ43: 0 | AR43: 0 | AS43: 0 | AT43: 0 | AV43: =+O43-Z43-AK43 -> 5 | AW43: 20 | AX43: 2.898685 | AY43: 0 | AZ43: 0 | BA43: 0 | BB43: 0 | BC43: 5 | BD43: 0 | BE43: 0 | BG43: =IF($L43=0,0, IF($L43<=0.5,BR43, IF($J43="straight line", IF((LEFT(BG$39,4)*1)-INT($L43)<LEFT($BG$39,4)*1,0,((OFFSET(BR43,0,-INT($L43+0.5),1,1))/$L43)*(IF($L43-INT($L43)>0.5,$L43-0.5-INT($L43),IF($L43-INT($L43)<=0.5,$L43-0.5-INT($L43)+1,0)))) +BR43/$L43*0.5, IF($J43="Declining Balance",-$BG$38,0)))) -> 0 | BH43: =IF($L43=0,0, IF($L43<=0.5,BS43, IF(AND($J43="straight line",$L43<1.51),(BR43-((BR43/$L43)*0.5))+BS43/$L43*0.5, IF($J43="straight line", IF((LEFT(BH$39,4)*1)-INT($L43)<LEFT($BG$39,4)*1,0,((OFFSET(BS43,0,-INT($L43+0.5),1,1))/$L43)*(IF($L43-INT($L43)>0.5,$L43-0.5-INT($L43),IF($L43-INT($L43)<=0.5,$L43-0.5-INT($L43)+1,0)))) +BS43/$L43*0.5 +SUM(OFFSET(BS43,0,MAX(-INT($L43+(0.5-(10^-12))),-BH$40)+1,1,MIN(INT($L43+(0.5-(10^-12))),BH$40)-1))*1/$L43, IF($J43="Declining Balance",-$BG$38,0))))) -> 0.15625 | BI43: 0.3306167812 | BJ43: 0.3487335625 | BK43: 0.3487335625 | BL43: 0.3487335625 | BM43: 0.3487335625 | BN43: 0.3799835625 | BO43: 0.4112335625 | BP43: 0.4112335625 | BR43: =+IF($K43="Ongoing",AV43,IF(RIGHT($K43,2)=RIGHT(BR$39,2),SUM($AV43:AV43),0)+IF(RIGHT(BR$39,2)>RIGHT($K43,2),AV43,0)) -> 0 | BS43: =+IF($K43="Ongoing",AW43,IF(RIGHT($K43,2)=RIGHT(BS$39,2),SUM($AV43:AW43),0)+IF(RIGHT(BS$39,2)>RIGHT($K43,2),AW43,0)) -> 25 | BT43: =+IF($K43="Ongoing",AX43,IF(RIGHT($K43,2)=RIGHT(BT$39,2),SUM($AV43:AX43),0)+IF(RIGHT(BT$39,2)>RIGHT($K43,2),AX43,0)) -> 2.898685 | BU43: =+IF($K43="Ongoing",AY43,IF(RIGHT($K43,2)=RIGHT(BU$39,2),SUM($AV43:AY43),0)+IF(RIGHT(BU$39,2)>RIGHT($K43,2),AY43,0)) -> 0 | BV43: =+IF($K43="Ongoing",AZ43,IF(RIGHT($K43,2)=RIGHT(BV$39,2),SUM($AV43:AZ43),0)+IF(RIGHT(BV$39,2)>RIGHT($K43,2),AZ43,0)) -> 0 | BW43: =+IF($K43="Ongoing",BA43,IF(RIGHT($K43,2)=RIGHT(BW$39,2),SUM($AV43:BA43),0)+IF(RIGHT(BW$39,2)>RIGHT($K43,2),BA43,0)) -> 0 | BX43: =+IF($K43="Ongoing",BB43,IF(RIGHT($K43,2)=RIGHT(BX$39,2),SUM($AV43:BB43),0)+IF(RIGHT(BX$39,2)>RIGHT($K43,2),BB43,0)) -> 0 | BY43: =+IF($K43="Ongoing",BC43,IF(RIGHT($K43,2)=RIGHT(BY$39,2),SUM($AV43:BC43),0)+IF(RIGHT(BY$39,2)>RIGHT($K43,2),BC43,0)) -> 5 | BZ43: =+IF($K43="Ongoing",BD43,IF(RIGHT($K43,2)=RIGHT(BZ$39,2),SUM($AV43:BD43),0)+IF(RIGHT(BZ$39,2)>RIGHT($K43,2),BD43,0)) -> 0 | CA43: =+IF($K43="Ongoing",BE43,IF(RIGHT($K43,2)=RIGHT(CA$39,2),SUM($AV43:BE43),0)+IF(RIGHT(CA$39,2)>RIGHT($K43,2),BE43,0)) -> 0 | CC43: =+O43*KeyAssumptionsPriceControl_FO!X$15 -> 5.115 | CD43: =+P43*KeyAssumptionsPriceControl_FO!Y$15 -> 20.93058 | CE43: =+Q43*KeyAssumptionsPriceControl_FO!Z$15 -> 3.103329746 | CF43: =+R43*KeyAssumptionsPriceControl_FO!AA$15 -> 0 | CG43: =+S43*KeyAssumptionsPriceControl_FO!AB$15 -> 0 | CH43: =+T43*KeyAssumptionsPriceControl_FO!AC$15 -> 0 | CI43: =+U43*KeyAssumptionsPriceControl_FO!AD$15 -> 0 | CJ43: =+V43*KeyAssumptionsPriceControl_FO!AE$15 -> 5.997566527 | CK43: =+W43*KeyAssumptionsPriceControl_FO!AF$15 -> 0 | CL43: =+X43*KeyAssumptionsPriceControl_FO!AG$15 -> 0 | CN43: =IF($M43=0,0, IF($M43<=0.5,CC43, IF($J43="straight line", IF((LEFT(CN$39,4)*1)-INT($M43)<LEFT($CN$39,4)*1,0,((OFFSET(CC43,0,-INT($M43+0.5),1,1))/$M43)*(IF($M43-INT($M43)>0.5,$M43-0.5-INT($M43),IF($M43-INT($M43)<=0.5,$M43-0.5-INT($M43)+1,0)))) +CC43/$M43*0.5, IF($J43="Declining Balance",-$CN$38,0)))) -> 0.03196875 | CO43: =IF($M43=0,0, IF($M43<=0.5,CD43, IF(AND($J43="straight line",$M43<1.51),(CC43-((CC43/$M43)*0.5))+CD43/$M43*0.5, IF($J43="straight line", IF((LEFT(CO$39,4)*1)-INT($M43)<LEFT($CN$39,4)*1,0,((OFFSET(CD43,0,-INT($M43+0.5),1,1))/$M43)*(IF($M43-INT($M43)>0.5,$M43-0.5-INT($M43),IF($M43-INT($M43)<=0.5,$M43-0.5-INT($M43)+1,0)))) +CD43/$M43*0.5 +SUM(OFFSET(CD43,0,MAX(-INT($M43+(0.5-(10^-12))),-CO$40)+1,1,MIN(INT($M43+(0.5-(10^-12))),CO$40)-1))*1/$M43, IF($J43="Declining Balance",-$CN$38,0))))) -> 0.194753625 | CP43: 0.3449655609 | CQ43: 0.3643613718 | CR43: 0.3643613718 | CS43: 0.3643613718 | CT43: 0.3643613718 | CU43: 0.4018461626 | CV43: 0.4393309534 | CW43: 0.4393309534
C44: Tarneit West sewer (section 1) | E44: Sewerage | F44: Growth | G44: Pipelines/network | H44: Top 10 Major Projects | J44: Straight line | K44: 2022-23 | L44: 80 | M44: 80 | O44: 0 | P44: 0 | Q44: 0.347385 | R44: 4.337239 | S44: 4 | T44: 0 | U44: 0 | V44: 0 | W44: 0 | X44: 0 | Z44: 0 | AA44: 0 | AB44: 0 | AC44: 0 | AD44: 0 | AE44: 0 | AF44: 0 | AG44: 0 | AH44: 0 | AI44: 0 | AK44: 0 | AL44: 0 | AM44: 0 | AN44: 0 | AO44: 0 | AP44: 0 | AQ44: 0 | AR44: 0 | AS44: 0 | AT44: 0 | AV44: 0 | AW44: 0 | AX44: 0.347385 | AY44: 4.337239 | AZ44: 4 | BA44: 0 | BB44: 0 | BC44: 0 | BD44: 0 | BE44: 0 | BG44: 0 | BH44: 0 | BI44: 0 | BJ44: 0 | BK44: 0.0542789 | BL44: 0.1085578 | BM44: 0.1085578 | BN44: 0.1085578 | BO44: 0.1085578 | BP44: 0.1085578 | BR44: =+IF($K44="Ongoing",AV44,IF(RIGHT($K44,2)=RIGHT(BR$39,2),SUM($AV44:AV44),0)+IF(RIGHT(BR$39,2)>RIGHT($K44,2),AV44,0)) -> 0 | BS44: =+IF($K44="Ongoing",AW44,IF(RIGHT($K44,2)=RIGHT(BS$39,2),SUM($AV44:AW44),0)+IF(RIGHT(BS$39,2)>RIGHT($K44,2),AW44,0)) -> 0 | BT44: =+IF($K44="Ongoing",AX44,IF(RIGHT($K44,2)=RIGHT(BT$39,2),SUM($AV44:AX44),0)+IF(RIGHT(BT$39,2)>RIGHT($K44,2),AX44,0)) -> 0 | BU44: =+IF($K44="Ongoing",AY44,IF(RIGHT($K44,2)=RIGHT(BU$39,2),SUM($AV44:AY44),0)+IF(RIGHT(BU$39,2)>RIGHT($K44,2),AY44,0)) -> 0 | BV44: =+IF($K44="Ongoing",AZ44,IF(RIGHT($K44,2)=RIGHT(BV$39,2),SUM($AV44:AZ44),0)+IF(RIGHT(BV$39,2)>RIGHT($K44,2),AZ44,0)) -> 8.684624 | BW44: =+IF($K44="Ongoing",BA44,IF(RIGHT($K44,2)=RIGHT(BW$39,2),SUM($AV44:BA44),0)+IF(RIGHT(BW$39,2)>RIGHT($K44,2),BA44,0)) -> 0 | BX44: =+IF($K44="Ongoing",BB44,IF(RIGHT($K44,2)=RIGHT(BX$39,2),SUM($AV44:BB44),0)+IF(RIGHT(BX$39,2)>RIGHT($K44,2),BB44,0)) -> 0 | BY44: =+IF($K44="Ongoing",BC44,IF(RIGHT($K44,2)=RIGHT(BY$39,2),SUM($AV44:BC44),0)+IF(RIGHT(BY$39,2)>RIGHT($K44,2),BC44,0)) -> 0 | BZ44: =+IF($K44="Ongoing",BD44,IF(RIGHT($K44,2)=RIGHT(BZ$39,2),SUM($AV44:BD44),0)+IF(RIGHT(BZ$39,2)>RIGHT($K44,2),BD44,0)) -> 0 | CA44: =+IF($K44="Ongoing",BE44,IF(RIGHT($K44,2)=RIGHT(CA$39,2),SUM($AV44:BE44),0)+IF(RIGHT(CA$39,2)>RIGHT($K44,2),BE44,0)) -> 0 | CC44: =+O44*KeyAssumptionsPriceControl_FO!X$15 -> 0 | CD44: =+P44*KeyAssumptionsPriceControl_FO!Y$15 -> 0 | CE44: =+Q44*KeyAssumptionsPriceControl_FO!Z$15 -> 0.3719100916 | CF44: =+R44*KeyAssumptionsPriceControl_FO!AA$15 -> 4.750243683 | CG44: =+S44*KeyAssumptionsPriceControl_FO!AB$15 -> 4.481652303 | CH44: =+T44*KeyAssumptionsPriceControl_FO!AC$15 -> 0 | CI44: =+U44*KeyAssumptionsPriceControl_FO!AD$15 -> 0 | CJ44: =+V44*KeyAssumptionsPriceControl_FO!AE$15 -> 0 | CK44: =+W44*KeyAssumptionsPriceControl_FO!AF$15 -> 0 | CL44: =+X44*KeyAssumptionsPriceControl_FO!AG$15 -> 0 | CN44: 0 | CO44: 0 | CP44: 0.002324438073 | CQ44: 0.03433789916 | CR44: 0.09203724907 | CS44: 0.120047576 | CT44: 0.120047576 | CU44: 0.120047576 | CV44: 0.120047576 | CW44: 0.120047576
C45: Ravenhall outlet sewer | E45: Sewerage | F45: Growth | G45: Pipelines/network | H45: Top 10 Major Projects | J45: Straight line | K45: 2022-23 | L45: 80 | M45: 80 | O45: 0 | P45: 0 | Q45: 0.406444 | R45: 5 | S45: 4.754655 | T45: 0 | U45: 0 | V45: 0 | W45: 0 | X45: 0 | Z45: 0 | AA45: 0 | AB45: 0 | AC45: 0 | AD45: 0 | AE45: 0 | AF45: 0 | AG45: 0 | AH45: 0 | AI45: 0 | AK45: 0 | AL45: 0 | AM45: 0 | AN45: 0 | AO45: 0 | AP45: 0 | AQ45: 0 | AR45: 0 | AS45: 0 | AT45: 0 | AV45: 0 | AW45: 0 | AX45: 0.406444 | AY45: 5 | AZ45: 4.754655 | BA45: 0 | BB45: 0 | BC45: 0 | BD45: 0 | BE45: 0 | BG45: 0 | BH45: 0 | BI45: 0 | BJ45: 0 | BK45: 0.06350686875 | BL45: 0.1270137375 | BM45: 0.1270137375 | BN45: 0.1270137375 | BO45: 0.1270137375 | BP45: 0.1270137375 | BR45: =+IF($K45="Ongoing",AV45,IF(RIGHT($K45,2)=RIGHT(BR$39,2),SUM($AV45:AV45),0)+IF(RIGHT(BR$39,2)>RIGHT($K45,2),AV45,0)) -> 0 | BS45: =+IF($K45="Ongoing",AW45,IF(RIGHT($K45,2)=RIGHT(BS$39,2),SUM($AV45:AW45),0)+IF(RIGHT(BS$39,2)>RIGHT($K45,2),AW45,0)) -> 0 | BT45: =+IF($K45="Ongoing",AX45,IF(RIGHT($K45,2)=RIGHT(BT$39,2),SUM($AV45:AX45),0)+IF(RIGHT(BT$39,2)>RIGHT($K45,2),AX45,0)) -> 0 | BU45: =+IF($K45="Ongoing",AY45,IF(RIGHT($K45,2)=RIGHT(BU$39,2),SUM($AV45:AY45),0)+IF(RIGHT(BU$39,2)>RIGHT($K45,2),AY45,0)) -> 0 | BV45: =+IF($K45="Ongoing",AZ45,IF(RIGHT($K45,2)=RIGHT(BV$39,2),SUM($AV45:AZ45),0)+IF(RIGHT(BV$39,2)>RIGHT($K45,2),AZ45,0)) -> 10.161099 | BW45: =+IF($K45="Ongoing",BA45,IF(RIGHT($K45,2)=RIGHT(BW$39,2),SUM($AV45:BA45),0)+IF(RIGHT(BW$39,2)>RIGHT($K45,2),BA45,0)) -> 0 | BX45: =+IF($K45="Ongoing",BB45,IF(RIGHT($K45,2)=RIGHT(BX$39,2),SUM($AV45:BB45),0)+IF(RIGHT(BX$39,2)>RIGHT($K45,2),BB45,0)) -> 0 | BY45: =+IF($K45="Ongoing",BC45,IF(RIGHT($K45,2)=RIGHT(BY$39,2),SUM($AV45:BC45),0)+IF(RIGHT(BY$39,2)>RIGHT($K45,2),BC45,0)) -> 0 | BZ45: =+IF($K45="Ongoing",BD45,IF(RIGHT($K45,2)=RIGHT(BZ$39,2),SUM($AV45:BD45),0)+IF(RIGHT(BZ$39,2)>RIGHT($K45,2),BD45,0)) -> 0 | CA45: =+IF($K45="Ongoing",BE45,IF(RIGHT($K45,2)=RIGHT(CA$39,2),SUM($AV45:BE45),0)+IF(RIGHT(CA$39,2)>RIGHT($K45,2),BE45,0)) -> 0 | CC45: =+O45*KeyAssumptionsPriceControl_FO!X$15 -> 0 | CD45: =+P45*KeyAssumptionsPriceControl_FO!Y$15 -> 0 | CE45: =+Q45*KeyAssumptionsPriceControl_FO!Z$15 -> 0.4351386078 | CF45: =+R45*KeyAssumptionsPriceControl_FO!AA$15 -> 5.476114739 | CG45: =+S45*KeyAssumptionsPriceControl_FO!AB$15 -> 5.327177632 | CH45: =+T45*KeyAssumptionsPriceControl_FO!AC$15 -> 0 | CI45: =+U45*KeyAssumptionsPriceControl_FO!AD$15 -> 0 | CJ45: =+V45*KeyAssumptionsPriceControl_FO!AE$15 -> 0 | CK45: =+W45*KeyAssumptionsPriceControl_FO!AF$15 -> 0 | CL45: =+X45*KeyAssumptionsPriceControl_FO!AG$15 -> 0 | CN45: 0 | CO45: 0 | CP45: 0.002719616299 | CQ45: 0.03966494972 | CR45: 0.107185527 | CS45: 0.1404803872 | CT45: 0.1404803872 | CU45: 0.1404803872 | CV45: 0.1404803872 | CW45: 0.1404803872
C46: Mt Atkinson outlet sewer | E46: Sewerage | F46: Growth | G46: Pipelines/network | H46: Top 10 Major Projects | J46: Straight line | K46: 2020-21 | L46: 80 | M46: 80 | O46: 0 | P46: 2.195457 | Q46: 2.690973 | R46: 0 | S46: 0 | T46: 0 | U46: 0 | V46: 0 | W46: 0 | X46: 0 | Z46: 0 | AA46: 0 | AB46: 0 | AC46: 0 | AD46: 0 | AE46: 0 | AF46: 0 | AG46: 0 | AH46: 0 | AI46: 0 | AK46: 0 | AL46: 0 | AM46: 0 | AN46: 0 | AO46: 0 | AP46: 0 | AQ46: 0 | AR46: 0 | AS46: 0 | AT46: 0 | AV46: 0 | AW46: 2.195457 | AX46: 2.690973 | AY46: 0 | AZ46: 0 | BA46: 0 | BB46: 0 | BC46: 0 | BD46: 0 | BE46: 0 | BG46: 0 | BH46: 0 | BI46: 0.0305401875 | BJ46: 0.061080375 | BK46: 0.061080375 | BL46: 0.061080375 | BM46: 0.061080375 | BN46: 0.061080375 | BO46: 0.061080375 | BP46: 0.061080375 | BR46: =+IF($K46="Ongoing",AV46,IF(RIGHT($K46,2)=RIGHT(BR$39,2),SUM($AV46:AV46),0)+IF(RIGHT(BR$39,2)>RIGHT($K46,2),AV46,0)) -> 0 | BS46: =+IF($K46="Ongoing",AW46,IF(RIGHT($K46,2)=RIGHT(BS$39,2),SUM($AV46:AW46),0)+IF(RIGHT(BS$39,2)>RIGHT($K46,2),AW46,0)) -> 0 | BT46: =+IF($K46="Ongoing",AX46,IF(RIGHT($K46,2)=RIGHT(BT$39,2),SUM($AV46:AX46),0)+IF(RIGHT(BT$39,2)>RIGHT($K46,2),AX46,0)) -> 4.88643 | BU46: =+IF($K46="Ongoing",AY46,IF(RIGHT($K46,2)=RIGHT(BU$39,2),SUM($AV46:AY46),0)+IF(RIGHT(BU$39,2)>RIGHT($K46,2),AY46,0)) -> 0 | BV46: =+IF($K46="Ongoing",AZ46,IF(RIGHT($K46,2)=RIGHT(BV$39,2),SUM($AV46:AZ46),0)+IF(RIGHT(BV$39,2)>RIGHT($K46,2),AZ46,0)) -> 0 | BW46: =+IF($K46="Ongoing",BA46,IF(RIGHT($K46,2)=RIGHT(BW$39,2),SUM($AV46:BA46),0)+IF(RIGHT(BW$39,2)>RIGHT($K46,2),BA46,0)) -> 0 | BX46: =+IF($K46="Ongoing",BB46,IF(RIGHT($K46,2)=RIGHT(BX$39,2),SUM($AV46:BB46),0)+IF(RIGHT(BX$39,2)>RIGHT($K46,2),BB46,0)) -> 0 | BY46: =+IF($K46="Ongoing",BC46,IF(RIGHT($K46,2)=RIGHT(BY$39,2),SUM($AV46:BC46),0)+IF(RIGHT(BY$39,2)>RIGHT($K46,2),BC46,0)) -> 0 | BZ46: =+IF($K46="Ongoing",BD46,IF(RIGHT($K46,2)=RIGHT(BZ$39,2),SUM($AV46:BD46),0)+IF(RIGHT(BZ$39,2)>RIGHT($K46,2),BD46,0)) -> 0 | CA46: =+IF($K46="Ongoing",BE46,IF(RIGHT($K46,2)=RIGHT(CA$39,2),SUM($AV46:BE46),0)+IF(RIGHT(CA$39,2)>RIGHT($K46,2),BE46,0)) -> 0 | CC46: =+O46*KeyAssumptionsPriceControl_FO!X$15 -> 0 | CD46: =+P46*KeyAssumptionsPriceControl_FO!Y$15 -> 2.297609419 | CE46: =+Q46*KeyAssumptionsPriceControl_FO!Z$15 -> 2.880953452 | CF46: =+R46*KeyAssumptionsPriceControl_FO!AA$15 -> 0 | CG46: =+S46*KeyAssumptionsPriceControl_FO!AB$15 -> 0 | CH46: =+T46*KeyAssumptionsPriceControl_FO!AC$15 -> 0 | CI46: =+U46*KeyAssumptionsPriceControl_FO!AD$15 -> 0 | CJ46: =+V46*KeyAssumptionsPriceControl_FO!AE$15 -> 0 | CK46: =+W46*KeyAssumptionsPriceControl_FO!AF$15 -> 0 | CL46: =+X46*KeyAssumptionsPriceControl_FO!AG$15 -> 0 | CN46: 0 | CO46: 0.01436005887 | CP46: 0.04672607681 | CQ46: 0.06473203589 | CR46: 0.06473203589 | CS46: 0.06473203589 | CT46: 0.06473203589 | CU46: 0.06473203589 | CV46: 0.06473203589 | CW46: 0.06473203589
C47: West Werribee Sewage Pump Station upgrade | E47: Sewerage | F47: Growth | G47: Pipelines/network | H47: Top 10 Major Projects | J47: Straight line | K47: 2019-20 | L47: 80 | M47: 80 | O47: 4 | P47: 1.6 | Q47: 0 | R47: 0 | S47: 0 | T47: 0 | U47: 0 | V47: 0 | W47: 0 | X47: 0 | Z47: 0 | AA47: 0 | AB47: 0 | AC47: 0 | AD47: 0 | AE47: 0 | AF47: 0 | AG47: 0 | AH47: 0 | AI47: 0 | AK47: 0 | AL47: 0 | AM47: 0 | AN47: 0 | AO47: 0 | AP47: 0 | AQ47: 0 | AR47: 0 | AS47: 0 | AT47: 0 | AV47: 4 | AW47: 1.6 | AX47: 0 | AY47: 0 | AZ47: 0 | BA47: 0 | BB47: 0 | BC47: 0 | BD47: 0 | BE47: 0 | BG47: 0 | BH47: 0.035 | BI47: 0.07 | BJ47: 0.07 | BK47: 0.07 | BL47: 0.07 | BM47: 0.07 | BN47: 0.07 | BO47: 0.07 | BP47: 0.07 | BR47: =+IF($K47="Ongoing",AV47,IF(RIGHT($K47,2)=RIGHT(BR$39,2),SUM($AV47:AV47),0)+IF(RIGHT(BR$39,2)>RIGHT($K47,2),AV47,0)) -> 0 | BS47: =+IF($K47="Ongoing",AW47,IF(RIGHT($K47,2)=RIGHT(BS$39,2),SUM($AV47:AW47),0)+IF(RIGHT(BS$39,2)>RIGHT($K47,2),AW47,0)) -> 5.6 | BT47: =+IF($K47="Ongoing",AX47,IF(RIGHT($K47,2)=RIGHT(BT$39,2),SUM($AV47:AX47),0)+IF(RIGHT(BT$39,2)>RIGHT($K47,2),AX47,0)) -> 0 | BU47: =+IF($K47="Ongoing",AY47,IF(RIGHT($K47,2)=RIGHT(BU$39,2),SUM($AV47:AY47),0)+IF(RIGHT(BU$39,2)>RIGHT($K47,2),AY47,0)) -> 0 | BV47: =+IF($K47="Ongoing",AZ47,IF(RIGHT($K47,2)=RIGHT(BV$39,2),SUM($AV47:AZ47),0)+IF(RIGHT(BV$39,2)>RIGHT($K47,2),AZ47,0)) -> 0 | BW47: =+IF($K47="Ongoing",BA47,IF(RIGHT($K47,2)=RIGHT(BW$39,2),SUM($AV47:BA47),0)+IF(RIGHT(BW$39,2)>RIGHT($K47,2),BA47,0)) -> 0 | BX47: =+IF($K47="Ongoing",BB47,IF(RIGHT($K47,2)=RIGHT(BX$39,2),SUM($AV47:BB47),0)+IF(RIGHT(BX$39,2)>RIGHT($K47,2),BB47,0)) -> 0 | BY47: =+IF($K47="Ongoing",BC47,IF(RIGHT($K47,2)=RIGHT(BY$39,2),SUM($AV47:BC47),0)+IF(RIGHT(BY$39,2)>RIGHT($K47,2),BC47,0)) -> 0 | BZ47: =+IF($K47="Ongoing",BD47,IF(RIGHT($K47,2)=RIGHT(BZ$39,2),SUM($AV47:BD47),0)+IF(RIGHT(BZ$39,2)>RIGHT($K47,2),BD47,0)) -> 0 | CA47: =+IF($K47="Ongoing",BE47,IF(RIGHT($K47,2)=RIGHT(CA$39,2),SUM($AV47:BE47),0)+IF(RIGHT(CA$39,2)>RIGHT($K47,2),BE47,0)) -> 0 | CC47: =+O47*KeyAssumptionsPriceControl_FO!X$15 -> 4.092 | CD47: =+P47*KeyAssumptionsPriceControl_FO!Y$15 -> 1.6744464 | CE47: =+Q47*KeyAssumptionsPriceControl_FO!Z$15 -> 0 | CF47: =+R47*KeyAssumptionsPriceControl_FO!AA$15 -> 0 | CG47: =+S47*KeyAssumptionsPriceControl_FO!AB$15 -> 0 | CH47: =+T47*KeyAssumptionsPriceControl_FO!AC$15 -> 0 | CI47: =+U47*KeyAssumptionsPriceControl_FO!AD$15 -> 0 | CJ47: =+V47*KeyAssumptionsPriceControl_FO!AE$15 -> 0 | CK47: =+W47*KeyAssumptionsPriceControl_FO!AF$15 -> 0 | CL47: =+X47*KeyAssumptionsPriceControl_FO!AG$15 -> 0 | CN47: 0.025575 | CO47: 0.06161529 | CP47: 0.07208058 | CQ47: 0.07208058 | CR47: 0.07208058 | CS47: 0.07208058 | CT47: 0.07208058 | CU47: 0.07208058 | CV47: 0.07208058 | CW47: 0.07208058
C48: Billing and collections system replacement | E48: Water | F48: Renewals | G48: Corporate | H48: Top 10 Major Projects | J48: Straight line | K48: 2022-23 | L48: 5 | M48: 5 | O48: 0 | P48: 0 | Q48: 2.79394049 | R48: 2.173064825 | S48: 0.4656567483 | T48: 0 | U48: 0 | V48: 0 | W48: 0 | X48: 0 | Z48: 0 | AA48: 0 | AB48: 0 | AC48: 0 | AD48: 0 | AE48: 0 | AF48: 0 | AG48: 0 | AH48: 0 | AI48: 0 | AK48: 0 | AL48: 0 | AM48: 0 | AN48: 0 | AO48: 0 | AP48: 0 | AQ48: 0 | AR48: 0 | AS48: 0 | AT48: 0 | AV48: 0 | AW48: 0 | AX48: 2.79394049 | AY48: 2.173064825 | AZ48: 0.4656567483 | BA48: 0 | BB48: 0 | BC48: 0 | BD48: 0 | BE48: 0 | BG48: 0 | BH48: 0 | BI48: 0 | BJ48: 0 | BK48: 0.5432662063 | BL48: 1.086532413 | BM48: 1.086532413 | BN48: 1.086532413 | BO48: 1.086532413 | BP48: 0.5432662063 | BR48: =+IF($K48="Ongoing",AV48,IF(RIGHT($K48,2)=RIGHT(BR$39,2),SUM($AV48:AV48),0)+IF(RIGHT(BR$39,2)>RIGHT($K48,2),AV48,0)) -> 0 | BS48: =+IF($K48="Ongoing",AW48,IF(RIGHT($K48,2)=RIGHT(BS$39,2),SUM($AV48:AW48),0)+IF(RIGHT(BS$39,2)>RIGHT($K48,2),AW48,0)) -> 0 | BT48: =+IF($K48="Ongoing",AX48,IF(RIGHT($K48,2)=RIGHT(BT$39,2),SUM($AV48:AX48),0)+IF(RIGHT(BT$39,2)>RIGHT($K48,2),AX48,0)) -> 0 | BU48: =+IF($K48="Ongoing",AY48,IF(RIGHT($K48,2)=RIGHT(BU$39,2),SUM($AV48:AY48),0)+IF(RIGHT(BU$39,2)>RIGHT($K48,2),AY48,0)) -> 0 | BV48: =+IF($K48="Ongoing",AZ48,IF(RIGHT($K48,2)=RIGHT(BV$39,2),SUM($AV48:AZ48),0)+IF(RIGHT(BV$39,2)>RIGHT($K48,2),AZ48,0)) -> 5.432662063 | BW48: =+IF($K48="Ongoing",BA48,IF(RIGHT($K48,2)=RIGHT(BW$39,2),SUM($AV48:BA48),0)+IF(RIGHT(BW$39,2)>RIGHT($K48,2),BA48,0)) -> 0 | BX48: =+IF($K48="Ongoing",BB48,IF(RIGHT($K48,2)=RIGHT(BX$39,2),SUM($AV48:BB48),0)+IF(RIGHT(BX$39,2)>RIGHT($K48,2),BB48,0)) -> 0 | BY48: =+IF($K48="Ongoing",BC48,IF(RIGHT($K48,2)=RIGHT(BY$39,2),SUM($AV48:BC48),0)+IF(RIGHT(BY$39,2)>RIGHT($K48,2),BC48,0)) -> 0 | BZ48: =+IF($K48="Ongoing",BD48,IF(RIGHT($K48,2)=RIGHT(BZ$39,2),SUM($AV48:BD48),0)+IF(RIGHT(BZ$39,2)>RIGHT($K48,2),BD48,0)) -> 0 | CA48: =+IF($K48="Ongoing",BE48,IF(RIGHT($K48,2)=RIGHT(CA$39,2),SUM($AV48:BE48),0)+IF(RIGHT(CA$39,2)>RIGHT($K48,2),BE48,0)) -> 0 | CC48: =+O48*KeyAssumptionsPriceControl_FO!X$15 -> 0 | CD48: =+P48*KeyAssumptionsPriceControl_FO!Y$15 -> 0 | CE48: =+Q48*KeyAssumptionsPriceControl_FO!Z$15 -> 2.991190361 | CF48: =+R48*KeyAssumptionsPriceControl_FO!AA$15 -> 2.379990464 | CG48: =+S48*KeyAssumptionsPriceControl_FO!AB$15 -> 0.5217279095 | CH48: =+T48*KeyAssumptionsPriceControl_FO!AC$15 -> 0 | CI48: =+U48*KeyAssumptionsPriceControl_FO!AD$15 -> 0 | CJ48: =+V48*KeyAssumptionsPriceControl_FO!AE$15 -> 0 | CK48: =+W48*KeyAssumptionsPriceControl_FO!AF$15 -> 0 | CL48: =+X48*KeyAssumptionsPriceControl_FO!AG$15 -> 0 | CN48: 0 | CO48: 0 | CP48: 0.2991190361 | CQ48: 0.8362371185 | CR48: 1.126408956 | CS48: 1.178581747 | CT48: 1.178581747 | CU48: 0.8794627107 | CV48: 0.3423446283 | CW48: 0.05217279095
C49: Billing and collections system replacement | E49: Sewerage | F49: Renewals | G49: Corporate | H49: Top 10 Major Projects | J49: Straight line | K49: 2022-23 | L49: 5 | M49: 5 | O49: 0 | P49: 0 | Q49: 3.619359255 | R49: 2.815057198 | S49: 0.6032265425 | T49: 0 | U49: 0 | V49: 0 | W49: 0 | X49: 0 | Z49: 0 | AA49: 0 | AB49: 0 | AC49: 0 | AD49: 0 | AE49: 0 | AF49: 0 | AG49: 0 | AH49: 0 | AI49: 0 | AK49: 0 | AL49: 0 | AM49: 0 | AN49: 0 | AO49: 0 | AP49: 0 | AQ49: 0 | AR49: 0 | AS49: 0 | AT49: 0 | AV49: 0 | AW49: 0 | AX49: 3.619359255 | AY49: 2.815057198 | AZ49: 0.6032265425 | BA49: 0 | BB49: 0 | BC49: 0 | BD49: 0 | BE49: 0 | BG49: 0 | BH49: 0 | BI49: 0 | BJ49: 0 | BK49: 0.7037642996 | BL49: 1.407528599 | BM49: 1.407528599 | BN49: 1.407528599 | BO49: 1.407528599 | BP49: 0.7037642996 | BR49: =+IF($K49="Ongoing",AV49,IF(RIGHT($K49,2)=RIGHT(BR$39,2),SUM($AV49:AV49),0)+IF(RIGHT(BR$39,2)>RIGHT($K49,2),AV49,0)) -> 0 | BS49: =+IF($K49="Ongoing",AW49,IF(RIGHT($K49,2)=RIGHT(BS$39,2),SUM($AV49:AW49),0)+IF(RIGHT(BS$39,2)>RIGHT($K49,2),AW49,0)) -> 0 | BT49: =+IF($K49="Ongoing",AX49,IF(RIGHT($K49,2)=RIGHT(BT$39,2),SUM($AV49:AX49),0)+IF(RIGHT(BT$39,2)>RIGHT($K49,2),AX49,0)) -> 0 | BU49: =+IF($K49="Ongoing",AY49,IF(RIGHT($K49,2)=RIGHT(BU$39,2),SUM($AV49:AY49),0)+IF(RIGHT(BU$39,2)>RIGHT($K49,2),AY49,0)) -> 0 | BV49: =+IF($K49="Ongoing",AZ49,IF(RIGHT($K49,2)=RIGHT(BV$39,2),SUM($AV49:AZ49),0)+IF(RIGHT(BV$39,2)>RIGHT($K49,2),AZ49,0)) -> 7.037642996 | BW49: =+IF($K49="Ongoing",BA49,IF(RIGHT($K49,2)=RIGHT(BW$39,2),SUM($AV49:BA49),0)+IF(RIGHT(BW$39,2)>RIGHT($K49,2),BA49,0)) -> 0 | BX49: =+IF($K49="Ongoing",BB49,IF(RIGHT($K49,2)=RIGHT(BX$39,2),SUM($AV49:BB49),0)+IF(RIGHT(BX$39,2)>RIGHT($K49,2),BB49,0)) -> 0 | BY49: =+IF($K49="Ongoing",BC49,IF(RIGHT($K49,2)=RIGHT(BY$39,2),SUM($AV49:BC49),0)+IF(RIGHT(BY$39,2)>RIGHT($K49,2),BC49,0)) -> 0 | BZ49: =+IF($K49="Ongoing",BD49,IF(RIGHT($K49,2)=RIGHT(BZ$39,2),SUM($AV49:BD49),0)+IF(RIGHT(BZ$39,2)>RIGHT($K49,2),BD49,0)) -> 0 | CA49: =+IF($K49="Ongoing",BE49,IF(RIGHT($K49,2)=RIGHT(CA$39,2),SUM($AV49:BE49),0)+IF(RIGHT(CA$39,2)>RIGHT($K49,2),BE49,0)) -> 0 | CC49: =+O49*KeyAssumptionsPriceControl_FO!X$15 -> 0 | CD49: =+P49*KeyAssumptionsPriceControl_FO!Y$15 -> 0 | CE49: =+Q49*KeyAssumptionsPriceControl_FO!Z$15 -> 3.874883003 | CF49: =+R49*KeyAssumptionsPriceControl_FO!AA$15 -> 3.083115243 | CG49: =+S49*KeyAssumptionsPriceControl_FO!AB$15 -> 0.6758629058 | CH49: =+T49*KeyAssumptionsPriceControl_FO!AC$15 -> 0 | CI49: =+U49*KeyAssumptionsPriceControl_FO!AD$15 -> 0 | CJ49: =+V49*KeyAssumptionsPriceControl_FO!AE$15 -> 0 | CK49: =+W49*KeyAssumptionsPriceControl_FO!AF$15 -> 0 | CL49: =+X49*KeyAssumptionsPriceControl_FO!AG$15 -> 0 | CN49: 0 | CO49: 0 | CP49: 0.3874883003 | CQ49: 1.083288125 | CR49: 1.45918594 | CS49: 1.52677223 | CT49: 1.52677223 | CU49: 1.13928393 | CV49: 0.4434841055 | CW49: 0.06758629058
C50: Billing and collections system replacement | E50: Recycled Water | F50: Renewals | G50: Corporate | H50: Top 10 Major Projects | J50: Straight line | K50: 2019-20 | L50: 5 | M50: 5 | O50: 0 | P50: 0 | Q50: 1.30098597 | R50: 1.011877977 | S50: 0.216830995 | T50: 0 | U50: 0 | V50: 0 | W50: 0 | X50: 0 | Z50: 0 | AA50: 0 | AB50: 0 | AC50: 0 | AD50: 0 | AE50: 0 | AF50: 0 | AG50: 0 | AH50: 0 | AI50: 0 | AK50: 0 | AL50: 0 | AM50: 0 | AN50: 0 | AO50: 0 | AP50: 0 | AQ50: 0 | AR50: 0 | AS50: 0 | AT50: 0 | AV50: 0 | AW50: 0 | AX50: 1.30098597 | AY50: 1.011877977 | AZ50: 0.216830995 | BA50: 0 | BB50: 0 | BC50: 0 | BD50: 0 | BE50: 0 | BG50: 0 | BH50: 0 | BI50: 0.130098597 | BJ50: 0.3613849916 | BK50: 0.4842558888 | BL50: 0.5059389883 | BM50: 0.5059389883 | BN50: 0.3758403913 | BO50: 0.1445539967 | BP50: 0.0216830995 | BR50: =+IF($K50="Ongoing",AV50,IF(RIGHT($K50,2)=RIGHT(BR$39,2),SUM($AV50:AV50),0)+IF(RIGHT(BR$39,2)>RIGHT($K50,2),AV50,0)) -> 0 | BS50: =+IF($K50="Ongoing",AW50,IF(RIGHT($K50,2)=RIGHT(BS$39,2),SUM($AV50:AW50),0)+IF(RIGHT(BS$39,2)>RIGHT($K50,2),AW50,0)) -> 0 | BT50: =+IF($K50="Ongoing",AX50,IF(RIGHT($K50,2)=RIGHT(BT$39,2),SUM($AV50:AX50),0)+IF(RIGHT(BT$39,2)>RIGHT($K50,2),AX50,0)) -> 1.30098597 | BU50: =+IF($K50="Ongoing",AY50,IF(RIGHT($K50,2)=RIGHT(BU$39,2),SUM($AV50:AY50),0)+IF(RIGHT(BU$39,2)>RIGHT($K50,2),AY50,0)) -> 1.011877977 | BV50: =+IF($K50="Ongoing",AZ50,IF(RIGHT($K50,2)=RIGHT(BV$39,2),SUM($AV50:AZ50),0)+IF(RIGHT(BV$39,2)>RIGHT($K50,2),AZ50,0)) -> 0.216830995 | BW50: =+IF($K50="Ongoing",BA50,IF(RIGHT($K50,2)=RIGHT(BW$39,2),SUM($AV50:BA50),0)+IF(RIGHT(BW$39,2)>RIGHT($K50,2),BA50,0)) -> 0 | BX50: =+IF($K50="Ongoing",BB50,IF(RIGHT($K50,2)=RIGHT(BX$39,2),SUM($AV50:BB50),0)+IF(RIGHT(BX$39,2)>RIGHT($K50,2),BB50,0)) -> 0 | BY50: =+IF($K50="Ongoing",BC50,IF(RIGHT($K50,2)=RIGHT(BY$39,2),SUM($AV50:BC50),0)+IF(RIGHT(BY$39,2)>RIGHT($K50,2),BC50,0)) -> 0 | BZ50: =+IF($K50="Ongoing",BD50,IF(RIGHT($K50,2)=RIGHT(BZ$39,2),SUM($AV50:BD50),0)+IF(RIGHT(BZ$39,2)>RIGHT($K50,2),BD50,0)) -> 0 | CA50: =+IF($K50="Ongoing",BE50,IF(RIGHT($K50,2)=RIGHT(CA$39,2),SUM($AV50:BE50),0)+IF(RIGHT(CA$39,2)>RIGHT($K50,2),BE50,0)) -> 0 | CC50: =+O50*KeyAssumptionsPriceControl_FO!X$15 -> 0 | CD50: =+P50*KeyAssumptionsPriceControl_FO!Y$15 -> 0 | CE50: =+Q50*KeyAssumptionsPriceControl_FO!Z$15 -> 1.392834496 | CF50: =+R50*KeyAssumptionsPriceControl_FO!AA$15 -> 1.10823198 | CG50: =+S50*KeyAssumptionsPriceControl_FO!AB$15 -> 0.242940282 | CH50: =+T50*KeyAssumptionsPriceControl_FO!AC$15 -> 0 | CI50: =+U50*KeyAssumptionsPriceControl_FO!AD$15 -> 0 | CJ50: =+V50*KeyAssumptionsPriceControl_FO!AE$15 -> 0 | CK50: =+W50*KeyAssumptionsPriceControl_FO!AF$15 -> 0 | CL50: =+X50*KeyAssumptionsPriceControl_FO!AG$15 -> 0 | CN50: 0 | CO50: 0 | CP50: 0.1392834496 | CQ50: 0.3893900972 | CR50: 0.5245073234 | CS50: 0.5488013516 | CT50: 0.5488013516 | CU50: 0.409517902 | CV50: 0.1594112544 | CW50: 0.0242940282
C51: Nicholson Street water main renewal | E51: Water | F51: Renewals | G51: Pipelines/network | H51: Top 10 Major Projects | J51: Straight line | K51: 2019-20 | L51: 90 | M51: 90 | O51: 6 | P51: 2.2 | Q51: 0 | R51: 0 | S51: 0 | T51: 0 | U51: 0 | V51: 0 | W51: 0 | X51: 0 | Z51: 0 | AA51: 0 | AB51: 0 | AC51: 0 | AD51: 0 | AE51: 0 | AF51: 0 | AG51: 0 | AH51: 0 | AI51: 0 | AK51: 0 | AL51: 0 | AM51: 0 | AN51: 0 | AO51: 0 | AP51: 0 | AQ51: 0 | AR51: 0 | AS51: 0 | AT51: 0 | AV51: 6 | AW51: 2.2 | AX51: 0 | AY51: 0 | AZ51: 0 | BA51: 0 | BB51: 0 | BC51: 0 | BD51: 0 | BE51: 0 | BG51: 0 | BH51: 0.04555555556 | BI51: 0.09111111111 | BJ51: 0.09111111111 | BK51: 0.09111111111 | BL51: 0.09111111111 | BM51: 0.09111111111 | BN51: 0.09111111111 | BO51: 0.09111111111 | BP51: 0.09111111111 | BR51: =+IF($K51="Ongoing",AV51,IF(RIGHT($K51,2)=RIGHT(BR$39,2),SUM($AV51:AV51),0)+IF(RIGHT(BR$39,2)>RIGHT($K51,2),AV51,0)) -> 0 | BS51: =+IF($K51="Ongoing",AW51,IF(RIGHT($K51,2)=RIGHT(BS$39,2),SUM($AV51:AW51),0)+IF(RIGHT(BS$39,2)>RIGHT($K51,2),AW51,0)) -> 8.2 | BT51: =+IF($K51="Ongoing",AX51,IF(RIGHT($K51,2)=RIGHT(BT$39,2),SUM($AV51:AX51),0)+IF(RIGHT(BT$39,2)>RIGHT($K51,2),AX51,0)) -> 0 | BU51: =+IF($K51="Ongoing",AY51,IF(RIGHT($K51,2)=RIGHT(BU$39,2),SUM($AV51:AY51),0)+IF(RIGHT(BU$39,2)>RIGHT($K51,2),AY51,0)) -> 0 | BV51: =+IF($K51="Ongoing",AZ51,IF(RIGHT($K51,2)=RIGHT(BV$39,2),SUM($AV51:AZ51),0)+IF(RIGHT(BV$39,2)>RIGHT($K51,2),AZ51,0)) -> 0 | BW51: =+IF($K51="Ongoing",BA51,IF(RIGHT($K51,2)=RIGHT(BW$39,2),SUM($AV51:BA51),0)+IF(RIGHT(BW$39,2)>RIGHT($K51,2),BA51,0)) -> 0 | BX51: =+IF($K51="Ongoing",BB51,IF(RIGHT($K51,2)=RIGHT(BX$39,2),SUM($AV51:BB51),0)+IF(RIGHT(BX$39,2)>RIGHT($K51,2),BB51,0)) -> 0 | BY51: =+IF($K51="Ongoing",BC51,IF(RIGHT($K51,2)=RIGHT(BY$39,2),SUM($AV51:BC51),0)+IF(RIGHT(BY$39,2)>RIGHT($K51,2),BC51,0)) -> 0 | BZ51: =+IF($K51="Ongoing",BD51,IF(RIGHT($K51,2)=RIGHT(BZ$39,2),SUM($AV51:BD51),0)+IF(RIGHT(BZ$39,2)>RIGHT($K51,2),BD51,0)) -> 0 | CA51: =+IF($K51="Ongoing",BE51,IF(RIGHT($K51,2)=RIGHT(CA$39,2),SUM($AV51:BE51),0)+IF(RIGHT(CA$39,2)>RIGHT($K51,2),BE51,0)) -> 0 | CC51: =+O51*KeyAssumptionsPriceControl_FO!X$15 -> 6.138 | CD51: =+P51*KeyAssumptionsPriceControl_FO!Y$15 -> 2.3023638 | CE51: =+Q51*KeyAssumptionsPriceControl_FO!Z$15 -> 0 | CF51: =+R51*KeyAssumptionsPriceControl_FO!AA$15 -> 0 | CG51: =+S51*KeyAssumptionsPriceControl_FO!AB$15 -> 0 | CH51: =+T51*KeyAssumptionsPriceControl_FO!AC$15 -> 0 | CI51: =+U51*KeyAssumptionsPriceControl_FO!AD$15 -> 0 | CJ51: =+V51*KeyAssumptionsPriceControl_FO!AE$15 -> 0 | CK51: =+W51*KeyAssumptionsPriceControl_FO!AF$15 -> 0 | CL51: =+X51*KeyAssumptionsPriceControl_FO!AG$15 -> 0 | CN51: 0.0341 | CO51: 0.08099091 | CP51: 0.09378182 | CQ51: 0.09378182 | CR51: 0.09378182 | CS51: 0.09378182 | CT51: 0.09378182 | CU51: 0.09378182 | CV51: 0.09378182 | CW51: 0.09378182
C53: Greek Hill water supply projects – Dohertys Rd, Derrimut Rd & Davis Rd mains and Melbourne-Geelong Pipeline interconnection | E53: Water | F53: Growth | G53: Pipelines/network | H53: Top 10 Major Projects | J53: Straight line | K53: 2019-20 | L53: 90 | M53: 90 | O53: 4.88975 | P53: 1.35619 | Q53: 0 | R53: 0 | S53: 0 | T53: 0 | U53: 0 | V53: 0 | W53: 0 | X53: 0 | Z53: 0 | AA53: 0 | AB53: 0 | AC53: 0 | AD53: 0 | AE53: 0 | AF53: 0 | AG53: 0 | AH53: 0 | AI53: 0 | AK53: 0 | AL53: 0 | AM53: 0 | AN53: 0 | AO53: 0 | AP53: 0 | AQ53: 0 | AR53: 0 | AS53: 0 | AT53: 0 | AV53: 4.88975 | AW53: 1.35619 | AX53: 0 | AY53: 0 | AZ53: 0 | BA53: 0 | BB53: 0 | BC53: 0 | BD53: 0 | BE53: 0 | BG53: 0 | BH53: 0.03469966667 | BI53: 0.06939933333 | BJ53: 0.06939933333 | BK53: 0.06939933333 | BL53: 0.06939933333 | BM53: 0.06939933333 | BN53: 0.06939933333 | BO53: 0.06939933333 | BP53: 0.06939933333 | BR53: =+IF($K53="Ongoing",AV53,IF(RIGHT($K53,2)=RIGHT(BR$39,2),SUM($AV53:AV53),0)+IF(RIGHT(BR$39,2)>RIGHT($K53,2),AV53,0)) -> 0 | BS53: =+IF($K53="Ongoing",AW53,IF(RIGHT($K53,2)=RIGHT(BS$39,2),SUM($AV53:AW53),0)+IF(RIGHT(BS$39,2)>RIGHT($K53,2),AW53,0)) -> 6.24594 | BT53: =+IF($K53="Ongoing",AX53,IF(RIGHT($K53,2)=RIGHT(BT$39,2),SUM($AV53:AX53),0)+IF(RIGHT(BT$39,2)>RIGHT($K53,2),AX53,0)) -> 0 | BU53: =+IF($K53="Ongoing",AY53,IF(RIGHT($K53,2)=RIGHT(BU$39,2),SUM($AV53:AY53),0)+IF(RIGHT(BU$39,2)>RIGHT($K53,2),AY53,0)) -> 0 | BV53: =+IF($K53="Ongoing",AZ53,IF(RIGHT($K53,2)=RIGHT(BV$39,2),SUM($AV53:AZ53),0)+IF(RIGHT(BV$39,2)>RIGHT($K53,2),AZ53,0)) -> 0 | BW53: =+IF($K53="Ongoing",BA53,IF(RIGHT($K53,2)=RIGHT(BW$39,2),SUM($AV53:BA53),0)+IF(RIGHT(BW$39,2)>RIGHT($K53,2),BA53,0)) -> 0 | BX53: =+IF($K53="Ongoing",BB53,IF(RIGHT($K53,2)=RIGHT(BX$39,2),SUM($AV53:BB53),0)+IF(RIGHT(BX$39,2)>RIGHT($K53,2),BB53,0)) -> 0 | BY53: =+IF($K53="Ongoing",BC53,IF(RIGHT($K53,2)=RIGHT(BY$39,2),SUM($AV53:BC53),0)+IF(RIGHT(BY$39,2)>RIGHT($K53,2),BC53,0)) -> 0 | BZ53: =+IF($K53="Ongoing",BD53,IF(RIGHT($K53,2)=RIGHT(BZ$39,2),SUM($AV53:BD53),0)+IF(RIGHT(BZ$39,2)>RIGHT($K53,2),BD53,0)) -> 0 | CA53: =+IF($K53="Ongoing",BE53,IF(RIGHT($K53,2)=RIGHT(CA$39,2),SUM($AV53:BE53),0)+IF(RIGHT(CA$39,2)>RIGHT($K53,2),BE53,0)) -> 0 | CC53: =+O53*KeyAssumptionsPriceControl_FO!X$15 -> 5.00221425 | CD53: =+P53*KeyAssumptionsPriceControl_FO!Y$15 -> 1.419292165 | CE53: =+Q53*KeyAssumptionsPriceControl_FO!Z$15 -> 0 | CF53: =+R53*KeyAssumptionsPriceControl_FO!AA$15 -> 0 | CG53: =+S53*KeyAssumptionsPriceControl_FO!AB$15 -> 0 | CH53: =+T53*KeyAssumptionsPriceControl_FO!AC$15 -> 0 | CI53: =+U53*KeyAssumptionsPriceControl_FO!AD$15 -> 0 | CJ53: =+V53*KeyAssumptionsPriceControl_FO!AE$15 -> 0 | CK53: =+W53*KeyAssumptionsPriceControl_FO!AF$15 -> 0 | CL53: =+X53*KeyAssumptionsPriceControl_FO!AG$15 -> 0 | CN53: 0.02779007917 | CO53: 0.0634651148 | CP53: 0.07135007127 | CQ53: 0.07135007127 | CR53: 0.07135007127 | CS53: 0.07135007127 | CT53: 0.07135007127 | CU53: 0.07135007127 | CV53: 0.07135007127 | CW53: 0.07135007127
C54: Greek Hill alternative water supply projects Dohertys Rd, Derrimut Rd & Davis Rd mains | E54: Recycled Water | F54: Growth | G54: Pipelines/network | H54: Top 10 Major Projects | J54: Straight line | K54: 2019-20 | L54: 90 | M54: 90 | O54: 2.014301 | P54: 1.388183 | Q54: 0 | R54: 0 | S54: 0 | T54: 0 | U54: 0 | V54: 0 | W54: 0 | X54: 0 | Z54: 0 | AA54: 0 | AB54: 0 | AC54: 0 | AD54: 0 | AE54: 0 | AF54: 0 | AG54: 0 | AH54: 0 | AI54: 0 | AK54: 0 | AL54: 0 | AM54: 0 | AN54: 0 | AO54: 0 | AP54: 0 | AQ54: 0 | AR54: 0 | AS54: 0 | AT54: 0 | AV54: 2.014301 | AW54: 1.388183 | AX54: 0 | AY54: 0 | AZ54: 0 | BA54: 0 | BB54: 0 | BC54: 0 | BD54: 0 | BE54: 0 | BG54: 0 | BH54: 0.01890268889 | BI54: 0.03780537778 | BJ54: 0.03780537778 | BK54: 0.03780537778 | BL54: 0.03780537778 | BM54: 0.03780537778 | BN54: 0.03780537778 | BO54: 0.03780537778 | BP54: 0.03780537778 | BR54: =+IF($K54="Ongoing",AV54,IF(RIGHT($K54,2)=RIGHT(BR$39,2),SUM($AV54:AV54),0)+IF(RIGHT(BR$39,2)>RIGHT($K54,2),AV54,0)) -> 0 | BS54: =+IF($K54="Ongoing",AW54,IF(RIGHT($K54,2)=RIGHT(BS$39,2),SUM($AV54:AW54),0)+IF(RIGHT(BS$39,2)>RIGHT($K54,2),AW54,0)) -> 3.402484 | BT54: =+IF($K54="Ongoing",AX54,IF(RIGHT($K54,2)=RIGHT(BT$39,2),SUM($AV54:AX54),0)+IF(RIGHT(BT$39,2)>RIGHT($K54,2),AX54,0)) -> 0 | BU54: =+IF($K54="Ongoing",AY54,IF(RIGHT($K54,2)=RIGHT(BU$39,2),SUM($AV54:AY54),0)+IF(RIGHT(BU$39,2)>RIGHT($K54,2),AY54,0)) -> 0 | BV54: =+IF($K54="Ongoing",AZ54,IF(RIGHT($K54,2)=RIGHT(BV$39,2),SUM($AV54:AZ54),0)+IF(RIGHT(BV$39,2)>RIGHT($K54,2),AZ54,0)) -> 0 | BW54: =+IF($K54="Ongoing",BA54,IF(RIGHT($K54,2)=RIGHT(BW$39,2),SUM($AV54:BA54),0)+IF(RIGHT(BW$39,2)>RIGHT($K54,2),BA54,0)) -> 0 | BX54: =+IF($K54="Ongoing",BB54,IF(RIGHT($K54,2)=RIGHT(BX$39,2),SUM($AV54:BB54),0)+IF(RIGHT(BX$39,2)>RIGHT($K54,2),BB54,0)) -> 0 | BY54: =+IF($K54="Ongoing",BC54,IF(RIGHT($K54,2)=RIGHT(BY$39,2),SUM($AV54:BC54),0)+IF(RIGHT(BY$39,2)>RIGHT($K54,2),BC54,0)) -> 0 | BZ54: =+IF($K54="Ongoing",BD54,IF(RIGHT($K54,2)=RIGHT(BZ$39,2),SUM($AV54:BD54),0)+IF(RIGHT(BZ$39,2)>RIGHT($K54,2),BD54,0)) -> 0 | CA54: =+IF($K54="Ongoing",BE54,IF(RIGHT($K54,2)=RIGHT(CA$39,2),SUM($AV54:BE54),0)+IF(RIGHT(CA$39,2)>RIGHT($K54,2),BE54,0)) -> 0 | CC54: =+O54*KeyAssumptionsPriceControl_FO!X$15 -> 2.060629923 | CD54: =+P54*KeyAssumptionsPriceControl_FO!Y$15 -> 1.452773767 | CE54: =+Q54*KeyAssumptionsPriceControl_FO!Z$15 -> 0 | CF54: =+R54*KeyAssumptionsPriceControl_FO!AA$15 -> 0 | CG54: =+S54*KeyAssumptionsPriceControl_FO!AB$15 -> 0 | CH54: =+T54*KeyAssumptionsPriceControl_FO!AC$15 -> 0 | CI54: =+U54*KeyAssumptionsPriceControl_FO!AD$15 -> 0 | CJ54: =+V54*KeyAssumptionsPriceControl_FO!AE$15 -> 0 | CK54: =+W54*KeyAssumptionsPriceControl_FO!AF$15 -> 0 | CL54: =+X54*KeyAssumptionsPriceControl_FO!AG$15 -> 0 | CN54: 0.01144794402 | CO54: 0.0309668534 | CP54: 0.03903781878 | CQ54: 0.03903781878 | CR54: 0.03903781878 | CS54: 0.03903781878 | CT54: 0.03903781878 | CU54: 0.03903781878 | CV54: 0.03903781878 | CW54: 0.03903781878
C55: Aquifer storage and recovery | E55: Recycled Water | F55: Growth | G55: Pipelines/network | H55: Significant projects | J55: Straight line | K55: 2019-20 | L55: 15 | M55: 15 | O55: 0.264532 | P55: 1.861384 | Q55: 0.130068 | R55: 0.130068 | S55: 0.130068 | T55: 0.14 | U55: 0.14 | V55: 0 | W55: 0 | X55: 0 | Z55: 0 | AA55: 0 | AB55: 0 | AC55: 0 | AD55: 0 | AE55: 0 | AF55: 0 | AG55: 0 | AH55: 0 | AI55: 0 | AK55: 0 | AL55: 0 | AM55: 0 | AN55: 0 | AO55: 0 | AP55: 0 | AQ55: 0 | AR55: 0 | AS55: 0 | AT55: 0 | AV55: 0.264532 | AW55: 1.861384 | AX55: 0.130068 | AY55: 0.130068 | AZ55: 0.130068 | BA55: 0.14 | BB55: 0.14 | BC55: 0 | BD55: 0 | BE55: 0 | BG55: 0 | BH55: 0.07086386667 | BI55: 0.1460633333 | BJ55: 0.1547345333 | BK55: 0.1634057333 | BL55: 0.172408 | BM55: 0.1817413333 | BN55: 0.186408 | BO55: 0.186408 | BP55: 0.186408 | BR55: =+IF($K55="Ongoing",AV55,IF(RIGHT($K55,2)=RIGHT(BR$39,2),SUM($AV55:AV55),0)+IF(RIGHT(BR$39,2)>RIGHT($K55,2),AV55,0)) -> 0 | BS55: =+IF($K55="Ongoing",AW55,IF(RIGHT($K55,2)=RIGHT(BS$39,2),SUM($AV55:AW55),0)+IF(RIGHT(BS$39,2)>RIGHT($K55,2),AW55,0)) -> 2.125916 | BT55: =+IF($K55="Ongoing",AX55,IF(RIGHT($K55,2)=RIGHT(BT$39,2),SUM($AV55:AX55),0)+IF(RIGHT(BT$39,2)>RIGHT($K55,2),AX55,0)) -> 0.130068 | BU55: =+IF($K55="Ongoing",AY55,IF(RIGHT($K55,2)=RIGHT(BU$39,2),SUM($AV55:AY55),0)+IF(RIGHT(BU$39,2)>RIGHT($K55,2),AY55,0)) -> 0.130068 | BV55: =+IF($K55="Ongoing",AZ55,IF(RIGHT($K55,2)=RIGHT(BV$39,2),SUM($AV55:AZ55),0)+IF(RIGHT(BV$39,2)>RIGHT($K55,2),AZ55,0)) -> 0.130068 | BW55: =+IF($K55="Ongoing",BA55,IF(RIGHT($K55,2)=RIGHT(BW$39,2),SUM($AV55:BA55),0)+IF(RIGHT(BW$39,2)>RIGHT($K55,2),BA55,0)) -> 0.14 | BX55: =+IF($K55="Ongoing",BB55,IF(RIGHT($K55,2)=RIGHT(BX$39,2),SUM($AV55:BB55),0)+IF(RIGHT(BX$39,2)>RIGHT($K55,2),BB55,0)) -> 0.14 | BY55: =+IF($K55="Ongoing",BC55,IF(RIGHT($K55,2)=RIGHT(BY$39,2),SUM($AV55:BC55),0)+IF(RIGHT(BY$39,2)>RIGHT($K55,2),BC55,0)) -> 0 | BZ55: =+IF($K55="Ongoing",BD55,IF(RIGHT($K55,2)=RIGHT(BZ$39,2),SUM($AV55:BD55),0)+IF(RIGHT(BZ$39,2)>RIGHT($K55,2),BD55,0)) -> 0 | CA55: =+IF($K55="Ongoing",BE55,IF(RIGHT($K55,2)=RIGHT(CA$39,2),SUM($AV55:BE55),0)+IF(RIGHT(CA$39,2)>RIGHT($K55,2),BE55,0)) -> 0 | CC55: =+O55*KeyAssumptionsPriceControl_FO!X$15 -> 0.270616236 | CD55: =+P55*KeyAssumptionsPriceControl_FO!Y$15 -> 1.947992336 | CE55: =+Q55*KeyAssumptionsPriceControl_FO!Z$15 -> 0.1392506925 | CF55: =+R55*KeyAssumptionsPriceControl_FO!AA$15 -> 0.1424534584 | CG55: =+S55*KeyAssumptionsPriceControl_FO!AB$15 -> 0.1457298879 | CH55: =+T55*KeyAssumptionsPriceControl_FO!AC$15 -> 0.1604655607 | CI55: =+U55*KeyAssumptionsPriceControl_FO!AD$15 -> 0.1641562686 | CJ55: =+V55*KeyAssumptionsPriceControl_FO!AE$15 -> 0 | CK55: =+W55*KeyAssumptionsPriceControl_FO!AF$15 -> 0 | CL55: =+X55*KeyAssumptionsPriceControl_FO!AG$15 -> 0 | CN55: 0.0090205412 | CO55: 0.08297416027 | CP55: 0.1525489279 | CQ55: 0.1619390663 | CR55: 0.1715451778 | CS55: 0.1817516927 | CT55: 0.1925724204 | CU55: 0.198044296 | CV55: 0.198044296 | CW55: 0.198044296
C56: Renewable energy installations | E56: Water | F56: Improvements / Compliance | G56: Corporate | H56: Significant projects | J56: Straight line | K56: Ongoing | L56: 15 | M56: 15 | O56: 0.03621774709 | P56: 0.03621774709 | Q56: 0.3259597238 | R56: 0 | S56: 0.3259597238 | T56: 0 | U56: 0 | V56: 0 | W56: 0 | X56: 0 | Z56: 0 | AA56: 0 | AB56: 0 | AC56: 0 | AD56: 0 | AE56: 0 | AF56: 0 | AG56: 0 | AH56: 0 | AI56: 0 | AK56: 0 | AL56: 0 | AM56: 0 | AN56: 0 | AO56: 0 | AP56: 0 | AQ56: 0 | AR56: 0 | AS56: 0 | AT56: 0 | AV56: 0.03621774709 | AW56: 0.03621774709 | AX56: 0.3259597238 | AY56: 0 | AZ56: 0.3259597238 | BA56: 0 | BB56: 0 | BC56: 0 | BD56: 0 | BE56: 0 | BG56: 0.001207258236 | BH56: 0.003621774709 | BI56: 0.01569435707 | BJ56: 0.0265596812 | BK56: 0.03742500532 | BL56: 0.04829032945 | BM56: 0.04829032945 | BN56: 0.04829032945 | BO56: 0.04829032945 | BP56: 0.04829032945 | BR56: =+IF($K56="Ongoing",AV56,IF(RIGHT($K56,2)=RIGHT(BR$39,2),SUM($AV56:AV56),0)+IF(RIGHT(BR$39,2)>RIGHT($K56,2),AV56,0)) -> 0.03621774709 | BS56: =+IF($K56="Ongoing",AW56,IF(RIGHT($K56,2)=RIGHT(BS$39,2),SUM($AV56:AW56),0)+IF(RIGHT(BS$39,2)>RIGHT($K56,2),AW56,0)) -> 0.03621774709 | BT56: =+IF($K56="Ongoing",AX56,IF(RIGHT($K56,2)=RIGHT(BT$39,2),SUM($AV56:AX56),0)+IF(RIGHT(BT$39,2)>RIGHT($K56,2),AX56,0)) -> 0.3259597238 | BU56: =+IF($K56="Ongoing",AY56,IF(RIGHT($K56,2)=RIGHT(BU$39,2),SUM($AV56:AY56),0)+IF(RIGHT(BU$39,2)>RIGHT($K56,2),AY56,0)) -> 0 | BV56: =+IF($K56="Ongoing",AZ56,IF(RIGHT($K56,2)=RIGHT(BV$39,2),SUM($AV56:AZ56),0)+IF(RIGHT(BV$39,2)>RIGHT($K56,2),AZ56,0)) -> 0.3259597238 | BW56: =+IF($K56="Ongoing",BA56,IF(RIGHT($K56,2)=RIGHT(BW$39,2),SUM($AV56:BA56),0)+IF(RIGHT(BW$39,2)>RIGHT($K56,2),BA56,0)) -> 0 | BX56: =+IF($K56="Ongoing",BB56,IF(RIGHT($K56,2)=RIGHT(BX$39,2),SUM($AV56:BB56),0)+IF(RIGHT(BX$39,2)>RIGHT($K56,2),BB56,0)) -> 0 | BY56: =+IF($K56="Ongoing",BC56,IF(RIGHT($K56,2)=RIGHT(BY$39,2),SUM($AV56:BC56),0)+IF(RIGHT(BY$39,2)>RIGHT($K56,2),BC56,0)) -> 0 | BZ56: =+IF($K56="Ongoing",BD56,IF(RIGHT($K56,2)=RIGHT(BZ$39,2),SUM($AV56:BD56),0)+IF(RIGHT(BZ$39,2)>RIGHT($K56,2),BD56,0)) -> 0 | CA56: =+IF($K56="Ongoing",BE56,IF(RIGHT($K56,2)=RIGHT(CA$39,2),SUM($AV56:BE56),0)+IF(RIGHT(CA$39,2)>RIGHT($K56,2),BE56,0)) -> 0 | CC56: =+O56*KeyAssumptionsPriceControl_FO!X$15 -> 0.03705075527 | CD56: =+P56*KeyAssumptionsPriceControl_FO!Y$15 -> 0.03790292264 | CE56: =+Q56*KeyAssumptionsPriceControl_FO!Z$15 -> 0.3489722088 | CF56: =+R56*KeyAssumptionsPriceControl_FO!AA$15 -> 0 | CG56: =+S56*KeyAssumptionsPriceControl_FO!AB$15 -> 0.3652095367 | CH56: =+T56*KeyAssumptionsPriceControl_FO!AC$15 -> 0 | CI56: =+U56*KeyAssumptionsPriceControl_FO!AD$15 -> 0 | CJ56: =+V56*KeyAssumptionsPriceControl_FO!AE$15 -> 0 | CK56: =+W56*KeyAssumptionsPriceControl_FO!AF$15 -> 0 | CL56: =+X56*KeyAssumptionsPriceControl_FO!AG$15 -> 0 | CN56: 0.001235025176 | CO56: 0.003733481106 | CP56: 0.01662931882 | CQ56: 0.02826172578 | CR56: 0.040435377 | CS56: 0.05260902822 | CT56: 0.05260902822 | CU56: 0.05260902822 | CV56: 0.05260902822 | CW56: 0.05260902822
C57: Renewable energy installations | E57: Sewerage | F57: Improvements / Compliance | G57: Corporate | H57: Significant projects | J57: Straight line | K57: Ongoing | L57: 15 | M57: 15 | O57: 0.04691761997 | P57: 0.04691761997 | Q57: 0.4222585797 | R57: 0 | S57: 0.4222585797 | T57: 0 | U57: 0 | V57: 0 | W57: 0 | X57: 0 | Z57: 0 | AA57: 0 | AB57: 0 | AC57: 0 | AD57: 0 | AE57: 0 | AF57: 0 | AG57: 0 | AH57: 0 | AI57: 0 | AK57: 0 | AL57: 0 | AM57: 0 | AN57: 0 | AO57: 0 | AP57: 0 | AQ57: 0 | AR57: 0 | AS57: 0 | AT57: 0 | AV57: 0.04691761997 | AW57: 0.04691761997 | AX57: 0.4222585797 | AY57: 0 | AZ57: 0.4222585797 | BA57: 0 | BB57: 0 | BC57: 0 | BD57: 0 | BE57: 0 | BG57: 0.001563920666 | BH57: 0.004691761997 | BI57: 0.02033096865 | BJ57: 0.03440625465 | BK57: 0.04848154064 | BL57: 0.06255682663 | BM57: 0.06255682663 | BN57: 0.06255682663 | BO57: 0.06255682663 | BP57: 0.06255682663 | BR57: =+IF($K57="Ongoing",AV57,IF(RIGHT($K57,2)=RIGHT(BR$39,2),SUM($AV57:AV57),0)+IF(RIGHT(BR$39,2)>RIGHT($K57,2),AV57,0)) -> 0.04691761997 | BS57: =+IF($K57="Ongoing",AW57,IF(RIGHT($K57,2)=RIGHT(BS$39,2),SUM($AV57:AW57),0)+IF(RIGHT(BS$39,2)>RIGHT($K57,2),AW57,0)) -> 0.04691761997 | BT57: =+IF($K57="Ongoing",AX57,IF(RIGHT($K57,2)=RIGHT(BT$39,2),SUM($AV57:AX57),0)+IF(RIGHT(BT$39,2)>RIGHT($K57,2),AX57,0)) -> 0.4222585797 | BU57: =+IF($K57="Ongoing",AY57,IF(RIGHT($K57,2)=RIGHT(BU$39,2),SUM($AV57:AY57),0)+IF(RIGHT(BU$39,2)>RIGHT($K57,2),AY57,0)) -> 0 | BV57: =+IF($K57="Ongoing",AZ57,IF(RIGHT($K57,2)=RIGHT(BV$39,2),SUM($AV57:AZ57),0)+IF(RIGHT(BV$39,2)>RIGHT($K57,2),AZ57,0)) -> 0.4222585797 | BW57: =+IF($K57="Ongoing",BA57,IF(RIGHT($K57,2)=RIGHT(BW$39,2),SUM($AV57:BA57),0)+IF(RIGHT(BW$39,2)>RIGHT($K57,2),BA57,0)) -> 0 | BX57: =+IF($K57="Ongoing",BB57,IF(RIGHT($K57,2)=RIGHT(BX$39,2),SUM($AV57:BB57),0)+IF(RIGHT(BX$39,2)>RIGHT($K57,2),BB57,0)) -> 0 | BY57: =+IF($K57="Ongoing",BC57,IF(RIGHT($K57,2)=RIGHT(BY$39,2),SUM($AV57:BC57),0)+IF(RIGHT(BY$39,2)>RIGHT($K57,2),BC57,0)) -> 0 | BZ57: =+IF($K57="Ongoing",BD57,IF(RIGHT($K57,2)=RIGHT(BZ$39,2),SUM($AV57:BD57),0)+IF(RIGHT(BZ$39,2)>RIGHT($K57,2),BD57,0)) -> 0 | CA57: =+IF($K57="Ongoing",BE57,IF(RIGHT($K57,2)=RIGHT(CA$39,2),SUM($AV57:BE57),0)+IF(RIGHT(CA$39,2)>RIGHT($K57,2),BE57,0)) -> 0 | CC57: =+O57*KeyAssumptionsPriceControl_FO!X$15 -> 0.04799672523 | CD57: =+P57*KeyAssumptionsPriceControl_FO!Y$15 -> 0.04910064991 | CE57: =+Q57*KeyAssumptionsPriceControl_FO!Z$15 -> 0.4520696837 | CF57: =+R57*KeyAssumptionsPriceControl_FO!AA$15 -> 0 | CG57: =+S57*KeyAssumptionsPriceControl_FO!AB$15 -> 0.473104034 | CH57: =+T57*KeyAssumptionsPriceControl_FO!AC$15 -> 0 | CI57: =+U57*KeyAssumptionsPriceControl_FO!AD$15 -> 0 | CJ57: =+V57*KeyAssumptionsPriceControl_FO!AE$15 -> 0 | CK57: =+W57*KeyAssumptionsPriceControl_FO!AF$15 -> 0 | CL57: =+X57*KeyAssumptionsPriceControl_FO!AG$15 -> 0 | CN57: 0.001599890841 | CO57: 0.004836470012 | CP57: 0.0215421478 | CQ57: 0.03661113726 | CR57: 0.05238127173 | CS57: 0.06815140619 | CT57: 0.06815140619 | CU57: 0.06815140619 | CV57: 0.06815140619 | CW57: 0.06815140619
C58: Renewable energy installations | E58: Recycled Water | F58: Improvements / Compliance | G58: Corporate | H58: Significant projects | J58: Straight line | K58: Ongoing | L58: 15 | M58: 15 | O58: 0.01686463294 | P58: 0.01686463294 | Q58: 0.1517816965 | R58: 0 | S58: 0.1517816965 | T58: 0 | U58: 0 | V58: 0 | W58: 0 | X58: 0 | Z58: 0 | AA58: 0 | AB58: 0 | AC58: 0 | AD58: 0 | AE58: 0 | AF58: 0 | AG58: 0 | AH58: 0 | AI58: 0 | AK58: 0 | AL58: 0 | AM58: 0 | AN58: 0 | AO58: 0 | AP58: 0 | AQ58: 0 | AR58: 0 | AS58: 0 | AT58: 0 | AV58: 0.01686463294 | AW58: 0.01686463294 | AX58: 0.1517816965 | AY58: 0 | AZ58: 0.1517816965 | BA58: 0 | BB58: 0 | BC58: 0 | BD58: 0 | BE58: 0 | BG58: 0.0005621544314 | BH58: 0.001686463294 | BI58: 0.007308007609 | BJ58: 0.01236739749 | BK58: 0.01742678737 | BL58: 0.02248617726 | BM58: 0.02248617726 | BN58: 0.02248617726 | BO58: 0.02248617726 | BP58: 0.02248617726 | BR58: =+IF($K58="Ongoing",AV58,IF(RIGHT($K58,2)=RIGHT(BR$39,2),SUM($AV58:AV58),0)+IF(RIGHT(BR$39,2)>RIGHT($K58,2),AV58,0)) -> 0.01686463294 | BS58: =+IF($K58="Ongoing",AW58,IF(RIGHT($K58,2)=RIGHT(BS$39,2),SUM($AV58:AW58),0)+IF(RIGHT(BS$39,2)>RIGHT($K58,2),AW58,0)) -> 0.01686463294 | BT58: =+IF($K58="Ongoing",AX58,IF(RIGHT($K58,2)=RIGHT(BT$39,2),SUM($AV58:AX58),0)+IF(RIGHT(BT$39,2)>RIGHT($K58,2),AX58,0)) -> 0.1517816965 | BU58: =+IF($K58="Ongoing",AY58,IF(RIGHT($K58,2)=RIGHT(BU$39,2),SUM($AV58:AY58),0)+IF(RIGHT(BU$39,2)>RIGHT($K58,2),AY58,0)) -> 0 | BV58: =+IF($K58="Ongoing",AZ58,IF(RIGHT($K58,2)=RIGHT(BV$39,2),SUM($AV58:AZ58),0)+IF(RIGHT(BV$39,2)>RIGHT($K58,2),AZ58,0)) -> 0.1517816965 | BW58: =+IF($K58="Ongoing",BA58,IF(RIGHT($K58,2)=RIGHT(BW$39,2),SUM($AV58:BA58),0)+IF(RIGHT(BW$39,2)>RIGHT($K58,2),BA58,0)) -> 0 | BX58: =+IF($K58="Ongoing",BB58,IF(RIGHT($K58,2)=RIGHT(BX$39,2),SUM($AV58:BB58),0)+IF(RIGHT(BX$39,2)>RIGHT($K58,2),BB58,0)) -> 0 | BY58: =+IF($K58="Ongoing",BC58,IF(RIGHT($K58,2)=RIGHT(BY$39,2),SUM($AV58:BC58),0)+IF(RIGHT(BY$39,2)>RIGHT($K58,2),BC58,0)) -> 0 | BZ58: =+IF($K58="Ongoing",BD58,IF(RIGHT($K58,2)=RIGHT(BZ$39,2),SUM($AV58:BD58),0)+IF(RIGHT(BZ$39,2)>RIGHT($K58,2),BD58,0)) -> 0 | CA58: =+IF($K58="Ongoing",BE58,IF(RIGHT($K58,2)=RIGHT(CA$39,2),SUM($AV58:BE58),0)+IF(RIGHT(CA$39,2)>RIGHT($K58,2),BE58,0)) -> 0 | CC58: =+O58*KeyAssumptionsPriceControl_FO!X$15 -> 0.0172525195 | CD58: =+P58*KeyAssumptionsPriceControl_FO!Y$15 -> 0.01764932745 | CE58: =+Q58*KeyAssumptionsPriceControl_FO!Z$15 -> 0.1624973578 | CF58: =+R58*KeyAssumptionsPriceControl_FO!AA$15 -> 0 | CG58: =+S58*KeyAssumptionsPriceControl_FO!AB$15 -> 0.1700581974 | CH58: =+T58*KeyAssumptionsPriceControl_FO!AC$15 -> 0 | CI58: =+U58*KeyAssumptionsPriceControl_FO!AD$15 -> 0 | CJ58: =+V58*KeyAssumptionsPriceControl_FO!AE$15 -> 0 | CK58: =+W58*KeyAssumptionsPriceControl_FO!AF$15 -> 0 | CL58: =+X58*KeyAssumptionsPriceControl_FO!AG$15 -> 0 | CN58: 0.0005750839834 | CO58: 0.001738478882 | CP58: 0.007743368391 | CQ58: 0.01315994698 | CR58: 0.01882855356 | CS58: 0.02449716014 | CT58: 0.02449716014 | CU58: 0.02449716014 | CV58: 0.02449716014 | CW58: 0.02449716014
C59: Water main risk renewals | E59: Water | F59: Renewals | G59: Pipelines/network | H59: Capital Programs / Allocation | J59: Straight line | K59: Ongoing | L59: 90 | M59: 90 | O59: 0.62 | P59: 7.218263 | Q59: 11.7 | R59: 9 | S59: 9.3 | T59: 9.263821622 | U59: 9.26382163 | V59: 9.26382163 | W59: 6.251113681 | X59: 6.251113681 | Z59: 0 | AA59: 0 | AB59: 0 | AC59: 0 | AD59: 0 | AE59: 0 | AF59: 0 | AG59: 0 | AH59: 0 | AI59: 0 | AK59: 0 | AL59: 0 | AM59: 0 | AN59: 0 | AO59: 0 | AP59: 0 | AQ59: 0 | AR59: 0 | AS59: 0 | AT59: 0 | AV59: 0.62 | AW59: 7.218263 | AX59: 11.7 | AY59: 9 | AZ59: 9.3 | BA59: 9.263821622 | BB59: 9.26382163 | BC59: 9.26382163 | BD59: 6.251113681 | BE59: 6.251113681 | BG59: 0.003444444444 | BH59: 0.04699035 | BI59: 0.1520918111 | BJ59: 0.2670918111 | BK59: 0.3687584778 | BL59: 0.4718908201 | BM59: 0.5748221715 | BN59: 0.677753523 | BO59: 0.763947608 | BP59: 0.8334044267 | BR59: =+IF($K59="Ongoing",AV59,IF(RIGHT($K59,2)=RIGHT(BR$39,2),SUM($AV59:AV59),0)+IF(RIGHT(BR$39,2)>RIGHT($K59,2),AV59,0)) -> 0.62 | BS59: =+IF($K59="Ongoing",AW59,IF(RIGHT($K59,2)=RIGHT(BS$39,2),SUM($AV59:AW59),0)+IF(RIGHT(BS$39,2)>RIGHT($K59,2),AW59,0)) -> 7.218263 | BT59: =+IF($K59="Ongoing",AX59,IF(RIGHT($K59,2)=RIGHT(BT$39,2),SUM($AV59:AX59),0)+IF(RIGHT(BT$39,2)>RIGHT($K59,2),AX59,0)) -> 11.7 | BU59: =+IF($K59="Ongoing",AY59,IF(RIGHT($K59,2)=RIGHT(BU$39,2),SUM($AV59:AY59),0)+IF(RIGHT(BU$39,2)>RIGHT($K59,2),AY59,0)) -> 9 | BV59: =+IF($K59="Ongoing",AZ59,IF(RIGHT($K59,2)=RIGHT(BV$39,2),SUM($AV59:AZ59),0)+IF(RIGHT(BV$39,2)>RIGHT($K59,2),AZ59,0)) -> 9.3 | BW59: =+IF($K59="Ongoing",BA59,IF(RIGHT($K59,2)=RIGHT(BW$39,2),SUM($AV59:BA59),0)+IF(RIGHT(BW$39,2)>RIGHT($K59,2),BA59,0)) -> 9.263821622 | BX59: =+IF($K59="Ongoing",BB59,IF(RIGHT($K59,2)=RIGHT(BX$39,2),SUM($AV59:BB59),0)+IF(RIGHT(BX$39,2)>RIGHT($K59,2),BB59,0)) -> 9.26382163 | BY59: =+IF($K59="Ongoing",BC59,IF(RIGHT($K59,2)=RIGHT(BY$39,2),SUM($AV59:BC59),0)+IF(RIGHT(BY$39,2)>RIGHT($K59,2),BC59,0)) -> 9.26382163 | BZ59: =+IF($K59="Ongoing",BD59,IF(RIGHT($K59,2)=RIGHT(BZ$39,2),SUM($AV59:BD59),0)+IF(RIGHT(BZ$39,2)>RIGHT($K59,2),BD59,0)) -> 6.251113681 | CA59: =+IF($K59="Ongoing",BE59,IF(RIGHT($K59,2)=RIGHT(CA$39,2),SUM($AV59:BE59),0)+IF(RIGHT(CA$39,2)>RIGHT($K59,2),BE59,0)) -> 6.251113681 | CC59: =+O59*KeyAssumptionsPriceControl_FO!X$15 -> 0.63426 | CD59: =+P59*KeyAssumptionsPriceControl_FO!Y$15 -> 7.554121559 | CE59: =+Q59*KeyAssumptionsPriceControl_FO!Z$15 -> 12.52601025 | CF59: =+R59*KeyAssumptionsPriceControl_FO!AA$15 -> 9.857006531 | CG59: =+S59*KeyAssumptionsPriceControl_FO!AB$15 -> 10.4198416 | CH59: =+T59*KeyAssumptionsPriceControl_FO!AC$15 -> 10.61803093 | CI59: =+U59*KeyAssumptionsPriceControl_FO!AD$15 -> 10.86224565 | CJ59: =+V59*KeyAssumptionsPriceControl_FO!AE$15 -> 11.1120773 | CK59: =+W59*KeyAssumptionsPriceControl_FO!AF$15 -> 7.670754797 | CL59: =+X59*KeyAssumptionsPriceControl_FO!AG$15 -> 7.847182157 | CN59: 0.003523666667 | CO59: 0.04901467533 | CP59: 0.1605709632 | CQ59: 0.2849210564 | CR59: 0.3975702127 | CS59: 0.5144472824 | CT59: 0.6337821523 | CU59: 0.7558617243 | CV59: 0.8602107915 | CW59: 0.9464215524
C60: Sewer main risk renewals | E60: Sewerage | F60: Renewals | G60: Pipelines/network | H60: Capital Programs / Allocation | J60: Straight line | K60: Ongoing | L60: 80 | M60: 80 | O60: 3.129131239 | P60: 3.119131239 | Q60: 3.119131239 | R60: 3.089131239 | S60: 3.089131239 | T60: 3.574399262 | U60: 3.574399262 | V60: 3.574399262 | W60: 3.574399262 | X60: 3.574399262 | Z60: 0 | AA60: 0 | AB60: 0 | AC60: 0 | AD60: 0 | AE60: 0 | AF60: 0 | AG60: 0 | AH60: 0 | AI60: 0 | AK60: 0 | AL60: 0 | AM60: 0 | AN60: 0 | AO60: 0 | AP60: 0 | AQ60: 0 | AR60: 0 | AS60: 0 | AT60: 0 | AV60: 3.129131239 | AW60: 3.119131239 | AX60: 3.119131239 | AY60: 3.089131239 | AZ60: 3.089131239 | BA60: 3.574399262 | BB60: 3.574399262 | BC60: 3.574399262 | BD60: 3.574399262 | BE60: 3.574399262 | BG60: 0.01955707024 | BH60: 0.05860871073 | BI60: 0.09759785121 | BJ60: 0.1363994917 | BK60: 0.1750136322 | BL60: 0.2166606978 | BM60: 0.2613406886 | BN60: 0.3060206794 | BO60: 0.3507006701 | BP60: 0.3953806609 | BR60: =+IF($K60="Ongoing",AV60,IF(RIGHT($K60,2)=RIGHT(BR$39,2),SUM($AV60:AV60),0)+IF(RIGHT(BR$39,2)>RIGHT($K60,2),AV60,0)) -> 3.129131239 | BS60: =+IF($K60="Ongoing",AW60,IF(RIGHT($K60,2)=RIGHT(BS$39,2),SUM($AV60:AW60),0)+IF(RIGHT(BS$39,2)>RIGHT($K60,2),AW60,0)) -> 3.119131239 | BT60: =+IF($K60="Ongoing",AX60,IF(RIGHT($K60,2)=RIGHT(BT$39,2),SUM($AV60:AX60),0)+IF(RIGHT(BT$39,2)>RIGHT($K60,2),AX60,0)) -> 3.119131239 | BU60: =+IF($K60="Ongoing",AY60,IF(RIGHT($K60,2)=RIGHT(BU$39,2),SUM($AV60:AY60),0)+IF(RIGHT(BU$39,2)>RIGHT($K60,2),AY60,0)) -> 3.089131239 | BV60: =+IF($K60="Ongoing",AZ60,IF(RIGHT($K60,2)=RIGHT(BV$39,2),SUM($AV60:AZ60),0)+IF(RIGHT(BV$39,2)>RIGHT($K60,2),AZ60,0)) -> 3.089131239 | BW60: =+IF($K60="Ongoing",BA60,IF(RIGHT($K60,2)=RIGHT(BW$39,2),SUM($AV60:BA60),0)+IF(RIGHT(BW$39,2)>RIGHT($K60,2),BA60,0)) -> 3.574399262 | BX60: =+IF($K60="Ongoing",BB60,IF(RIGHT($K60,2)=RIGHT(BX$39,2),SUM($AV60:BB60),0)+IF(RIGHT(BX$39,2)>RIGHT($K60,2),BB60,0)) -> 3.574399262 | BY60: =+IF($K60="Ongoing",BC60,IF(RIGHT($K60,2)=RIGHT(BY$39,2),SUM($AV60:BC60),0)+IF(RIGHT(BY$39,2)>RIGHT($K60,2),BC60,0)) -> 3.574399262 | BZ60: =+IF($K60="Ongoing",BD60,IF(RIGHT($K60,2)=RIGHT(BZ$39,2),SUM($AV60:BD60),0)+IF(RIGHT(BZ$39,2)>RIGHT($K60,2),BD60,0)) -> 3.574399262 | CA60: =+IF($K60="Ongoing",BE60,IF(RIGHT($K60,2)=RIGHT(CA$39,2),SUM($AV60:BE60),0)+IF(RIGHT(CA$39,2)>RIGHT($K60,2),BE60,0)) -> 3.574399262 | CC60: =+O60*KeyAssumptionsPriceControl_FO!X$15 -> 3.201101257 | CD60: =+P60*KeyAssumptionsPriceControl_FO!Y$15 -> 3.264261296 | CE60: =+Q60*KeyAssumptionsPriceControl_FO!Z$15 -> 3.339339306 | CF60: =+R60*KeyAssumptionsPriceControl_FO!AA$15 -> 3.383287422 | CG60: =+S60*KeyAssumptionsPriceControl_FO!AB$15 -> 3.461103032 | CH60: =+T60*KeyAssumptionsPriceControl_FO!AC$15 -> 4.096914155 | CI60: =+U60*KeyAssumptionsPriceControl_FO!AD$15 -> 4.191143181 | CJ60: =+V60*KeyAssumptionsPriceControl_FO!AE$15 -> 4.287539474 | CK60: =+W60*KeyAssumptionsPriceControl_FO!AF$15 -> 4.386152882 | CL60: =+X60*KeyAssumptionsPriceControl_FO!AG$15 -> 4.487034398 | CN60: 0.02000688286 | CO60: 0.06041539882 | CP60: 0.1016879026 | CQ60: 0.1437043196 | CR60: 0.18648176 | CS60: 0.2337193674 | CT60: 0.2855197257 | CU60: 0.3385114923 | CV60: 0.3927220696 | CW60: 0.44817949
C61: Sewer KPI renewals | E61: Sewerage | F61: Renewals | G61: Pipelines/network | H61: Capital Programs / Allocation | J61: Straight line | K61: Ongoing | L61: 80 | M61: 80 | O61: 10.083 | P61: 10.878 | Q61: 11.276 | R61: 13.289 | S61: 10.597 | T61: 7.597038404 | U61: 7.597038404 | V61: 7.597038404 | W61: 7.597038404 | X61: 7.597038404 | Z61: 0 | AA61: 0 | AB61: 0 | AC61: 0 | AD61: 0 | AE61: 0 | AF61: 0 | AG61: 0 | AH61: 0 | AI61: 0 | AK61: 0 | AL61: 0 | AM61: 0 | AN61: 0 | AO61: 0 | AP61: 0 | AQ61: 0 | AR61: 0 | AS61: 0 | AT61: 0 | AV61: 10.083 | AW61: 10.878 | AX61: 11.276 | AY61: 13.289 | AZ61: 10.597 | BA61: 7.597038404 | BB61: 7.597038404 | BC61: 7.597038404 | BD61: 7.597038404 | BE61: 7.597038404 | BG61: 0.06301875 | BH61: 0.194025 | BI61: 0.3324875 | BJ61: 0.48601875 | BK61: 0.63530625 | BL61: 0.74901899 | BM61: 0.8439819701 | BN61: 0.9389449501 | BO61: 1.03390793 | BP61: 1.12887091 | BR61: =+IF($K61="Ongoing",AV61,IF(RIGHT($K61,2)=RIGHT(BR$39,2),SUM($AV61:AV61),0)+IF(RIGHT(BR$39,2)>RIGHT($K61,2),AV61,0)) -> 10.083 | BS61: =+IF($K61="Ongoing",AW61,IF(RIGHT($K61,2)=RIGHT(BS$39,2),SUM($AV61:AW61),0)+IF(RIGHT(BS$39,2)>RIGHT($K61,2),AW61,0)) -> 10.878 | BT61: =+IF($K61="Ongoing",AX61,IF(RIGHT($K61,2)=RIGHT(BT$39,2),SUM($AV61:AX61),0)+IF(RIGHT(BT$39,2)>RIGHT($K61,2),AX61,0)) -> 11.276 | BU61: =+IF($K61="Ongoing",AY61,IF(RIGHT($K61,2)=RIGHT(BU$39,2),SUM($AV61:AY61),0)+IF(RIGHT(BU$39,2)>RIGHT($K61,2),AY61,0)) -> 13.289 | BV61: =+IF($K61="Ongoing",AZ61,IF(RIGHT($K61,2)=RIGHT(BV$39,2),SUM($AV61:AZ61),0)+IF(RIGHT(BV$39,2)>RIGHT($K61,2),AZ61,0)) -> 10.597 | BW61: =+IF($K61="Ongoing",BA61,IF(RIGHT($K61,2)=RIGHT(BW$39,2),SUM($AV61:BA61),0)+IF(RIGHT(BW$39,2)>RIGHT($K61,2),BA61,0)) -> 7.597038404 | BX61: =+IF($K61="Ongoing",BB61,IF(RIGHT($K61,2)=RIGHT(BX$39,2),SUM($AV61:BB61),0)+IF(RIGHT(BX$39,2)>RIGHT($K61,2),BB61,0)) -> 7.597038404 | BY61: =+IF($K61="Ongoing",BC61,IF(RIGHT($K61,2)=RIGHT(BY$39,2),SUM($AV61:BC61),0)+IF(RIGHT(BY$39,2)>RIGHT($K61,2),BC61,0)) -> 7.597038404 | BZ61: =+IF($K61="Ongoing",BD61,IF(RIGHT($K61,2)=RIGHT(BZ$39,2),SUM($AV61:BD61),0)+IF(RIGHT(BZ$39,2)>RIGHT($K61,2),BD61,0)) -> 7.597038404 | CA61: =+IF($K61="Ongoing",BE61,IF(RIGHT($K61,2)=RIGHT(CA$39,2),SUM($AV61:BE61),0)+IF(RIGHT(CA$39,2)>RIGHT($K61,2),BE61,0)) -> 7.597038404 | CC61: =+O61*KeyAssumptionsPriceControl_FO!X$15 -> 10.314909 | CD61: =+P61*KeyAssumptionsPriceControl_FO!Y$15 -> 11.38414246 | CE61: =+Q61*KeyAssumptionsPriceControl_FO!Z$15 -> 12.07207621 | CF61: =+R61*KeyAssumptionsPriceControl_FO!AA$15 -> 14.55441775 | CG61: =+S61*KeyAssumptionsPriceControl_FO!AB$15 -> 11.87301736 | CH61: =+T61*KeyAssumptionsPriceControl_FO!AC$15 -> 8.707593051 | CI61: =+U61*KeyAssumptionsPriceControl_FO!AD$15 -> 8.907867691 | CJ61: =+V61*KeyAssumptionsPriceControl_FO!AE$15 -> 9.112748648 | CK61: =+W61*KeyAssumptionsPriceControl_FO!AF$15 -> 9.322341867 | CL61: =+X61*KeyAssumptionsPriceControl_FO!AG$15 -> 9.53675573 | CN61: 0.06446818125 | CO61: 0.2000872529 | CP61: 0.3466886196 | CQ61: 0.5131042068 | CR61: 0.6782756763 | CS61: 0.8069044914 | CT61: 0.917001121 | CU61: 1.029629973 | CV61: 1.144849289 | CW61: 1.262718649
C62: Water KPI renewals | E62: Water | F62: Renewals | G62: Pipelines/network | H62: Capital Programs / Allocation | J62: Straight line | K62: Ongoing | L62: 90 | M62: 90 | O62: 16.2 | P62: 16.9 | Q62: 18.5 | R62: 17.2 | S62: 15.3 | T62: 14.42025001 | U62: 14.42014788 | V62: 14.42014788 | W62: 14.42014788 | X62: 14.42014788 | Z62: 0 | AA62: 0 | AB62: 0 | AC62: 0 | AD62: 0 | AE62: 0 | AF62: 0 | AG62: 0 | AH62: 0 | AI62: 0 | AK62: 0 | AL62: 0 | AM62: 0 | AN62: 0 | AO62: 0 | AP62: 0 | AQ62: 0 | AR62: 0 | AS62: 0 | AT62: 0 | AV62: 16.2 | AW62: 16.9 | AX62: 18.5 | AY62: 17.2 | AZ62: 15.3 | BA62: 14.42025001 | BB62: 14.42014788 | BC62: 14.42014788 | BD62: 14.42014788 | BE62: 14.42014788 | BG62: 0.09 | BH62: 0.2738888889 | BI62: 0.4705555556 | BJ62: 0.6688888889 | BK62: 0.8494444444 | BL62: 1.014556944 | BM62: 1.174781377 | BN62: 1.335005243 | BO62: 1.495229108 | BP62: 1.655452973 | BR62: =+IF($K62="Ongoing",AV62,IF(RIGHT($K62,2)=RIGHT(BR$39,2),SUM($AV62:AV62),0)+IF(RIGHT(BR$39,2)>RIGHT($K62,2),AV62,0)) -> 16.2 | BS62: =+IF($K62="Ongoing",AW62,IF(RIGHT($K62,2)=RIGHT(BS$39,2),SUM($AV62:AW62),0)+IF(RIGHT(BS$39,2)>RIGHT($K62,2),AW62,0)) -> 16.9 | BT62: =+IF($K62="Ongoing",AX62,IF(RIGHT($K62,2)=RIGHT(BT$39,2),SUM($AV62:AX62),0)+IF(RIGHT(BT$39,2)>RIGHT($K62,2),AX62,0)) -> 18.5 | BU62: =+IF($K62="Ongoing",AY62,IF(RIGHT($K62,2)=RIGHT(BU$39,2),SUM($AV62:AY62),0)+IF(RIGHT(BU$39,2)>RIGHT($K62,2),AY62,0)) -> 17.2 | BV62: =+IF($K62="Ongoing",AZ62,IF(RIGHT($K62,2)=RIGHT(BV$39,2),SUM($AV62:AZ62),0)+IF(RIGHT(BV$39,2)>RIGHT($K62,2),AZ62,0)) -> 15.3 | BW62: =+IF($K62="Ongoing",BA62,IF(RIGHT($K62,2)=RIGHT(BW$39,2),SUM($AV62:BA62),0)+IF(RIGHT(BW$39,2)>RIGHT($K62,2),BA62,0)) -> 14.42025001 | BX62: =+IF($K62="Ongoing",BB62,IF(RIGHT($K62,2)=RIGHT(BX$39,2),SUM($AV62:BB62),0)+IF(RIGHT(BX$39,2)>RIGHT($K62,2),BB62,0)) -> 14.42014788 | BY62: =+IF($K62="Ongoing",BC62,IF(RIGHT($K62,2)=RIGHT(BY$39,2),SUM($AV62:BC62),0)+IF(RIGHT(BY$39,2)>RIGHT($K62,2),BC62,0)) -> 14.42014788 | BZ62: =+IF($K62="Ongoing",BD62,IF(RIGHT($K62,2)=RIGHT(BZ$39,2),SUM($AV62:BD62),0)+IF(RIGHT(BZ$39,2)>RIGHT($K62,2),BD62,0)) -> 14.42014788 | CA62: =+IF($K62="Ongoing",BE62,IF(RIGHT($K62,2)=RIGHT(CA$39,2),SUM($AV62:BE62),0)+IF(RIGHT(CA$39,2)>RIGHT($K62,2),BE62,0)) -> 14.42014788 | CC62: =+O62*KeyAssumptionsPriceControl_FO!X$15 -> 16.5726 | CD62: =+P62*KeyAssumptionsPriceControl_FO!Y$15 -> 17.6863401 | CE62: =+Q62*KeyAssumptionsPriceControl_FO!Z$15 -> 19.80608459 | CF62: =+R62*KeyAssumptionsPriceControl_FO!AA$15 -> 18.8378347 | CG62: =+S62*KeyAssumptionsPriceControl_FO!AB$15 -> 17.14232006 | CH62: =+T62*KeyAssumptionsPriceControl_FO!AC$15 -> 16.5282393 | CI62: =+U62*KeyAssumptionsPriceControl_FO!AD$15 -> 16.90826906 | CJ62: =+V62*KeyAssumptionsPriceControl_FO!AE$15 -> 17.29715925 | CK62: =+W62*KeyAssumptionsPriceControl_FO!AF$15 -> 17.69499391 | CL62: =+X62*KeyAssumptionsPriceControl_FO!AG$15 -> 18.10197877 | CN62: 0.09207 | CO62: 0.282397445 | CP62: 0.4906886933 | CQ62: 0.7053771338 | CR62: 0.9052668825 | CS62: 1.092325546 | CT62: 1.278083925 | CU62: 1.468114083 | CV62: 1.662514934 | CW62: 1.861387004
C63: Water property service connection renewals | E63: Water | F63: Renewals | G63: Pipelines/network | H63: Capital Programs / Allocation | J63: Straight line | K63: Ongoing | L63: 90 | M63: 90 | O63: 1.7 | P63: 1.39 | Q63: 1.57 | R63: 1.46 | S63: 1.46 | T63: 1.460397413 | U63: 1.460397413 | V63: 1.460397413 | W63: 2.021025879 | X63: 1.971025879 | Z63: 0 | AA63: 0 | AB63: 0 | AC63: 0 | AD63: 0 | AE63: 0 | AF63: 0 | AG63: 0 | AH63: 0 | AI63: 0 | AK63: 0 | AL63: 0 | AM63: 0 | AN63: 0 | AO63: 0 | AP63: 0 | AQ63: 0 | AR63: 0 | AS63: 0 | AT63: 0 | AV63: 1.7 | AW63: 1.39 | AX63: 1.57 | AY63: 1.46 | AZ63: 1.46 | BA63: 1.460397413 | BB63: 1.460397413 | BC63: 1.460397413 | BD63: 2.021025879 | BE63: 1.971025879 | BG63: 0.009444444444 | BH63: 0.02661111111 | BI63: 0.04305555556 | BJ63: 0.05988888889 | BK63: 0.07611111111 | BL63: 0.09233554118 | BM63: 0.1085621791 | BN63: 0.124788817 | BO63: 0.1441300575 | BP63: 0.1663081228 | BR63: =+IF($K63="Ongoing",AV63,IF(RIGHT($K63,2)=RIGHT(BR$39,2),SUM($AV63:AV63),0)+IF(RIGHT(BR$39,2)>RIGHT($K63,2),AV63,0)) -> 1.7 | BS63: =+IF($K63="Ongoing",AW63,IF(RIGHT($K63,2)=RIGHT(BS$39,2),SUM($AV63:AW63),0)+IF(RIGHT(BS$39,2)>RIGHT($K63,2),AW63,0)) -> 1.39 | BT63: =+IF($K63="Ongoing",AX63,IF(RIGHT($K63,2)=RIGHT(BT$39,2),SUM($AV63:AX63),0)+IF(RIGHT(BT$39,2)>RIGHT($K63,2),AX63,0)) -> 1.57 | BU63: =+IF($K63="Ongoing",AY63,IF(RIGHT($K63,2)=RIGHT(BU$39,2),SUM($AV63:AY63),0)+IF(RIGHT(BU$39,2)>RIGHT($K63,2),AY63,0)) -> 1.46 | BV63: =+IF($K63="Ongoing",AZ63,IF(RIGHT($K63,2)=RIGHT(BV$39,2),SUM($AV63:AZ63),0)+IF(RIGHT(BV$39,2)>RIGHT($K63,2),AZ63,0)) -> 1.46 | BW63: =+IF($K63="Ongoing",BA63,IF(RIGHT($K63,2)=RIGHT(BW$39,2),SUM($AV63:BA63),0)+IF(RIGHT(BW$39,2)>RIGHT($K63,2),BA63,0)) -> 1.460397413 | BX63: =+IF($K63="Ongoing",BB63,IF(RIGHT($K63,2)=RIGHT(BX$39,2),SUM($AV63:BB63),0)+IF(RIGHT(BX$39,2)>RIGHT($K63,2),BB63,0)) -> 1.460397413 | BY63: =+IF($K63="Ongoing",BC63,IF(RIGHT($K63,2)=RIGHT(BY$39,2),SUM($AV63:BC63),0)+IF(RIGHT(BY$39,2)>RIGHT($K63,2),BC63,0)) -> 1.460397413 | BZ63: =+IF($K63="Ongoing",BD63,IF(RIGHT($K63,2)=RIGHT(BZ$39,2),SUM($AV63:BD63),0)+IF(RIGHT(BZ$39,2)>RIGHT($K63,2),BD63,0)) -> 2.021025879 | CA63: =+IF($K63="Ongoing",BE63,IF(RIGHT($K63,2)=RIGHT(CA$39,2),SUM($AV63:BE63),0)+IF(RIGHT(CA$39,2)>RIGHT($K63,2),BE63,0)) -> 1.971025879 | CC63: =+O63*KeyAssumptionsPriceControl_FO!X$15 -> 1.7391 | CD63: =+P63*KeyAssumptionsPriceControl_FO!Y$15 -> 1.45467531 | CE63: =+Q63*KeyAssumptionsPriceControl_FO!Z$15 -> 1.680840692 | CF63: =+R63*KeyAssumptionsPriceControl_FO!AA$15 -> 1.599025504 | CG63: =+S63*KeyAssumptionsPriceControl_FO!AB$15 -> 1.63580309 | CH63: =+T63*KeyAssumptionsPriceControl_FO!AC$15 -> 1.673882069 | CI63: =+U63*KeyAssumptionsPriceControl_FO!AD$15 -> 1.712381357 | CJ63: =+V63*KeyAssumptionsPriceControl_FO!AE$15 -> 1.751766128 | CK63: =+W63*KeyAssumptionsPriceControl_FO!AF$15 -> 2.480005123 | CL63: =+X63*KeyAssumptionsPriceControl_FO!AG$15 -> 2.474278968 | CN63: 0.009661666667 | CO63: 0.02740486283 | CP63: 0.04482439618 | CQ63: 0.06304587505 | CR63: 0.08101714501 | CS63: 0.09940428479 | CT63: 0.1182168594 | CU63: 0.1374621232 | CV63: 0.1609719635 | CW63: 0.188495764
C64: Water meter replacement program | E64: Water | F64: Renewals | G64: Pipelines/network | H64: Capital Programs / Allocation | J64: Straight line | K64: Ongoing | L64: 10 | M64: 10 | O64: 0.4 | P64: 0.4 | Q64: 0.4 | R64: 0.45 | S64: 0.5 | T64: 1.685073938 | U64: 1.685073938 | V64: 1.685073938 | W64: 1.685073938 | X64: 1.685073938 | Z64: 0 | AA64: 0 | AB64: 0 | AC64: 0 | AD64: 0 | AE64: 0 | AF64: 0 | AG64: 0 | AH64: 0 | AI64: 0 | AK64: 0 | AL64: 0 | AM64: 0 | AN64: 0 | AO64: 0 | AP64: 0 | AQ64: 0 | AR64: 0 | AS64: 0 | AT64: 0 | AV64: 0.4 | AW64: 0.4 | AX64: 0.4 | AY64: 0.45 | AZ64: 0.5 | BA64: 1.685073938 | BB64: 1.685073938 | BC64: 1.685073938 | BD64: 1.685073938 | BE64: 1.685073938 | BG64: 0.02 | BH64: 0.06 | BI64: 0.1 | BJ64: 0.1425 | BK64: 0.19 | BL64: 0.2992536969 | BM64: 0.4677610907 | BN64: 0.6362684844 | BO64: 0.8047758782 | BP64: 0.973283272 | BR64: =+IF($K64="Ongoing",AV64,IF(RIGHT($K64,2)=RIGHT(BR$39,2),SUM($AV64:AV64),0)+IF(RIGHT(BR$39,2)>RIGHT($K64,2),AV64,0)) -> 0.4 | BS64: =+IF($K64="Ongoing",AW64,IF(RIGHT($K64,2)=RIGHT(BS$39,2),SUM($AV64:AW64),0)+IF(RIGHT(BS$39,2)>RIGHT($K64,2),AW64,0)) -> 0.4 | BT64: =+IF($K64="Ongoing",AX64,IF(RIGHT($K64,2)=RIGHT(BT$39,2),SUM($AV64:AX64),0)+IF(RIGHT(BT$39,2)>RIGHT($K64,2),AX64,0)) -> 0.4 | BU64: =+IF($K64="Ongoing",AY64,IF(RIGHT($K64,2)=RIGHT(BU$39,2),SUM($AV64:AY64),0)+IF(RIGHT(BU$39,2)>RIGHT($K64,2),AY64,0)) -> 0.45 | BV64: =+IF($K64="Ongoing",AZ64,IF(RIGHT($K64,2)=RIGHT(BV$39,2),SUM($AV64:AZ64),0)+IF(RIGHT(BV$39,2)>RIGHT($K64,2),AZ64,0)) -> 0.5 | BW64: =+IF($K64="Ongoing",BA64,IF(RIGHT($K64,2)=RIGHT(BW$39,2),SUM($AV64:BA64),0)+IF(RIGHT(BW$39,2)>RIGHT($K64,2),BA64,0)) -> 1.685073938 | BX64: =+IF($K64="Ongoing",BB64,IF(RIGHT($K64,2)=RIGHT(BX$39,2),SUM($AV64:BB64),0)+IF(RIGHT(BX$39,2)>RIGHT($K64,2),BB64,0)) -> 1.685073938 | BY64: =+IF($K64="Ongoing",BC64,IF(RIGHT($K64,2)=RIGHT(BY$39,2),SUM($AV64:BC64),0)+IF(RIGHT(BY$39,2)>RIGHT($K64,2),BC64,0)) -> 1.685073938 | BZ64: =+IF($K64="Ongoing",BD64,IF(RIGHT($K64,2)=RIGHT(BZ$39,2),SUM($AV64:BD64),0)+IF(RIGHT(BZ$39,2)>RIGHT($K64,2),BD64,0)) -> 1.685073938 | CA64: =+IF($K64="Ongoing",BE64,IF(RIGHT($K64,2)=RIGHT(CA$39,2),SUM($AV64:BE64),0)+IF(RIGHT(CA$39,2)>RIGHT($K64,2),BE64,0)) -> 1.685073938 | CC64: =+O64*KeyAssumptionsPriceControl_FO!X$15 -> 0.4092 | CD64: =+P64*KeyAssumptionsPriceControl_FO!Y$15 -> 0.4186116 | CE64: =+Q64*KeyAssumptionsPriceControl_FO!Z$15 -> 0.4282396668 | CF64: =+R64*KeyAssumptionsPriceControl_FO!AA$15 -> 0.4928503265 | CG64: =+S64*KeyAssumptionsPriceControl_FO!AB$15 -> 0.5602065378 | CH64: =+T64*KeyAssumptionsPriceControl_FO!AC$15 -> 1.931402387 | CI64: =+U64*KeyAssumptionsPriceControl_FO!AD$15 -> 1.975824642 | CJ64: =+V64*KeyAssumptionsPriceControl_FO!AE$15 -> 2.021268609 | CK64: =+W64*KeyAssumptionsPriceControl_FO!AF$15 -> 2.067757787 | CL64: =+X64*KeyAssumptionsPriceControl_FO!AG$15 -> 2.115316216 | CN64: 0.02046 | CO64: 0.06185058 | CP64: 0.1041931433 | CQ64: 0.150247643 | CR64: 0.2029004862 | CS64: 0.3274809325 | CT64: 0.522842284 | CU64: 0.7226969465 | CV64: 0.9271482664 | CW64: 1.136301967
C65: Meter services and meter procurement | E65: Water | F65: Growth | G65: Pipelines/network | H65: Capital Programs / Allocation | J65: Straight line | K65: Ongoing | L65: 15 | M65: 15 | O65: 8.085908 | P65: 7.954871 | Q65: 8.017148 | R65: 8.159114 | S65: 8.285704 | T65: 8.415693 | U65: 8.549176 | V65: 8.686249 | W65: 8.827011 | X65: 0 | Z65: 0 | AA65: 0 | AB65: 0 | AC65: 0 | AD65: 0 | AE65: 0 | AF65: 0 | AG65: 0 | AH65: 0 | AI65: 0 | AK65: 0 | AL65: 0 | AM65: 0 | AN65: 0 | AO65: 0 | AP65: 0 | AQ65: 0 | AR65: 0 | AS65: 0 | AT65: 0 | AV65: 8.085908 | AW65: 7.954871 | AX65: 8.017148 | AY65: 8.159114 | AZ65: 8.285704 | BA65: 8.415693 | BB65: 8.549176 | BC65: 8.686249 | BD65: 8.827011 | BE65: 0 | BG65: 0.2695302667 | BH65: 0.8042229 | BI65: 1.336623533 | BJ65: 1.875832267 | BK65: 2.423992867 | BL65: 2.9807061 | BM65: 3.546201733 | BN65: 4.1207159 | BO65: 4.704491233 | BP65: 4.998724933 | BR65: =+IF($K65="Ongoing",AV65,IF(RIGHT($K65,2)=RIGHT(BR$39,2),SUM($AV65:AV65),0)+IF(RIGHT(BR$39,2)>RIGHT($K65,2),AV65,0)) -> 8.085908 | BS65: =+IF($K65="Ongoing",AW65,IF(RIGHT($K65,2)=RIGHT(BS$39,2),SUM($AV65:AW65),0)+IF(RIGHT(BS$39,2)>RIGHT($K65,2),AW65,0)) -> 7.954871 | BT65: =+IF($K65="Ongoing",AX65,IF(RIGHT($K65,2)=RIGHT(BT$39,2),SUM($AV65:AX65),0)+IF(RIGHT(BT$39,2)>RIGHT($K65,2),AX65,0)) -> 8.017148 | BU65: =+IF($K65="Ongoing",AY65,IF(RIGHT($K65,2)=RIGHT(BU$39,2),SUM($AV65:AY65),0)+IF(RIGHT(BU$39,2)>RIGHT($K65,2),AY65,0)) -> 8.159114 | BV65: =+IF($K65="Ongoing",AZ65,IF(RIGHT($K65,2)=RIGHT(BV$39,2),SUM($AV65:AZ65),0)+IF(RIGHT(BV$39,2)>RIGHT($K65,2),AZ65,0)) -> 8.285704 | BW65: =+IF($K65="Ongoing",BA65,IF(RIGHT($K65,2)=RIGHT(BW$39,2),SUM($AV65:BA65),0)+IF(RIGHT(BW$39,2)>RIGHT($K65,2),BA65,0)) -> 8.415693 | BX65: =+IF($K65="Ongoing",BB65,IF(RIGHT($K65,2)=RIGHT(BX$39,2),SUM($AV65:BB65),0)+IF(RIGHT(BX$39,2)>RIGHT($K65,2),BB65,0)) -> 8.549176 | BY65: =+IF($K65="Ongoing",BC65,IF(RIGHT($K65,2)=RIGHT(BY$39,2),SUM($AV65:BC65),0)+IF(RIGHT(BY$39,2)>RIGHT($K65,2),BC65,0)) -> 8.686249 | BZ65: =+IF($K65="Ongoing",BD65,IF(RIGHT($K65,2)=RIGHT(BZ$39,2),SUM($AV65:BD65),0)+IF(RIGHT(BZ$39,2)>RIGHT($K65,2),BD65,0)) -> 8.827011 | CA65: =+IF($K65="Ongoing",BE65,IF(RIGHT($K65,2)=RIGHT(CA$39,2),SUM($AV65:BE65),0)+IF(RIGHT(CA$39,2)>RIGHT($K65,2),BE65,0)) -> 0 | CC65: =+O65*KeyAssumptionsPriceControl_FO!X$15 -> 8.271883884 | CD65: =+P65*KeyAssumptionsPriceControl_FO!Y$15 -> 8.325003193 | CE65: =+Q65*KeyAssumptionsPriceControl_FO!Z$15 -> 8.583151971 | CF65: =+R65*KeyAssumptionsPriceControl_FO!AA$15 -> 8.936048887 | CG65: =+S65*KeyAssumptionsPriceControl_FO!AB$15 -> 9.283411102 | CH65: =+T65*KeyAssumptionsPriceControl_FO!AC$15 -> 9.645920685 | CI65: =+U65*KeyAssumptionsPriceControl_FO!AD$15 -> 10.02429165 | CJ65: =+V65*KeyAssumptionsPriceControl_FO!AE$15 -> 10.41927125 | CK65: =+W65*KeyAssumptionsPriceControl_FO!AF$15 -> 10.83164384 | CL65: =+X65*KeyAssumptionsPriceControl_FO!AG$15 -> 0 | CN65: 0.2757294628 | CO65: 0.828959032 | CP65: 1.392564204 | CQ65: 1.976537566 | CR65: 2.583852899 | CS65: 3.214830625 | CT65: 3.87050437 | CU65: 4.551956467 | CV65: 5.260320303 | CW65: 5.621375098
C66: Sewer hydraulic compliance | E66: Sewerage | F66: Renewals | G66: Treatment | H66: Capital Programs / Allocation | J66: Straight line | K66: Ongoing | L66: 80 | M66: 80 | O66: 3 | P66: 4 | Q66: 3.5 | R66: 5.35 | S66: 5.35 | T66: 2.042513864 | U66: 2.042513864 | V66: 2.042513864 | W66: 2.042513864 | X66: 2.042513864 | Z66: 0 | AA66: 0 | AB66: 0 | AC66: 0 | AD66: 0 | AE66: 0 | AF66: 0 | AG66: 0 | AH66: 0 | AI66: 0 | AK66: 0 | AL66: 0 | AM66: 0 | AN66: 0 | AO66: 0 | AP66: 0 | AQ66: 0 | AR66: 0 | AS66: 0 | AT66: 0 | AV66: 3 | AW66: 4 | AX66: 3.5 | AY66: 5.35 | AZ66: 5.35 | BA66: 2.042513864 | BB66: 2.042513864 | BC66: 2.042513864 | BD66: 2.042513864 | BE66: 2.042513864 | BG66: 0.01875 | BH66: 0.0625 | BI66: 0.109375 | BJ66: 0.1646875 | BK66: 0.2315625 | BL66: 0.2777657117 | BM66: 0.303297135 | BN66: 0.3288285583 | BO66: 0.3543599816 | BP66: 0.3798914049 | BR66: =+IF($K66="Ongoing",AV66,IF(RIGHT($K66,2)=RIGHT(BR$39,2),SUM($AV66:AV66),0)+IF(RIGHT(BR$39,2)>RIGHT($K66,2),AV66,0)) -> 3 | BS66: =+IF($K66="Ongoing",AW66,IF(RIGHT($K66,2)=RIGHT(BS$39,2),SUM($AV66:AW66),0)+IF(RIGHT(BS$39,2)>RIGHT($K66,2),AW66,0)) -> 4 | BT66: =+IF($K66="Ongoing",AX66,IF(RIGHT($K66,2)=RIGHT(BT$39,2),SUM($AV66:AX66),0)+IF(RIGHT(BT$39,2)>RIGHT($K66,2),AX66,0)) -> 3.5 | BU66: =+IF($K66="Ongoing",AY66,IF(RIGHT($K66,2)=RIGHT(BU$39,2),SUM($AV66:AY66),0)+IF(RIGHT(BU$39,2)>RIGHT($K66,2),AY66,0)) -> 5.35 | BV66: =+IF($K66="Ongoing",AZ66,IF(RIGHT($K66,2)=RIGHT(BV$39,2),SUM($AV66:AZ66),0)+IF(RIGHT(BV$39,2)>RIGHT($K66,2),AZ66,0)) -> 5.35 | BW66: =+IF($K66="Ongoing",BA66,IF(RIGHT($K66,2)=RIGHT(BW$39,2),SUM($AV66:BA66),0)+IF(RIGHT(BW$39,2)>RIGHT($K66,2),BA66,0)) -> 2.042513864 | BX66: =+IF($K66="Ongoing",BB66,IF(RIGHT($K66,2)=RIGHT(BX$39,2),SUM($AV66:BB66),0)+IF(RIGHT(BX$39,2)>RIGHT($K66,2),BB66,0)) -> 2.042513864 | BY66: =+IF($K66="Ongoing",BC66,IF(RIGHT($K66,2)=RIGHT(BY$39,2),SUM($AV66:BC66),0)+IF(RIGHT(BY$39,2)>RIGHT($K66,2),BC66,0)) -> 2.042513864 | BZ66: =+IF($K66="Ongoing",BD66,IF(RIGHT($K66,2)=RIGHT(BZ$39,2),SUM($AV66:BD66),0)+IF(RIGHT(BZ$39,2)>RIGHT($K66,2),BD66,0)) -> 2.042513864 | CA66: =+IF($K66="Ongoing",BE66,IF(RIGHT($K66,2)=RIGHT(CA$39,2),SUM($AV66:BE66),0)+IF(RIGHT(CA$39,2)>RIGHT($K66,2),BE66,0)) -> 2.042513864 | CC66: =+O66*KeyAssumptionsPriceControl_FO!X$15 -> 3.069 | CD66: =+P66*KeyAssumptionsPriceControl_FO!Y$15 -> 4.186116 | CE66: =+Q66*KeyAssumptionsPriceControl_FO!Z$15 -> 3.747097084 | CF66: =+R66*KeyAssumptionsPriceControl_FO!AA$15 -> 5.859442771 | CG66: =+S66*KeyAssumptionsPriceControl_FO!AB$15 -> 5.994209955 | CH66: =+T66*KeyAssumptionsPriceControl_FO!AC$15 -> 2.341093803 | CI66: =+U66*KeyAssumptionsPriceControl_FO!AD$15 -> 2.39493896 | CJ66: =+V66*KeyAssumptionsPriceControl_FO!AE$15 -> 2.450022556 | CK66: =+W66*KeyAssumptionsPriceControl_FO!AF$15 -> 2.506373075 | CL66: =+X66*KeyAssumptionsPriceControl_FO!AG$15 -> 2.564019656 | CN66: 0.01918125 | CO66: 0.064525725 | CP66: 0.1141083068 | CQ66: 0.1741491809 | CR66: 0.2482345104 | CS66: 0.3003301589 | CT66: 0.3299303637 | CU66: 0.3602113731 | CV66: 0.3911888458 | CW66: 0.4228788004
C67: Sewer growth program | E67: Sewerage | F67: Growth | G67: Pipelines/network | H67: Capital Programs / Allocation | J67: Straight line | K67: Ongoing | L67: 80 | M67: 80 | O67: 12.810015 | P67: 17.621631 | Q67: 16.337862 | R67: 6.93738 | S67: 11.789307 | T67: 7.112502 | U67: 5.007393 | V67: 2.981205 | W67: 2.931795 | X67: 2.694519 | Z67: 0 | AA67: 0 | AB67: 0 | AC67: 0 | AD67: 0 | AE67: 0 | AF67: 0 | AG67: 0 | AH67: 0 | AI67: 0 | AK67: 8.571996 | AL67: 8.018964 | AM67: 7.673319 | AN67: 7.535061 | AO67: 7.4313675 | AP67: 7.396803 | AQ67: 7.3622385 | AR67: 7.327674 | AS67: 7.2931095 | AT67: 7.258545 | AV67: 4.238019 | AW67: 9.602667 | AX67: 8.664543 | AY67: -0.597681 | AZ67: 4.3579395 | BA67: -0.284301 | BB67: -2.3548455 | BC67: -4.346469 | BD67: -4.3613145 | BE67: -4.564026 | BG67: 0.02648761875 | BH67: 0.1129919062 | BI67: 0.2271619687 | BJ67: 0.2775798562 | BK67: 0.3010814719 | BL67: 0.3265417125 | BM67: 0.3100470469 | BN67: 0.2681638313 | BO67: 0.2137401844 | BP67: 0.1579568063 | BR67: =+IF($K67="Ongoing",AV67,IF(RIGHT($K67,2)=RIGHT(BR$39,2),SUM($AV67:AV67),0)+IF(RIGHT(BR$39,2)>RIGHT($K67,2),AV67,0)) -> 4.238019 | BS67: =+IF($K67="Ongoing",AW67,IF(RIGHT($K67,2)=RIGHT(BS$39,2),SUM($AV67:AW67),0)+IF(RIGHT(BS$39,2)>RIGHT($K67,2),AW67,0)) -> 9.602667 | BT67: =+IF($K67="Ongoing",AX67,IF(RIGHT($K67,2)=RIGHT(BT$39,2),SUM($AV67:AX67),0)+IF(RIGHT(BT$39,2)>RIGHT($K67,2),AX67,0)) -> 8.664543 | BU67: =+IF($K67="Ongoing",AY67,IF(RIGHT($K67,2)=RIGHT(BU$39,2),SUM($AV67:AY67),0)+IF(RIGHT(BU$39,2)>RIGHT($K67,2),AY67,0)) -> -0.597681 | BV67: =+IF($K67="Ongoing",AZ67,IF(RIGHT($K67,2)=RIGHT(BV$39,2),SUM($AV67:AZ67),0)+IF(RIGHT(BV$39,2)>RIGHT($K67,2),AZ67,0)) -> 4.3579395 | BW67: =+IF($K67="Ongoing",BA67,IF(RIGHT($K67,2)=RIGHT(BW$39,2),SUM($AV67:BA67),0)+IF(RIGHT(BW$39,2)>RIGHT($K67,2),BA67,0)) -> -0.284301 | BX67: =+IF($K67="Ongoing",BB67,IF(RIGHT($K67,2)=RIGHT(BX$39,2),SUM($AV67:BB67),0)+IF(RIGHT(BX$39,2)>RIGHT($K67,2),BB67,0)) -> -2.3548455 | BY67: =+IF($K67="Ongoing",BC67,IF(RIGHT($K67,2)=RIGHT(BY$39,2),SUM($AV67:BC67),0)+IF(RIGHT(BY$39,2)>RIGHT($K67,2),BC67,0)) -> -4.346469 | BZ67: =+IF($K67="Ongoing",BD67,IF(RIGHT($K67,2)=RIGHT(BZ$39,2),SUM($AV67:BD67),0)+IF(RIGHT(BZ$39,2)>RIGHT($K67,2),BD67,0)) -> -4.3613145 | CA67: =+IF($K67="Ongoing",BE67,IF(RIGHT($K67,2)=RIGHT(CA$39,2),SUM($AV67:BE67),0)+IF(RIGHT(CA$39,2)>RIGHT($K67,2),BE67,0)) -> -4.564026 | CC67: =+O67*KeyAssumptionsPriceControl_FO!X$15 -> 13.10464534 | CD67: =+P67*KeyAssumptionsPriceControl_FO!Y$15 -> 18.44154787 | CE67: =+Q67*KeyAssumptionsPriceControl_FO!Z$15 -> 17.49130145 | CF67: =+R67*KeyAssumptionsPriceControl_FO!AA$15 -> 7.597977774 | CG67: =+S67*KeyAssumptionsPriceControl_FO!AB$15 -> 13.20889372 | CH67: =+T67*KeyAssumptionsPriceControl_FO!AC$15 -> 8.152225867 | CI67: =+U67*KeyAssumptionsPriceControl_FO!AD$15 -> 5.871392502 | CJ67: =+V67*KeyAssumptionsPriceControl_FO!AE$15 -> 3.575995064 | CK67: =+W67*KeyAssumptionsPriceControl_FO!AF$15 -> 3.597611835 | CL67: =+X67*KeyAssumptionsPriceControl_FO!AG$15 -> 3.382498303 | CN67: 0.08190403341 | CO67: 0.279067741 | CP67: 0.5036480492 | CQ67: 0.6604560444 | CR67: 0.7904989912 | CS67: 0.9240059886 | CT67: 1.011653603 | CU67: 1.070699776 | CV67: 1.115534819 | CW67: 1.159160507
C68: Water growth program | E68: Water | F68: Growth | G68: Pipelines/network | H68: Capital Programs / Allocation | J68: Straight line | K68: Ongoing | L68: 90 | M68: 90 | O68: 5.300528 | P68: 3.565077 | Q68: 3.625284 | R68: 3.826015 | S68: 3.771814 | T68: 2.518393 | U68: 2.677728 | V68: 2.532216 | W68: 2.776705 | X68: 2.341223 | Z68: 0 | AA68: 0 | AB68: 0 | AC68: 0 | AD68: 0 | AE68: 0 | AF68: 0 | AG68: 0 | AH68: 0 | AI68: 0 | AK68: 8.571996 | AL68: 8.018964 | AM68: 7.673319 | AN68: 7.535061 | AO68: 7.4313675 | AP68: 7.396803 | AQ68: 7.3622385 | AR68: 7.327674 | AS68: 7.2931095 | AT68: 7.258545 | AV68: -3.271468 | AW68: -4.453887 | AX68: -4.048035 | AY68: -3.709046 | AZ68: -3.6595535 | BA68: -4.87841 | BB68: -4.6845105 | BC68: -4.795458 | BD68: -4.5164045 | BE68: -4.917322 | BG68: -0.01817482222 | BH68: -0.06109346111 | BI68: -0.1083263611 | BJ68: -0.1514212556 | BK68: -0.1923579194 | BL68: -0.23979105 | BM68: -0.2929183861 | BN68: -0.3455848778 | BO68: -0.3973174472 | BP68: -0.4497270389 | BR68: =+IF($K68="Ongoing",AV68,IF(RIGHT($K68,2)=RIGHT(BR$39,2),SUM($AV68:AV68),0)+IF(RIGHT(BR$39,2)>RIGHT($K68,2),AV68,0)) -> -3.271468 | BS68: =+IF($K68="Ongoing",AW68,IF(RIGHT($K68,2)=RIGHT(BS$39,2),SUM($AV68:AW68),0)+IF(RIGHT(BS$39,2)>RIGHT($K68,2),AW68,0)) -> -4.453887 | BT68: =+IF($K68="Ongoing",AX68,IF(RIGHT($K68,2)=RIGHT(BT$39,2),SUM($AV68:AX68),0)+IF(RIGHT(BT$39,2)>RIGHT($K68,2),AX68,0)) -> -4.048035 | BU68: =+IF($K68="Ongoing",AY68,IF(RIGHT($K68,2)=RIGHT(BU$39,2),SUM($AV68:AY68),0)+IF(RIGHT(BU$39,2)>RIGHT($K68,2),AY68,0)) -> -3.709046 | BV68: =+IF($K68="Ongoing",AZ68,IF(RIGHT($K68,2)=RIGHT(BV$39,2),SUM($AV68:AZ68),0)+IF(RIGHT(BV$39,2)>RIGHT($K68,2),AZ68,0)) -> -3.6595535 | BW68: =+IF($K68="Ongoing",BA68,IF(RIGHT($K68,2)=RIGHT(BW$39,2),SUM($AV68:BA68),0)+IF(RIGHT(BW$39,2)>RIGHT($K68,2),BA68,0)) -> -4.87841 | BX68: =+IF($K68="Ongoing",BB68,IF(RIGHT($K68,2)=RIGHT(BX$39,2),SUM($AV68:BB68),0)+IF(RIGHT(BX$39,2)>RIGHT($K68,2),BB68,0)) -> -4.6845105 | BY68: =+IF($K68="Ongoing",BC68,IF(RIGHT($K68,2)=RIGHT(BY$39,2),SUM($AV68:BC68),0)+IF(RIGHT(BY$39,2)>RIGHT($K68,2),BC68,0)) -> -4.795458 | BZ68: =+IF($K68="Ongoing",BD68,IF(RIGHT($K68,2)=RIGHT(BZ$39,2),SUM($AV68:BD68),0)+IF(RIGHT(BZ$39,2)>RIGHT($K68,2),BD68,0)) -> -4.5164045 | CA68: =+IF($K68="Ongoing",BE68,IF(RIGHT($K68,2)=RIGHT(CA$39,2),SUM($AV68:BE68),0)+IF(RIGHT(CA$39,2)>RIGHT($K68,2),BE68,0)) -> -4.917322 | CC68: =+O68*KeyAssumptionsPriceControl_FO!X$15 -> 5.422440144 | CD68: =+P68*KeyAssumptionsPriceControl_FO!Y$15 -> 3.730956468 | CE68: =+Q68*KeyAssumptionsPriceControl_FO!Z$15 -> 3.881226031 | CF68: =+R68*KeyAssumptionsPriceControl_FO!AA$15 -> 4.190339427 | CG68: =+S68*KeyAssumptionsPriceControl_FO!AB$15 -> 4.225989724 | CH68: =+T68*KeyAssumptionsPriceControl_FO!AC$15 -> 2.886538177 | CI68: =+U68*KeyAssumptionsPriceControl_FO!AD$15 -> 3.139755977 | CJ68: =+V68*KeyAssumptionsPriceControl_FO!AE$15 -> 3.037426784 | CK68: =+W68*KeyAssumptionsPriceControl_FO!AF$15 -> 3.407300569 | CL68: =+X68*KeyAssumptionsPriceControl_FO!AG$15 -> 2.93899684 | CN68: 0.03012466747 | CO68: 0.08097687087 | CP68: 0.1232667736 | CQ68: 0.168108804 | CR68: 0.2148661881 | CS68: 0.254380232 | CT68: 0.287859644 | CU68: 0.322177326 | CV68: 0.3579813668 | CW68: 0.3932385747
C69: Recycled water growth program | E69: Recycled Water | F69: Growth | G69: Pipelines/network | H69: Capital Programs / Allocation | J69: Straight line | K69: Ongoing | L69: 90 | M69: 90 | O69: 5.506875 | P69: 3.428665 | Q69: 3.241685 | R69: 3.644773 | S69: 2.91787 | T69: 2.109639 | U69: 2.746288 | V69: 1.994899 | W69: 1.569101 | X69: 1.743389 | Z69: 0 | AA69: 0 | AB69: 0 | AC69: 0 | AD69: 0 | AE69: 0 | AF69: 0 | AG69: 0 | AH69: 0 | AI69: 0 | AK69: 7.1775 | AL69: 8.4225 | AM69: 8.895 | AN69: 9.085 | AO69: 8.93 | AP69: 8.6925 | AQ69: 8.4425 | AR69: 8.09 | AS69: 7.81 | AT69: 7.6025 | AV69: -1.670625 | AW69: -4.993835 | AX69: -5.653315 | AY69: -5.440227 | AZ69: -6.01213 | BA69: -6.582861 | BB69: -5.696212 | BC69: -6.095101 | BD69: -6.240899 | BE69: -5.859111 | BG69: -0.00928125 | BH69: -0.04630602778 | BI69: -0.1054568611 | BJ69: -0.16708765 | BK69: -0.2307118556 | BL69: -0.3006840278 | BM69: -0.3689011 | BN69: -0.4344083944 | BO69: -0.5029417278 | BP69: -0.5701640056 | BR69: =+IF($K69="Ongoing",AV69,IF(RIGHT($K69,2)=RIGHT(BR$39,2),SUM($AV69:AV69),0)+IF(RIGHT(BR$39,2)>RIGHT($K69,2),AV69,0)) -> -1.670625 | BS69: =+IF($K69="Ongoing",AW69,IF(RIGHT($K69,2)=RIGHT(BS$39,2),SUM($AV69:AW69),0)+IF(RIGHT(BS$39,2)>RIGHT($K69,2),AW69,0)) -> -4.993835 | BT69: =+IF($K69="Ongoing",AX69,IF(RIGHT($K69,2)=RIGHT(BT$39,2),SUM($AV69:AX69),0)+IF(RIGHT(BT$39,2)>RIGHT($K69,2),AX69,0)) -> -5.653315 | BU69: =+IF($K69="Ongoing",AY69,IF(RIGHT($K69,2)=RIGHT(BU$39,2),SUM($AV69:AY69),0)+IF(RIGHT(BU$39,2)>RIGHT($K69,2),AY69,0)) -> -5.440227 | BV69: =+IF($K69="Ongoing",AZ69,IF(RIGHT($K69,2)=RIGHT(BV$39,2),SUM($AV69:AZ69),0)+IF(RIGHT(BV$39,2)>RIGHT($K69,2),AZ69,0)) -> -6.01213 | BW69: =+IF($K69="Ongoing",BA69,IF(RIGHT($K69,2)=RIGHT(BW$39,2),SUM($AV69:BA69),0)+IF(RIGHT(BW$39,2)>RIGHT($K69,2),BA69,0)) -> -6.582861 | BX69: =+IF($K69="Ongoing",BB69,IF(RIGHT($K69,2)=RIGHT(BX$39,2),SUM($AV69:BB69),0)+IF(RIGHT(BX$39,2)>RIGHT($K69,2),BB69,0)) -> -5.696212 | BY69: =+IF($K69="Ongoing",BC69,IF(RIGHT($K69,2)=RIGHT(BY$39,2),SUM($AV69:BC69),0)+IF(RIGHT(BY$39,2)>RIGHT($K69,2),BC69,0)) -> -6.095101 | BZ69: =+IF($K69="Ongoing",BD69,IF(RIGHT($K69,2)=RIGHT(BZ$39,2),SUM($AV69:BD69),0)+IF(RIGHT(BZ$39,2)>RIGHT($K69,2),BD69,0)) -> -6.240899 | CA69: =+IF($K69="Ongoing",BE69,IF(RIGHT($K69,2)=RIGHT(CA$39,2),SUM($AV69:BE69),0)+IF(RIGHT(CA$39,2)>RIGHT($K69,2),BE69,0)) -> -5.859111 | CC69: =+O69*KeyAssumptionsPriceControl_FO!X$15 -> 5.633533125 | CD69: =+P69*KeyAssumptionsPriceControl_FO!Y$15 -> 3.588197354 | CE69: =+Q69*KeyAssumptionsPriceControl_FO!Z$15 -> 3.470545261 | CF69: =+R69*KeyAssumptionsPriceControl_FO!AA$15 -> 3.991839029 | CG69: =+S69*KeyAssumptionsPriceControl_FO!AB$15 -> 3.269219701 | CH69: =+T69*KeyAssumptionsPriceControl_FO!AC$15 -> 2.418031464 | CI69: =+U69*KeyAssumptionsPriceControl_FO!AD$15 -> 3.220145647 | CJ69: =+V69*KeyAssumptionsPriceControl_FO!AE$15 -> 2.392907894 | CK69: =+W69*KeyAssumptionsPriceControl_FO!AF$15 -> 1.92544715 | CL69: =+X69*KeyAssumptionsPriceControl_FO!AG$15 -> 2.188520599 | CN69: 0.03129740625 | CO69: 0.08252924224 | CP69: 0.121744479 | CQ69: 0.1632021695 | CR69: 0.2035413847 | CS69: 0.2351372245 | CT69: 0.2664604306 | CU69: 0.2976440614 | CV69: 0.3216349228 | CW69: 0.3444902992
C70: Recyled Water Maintenance/upgrade | E70: Recycled Water | F70: Renewals | G70: Treatment | H70: Capital Programs / Allocation | J70: Straight line | K70: Ongoing | L70: 30 | M70: 30 | O70: 1.665 | P70: 0.5 | Q70: 0.5 | R70: 0 | S70: 0 | T70: 0 | U70: 0 | V70: 0 | W70: 0 | X70: 0 | Z70: 0 | AA70: 0 | AB70: 0 | AC70: 0 | AD70: 0 | AE70: 0 | AF70: 0 | AG70: 0 | AH70: 0 | AI70: 0 | AK70: 0 | AL70: 0 | AM70: 0 | AN70: 0 | AO70: 0 | AP70: 0 | AQ70: 0 | AR70: 0 | AS70: 0 | AT70: 0 | AV70: 1.665 | AW70: 0.5 | AX70: 0.5 | AY70: 0 | AZ70: 0 | BA70: 0 | BB70: 0 | BC70: 0 | BD70: 0 | BE70: 0 | BG70: 0.02775 | BH70: 0.06383333333 | BI70: 0.0805 | BJ70: 0.08883333333 | BK70: 0.08883333333 | BL70: 0.08883333333 | BM70: 0.08883333333 | BN70: 0.08883333333 | BO70: 0.08883333333 | BP70: 0.08883333333 | BR70: =+IF($K70="Ongoing",AV70,IF(RIGHT($K70,2)=RIGHT(BR$39,2),SUM($AV70:AV70),0)+IF(RIGHT(BR$39,2)>RIGHT($K70,2),AV70,0)) -> 1.665 | BS70: =+IF($K70="Ongoing",AW70,IF(RIGHT($K70,2)=RIGHT(BS$39,2),SUM($AV70:AW70),0)+IF(RIGHT(BS$39,2)>RIGHT($K70,2),AW70,0)) -> 0.5 | BT70: =+IF($K70="Ongoing",AX70,IF(RIGHT($K70,2)=RIGHT(BT$39,2),SUM($AV70:AX70),0)+IF(RIGHT(BT$39,2)>RIGHT($K70,2),AX70,0)) -> 0.5 | BU70: =+IF($K70="Ongoing",AY70,IF(RIGHT($K70,2)=RIGHT(BU$39,2),SUM($AV70:AY70),0)+IF(RIGHT(BU$39,2)>RIGHT($K70,2),AY70,0)) -> 0 | BV70: =+IF($K70="Ongoing",AZ70,IF(RIGHT($K70,2)=RIGHT(BV$39,2),SUM($AV70:AZ70),0)+IF(RIGHT(BV$39,2)>RIGHT($K70,2),AZ70,0)) -> 0 | BW70: =+IF($K70="Ongoing",BA70,IF(RIGHT($K70,2)=RIGHT(BW$39,2),SUM($AV70:BA70),0)+IF(RIGHT(BW$39,2)>RIGHT($K70,2),BA70,0)) -> 0 | BX70: =+IF($K70="Ongoing",BB70,IF(RIGHT($K70,2)=RIGHT(BX$39,2),SUM($AV70:BB70),0)+IF(RIGHT(BX$39,2)>RIGHT($K70,2),BB70,0)) -> 0 | BY70: =+IF($K70="Ongoing",BC70,IF(RIGHT($K70,2)=RIGHT(BY$39,2),SUM($AV70:BC70),0)+IF(RIGHT(BY$39,2)>RIGHT($K70,2),BC70,0)) -> 0 | BZ70: =+IF($K70="Ongoing",BD70,IF(RIGHT($K70,2)=RIGHT(BZ$39,2),SUM($AV70:BD70),0)+IF(RIGHT(BZ$39,2)>RIGHT($K70,2),BD70,0)) -> 0 | CA70: =+IF($K70="Ongoing",BE70,IF(RIGHT($K70,2)=RIGHT(CA$39,2),SUM($AV70:BE70),0)+IF(RIGHT(CA$39,2)>RIGHT($K70,2),BE70,0)) -> 0 | CC70: =+O70*KeyAssumptionsPriceControl_FO!X$15 -> 1.703295 | CD70: =+P70*KeyAssumptionsPriceControl_FO!Y$15 -> 0.5232645 | CE70: =+Q70*KeyAssumptionsPriceControl_FO!Z$15 -> 0.5352995835 | CF70: =+R70*KeyAssumptionsPriceControl_FO!AA$15 -> 0 | CG70: =+S70*KeyAssumptionsPriceControl_FO!AB$15 -> 0 | CH70: =+T70*KeyAssumptionsPriceControl_FO!AC$15 -> 0 | CI70: =+U70*KeyAssumptionsPriceControl_FO!AD$15 -> 0 | CJ70: =+V70*KeyAssumptionsPriceControl_FO!AE$15 -> 0 | CK70: =+W70*KeyAssumptionsPriceControl_FO!AF$15 -> 0 | CL70: =+X70*KeyAssumptionsPriceControl_FO!AG$15 -> 0 | CN70: 0.02838825 | CO70: 0.065497575 | CP70: 0.08314030972 | CQ70: 0.09206196945 | CR70: 0.09206196945 | CS70: 0.09206196945 | CT70: 0.09206196945 | CU70: 0.09206196945 | CV70: 0.09206196945 | CW70: 0.09206196945
C71: Sewage Treatment Plant Renewal | E71: Sewerage | F71: Renewals | G71: Treatment | H71: Capital Programs / Allocation | J71: Straight line | K71: Ongoing | L71: 80 | M71: 80 | O71: 2.92 | P71: 2.7 | Q71: 0.78 | R71: 0.83 | S71: 0 | T71: 0 | U71: 0 | V71: 0 | W71: 0 | X71: 0 | Z71: 0 | AA71: 0 | AB71: 0 | AC71: 0 | AD71: 0 | AE71: 0 | AF71: 0 | AG71: 0 | AH71: 0 | AI71: 0 | AK71: 0 | AL71: 0 | AM71: 0 | AN71: 0 | AO71: 0 | AP71: 0 | AQ71: 0 | AR71: 0 | AS71: 0 | AT71: 0 | AV71: 2.92 | AW71: 2.7 | AX71: 0.78 | AY71: 0.83 | AZ71: 0 | BA71: 0 | BB71: 0 | BC71: 0 | BD71: 0 | BE71: 0 | BG71: 0.01825 | BH71: 0.053375 | BI71: 0.075125 | BJ71: 0.0851875 | BK71: 0.090375 | BL71: 0.090375 | BM71: 0.090375 | BN71: 0.090375 | BO71: 0.090375 | BP71: 0.090375 | BR71: =+IF($K71="Ongoing",AV71,IF(RIGHT($K71,2)=RIGHT(BR$39,2),SUM($AV71:AV71),0)+IF(RIGHT(BR$39,2)>RIGHT($K71,2),AV71,0)) -> 2.92 | BS71: =+IF($K71="Ongoing",AW71,IF(RIGHT($K71,2)=RIGHT(BS$39,2),SUM($AV71:AW71),0)+IF(RIGHT(BS$39,2)>RIGHT($K71,2),AW71,0)) -> 2.7 | BT71: =+IF($K71="Ongoing",AX71,IF(RIGHT($K71,2)=RIGHT(BT$39,2),SUM($AV71:AX71),0)+IF(RIGHT(BT$39,2)>RIGHT($K71,2),AX71,0)) -> 0.78 | BU71: =+IF($K71="Ongoing",AY71,IF(RIGHT($K71,2)=RIGHT(BU$39,2),SUM($AV71:AY71),0)+IF(RIGHT(BU$39,2)>RIGHT($K71,2),AY71,0)) -> 0.83 | BV71: =+IF($K71="Ongoing",AZ71,IF(RIGHT($K71,2)=RIGHT(BV$39,2),SUM($AV71:AZ71),0)+IF(RIGHT(BV$39,2)>RIGHT($K71,2),AZ71,0)) -> 0 | BW71: =+IF($K71="Ongoing",BA71,IF(RIGHT($K71,2)=RIGHT(BW$39,2),SUM($AV71:BA71),0)+IF(RIGHT(BW$39,2)>RIGHT($K71,2),BA71,0)) -> 0 | BX71: =+IF($K71="Ongoing",BB71,IF(RIGHT($K71,2)=RIGHT(BX$39,2),SUM($AV71:BB71),0)+IF(RIGHT(BX$39,2)>RIGHT($K71,2),BB71,0)) -> 0 | BY71: =+IF($K71="Ongoing",BC71,IF(RIGHT($K71,2)=RIGHT(BY$39,2),SUM($AV71:BC71),0)+IF(RIGHT(BY$39,2)>RIGHT($K71,2),BC71,0)) -> 0 | BZ71: =+IF($K71="Ongoing",BD71,IF(RIGHT($K71,2)=RIGHT(BZ$39,2),SUM($AV71:BD71),0)+IF(RIGHT(BZ$39,2)>RIGHT($K71,2),BD71,0)) -> 0 | CA71: =+IF($K71="Ongoing",BE71,IF(RIGHT($K71,2)=RIGHT(CA$39,2),SUM($AV71:BE71),0)+IF(RIGHT(CA$39,2)>RIGHT($K71,2),BE71,0)) -> 0 | CC71: =+O71*KeyAssumptionsPriceControl_FO!X$15 -> 2.98716 | CD71: =+P71*KeyAssumptionsPriceControl_FO!Y$15 -> 2.8256283 | CE71: =+Q71*KeyAssumptionsPriceControl_FO!Z$15 -> 0.8350673503 | CF71: =+R71*KeyAssumptionsPriceControl_FO!AA$15 -> 0.9090350467 | CG71: =+S71*KeyAssumptionsPriceControl_FO!AB$15 -> 0 | CH71: =+T71*KeyAssumptionsPriceControl_FO!AC$15 -> 0 | CI71: =+U71*KeyAssumptionsPriceControl_FO!AD$15 -> 0 | CJ71: =+V71*KeyAssumptionsPriceControl_FO!AE$15 -> 0 | CK71: =+W71*KeyAssumptionsPriceControl_FO!AF$15 -> 0 | CL71: =+X71*KeyAssumptionsPriceControl_FO!AG$15 -> 0 | CN71: 0.01866975 | CO71: 0.05499967688 | CP71: 0.07787902469 | CQ71: 0.08877966467 | CR71: 0.09446113371 | CS71: 0.09446113371 | CT71: 0.09446113371 | CU71: 0.09446113371 | CV71: 0.09446113371 | CW71: 0.09446113371
C72: Information management and data security | E72: Water | F72: Renewals | G72: Corporate | H72: Capital Programs / Allocation | J72: Straight line | K72: Ongoing | L72: 5 | M72: 5 | O72: 0.2782261291 | P72: 0.2218629196 | Q72: 0.03365361596 | R72: 0.03365361596 | S72: 0.1075431944 | T72: 0.09429883602 | U72: 0.02581156164 | V72: 0.02581156164 | W72: 0.02581156164 | X72: 0 | Z72: 0 | AA72: 0 | AB72: 0 | AC72: 0 | AD72: 0 | AE72: 0 | AF72: 0 | AG72: 0 | AH72: 0 | AI72: 0 | AK72: 0 | AL72: 0 | AM72: 0 | AN72: 0 | AO72: 0 | AP72: 0 | AQ72: 0 | AR72: 0 | AS72: 0 | AT72: 0 | AV72: 0.2782261291 | AW72: 0.2218629196 | AX72: 0.03365361596 | AY72: 0.03365361596 | AZ72: 0.1075431944 | BA72: 0.09429883602 | BB72: 0.02581156164 | BC72: 0.02581156164 | BD72: 0.02581156164 | BE72: 0 | BG72: 0.02782261291 | BH72: 0.07783151777 | BI72: 0.1033831713 | BJ72: 0.1101138945 | BK72: 0.1242335756 | BL72: 0.1165951657 | BM72: 0.0785973006 | BN72: 0.05820795937 | BO72: 0.05663954851 | BP72: 0.04510102363 | BR72: =+IF($K72="Ongoing",AV72,IF(RIGHT($K72,2)=RIGHT(BR$39,2),SUM($AV72:AV72),0)+IF(RIGHT(BR$39,2)>RIGHT($K72,2),AV72,0)) -> 0.2782261291 | BS72: =+IF($K72="Ongoing",AW72,IF(RIGHT($K72,2)=RIGHT(BS$39,2),SUM($AV72:AW72),0)+IF(RIGHT(BS$39,2)>RIGHT($K72,2),AW72,0)) -> 0.2218629196 | BT72: =+IF($K72="Ongoing",AX72,IF(RIGHT($K72,2)=RIGHT(BT$39,2),SUM($AV72:AX72),0)+IF(RIGHT(BT$39,2)>RIGHT($K72,2),AX72,0)) -> 0.03365361596 | BU72: =+IF($K72="Ongoing",AY72,IF(RIGHT($K72,2)=RIGHT(BU$39,2),SUM($AV72:AY72),0)+IF(RIGHT(BU$39,2)>RIGHT($K72,2),AY72,0)) -> 0.03365361596 | BV72: =+IF($K72="Ongoing",AZ72,IF(RIGHT($K72,2)=RIGHT(BV$39,2),SUM($AV72:AZ72),0)+IF(RIGHT(BV$39,2)>RIGHT($K72,2),AZ72,0)) -> 0.1075431944 | BW72: =+IF($K72="Ongoing",BA72,IF(RIGHT($K72,2)=RIGHT(BW$39,2),SUM($AV72:BA72),0)+IF(RIGHT(BW$39,2)>RIGHT($K72,2),BA72,0)) -> 0.09429883602 | BX72: =+IF($K72="Ongoing",BB72,IF(RIGHT($K72,2)=RIGHT(BX$39,2),SUM($AV72:BB72),0)+IF(RIGHT(BX$39,2)>RIGHT($K72,2),BB72,0)) -> 0.02581156164 | BY72: =+IF($K72="Ongoing",BC72,IF(RIGHT($K72,2)=RIGHT(BY$39,2),SUM($AV72:BC72),0)+IF(RIGHT(BY$39,2)>RIGHT($K72,2),BC72,0)) -> 0.02581156164 | BZ72: =+IF($K72="Ongoing",BD72,IF(RIGHT($K72,2)=RIGHT(BZ$39,2),SUM($AV72:BD72),0)+IF(RIGHT(BZ$39,2)>RIGHT($K72,2),BD72,0)) -> 0.02581156164 | CA72: =+IF($K72="Ongoing",BE72,IF(RIGHT($K72,2)=RIGHT(CA$39,2),SUM($AV72:BE72),0)+IF(RIGHT(CA$39,2)>RIGHT($K72,2),BE72,0)) -> 0 | CC72: =+O72*KeyAssumptionsPriceControl_FO!X$15 -> 0.28462533 | CD72: =+P72*KeyAssumptionsPriceControl_FO!Y$15 -> 0.2321859794 | CE72: =+Q72*KeyAssumptionsPriceControl_FO!Z$15 -> 0.03602953321 | CF72: =+R72*KeyAssumptionsPriceControl_FO!AA$15 -> 0.03685821248 | CG72: =+S72*KeyAssumptionsPriceControl_FO!AB$15 -> 0.1204928012 | CH72: =+T72*KeyAssumptionsPriceControl_FO!AC$15 -> 0.1080836828 | CI72: =+U72*KeyAssumptionsPriceControl_FO!AD$15 -> 0.03026521175 | CJ72: =+V72*KeyAssumptionsPriceControl_FO!AE$15 -> 0.03096131163 | CK72: =+W72*KeyAssumptionsPriceControl_FO!AF$15 -> 0.03167342179 | CL72: =+X72*KeyAssumptionsPriceControl_FO!AG$15 -> 0 | CN72: 0.028462533 | CO72: 0.08014366394 | CP72: 0.1069652152 | CQ72: 0.1142539898 | CR72: 0.1299890911 | CS72: 0.1243842065 | CT72: 0.08653796506 | CU72: 0.06583906614 | CV72: 0.06481376491 | CW72: 0.05224600572
C73: Information management and data security | E73: Sewerage | F73: Renewals | G73: Corporate | H73: Capital Programs / Allocation | J73: Straight line | K73: Ongoing | L73: 5 | M73: 5 | O73: 0.5975062493 | P73: 0.4764630892 | Q73: 0.07227303171 | R73: 0.07227303171 | S73: 0.2309550543 | T73: 0.2025120502 | U73: 0.05543177931 | V73: 0.05543177931 | W73: 0.05543177931 | X73: 0 | Z73: 0 | AA73: 0 | AB73: 0 | AC73: 0 | AD73: 0 | AE73: 0 | AF73: 0 | AG73: 0 | AH73: 0 | AI73: 0 | AK73: 0 | AL73: 0 | AM73: 0 | AN73: 0 | AO73: 0 | AP73: 0 | AQ73: 0 | AR73: 0 | AS73: 0 | AT73: 0 | AV73: 0.5975062493 | AW73: 0.4764630892 | AX73: 0.07227303171 | AY73: 0.07227303171 | AZ73: 0.2309550543 | BA73: 0.2025120502 | BB73: 0.05543177931 | BC73: 0.05543177931 | BD73: 0.05543177931 | BE73: 0 | BG73: 0.05975062493 | BH73: 0.1671475588 | BI73: 0.2220211709 | BJ73: 0.2364757772 | BK73: 0.2667985858 | BL73: 0.2503946713 | BM73: 0.1687921204 | BN73: 0.1250048642 | BO73: 0.1216366137 | BP73: 0.09685698306 | BR73: =+IF($K73="Ongoing",AV73,IF(RIGHT($K73,2)=RIGHT(BR$39,2),SUM($AV73:AV73),0)+IF(RIGHT(BR$39,2)>RIGHT($K73,2),AV73,0)) -> 0.5975062493 | BS73: =+IF($K73="Ongoing",AW73,IF(RIGHT($K73,2)=RIGHT(BS$39,2),SUM($AV73:AW73),0)+IF(RIGHT(BS$39,2)>RIGHT($K73,2),AW73,0)) -> 0.4764630892 | BT73: =+IF($K73="Ongoing",AX73,IF(RIGHT($K73,2)=RIGHT(BT$39,2),SUM($AV73:AX73),0)+IF(RIGHT(BT$39,2)>RIGHT($K73,2),AX73,0)) -> 0.07227303171 | BU73: =+IF($K73="Ongoing",AY73,IF(RIGHT($K73,2)=RIGHT(BU$39,2),SUM($AV73:AY73),0)+IF(RIGHT(BU$39,2)>RIGHT($K73,2),AY73,0)) -> 0.07227303171 | BV73: =+IF($K73="Ongoing",AZ73,IF(RIGHT($K73,2)=RIGHT(BV$39,2),SUM($AV73:AZ73),0)+IF(RIGHT(BV$39,2)>RIGHT($K73,2),AZ73,0)) -> 0.2309550543 | BW73: =+IF($K73="Ongoing",BA73,IF(RIGHT($K73,2)=RIGHT(BW$39,2),SUM($AV73:BA73),0)+IF(RIGHT(BW$39,2)>RIGHT($K73,2),BA73,0)) -> 0.2025120502 | BX73: =+IF($K73="Ongoing",BB73,IF(RIGHT($K73,2)=RIGHT(BX$39,2),SUM($AV73:BB73),0)+IF(RIGHT(BX$39,2)>RIGHT($K73,2),BB73,0)) -> 0.05543177931 | BY73: =+IF($K73="Ongoing",BC73,IF(RIGHT($K73,2)=RIGHT(BY$39,2),SUM($AV73:BC73),0)+IF(RIGHT(BY$39,2)>RIGHT($K73,2),BC73,0)) -> 0.05543177931 | BZ73: =+IF($K73="Ongoing",BD73,IF(RIGHT($K73,2)=RIGHT(BZ$39,2),SUM($AV73:BD73),0)+IF(RIGHT(BZ$39,2)>RIGHT($K73,2),BD73,0)) -> 0.05543177931 | CA73: =+IF($K73="Ongoing",BE73,IF(RIGHT($K73,2)=RIGHT(CA$39,2),SUM($AV73:BE73),0)+IF(RIGHT(CA$39,2)>RIGHT($K73,2),BE73,0)) -> 0 | CC73: =+O73*KeyAssumptionsPriceControl_FO!X$15 -> 0.611248893 | CD73: =+P73*KeyAssumptionsPriceControl_FO!Y$15 -> 0.4986324403 | CE73: =+Q73*KeyAssumptionsPriceControl_FO!Z$15 -> 0.07737544754 | CF73: =+R73*KeyAssumptionsPriceControl_FO!AA$15 -> 0.07915508284 | CG73: =+S73*KeyAssumptionsPriceControl_FO!AB$15 -> 0.2587650627 | CH73: =+T73*KeyAssumptionsPriceControl_FO!AC$15 -> 0.2321157835 | CI73: =+U73*KeyAssumptionsPriceControl_FO!AD$15 -> 0.06499624324 | CJ73: =+V73*KeyAssumptionsPriceControl_FO!AE$15 -> 0.06649115683 | CK73: =+W73*KeyAssumptionsPriceControl_FO!AF$15 -> 0.06802045344 | CL73: =+X73*KeyAssumptionsPriceControl_FO!AG$15 -> 0 | CN73: 0.0611248893 | CO73: 0.1721130226 | CP73: 0.2297138114 | CQ73: 0.2453668644 | CR73: 0.279158879 | CS73: 0.2671220743 | CT73: 0.1858451437 | CU73: 0.1413930949 | CV73: 0.1391912029 | CW73: 0.1122012337
C74: Information management and data security | E74: Recycled Water | F74: Renewals | G74: Corporate | H74: Capital Programs / Allocation | J74: Straight line | K74: Ongoing | L74: 5 | M74: 5 | O74: 0.7740285741 | P74: 0.6172254198 | Q74: 0.0936247809 | R74: 0.0936247809 | S74: 0.2991865132 | T74: 0.2623405423 | U74: 0.07180808762 | V74: 0.07180808762 | W74: 0.07180808762 | X74: 0 | Z74: 0 | AA74: 0 | AB74: 0 | AC74: 0 | AD74: 0 | AE74: 0 | AF74: 0 | AG74: 0 | AH74: 0 | AI74: 0 | AK74: 0 | AL74: 0 | AM74: 0 | AN74: 0 | AO74: 0 | AP74: 0 | AQ74: 0 | AR74: 0 | AS74: 0 | AT74: 0 | AV74: 0.7740285741 | AW74: 0.6172254198 | AX74: 0.0936247809 | AY74: 0.0936247809 | AZ74: 0.2991865132 | BA74: 0.2623405423 | BB74: 0.07180808762 | BC74: 0.07180808762 | BD74: 0.07180808762 | BE74: 0 | BG74: 0.07740285741 | BH74: 0.2165282568 | BI74: 0.2876132769 | BJ74: 0.306338233 | BK74: 0.3456193625 | BL74: 0.3243692106 | BM74: 0.2186586742 | BN74: 0.1619352717 | BO74: 0.157571933 | BP74: 0.1254716124 | BR74: =+IF($K74="Ongoing",AV74,IF(RIGHT($K74,2)=RIGHT(BR$39,2),SUM($AV74:AV74),0)+IF(RIGHT(BR$39,2)>RIGHT($K74,2),AV74,0)) -> 0.7740285741 | BS74: =+IF($K74="Ongoing",AW74,IF(RIGHT($K74,2)=RIGHT(BS$39,2),SUM($AV74:AW74),0)+IF(RIGHT(BS$39,2)>RIGHT($K74,2),AW74,0)) -> 0.6172254198 | BT74: =+IF($K74="Ongoing",AX74,IF(RIGHT($K74,2)=RIGHT(BT$39,2),SUM($AV74:AX74),0)+IF(RIGHT(BT$39,2)>RIGHT($K74,2),AX74,0)) -> 0.0936247809 | BU74: =+IF($K74="Ongoing",AY74,IF(RIGHT($K74,2)=RIGHT(BU$39,2),SUM($AV74:AY74),0)+IF(RIGHT(BU$39,2)>RIGHT($K74,2),AY74,0)) -> 0.0936247809 | BV74: =+IF($K74="Ongoing",AZ74,IF(RIGHT($K74,2)=RIGHT(BV$39,2),SUM($AV74:AZ74),0)+IF(RIGHT(BV$39,2)>RIGHT($K74,2),AZ74,0)) -> 0.2991865132 | BW74: =+IF($K74="Ongoing",BA74,IF(RIGHT($K74,2)=RIGHT(BW$39,2),SUM($AV74:BA74),0)+IF(RIGHT(BW$39,2)>RIGHT($K74,2),BA74,0)) -> 0.2623405423 | BX74: =+IF($K74="Ongoing",BB74,IF(RIGHT($K74,2)=RIGHT(BX$39,2),SUM($AV74:BB74),0)+IF(RIGHT(BX$39,2)>RIGHT($K74,2),BB74,0)) -> 0.07180808762 | BY74: =+IF($K74="Ongoing",BC74,IF(RIGHT($K74,2)=RIGHT(BY$39,2),SUM($AV74:BC74),0)+IF(RIGHT(BY$39,2)>RIGHT($K74,2),BC74,0)) -> 0.07180808762 | BZ74: =+IF($K74="Ongoing",BD74,IF(RIGHT($K74,2)=RIGHT(BZ$39,2),SUM($AV74:BD74),0)+IF(RIGHT(BZ$39,2)>RIGHT($K74,2),BD74,0)) -> 0.07180808762 | CA74: =+IF($K74="Ongoing",BE74,IF(RIGHT($K74,2)=RIGHT(CA$39,2),SUM($AV74:BE74),0)+IF(RIGHT(CA$39,2)>RIGHT($K74,2),BE74,0)) -> 0 | CC74: =+O74*KeyAssumptionsPriceControl_FO!X$15 -> 0.7918312313 | CD74: =+P74*KeyAssumptionsPriceControl_FO!Y$15 -> 0.6459443013 | CE74: =+Q74*KeyAssumptionsPriceControl_FO!Z$15 -> 0.1002346124 | CF74: =+R74*KeyAssumptionsPriceControl_FO!AA$15 -> 0.1025400085 | CG74: =+S74*KeyAssumptionsPriceControl_FO!AB$15 -> 0.3352124814 | CH74: =+T74*KeyAssumptionsPriceControl_FO!AC$15 -> 0.3006901587 | CI74: =+U74*KeyAssumptionsPriceControl_FO!AD$15 -> 0.08419819798 | CJ74: =+V74*KeyAssumptionsPriceControl_FO!AE$15 -> 0.08613475654 | CK74: =+W74*KeyAssumptionsPriceControl_FO!AF$15 -> 0.08811585594 | CL74: =+X74*KeyAssumptionsPriceControl_FO!AG$15 -> 0 | CN74: 0.07918312313 | CO74: 0.2229606764 | CP74: 0.2975785678 | CQ74: 0.3178560299 | CR74: 0.3616312789 | CS74: 0.3460384197 | CT74: 0.2407497022 | CU74: 0.1831651062 | CV74: 0.1803127054 | CW74: 0.145349042
C75: Information management and data security | E75: Water | F75: Improvements / Compliance | G75: Treatment | H75: Capital Programs / Allocation | J75: Straight line | K75: Ongoing | L75: 5 | M75: 5 | O75: 0.2827136473 | P75: 0.2254413538 | Q75: 0.03419641622 | R75: 0.03419641622 | S75: 0.1092777621 | T75: 0.09581978499 | U75: 0.02622787715 | V75: 0.02622787715 | W75: 0.02622787715 | X75: 0 | Z75: 0 | AA75: 0 | AB75: 0 | AC75: 0 | AD75: 0 | AE75: 0 | AF75: 0 | AG75: 0 | AH75: 0 | AI75: 0 | AK75: 0 | AL75: 0 | AM75: 0 | AN75: 0 | AO75: 0 | AP75: 0 | AQ75: 0 | AR75: 0 | AS75: 0 | AT75: 0 | AV75: 0.2827136473 | AW75: 0.2254413538 | AX75: 0.03419641622 | AY75: 0.03419641622 | AZ75: 0.1092777621 | BA75: 0.09581978499 | BB75: 0.02622787715 | BC75: 0.02622787715 | BD75: 0.02622787715 | BE75: 0 | BG75: 0.02827136473 | BH75: 0.07908686483 | BI75: 0.1050506418 | BJ75: 0.1118899251 | BK75: 0.1262373429 | BL75: 0.1184757329 | BM75: 0.079864999 | BN75: 0.05914679743 | BO75: 0.05755308961 | BP75: 0.0458284595 | BR75: =+IF($K75="Ongoing",AV75,IF(RIGHT($K75,2)=RIGHT(BR$39,2),SUM($AV75:AV75),0)+IF(RIGHT(BR$39,2)>RIGHT($K75,2),AV75,0)) -> 0.2827136473 | BS75: =+IF($K75="Ongoing",AW75,IF(RIGHT($K75,2)=RIGHT(BS$39,2),SUM($AV75:AW75),0)+IF(RIGHT(BS$39,2)>RIGHT($K75,2),AW75,0)) -> 0.2254413538 | BT75: =+IF($K75="Ongoing",AX75,IF(RIGHT($K75,2)=RIGHT(BT$39,2),SUM($AV75:AX75),0)+IF(RIGHT(BT$39,2)>RIGHT($K75,2),AX75,0)) -> 0.03419641622 | BU75: =+IF($K75="Ongoing",AY75,IF(RIGHT($K75,2)=RIGHT(BU$39,2),SUM($AV75:AY75),0)+IF(RIGHT(BU$39,2)>RIGHT($K75,2),AY75,0)) -> 0.03419641622 | BV75: =+IF($K75="Ongoing",AZ75,IF(RIGHT($K75,2)=RIGHT(BV$39,2),SUM($AV75:AZ75),0)+IF(RIGHT(BV$39,2)>RIGHT($K75,2),AZ75,0)) -> 0.1092777621 | BW75: =+IF($K75="Ongoing",BA75,IF(RIGHT($K75,2)=RIGHT(BW$39,2),SUM($AV75:BA75),0)+IF(RIGHT(BW$39,2)>RIGHT($K75,2),BA75,0)) -> 0.09581978499 | BX75: =+IF($K75="Ongoing",BB75,IF(RIGHT($K75,2)=RIGHT(BX$39,2),SUM($AV75:BB75),0)+IF(RIGHT(BX$39,2)>RIGHT($K75,2),BB75,0)) -> 0.02622787715 | BY75: =+IF($K75="Ongoing",BC75,IF(RIGHT($K75,2)=RIGHT(BY$39,2),SUM($AV75:BC75),0)+IF(RIGHT(BY$39,2)>RIGHT($K75,2),BC75,0)) -> 0.02622787715 | BZ75: =+IF($K75="Ongoing",BD75,IF(RIGHT($K75,2)=RIGHT(BZ$39,2),SUM($AV75:BD75),0)+IF(RIGHT(BZ$39,2)>RIGHT($K75,2),BD75,0)) -> 0.02622787715 | CA75: =+IF($K75="Ongoing",BE75,IF(RIGHT($K75,2)=RIGHT(CA$39,2),SUM($AV75:BE75),0)+IF(RIGHT(CA$39,2)>RIGHT($K75,2),BE75,0)) -> 0 | CC75: =+O75*KeyAssumptionsPriceControl_FO!X$15 -> 0.2892160612 | CD75: =+P75*KeyAssumptionsPriceControl_FO!Y$15 -> 0.2359309145 | CE75: =+Q75*KeyAssumptionsPriceControl_FO!Z$15 -> 0.03661065472 | CF75: =+R75*KeyAssumptionsPriceControl_FO!AA$15 -> 0.03745269978 | CG75: =+S75*KeyAssumptionsPriceControl_FO!AB$15 -> 0.1224362335 | CH75: =+T75*KeyAssumptionsPriceControl_FO!AC$15 -> 0.109826968 | CI75: =+U75*KeyAssumptionsPriceControl_FO!AD$15 -> 0.03075336033 | CJ75: =+V75*KeyAssumptionsPriceControl_FO!AE$15 -> 0.03146068762 | CK75: =+W75*KeyAssumptionsPriceControl_FO!AF$15 -> 0.03218428343 | CL75: =+X75*KeyAssumptionsPriceControl_FO!AG$15 -> 0 | CN75: 0.02892160612 | CO75: 0.08143630368 | CP75: 0.1086904606 | CQ75: 0.1160967961 | CR75: 0.1320856894 | CS75: 0.1263904034 | CT75: 0.08793373869 | CU75: 0.06690098656 | CV75: 0.06585914822 | CW75: 0.05308868323
C76: Information management and data security | E76: Sewerage | F76: Improvements / Compliance | G76: Corporate | H76: Capital Programs / Allocation | J76: Straight line | K76: Ongoing | L76: 5 | M76: 5 | O76: 0.6071434468 | P76: 0.4841479777 | Q76: 0.07343872577 | R76: 0.07343872577 | S76: 0.2346801358 | T76: 0.2057783736 | U76: 0.05632584027 | V76: 0.05632584027 | W76: 0.05632584027 | X76: 0 | Z76: 0 | AA76: 0 | AB76: 0 | AC76: 0 | AD76: 0 | AE76: 0 | AF76: 0 | AG76: 0 | AH76: 0 | AI76: 0 | AK76: 0 | AL76: 0 | AM76: 0 | AN76: 0 | AO76: 0 | AP76: 0 | AQ76: 0 | AR76: 0 | AS76: 0 | AT76: 0 | AV76: 0.6071434468 | AW76: 0.4841479777 | AX76: 0.07343872577 | AY76: 0.07343872577 | AZ76: 0.2346801358 | BA76: 0.2057783736 | BB76: 0.05632584027 | BC76: 0.05632584027 | BD76: 0.05632584027 | BE76: 0 | BG76: 0.06071434468 | BH76: 0.1698434871 | BI76: 0.2256021575 | BJ76: 0.2402899026 | BK76: 0.2711017888 | BL76: 0.2544332951 | BM76: 0.171514574 | BN76: 0.1270210717 | BO76: 0.1235984946 | BP76: 0.09841919246 | BR76: =+IF($K76="Ongoing",AV76,IF(RIGHT($K76,2)=RIGHT(BR$39,2),SUM($AV76:AV76),0)+IF(RIGHT(BR$39,2)>RIGHT($K76,2),AV76,0)) -> 0.6071434468 | BS76: =+IF($K76="Ongoing",AW76,IF(RIGHT($K76,2)=RIGHT(BS$39,2),SUM($AV76:AW76),0)+IF(RIGHT(BS$39,2)>RIGHT($K76,2),AW76,0)) -> 0.4841479777 | BT76: =+IF($K76="Ongoing",AX76,IF(RIGHT($K76,2)=RIGHT(BT$39,2),SUM($AV76:AX76),0)+IF(RIGHT(BT$39,2)>RIGHT($K76,2),AX76,0)) -> 0.07343872577 | BU76: =+IF($K76="Ongoing",AY76,IF(RIGHT($K76,2)=RIGHT(BU$39,2),SUM($AV76:AY76),0)+IF(RIGHT(BU$39,2)>RIGHT($K76,2),AY76,0)) -> 0.07343872577 | BV76: =+IF($K76="Ongoing",AZ76,IF(RIGHT($K76,2)=RIGHT(BV$39,2),SUM($AV76:AZ76),0)+IF(RIGHT(BV$39,2)>RIGHT($K76,2),AZ76,0)) -> 0.2346801358 | BW76: =+IF($K76="Ongoing",BA76,IF(RIGHT($K76,2)=RIGHT(BW$39,2),SUM($AV76:BA76),0)+IF(RIGHT(BW$39,2)>RIGHT($K76,2),BA76,0)) -> 0.2057783736 | BX76: =+IF($K76="Ongoing",BB76,IF(RIGHT($K76,2)=RIGHT(BX$39,2),SUM($AV76:BB76),0)+IF(RIGHT(BX$39,2)>RIGHT($K76,2),BB76,0)) -> 0.05632584027 | BY76: =+IF($K76="Ongoing",BC76,IF(RIGHT($K76,2)=RIGHT(BY$39,2),SUM($AV76:BC76),0)+IF(RIGHT(BY$39,2)>RIGHT($K76,2),BC76,0)) -> 0.05632584027 | BZ76: =+IF($K76="Ongoing",BD76,IF(RIGHT($K76,2)=RIGHT(BZ$39,2),SUM($AV76:BD76),0)+IF(RIGHT(BZ$39,2)>RIGHT($K76,2),BD76,0)) -> 0.05632584027 | CA76: =+IF($K76="Ongoing",BE76,IF(RIGHT($K76,2)=RIGHT(CA$39,2),SUM($AV76:BE76),0)+IF(RIGHT(CA$39,2)>RIGHT($K76,2),BE76,0)) -> 0 | CC76: =+O76*KeyAssumptionsPriceControl_FO!X$15 -> 0.6211077461 | CD76: =+P76*KeyAssumptionsPriceControl_FO!Y$15 -> 0.506674899 | CE76: =+Q76*KeyAssumptionsPriceControl_FO!Z$15 -> 0.07862343863 | CF76: =+R76*KeyAssumptionsPriceControl_FO!AA$15 -> 0.08043177772 | CG76: =+S76*KeyAssumptionsPriceControl_FO!AB$15 -> 0.2629386927 | CH76: =+T76*KeyAssumptionsPriceControl_FO!AC$15 -> 0.2358595864 | CI76: =+U76*KeyAssumptionsPriceControl_FO!AD$15 -> 0.06604456974 | CJ76: =+V76*KeyAssumptionsPriceControl_FO!AE$15 -> 0.06756359484 | CK76: =+W76*KeyAssumptionsPriceControl_FO!AF$15 -> 0.06911755753 | CL76: =+X76*KeyAssumptionsPriceControl_FO!AG$15 -> 0 | CN76: 0.06211077461 | CO76: 0.1748890391 | CP76: 0.2334188729 | CQ76: 0.2493243945 | CR76: 0.2836614416 | CS76: 0.2714304949 | CT76: 0.188842646 | CU76: 0.1436736287 | CV76: 0.1414362223 | CW76: 0.114010931
C77: Information management and data security | E77: Recycled Water | F77: Improvements / Compliance | G77: Corporate | H77: Capital Programs / Allocation | J77: Straight line | K77: Ongoing | L77: 5 | M77: 5 | O77: 0.7865129059 | P77: 0.6271806685 | Q77: 0.09513485801 | R77: 0.09513485801 | S77: 0.3040121021 | T77: 0.2665718414 | U77: 0.07296628258 | V77: 0.07296628258 | W77: 0.07296628258 | X77: 0 | Z77: 0 | AA77: 0 | AB77: 0 | AC77: 0 | AD77: 0 | AE77: 0 | AF77: 0 | AG77: 0 | AH77: 0 | AI77: 0 | AK77: 0 | AL77: 0 | AM77: 0 | AN77: 0 | AO77: 0 | AP77: 0 | AQ77: 0 | AR77: 0 | AS77: 0 | AT77: 0 | AV77: 0.7865129059 | AW77: 0.6271806685 | AX77: 0.09513485801 | AY77: 0.09513485801 | AZ77: 0.3040121021 | BA77: 0.2665718414 | BB77: 0.07296628258 | BC77: 0.07296628258 | BD77: 0.07296628258 | BE77: 0 | BG77: 0.07865129059 | BH77: 0.220020648 | BI77: 0.2922522007 | BJ77: 0.3112791723 | BK77: 0.3511938683 | BL77: 0.3296009721 | BM77: 0.222185427 | BN77: 0.1645471309 | BO77: 0.1601134158 | BP77: 0.127495348 | BR77: =+IF($K77="Ongoing",AV77,IF(RIGHT($K77,2)=RIGHT(BR$39,2),SUM($AV77:AV77),0)+IF(RIGHT(BR$39,2)>RIGHT($K77,2),AV77,0)) -> 0.7865129059 | BS77: =+IF($K77="Ongoing",AW77,IF(RIGHT($K77,2)=RIGHT(BS$39,2),SUM($AV77:AW77),0)+IF(RIGHT(BS$39,2)>RIGHT($K77,2),AW77,0)) -> 0.6271806685 | BT77: =+IF($K77="Ongoing",AX77,IF(RIGHT($K77,2)=RIGHT(BT$39,2),SUM($AV77:AX77),0)+IF(RIGHT(BT$39,2)>RIGHT($K77,2),AX77,0)) -> 0.09513485801 | BU77: =+IF($K77="Ongoing",AY77,IF(RIGHT($K77,2)=RIGHT(BU$39,2),SUM($AV77:AY77),0)+IF(RIGHT(BU$39,2)>RIGHT($K77,2),AY77,0)) -> 0.09513485801 | BV77: =+IF($K77="Ongoing",AZ77,IF(RIGHT($K77,2)=RIGHT(BV$39,2),SUM($AV77:AZ77),0)+IF(RIGHT(BV$39,2)>RIGHT($K77,2),AZ77,0)) -> 0.3040121021 | BW77: =+IF($K77="Ongoing",BA77,IF(RIGHT($K77,2)=RIGHT(BW$39,2),SUM($AV77:BA77),0)+IF(RIGHT(BW$39,2)>RIGHT($K77,2),BA77,0)) -> 0.2665718414 | BX77: =+IF($K77="Ongoing",BB77,IF(RIGHT($K77,2)=RIGHT(BX$39,2),SUM($AV77:BB77),0)+IF(RIGHT(BX$39,2)>RIGHT($K77,2),BB77,0)) -> 0.07296628258 | BY77: =+IF($K77="Ongoing",BC77,IF(RIGHT($K77,2)=RIGHT(BY$39,2),SUM($AV77:BC77),0)+IF(RIGHT(BY$39,2)>RIGHT($K77,2),BC77,0)) -> 0.07296628258 | BZ77: =+IF($K77="Ongoing",BD77,IF(RIGHT($K77,2)=RIGHT(BZ$39,2),SUM($AV77:BD77),0)+IF(RIGHT(BZ$39,2)>RIGHT($K77,2),BD77,0)) -> 0.07296628258 | CA77: =+IF($K77="Ongoing",BE77,IF(RIGHT($K77,2)=RIGHT(CA$39,2),SUM($AV77:BE77),0)+IF(RIGHT(CA$39,2)>RIGHT($K77,2),BE77,0)) -> 0 | CC77: =+O77*KeyAssumptionsPriceControl_FO!X$15 -> 0.8046027027 | CD77: =+P77*KeyAssumptionsPriceControl_FO!Y$15 -> 0.6563627578 | CE77: =+Q77*KeyAssumptionsPriceControl_FO!Z$15 -> 0.1018512997 | CF77: =+R77*KeyAssumptionsPriceControl_FO!AA$15 -> 0.1041938796 | CG77: =+S77*KeyAssumptionsPriceControl_FO!AB$15 -> 0.3406191344 | CH77: =+T77*KeyAssumptionsPriceControl_FO!AC$15 -> 0.30554 | CI77: =+U77*KeyAssumptionsPriceControl_FO!AD$15 -> 0.08555623344 | CJ77: =+V77*KeyAssumptionsPriceControl_FO!AE$15 -> 0.0875240268 | CK77: =+W77*KeyAssumptionsPriceControl_FO!AF$15 -> 0.08953707942 | CL77: =+X77*KeyAssumptionsPriceControl_FO!AG$15 -> 0 | CN77: 0.08046027027 | CO77: 0.2265568163 | CP77: 0.3023782221 | CQ77: 0.32298274 | CR77: 0.3674640414 | CS77: 0.3516196846 | CT77: 0.2446327619 | CU77: 0.1861193821 | CV77: 0.1832209748 | CW77: 0.1476933814
C78: Maintaining essential IT capability | E78: Water | F78: Renewals | G78: Corporate | H78: Capital Programs / Allocation | J78: Straight line | K78: Ongoing | L78: 5 | M78: 5 | O78: 0.5636891355 | P78: 0.6910918686 | Q78: 0.243520334 | R78: 0.4052184347 | S78: 0.5130171684 | T78: 1.105739939 | U78: 1.072052835 | V78: 0.9217762669 | W78: 0.7225242214 | X78: 0.7130918322 | Z78: 0 | AA78: 0 | AB78: 0 | AC78: 0 | AD78: 0 | AE78: 0 | AF78: 0 | AG78: 0 | AH78: 0 | AI78: 0 | AK78: 0 | AL78: 0 | AM78: 0 | AN78: 0 | AO78: 0 | AP78: 0 | AQ78: 0 | AR78: 0 | AS78: 0 | AT78: 0 | AV78: 0.5636891355 | AW78: 0.6910918686 | AX78: 0.243520334 | AY78: 0.4052184347 | AZ78: 0.5130171684 | BA78: 1.105739939 | BB78: 1.072052835 | BC78: 0.9217762669 | BD78: 0.7225242214 | BE78: 0.7130918322 | BG78: 0.05636891355 | BH78: 0.181847014 | BI78: 0.2753082342 | BJ78: 0.3401821111 | BK78: 0.4320056714 | BL78: 0.5375124686 | BM78: 0.6298136456 | BN78: 0.7357353356 | BO78: 0.8352915075 | BP78: 0.8870295526 | BR78: =+IF($K78="Ongoing",AV78,IF(RIGHT($K78,2)=RIGHT(BR$39,2),SUM($AV78:AV78),0)+IF(RIGHT(BR$39,2)>RIGHT($K78,2),AV78,0)) -> 0.5636891355 | BS78: =+IF($K78="Ongoing",AW78,IF(RIGHT($K78,2)=RIGHT(BS$39,2),SUM($AV78:AW78),0)+IF(RIGHT(BS$39,2)>RIGHT($K78,2),AW78,0)) -> 0.6910918686 | BT78: =+IF($K78="Ongoing",AX78,IF(RIGHT($K78,2)=RIGHT(BT$39,2),SUM($AV78:AX78),0)+IF(RIGHT(BT$39,2)>RIGHT($K78,2),AX78,0)) -> 0.243520334 | BU78: =+IF($K78="Ongoing",AY78,IF(RIGHT($K78,2)=RIGHT(BU$39,2),SUM($AV78:AY78),0)+IF(RIGHT(BU$39,2)>RIGHT($K78,2),AY78,0)) -> 0.4052184347 | BV78: =+IF($K78="Ongoing",AZ78,IF(RIGHT($K78,2)=RIGHT(BV$39,2),SUM($AV78:AZ78),0)+IF(RIGHT(BV$39,2)>RIGHT($K78,2),AZ78,0)) -> 0.5130171684 | BW78: =+IF($K78="Ongoing",BA78,IF(RIGHT($K78,2)=RIGHT(BW$39,2),SUM($AV78:BA78),0)+IF(RIGHT(BW$39,2)>RIGHT($K78,2),BA78,0)) -> 1.105739939 | BX78: =+IF($K78="Ongoing",BB78,IF(RIGHT($K78,2)=RIGHT(BX$39,2),SUM($AV78:BB78),0)+IF(RIGHT(BX$39,2)>RIGHT($K78,2),BB78,0)) -> 1.072052835 | BY78: =+IF($K78="Ongoing",BC78,IF(RIGHT($K78,2)=RIGHT(BY$39,2),SUM($AV78:BC78),0)+IF(RIGHT(BY$39,2)>RIGHT($K78,2),BC78,0)) -> 0.9217762669 | BZ78: =+IF($K78="Ongoing",BD78,IF(RIGHT($K78,2)=RIGHT(BZ$39,2),SUM($AV78:BD78),0)+IF(RIGHT(BZ$39,2)>RIGHT($K78,2),BD78,0)) -> 0.7225242214 | CA78: =+IF($K78="Ongoing",BE78,IF(RIGHT($K78,2)=RIGHT(CA$39,2),SUM($AV78:BE78),0)+IF(RIGHT(CA$39,2)>RIGHT($K78,2),BE78,0)) -> 0.7130918322 | CC78: =+O78*KeyAssumptionsPriceControl_FO!X$15 -> 0.5766539856 | CD78: =+P78*KeyAssumptionsPriceControl_FO!Y$15 -> 0.7232476822 | CE78: =+Q78*KeyAssumptionsPriceControl_FO!Z$15 -> 0.2607126667 | CF78: =+R78*KeyAssumptionsPriceControl_FO!AA$15 -> 0.4438045285 | CG78: =+S78*KeyAssumptionsPriceControl_FO!AB$15 -> 0.5747911435 | CH78: =+T78*KeyAssumptionsPriceControl_FO!AC$15 -> 1.267379852 | CI78: =+U78*KeyAssumptionsPriceControl_FO!AD$15 -> 1.257029951 | CJ78: =+V78*KeyAssumptionsPriceControl_FO!AE$15 -> 1.105682897 | CK78: =+W78*KeyAssumptionsPriceControl_FO!AF$15 -> 0.8866109977 | CL78: =+X78*KeyAssumptionsPriceControl_FO!AG$15 -> 0.8951623323 | CN78: 0.05766539856 | CO78: 0.1876555653 | CP78: 0.2860516002 | CQ78: 0.3565033198 | CR78: 0.458362887 | CS78: 0.584914588 | CT78: 0.7073654016 | CU78: 0.8452406515 | CV78: 0.9740183214 | CW78: 1.050336087
C79: Maintaining essential IT capability | E79: Sewerage | F79: Renewals | G79: Corporate | H79: Capital Programs / Allocation | J79: Straight line | K79: Ongoing | L79: 5 | M79: 5 | O79: 1.210554099 | P79: 1.484158629 | Q79: 0.5229736038 | R79: 0.8702293629 | S79: 1.101733202 | T79: 2.374638666 | U79: 2.302293716 | V79: 1.97956634 | W79: 1.551661373 | X79: 1.531404787 | Z79: 0 | AA79: 0 | AB79: 0 | AC79: 0 | AD79: 0 | AE79: 0 | AF79: 0 | AG79: 0 | AH79: 0 | AI79: 0 | AK79: 0 | AL79: 0 | AM79: 0 | AN79: 0 | AO79: 0 | AP79: 0 | AQ79: 0 | AR79: 0 | AS79: 0 | AT79: 0 | AV79: 1.210554099 | AW79: 1.484158629 | AX79: 0.5229736038 | AY79: 0.8702293629 | AZ79: 1.101733202 | BA79: 2.374638666 | BB79: 2.302293716 | BC79: 1.97956634 | BD79: 1.551661373 | BE79: 1.531404787 | BG79: 0.1210554099 | BH79: 0.3905266828 | BI79: 0.5912399061 | BJ79: 0.7305602028 | BK79: 0.9277564593 | BL79: 1.154338236 | BM79: 1.352560201 | BN79: 1.580032984 | BO79: 1.793835458 | BP79: 1.904945818 | BR79: =+IF($K79="Ongoing",AV79,IF(RIGHT($K79,2)=RIGHT(BR$39,2),SUM($AV79:AV79),0)+IF(RIGHT(BR$39,2)>RIGHT($K79,2),AV79,0)) -> 1.210554099 | BS79: =+IF($K79="Ongoing",AW79,IF(RIGHT($K79,2)=RIGHT(BS$39,2),SUM($AV79:AW79),0)+IF(RIGHT(BS$39,2)>RIGHT($K79,2),AW79,0)) -> 1.484158629 | BT79: =+IF($K79="Ongoing",AX79,IF(RIGHT($K79,2)=RIGHT(BT$39,2),SUM($AV79:AX79),0)+IF(RIGHT(BT$39,2)>RIGHT($K79,2),AX79,0)) -> 0.5229736038 | BU79: =+IF($K79="Ongoing",AY79,IF(RIGHT($K79,2)=RIGHT(BU$39,2),SUM($AV79:AY79),0)+IF(RIGHT(BU$39,2)>RIGHT($K79,2),AY79,0)) -> 0.8702293629 | BV79: =+IF($K79="Ongoing",AZ79,IF(RIGHT($K79,2)=RIGHT(BV$39,2),SUM($AV79:AZ79),0)+IF(RIGHT(BV$39,2)>RIGHT($K79,2),AZ79,0)) -> 1.101733202 | BW79: =+IF($K79="Ongoing",BA79,IF(RIGHT($K79,2)=RIGHT(BW$39,2),SUM($AV79:BA79),0)+IF(RIGHT(BW$39,2)>RIGHT($K79,2),BA79,0)) -> 2.374638666 | BX79: =+IF($K79="Ongoing",BB79,IF(RIGHT($K79,2)=RIGHT(BX$39,2),SUM($AV79:BB79),0)+IF(RIGHT(BX$39,2)>RIGHT($K79,2),BB79,0)) -> 2.302293716 | BY79: =+IF($K79="Ongoing",BC79,IF(RIGHT($K79,2)=RIGHT(BY$39,2),SUM($AV79:BC79),0)+IF(RIGHT(BY$39,2)>RIGHT($K79,2),BC79,0)) -> 1.97956634 | BZ79: =+IF($K79="Ongoing",BD79,IF(RIGHT($K79,2)=RIGHT(BZ$39,2),SUM($AV79:BD79),0)+IF(RIGHT(BZ$39,2)>RIGHT($K79,2),BD79,0)) -> 1.551661373 | CA79: =+IF($K79="Ongoing",BE79,IF(RIGHT($K79,2)=RIGHT(CA$39,2),SUM($AV79:BE79),0)+IF(RIGHT(CA$39,2)>RIGHT($K79,2),BE79,0)) -> 1.531404787 | CC79: =+O79*KeyAssumptionsPriceControl_FO!X$15 -> 1.238396844 | CD79: =+P79*KeyAssumptionsPriceControl_FO!Y$15 -> 1.553215046 | CE79: =+Q79*KeyAssumptionsPriceControl_FO!Z$15 -> 0.5598951046 | CF79: =+R79*KeyAssumptionsPriceControl_FO!AA$15 -> 0.9530951681 | CG79: =+S79*KeyAssumptionsPriceControl_FO!AB$15 -> 1.234396286 | CH79: =+T79*KeyAssumptionsPriceControl_FO!AC$15 -> 2.721769464 | CI79: =+U79*KeyAssumptionsPriceControl_FO!AD$15 -> 2.699542468 | CJ79: =+V79*KeyAssumptionsPriceControl_FO!AE$15 -> 2.374516164 | CK79: =+W79*KeyAssumptionsPriceControl_FO!AF$15 -> 1.904046948 | CL79: =+X79*KeyAssumptionsPriceControl_FO!AG$15 -> 1.922411419 | CN79: 0.1238396844 | CO79: 0.4030008734 | CP79: 0.6143118884 | CQ79: 0.7656109157 | CR79: 0.9843600611 | CS79: 1.256136952 | CT79: 1.519106956 | CU79: 1.815201804 | CV79: 2.091759088 | CW79: 2.255655779
C80: Maintaining essential IT capability | E80: Recycled Water | F80: Renewals | G80: Corporate | H80: Capital Programs / Allocation | J80: Straight line | K80: Ongoing | L80: 5 | M80: 5 | O80: 1.568190232 | P80: 1.92262623 | Q80: 0.6774766177 | R80: 1.127322758 | S80: 1.427220185 | T80: 3.076182354 | U80: 2.982464408 | V80: 2.564393114 | W80: 2.010071429 | X80: 1.983830404 | Z80: 0 | AA80: 0 | AB80: 0 | AC80: 0 | AD80: 0 | AE80: 0 | AF80: 0 | AG80: 0 | AH80: 0 | AI80: 0 | AK80: 0 | AL80: 0 | AM80: 0 | AN80: 0 | AO80: 0 | AP80: 0 | AQ80: 0 | AR80: 0 | AS80: 0 | AT80: 0 | AV80: 1.568190232 | AW80: 1.92262623 | AX80: 0.6774766177 | AY80: 1.127322758 | AZ80: 1.427220185 | BA80: 3.076182354 | BB80: 2.982464408 | BC80: 2.564393114 | BD80: 2.010071429 | BE80: 1.983830404 | BG80: 0.1568190232 | BH80: 0.5059006693 | BI80: 0.7659109541 | BJ80: 0.9463908917 | BK80: 1.201845186 | BL80: 1.495366417 | BM80: 1.752149447 | BN80: 2.046824914 | BO80: 2.323791431 | BP80: 2.46772732 | BR80: =+IF($K80="Ongoing",AV80,IF(RIGHT($K80,2)=RIGHT(BR$39,2),SUM($AV80:AV80),0)+IF(RIGHT(BR$39,2)>RIGHT($K80,2),AV80,0)) -> 1.568190232 | BS80: =+IF($K80="Ongoing",AW80,IF(RIGHT($K80,2)=RIGHT(BS$39,2),SUM($AV80:AW80),0)+IF(RIGHT(BS$39,2)>RIGHT($K80,2),AW80,0)) -> 1.92262623 | BT80: =+IF($K80="Ongoing",AX80,IF(RIGHT($K80,2)=RIGHT(BT$39,2),SUM($AV80:AX80),0)+IF(RIGHT(BT$39,2)>RIGHT($K80,2),AX80,0)) -> 0.6774766177 | BU80: =+IF($K80="Ongoing",AY80,IF(RIGHT($K80,2)=RIGHT(BU$39,2),SUM($AV80:AY80),0)+IF(RIGHT(BU$39,2)>RIGHT($K80,2),AY80,0)) -> 1.127322758 | BV80: =+IF($K80="Ongoing",AZ80,IF(RIGHT($K80,2)=RIGHT(BV$39,2),SUM($AV80:AZ80),0)+IF(RIGHT(BV$39,2)>RIGHT($K80,2),AZ80,0)) -> 1.427220185 | BW80: =+IF($K80="Ongoing",BA80,IF(RIGHT($K80,2)=RIGHT(BW$39,2),SUM($AV80:BA80),0)+IF(RIGHT(BW$39,2)>RIGHT($K80,2),BA80,0)) -> 3.076182354 | BX80: =+IF($K80="Ongoing",BB80,IF(RIGHT($K80,2)=RIGHT(BX$39,2),SUM($AV80:BB80),0)+IF(RIGHT(BX$39,2)>RIGHT($K80,2),BB80,0)) -> 2.982464408 | BY80: =+IF($K80="Ongoing",BC80,IF(RIGHT($K80,2)=RIGHT(BY$39,2),SUM($AV80:BC80),0)+IF(RIGHT(BY$39,2)>RIGHT($K80,2),BC80,0)) -> 2.564393114 | BZ80: =+IF($K80="Ongoing",BD80,IF(RIGHT($K80,2)=RIGHT(BZ$39,2),SUM($AV80:BD80),0)+IF(RIGHT(BZ$39,2)>RIGHT($K80,2),BD80,0)) -> 2.010071429 | CA80: =+IF($K80="Ongoing",BE80,IF(RIGHT($K80,2)=RIGHT(CA$39,2),SUM($AV80:BE80),0)+IF(RIGHT(CA$39,2)>RIGHT($K80,2),BE80,0)) -> 1.983830404 | CC80: =+O80*KeyAssumptionsPriceControl_FO!X$15 -> 1.604258607 | CD80: =+P80*KeyAssumptionsPriceControl_FO!Y$15 -> 2.012084106 | CE80: =+Q80*KeyAssumptionsPriceControl_FO!Z$15 -> 0.7253059026 | CF80: =+R80*KeyAssumptionsPriceControl_FO!AA$15 -> 1.234669754 | CG80: =+S80*KeyAssumptionsPriceControl_FO!AB$15 -> 1.599076157 | CH80: =+T80*KeyAssumptionsPriceControl_FO!AC$15 -> 3.525866616 | CI80: =+U80*KeyAssumptionsPriceControl_FO!AD$15 -> 3.49707306 | CJ80: =+V80*KeyAssumptionsPriceControl_FO!AE$15 -> 3.076023661 | CK80: =+W80*KeyAssumptionsPriceControl_FO!AF$15 -> 2.466562895 | CL80: =+X80*KeyAssumptionsPriceControl_FO!AG$15 -> 2.490352815 | CN80: 0.1604258607 | CO80: 0.522060132 | CP80: 0.7957991328 | CQ80: 0.9917966985 | CR80: 1.27517129 | CS80: 1.627239706 | CT80: 1.967899402 | CU80: 2.351470074 | CV80: 2.709731164 | CW80: 2.922048143
C81: Maintaining essential IT capability | E81: Water | F81: Improvements / Compliance | G81: Corporate | H81: Capital Programs / Allocation | J81: Straight line | K81: Ongoing | L81: 5 | M81: 5 | O81: 0.1418041505 | P81: 0.1738541497 | Q81: 0.06126106024 | R81: 0.1019385549 | S81: 0.1290568847 | T81: 0.2781648658 | U81: 0.2696903878 | V81: 0.2318861447 | W81: 0.1817614124 | X81: 0.1793885585 | Z81: 0 | AA81: 0 | AB81: 0 | AC81: 0 | AD81: 0 | AE81: 0 | AF81: 0 | AG81: 0 | AH81: 0 | AI81: 0 | AK81: 0 | AL81: 0 | AM81: 0 | AN81: 0 | AO81: 0 | AP81: 0 | AQ81: 0 | AR81: 0 | AS81: 0 | AT81: 0 | AV81: 0.1418041505 | AW81: 0.1738541497 | AX81: 0.06126106024 | AY81: 0.1019385549 | AZ81: 0.1290568847 | BA81: 0.2781648658 | BB81: 0.2696903878 | BC81: 0.2318861447 | BD81: 0.1817614124 | BE81: 0.1793885585 | BG81: 0.01418041505 | BH81: 0.04574624506 | BI81: 0.06925776606 | BJ81: 0.08557772757 | BK81: 0.1086772715 | BL81: 0.1352190315 | BM81: 0.1584387269 | BN81: 0.1850848591 | BO81: 0.2101296533 | BP81: 0.2231451065 | BR81: =+IF($K81="Ongoing",AV81,IF(RIGHT($K81,2)=RIGHT(BR$39,2),SUM($AV81:AV81),0)+IF(RIGHT(BR$39,2)>RIGHT($K81,2),AV81,0)) -> 0.1418041505 | BS81: =+IF($K81="Ongoing",AW81,IF(RIGHT($K81,2)=RIGHT(BS$39,2),SUM($AV81:AW81),0)+IF(RIGHT(BS$39,2)>RIGHT($K81,2),AW81,0)) -> 0.1738541497 | BT81: =+IF($K81="Ongoing",AX81,IF(RIGHT($K81,2)=RIGHT(BT$39,2),SUM($AV81:AX81),0)+IF(RIGHT(BT$39,2)>RIGHT($K81,2),AX81,0)) -> 0.06126106024 | BU81: =+IF($K81="Ongoing",AY81,IF(RIGHT($K81,2)=RIGHT(BU$39,2),SUM($AV81:AY81),0)+IF(RIGHT(BU$39,2)>RIGHT($K81,2),AY81,0)) -> 0.1019385549 | BV81: =+IF($K81="Ongoing",AZ81,IF(RIGHT($K81,2)=RIGHT(BV$39,2),SUM($AV81:AZ81),0)+IF(RIGHT(BV$39,2)>RIGHT($K81,2),AZ81,0)) -> 0.1290568847 | BW81: =+IF($K81="Ongoing",BA81,IF(RIGHT($K81,2)=RIGHT(BW$39,2),SUM($AV81:BA81),0)+IF(RIGHT(BW$39,2)>RIGHT($K81,2),BA81,0)) -> 0.2781648658 | BX81: =+IF($K81="Ongoing",BB81,IF(RIGHT($K81,2)=RIGHT(BX$39,2),SUM($AV81:BB81),0)+IF(RIGHT(BX$39,2)>RIGHT($K81,2),BB81,0)) -> 0.2696903878 | BY81: =+IF($K81="Ongoing",BC81,IF(RIGHT($K81,2)=RIGHT(BY$39,2),SUM($AV81:BC81),0)+IF(RIGHT(BY$39,2)>RIGHT($K81,2),BC81,0)) -> 0.2318861447 | BZ81: =+IF($K81="Ongoing",BD81,IF(RIGHT($K81,2)=RIGHT(BZ$39,2),SUM($AV81:BD81),0)+IF(RIGHT(BZ$39,2)>RIGHT($K81,2),BD81,0)) -> 0.1817614124 | CA81: =+IF($K81="Ongoing",BE81,IF(RIGHT($K81,2)=RIGHT(CA$39,2),SUM($AV81:BE81),0)+IF(RIGHT(CA$39,2)>RIGHT($K81,2),BE81,0)) -> 0.1793885585 | CC81: =+O81*KeyAssumptionsPriceControl_FO!X$15 -> 0.1450656459 | CD81: =+P81*KeyAssumptionsPriceControl_FO!Y$15 -> 0.1819434094 | CE81: =+Q81*KeyAssumptionsPriceControl_FO!Z$15 -> 0.06558604006 | CF81: =+R81*KeyAssumptionsPriceControl_FO!AA$15 -> 0.1116454446 | CG81: =+S81*KeyAssumptionsPriceControl_FO!AB$15 -> 0.1445970211 | CH81: =+T81*KeyAssumptionsPriceControl_FO!AC$15 -> 0.3188277226 | CI81: =+U81*KeyAssumptionsPriceControl_FO!AD$15 -> 0.3162240552 | CJ81: =+V81*KeyAssumptionsPriceControl_FO!AE$15 -> 0.278150516 | CK81: =+W81*KeyAssumptionsPriceControl_FO!AF$15 -> 0.2230398129 | CL81: =+X81*KeyAssumptionsPriceControl_FO!AG$15 -> 0.2251910248 | CN81: 0.01450656459 | CO81: 0.04720747013 | CP81: 0.07196041508 | CQ81: 0.08968356354 | CR81: 0.1153078101 | CS81: 0.1471437199 | CT81: 0.1779479921 | CU81: 0.2126325043 | CV81: 0.2450283887 | CW81: 0.2642272259
C82: Maintaining essential IT capability | E82: Sewerage | F82: Improvements / Compliance | G82: Corporate | H82: Capital Programs / Allocation | J82: Straight line | K82: Ongoing | L82: 5 | M82: 5 | O82: 0.304532383 | P82: 0.3733615575 | Q82: 0.1315615699 | R82: 0.2189187759 | S82: 0.2771569132 | T82: 0.5973746831 | U82: 0.5791752652 | V82: 0.4979885285 | W82: 0.3903428486 | X82: 0.3852470116 | Z82: 0 | AA82: 0 | AB82: 0 | AC82: 0 | AD82: 0 | AE82: 0 | AF82: 0 | AG82: 0 | AH82: 0 | AI82: 0 | AK82: 0 | AL82: 0 | AM82: 0 | AN82: 0 | AO82: 0 | AP82: 0 | AQ82: 0 | AR82: 0 | AS82: 0 | AT82: 0 | AV82: 0.304532383 | AW82: =+P82-AA82-AL82 -> 0.3733615575 | AX82: 0.1315615699 | AY82: 0.2189187759 | AZ82: 0.2771569132 | BA82: 0.5973746831 | BB82: 0.5791752652 | BC82: 0.4979885285 | BD82: 0.3903428486 | BE82: 0.3852470116 | BG82: 0.0304532383 | BH82: 0.09824263235 | BI82: 0.1487349451 | BJ82: 0.1837829797 | BK82: 0.2333905486 | BL82: 0.2903904699 | BM82: 0.3402560707 | BN82: 0.3974801373 | BO82: 0.4512652404 | BP82: 0.4792166576 | BR82: =+IF($K82="Ongoing",AV82,IF(RIGHT($K82,2)=RIGHT(BR$39,2),SUM($AV82:AV82),0)+IF(RIGHT(BR$39,2)>RIGHT($K82,2),AV82,0)) -> 0.304532383 | BS82: =+IF($K82="Ongoing",AW82,IF(RIGHT($K82,2)=RIGHT(BS$39,2),SUM($AV82:AW82),0)+IF(RIGHT(BS$39,2)>RIGHT($K82,2),AW82,0)) -> 0.3733615575 | BT82: =+IF($K82="Ongoing",AX82,IF(RIGHT($K82,2)=RIGHT(BT$39,2),SUM($AV82:AX82),0)+IF(RIGHT(BT$39,2)>RIGHT($K82,2),AX82,0)) -> 0.1315615699 | BU82: =+IF($K82="Ongoing",AY82,IF(RIGHT($K82,2)=RIGHT(BU$39,2),SUM($AV82:AY82),0)+IF(RIGHT(BU$39,2)>RIGHT($K82,2),AY82,0)) -> 0.2189187759 | BV82: =+IF($K82="Ongoing",AZ82,IF(RIGHT($K82,2)=RIGHT(BV$39,2),SUM($AV82:AZ82),0)+IF(RIGHT(BV$39,2)>RIGHT($K82,2),AZ82,0)) -> 0.2771569132 | BW82: =+IF($K82="Ongoing",BA82,IF(RIGHT($K82,2)=RIGHT(BW$39,2),SUM($AV82:BA82),0)+IF(RIGHT(BW$39,2)>RIGHT($K82,2),BA82,0)) -> 0.5973746831 | BX82: =+IF($K82="Ongoing",BB82,IF(RIGHT($K82,2)=RIGHT(BX$39,2),SUM($AV82:BB82),0)+IF(RIGHT(BX$39,2)>RIGHT($K82,2),BB82,0)) -> 0.5791752652 | BY82: =+IF($K82="Ongoing",BC82,IF(RIGHT($K82,2)=RIGHT(BY$39,2),SUM($AV82:BC82),0)+IF(RIGHT(BY$39,2)>RIGHT($K82,2),BC82,0)) -> 0.4979885285 | BZ82: =+IF($K82="Ongoing",BD82,IF(RIGHT($K82,2)=RIGHT(BZ$39,2),SUM($AV82:BD82),0)+IF(RIGHT(BZ$39,2)>RIGHT($K82,2),BD82,0)) -> 0.3903428486 | CA82: =+IF($K82="Ongoing",BE82,IF(RIGHT($K82,2)=RIGHT(CA$39,2),SUM($AV82:BE82),0)+IF(RIGHT(CA$39,2)>RIGHT($K82,2),BE82,0)) -> 0.3852470116 | CC82: =+O82*KeyAssumptionsPriceControl_FO!X$15 -> 0.3115366278 | CD82: =+P82*KeyAssumptionsPriceControl_FO!Y$15 -> 0.3907336974 | CE82: =+Q82*KeyAssumptionsPriceControl_FO!Z$15 -> 0.1408497072 | CF82: =+R82*KeyAssumptionsPriceControl_FO!AA$15 -> 0.2397648671 | CG82: =+S82*KeyAssumptionsPriceControl_FO!AB$15 -> 0.3105302296 | CH82: =+T82*KeyAssumptionsPriceControl_FO!AC$15 -> 0.6847004533 | CI82: =+U82*KeyAssumptionsPriceControl_FO!AD$15 -> 0.6791089313 | CJ82: =+V82*KeyAssumptionsPriceControl_FO!AE$15 -> 0.5973438659 | CK82: =+W82*KeyAssumptionsPriceControl_FO!AF$15 -> 0.4789905338 | CL82: =+X82*KeyAssumptionsPriceControl_FO!AG$15 -> 0.4836103821 | CN82: 0.03115366278 | CO82: 0.1013806953 | CP82: 0.1545390358 | CQ82: 0.1926004932 | CR82: 0.2476300028 | CS82: 0.3159994084 | CT82: 0.3821533143 | CU82: 0.4566402536 | CV82: 0.5262122361 | CW82: 0.567442818
C83: Maintaining essential IT capability | E83: Recycled Water | F83: Improvements / Compliance | G83: Corporate | H83: Capital Programs / Allocation | J83: Straight line | K83: Ongoing | L83: 5 | M83: 5 | O83: 0.3945009218 | P83: 0.4836644208 | Q83: 0.1704290365 | R83: 0.2835943359 | S83: 0.3590378688 | T83: 0.773858139 | U83: 0.750282035 | V83: 0.6451101576 | W83: 0.5056625247 | X83: 0.4990612156 | Z83: 0 | AA83: 0 | AB83: 0 | AC83: 0 | AD83: 0 | AE83: 0 | AF83: 0 | AG83: 0 | AH83: 0 | AI83: 0 | AK83: 0 | AL83: 0 | AM83: 0 | AN83: 0 | AO83: 0 | AP83: 0 | AQ83: 0 | AR83: 0 | AS83: 0 | AT83: 0 | AV83: =+O83-Z83-AK83 -> 0.3945009218 | AW83: 0.4836644208 | AX83: 0.1704290365 | AY83: 0.2835943359 | AZ83: 0.3590378688 | BA83: 0.773858139 | BB83: 0.750282035 | BC83: 0.6451101576 | BD83: 0.5056625247 | BE83: 0.4990612156 | BG83: 0.03945009218 | BH83: 0.1272666265 | BI83: 0.1926759722 | BJ83: 0.2380783094 | BK83: 0.3023415299 | BL83: 0.3761810385 | BM83: 0.4407785216 | BN83: 0.5149083952 | BO83: 0.5845833261 | BP83: 0.6207924797 | BR83: =+IF($K83="Ongoing",AV83,IF(RIGHT($K83,2)=RIGHT(BR$39,2),SUM($AV83:AV83),0)+IF(RIGHT(BR$39,2)>RIGHT($K83,2),AV83,0)) -> 0.3945009218 | BS83: =+IF($K83="Ongoing",AW83,IF(RIGHT($K83,2)=RIGHT(BS$39,2),SUM($AV83:AW83),0)+IF(RIGHT(BS$39,2)>RIGHT($K83,2),AW83,0)) -> 0.4836644208 | BT83: =+IF($K83="Ongoing",AX83,IF(RIGHT($K83,2)=RIGHT(BT$39,2),SUM($AV83:AX83),0)+IF(RIGHT(BT$39,2)>RIGHT($K83,2),AX83,0)) -> 0.1704290365 | BU83: =+IF($K83="Ongoing",AY83,IF(RIGHT($K83,2)=RIGHT(BU$39,2),SUM($AV83:AY83),0)+IF(RIGHT(BU$39,2)>RIGHT($K83,2),AY83,0)) -> 0.2835943359 | BV83: =+IF($K83="Ongoing",AZ83,IF(RIGHT($K83,2)=RIGHT(BV$39,2),SUM($AV83:AZ83),0)+IF(RIGHT(BV$39,2)>RIGHT($K83,2),AZ83,0)) -> 0.3590378688 | BW83: =+IF($K83="Ongoing",BA83,IF(RIGHT($K83,2)=RIGHT(BW$39,2),SUM($AV83:BA83),0)+IF(RIGHT(BW$39,2)>RIGHT($K83,2),BA83,0)) -> 0.773858139 | BX83: =+IF($K83="Ongoing",BB83,IF(RIGHT($K83,2)=RIGHT(BX$39,2),SUM($AV83:BB83),0)+IF(RIGHT(BX$39,2)>RIGHT($K83,2),BB83,0)) -> 0.750282035 | BY83: =+IF($K83="Ongoing",BC83,IF(RIGHT($K83,2)=RIGHT(BY$39,2),SUM($AV83:BC83),0)+IF(RIGHT(BY$39,2)>RIGHT($K83,2),BC83,0)) -> 0.6451101576 | BZ83: =+IF($K83="Ongoing",BD83,IF(RIGHT($K83,2)=RIGHT(BZ$39,2),SUM($AV83:BD83),0)+IF(RIGHT(BZ$39,2)>RIGHT($K83,2),BD83,0)) -> 0.5056625247 | CA83: =+IF($K83="Ongoing",BE83,IF(RIGHT($K83,2)=RIGHT(CA$39,2),SUM($AV83:BE83),0)+IF(RIGHT(CA$39,2)>RIGHT($K83,2),BE83,0)) -> 0.4990612156 | CC83: =+O83*KeyAssumptionsPriceControl_FO!X$15 -> 0.4035744431 | CD83: =+P83*KeyAssumptionsPriceControl_FO!Y$15 -> 0.5061688427 | CE83: =+Q83*KeyAssumptionsPriceControl_FO!Z$15 -> 0.1824611845 | CF83: =+R83*KeyAssumptionsPriceControl_FO!AA$15 -> 0.3105990245 | CG83: =+S83*KeyAssumptionsPriceControl_FO!AB$15 -> 0.4022707228 | CH83: =+T83*KeyAssumptionsPriceControl_FO!AC$15 -> 0.8869827156 | CI83: =+U83*KeyAssumptionsPriceControl_FO!AD$15 -> 0.8797392804 | CJ83: =+V83*KeyAssumptionsPriceControl_FO!AE$15 -> 0.7738182175 | CK83: =+W83*KeyAssumptionsPriceControl_FO!AF$15 -> 0.6204995518 | CL83: =+X83*KeyAssumptionsPriceControl_FO!AG$15 -> 0.62648425 | CN83: 0.04035744431 | CO83: 0.1313317729 | CP83: 0.2001947756 | CQ83: 0.2495007965 | CR83: 0.3207877712 | CS83: 0.4093556708 | CT83: 0.4950535418 | CU83: 0.5915462889 | CV83: 0.6816720449 | CW83: 0.7350834503
C84: Billing, customer records management and customer data management | E84: Water | F84: Improvements / Compliance | G84: Corporate | H84: Capital Programs / Allocation | J84: Straight line | K84: Ongoing | L84: 5 | M84: 5 | O84: 0.03058398988 | P84: 0.04055146021 | Q84: 0.005198729682 | R84: 0.003702349085 | S84: 0.009206844816 | T84: 0.004486795441 | U84: 0.004553651664 | V84: 0.004620507887 | W84: 0.004687364111 | X84: 0.004754220334 | Z84: 0 | AA84: 0 | AB84: 0 | AC84: 0 | AD84: 0 | AE84: 0 | AF84: 0 | AG84: 0 | AH84: 0 | AI84: 0 | AK84: 0 | AL84: 0 | AM84: 0 | AN84: 0 | AO84: 0 | AP84: 0 | AQ84: 0 | AR84: 0 | AS84: 0 | AT84: 0 | AV84: 0.03058398988 | AW84: 0.04055146021 | AX84: 0.005198729682 | AY84: 0.003702349085 | AZ84: 0.009206844816 | BA84: 0.004486795441 | BB84: 0.004553651664 | BC84: 0.004620507887 | BD84: 0.004687364111 | BE84: 0.004754220334 | BG84: 0.003058398988 | BH84: 0.010171944 | BI84: 0.01474696298 | BJ84: 0.01563707086 | BK84: 0.01692799025 | BL84: 0.01523895529 | BM84: 0.009029454992 | BN84: 0.005371851958 | BO84: =IF($L84=0,0, IF($L84<=0.5,BZ84, IF(AND($J84="straight line",$L84<1.51),(BY84-((BY84/$L84)*0.5))+BZ84/$L84*0.5, IF($J84="straight line", IF((LEFT(BO$39,4)*1)-INT($L84)<LEFT($BG$39,4)*1,0,((OFFSET(BZ84,0,-INT($L84+0.5),1,1))/$L84)*(IF($L84-INT($L84)>0.5,$L84-0.5-INT($L84),IF($L84-INT($L84)<=0.5,$L84-0.5-INT($L84)+1,0)))) +BZ84/$L84*0.5 +SUM(OFFSET(BZ84,0,MAX(-INT($L84+(0.5-(10^-12))),-BO$40)+1,1,MIN(INT($L84+(0.5-(10^-12))),BO$40)-1))*1/$L84, IF($J84="Declining Balance",-$BG$38,0))))) -> 0.005412531281 | BP84: 0.005065770336 | BR84: =+IF($K84="Ongoing",AV84,IF(RIGHT($K84,2)=RIGHT(BR$39,2),SUM($AV84:AV84),0)+IF(RIGHT(BR$39,2)>RIGHT($K84,2),AV84,0)) -> 0.03058398988 | BS84: =+IF($K84="Ongoing",AW84,IF(RIGHT($K84,2)=RIGHT(BS$39,2),SUM($AV84:AW84),0)+IF(RIGHT(BS$39,2)>RIGHT($K84,2),AW84,0)) -> 0.04055146021 | BT84: =+IF($K84="Ongoing",AX84,IF(RIGHT($K84,2)=RIGHT(BT$39,2),SUM($AV84:AX84),0)+IF(RIGHT(BT$39,2)>RIGHT($K84,2),AX84,0)) -> 0.005198729682 | BU84: =+IF($K84="Ongoing",AY84,IF(RIGHT($K84,2)=RIGHT(BU$39,2),SUM($AV84:AY84),0)+IF(RIGHT(BU$39,2)>RIGHT($K84,2),AY84,0)) -> 0.003702349085 | BV84: =+IF($K84="Ongoing",AZ84,IF(RIGHT($K84,2)=RIGHT(BV$39,2),SUM($AV84:AZ84),0)+IF(RIGHT(BV$39,2)>RIGHT($K84,2),AZ84,0)) -> 0.009206844816 | BW84: =+IF($K84="Ongoing",BA84,IF(RIGHT($K84,2)=RIGHT(BW$39,2),SUM($AV84:BA84),0)+IF(RIGHT(BW$39,2)>RIGHT($K84,2),BA84,0)) -> 0.004486795441 | BX84: =+IF($K84="Ongoing",BB84,IF(RIGHT($K84,2)=RIGHT(BX$39,2),SUM($AV84:BB84),0)+IF(RIGHT(BX$39,2)>RIGHT($K84,2),BB84,0)) -> 0.004553651664 | BY84: =+IF($K84="Ongoing",BC84,IF(RIGHT($K84,2)=RIGHT(BY$39,2),SUM($AV84:BC84),0)+IF(RIGHT(BY$39,2)>RIGHT($K84,2),BC84,0)) -> 0.004620507887 | BZ84: =+IF($K84="Ongoing",BD84,IF(RIGHT($K84,2)=RIGHT(BZ$39,2),SUM($AV84:BD84),0)+IF(RIGHT(BZ$39,2)>RIGHT($K84,2),BD84,0)) -> 0.004687364111 | CA84: =+IF($K84="Ongoing",BE84,IF(RIGHT($K84,2)=RIGHT(CA$39,2),SUM($AV84:BE84),0)+IF(RIGHT(CA$39,2)>RIGHT($K84,2),BE84,0)) -> 0.004754220334 | CC84: =+O84*KeyAssumptionsPriceControl_FO!X$15 -> 0.03128742164 | CD84: =+P84*KeyAssumptionsPriceControl_FO!Y$15 -> 0.0424382791 | CE84: =+Q84*KeyAssumptionsPriceControl_FO!Z$15 -> 0.005565755666 | CF84: =+R84*KeyAssumptionsPriceControl_FO!AA$15 -> 0.004054897679 | CG84: =+S84*KeyAssumptionsPriceControl_FO!AB$15 -> 0.01031546932 | CH84: =+T84*KeyAssumptionsPriceControl_FO!AC$15 -> 0.005142686758 | CI84: =+U84*KeyAssumptionsPriceControl_FO!AD$15 -> 0.005339360469 | CJ84: =+V84*KeyAssumptionsPriceControl_FO!AE$15 -> 0.005542360689 | CK84: =+W84*KeyAssumptionsPriceControl_FO!AF$15 -> 0.005751874398 | CL84: =+X84*KeyAssumptionsPriceControl_FO!AG$15 -> 0.005968093828 | CN84: 0.003128742164 | CO84: 0.01050131224 | CP84: 0.01530171572 | CQ84: 0.01626378105 | CR84: 0.01770081775 | CS84: 0.01611789119 | CT84: 0.009793525841 | CU84: 0.00608129448 | CV84: =IF($M84=0,0, IF($M84<=0.5,CK84, IF(AND($J84="straight line",$M84<1.51),(CJ84-((CJ84/$M84)*0.5))+CK84/$M84*0.5, IF($J84="straight line", IF((LEFT(CV$39,4)*1)-INT($M84)<LEFT($CN$39,4)*1,0,((OFFSET(CK84,0,-INT($M84+0.5),1,1))/$M84)*(IF($M84-INT($M84)>0.5,$M84-0.5-INT($M84),IF($M84-INT($M84)<=0.5,$M84-0.5-INT($M84)+1,0)))) +CK84/$M84*0.5 +SUM(OFFSET(CK84,0,MAX(-INT($M84+(0.5-(10^-12))),-CV$40)+1,1,MIN(INT($M84+(0.5-(10^-12))),CV$40)-1))*1/$M84, IF($J84="Declining Balance",-$CN$38,0))))) -> 0.006248652654 | CW84: 0.005983612777
C85: Billing, customer records management and customer data management | E85: Sewerage | F85: Improvements / Compliance | G85: Corporate | H85: Capital Programs / Allocation | J85: Straight line | K85: Ongoing | L85: 5 | M85: 5 | O85: 0.06568083717 | P85: 0.08708653991 | Q85: 0.01116456417 | R85: 0.007951002744 | S85: 0.01977221669 | T85: 0.00963564538 | U85: 0.009779222877 | V85: 0.009922800374 | W85: 0.01006637787 | X85: 0.01020995537 | Z85: 0 | AA85: 0 | AB85: 0 | AC85: 0 | AD85: 0 | AE85: 0 | AF85: 0 | AG85: 0 | AH85: 0 | AI85: 0 | AK85: 0 | AL85: 0 | AM85: 0 | AN85: 0 | AO85: 0 | AP85: 0 | AQ85: 0 | AR85: 0 | AS85: 0 | AT85: 0 | AV85: 0.06568083717 | AW85: 0.08708653991 | AX85: 0.01116456417 | AY85: 0.007951002744 | AZ85: 0.01977221669 | BA85: 0.00963564538 | BB85: 0.009779222877 | BC85: 0.009922800374 | BD85: 0.01006637787 | BE85: 0.01020995537 | BG85: 0.006568083717 | BH85: =IF($L85=0,0, IF($L85<=0.5,BS85, IF(AND($J85="straight line",$L85<1.51),(BR85-((BR85/$L85)*0.5))+BS85/$L85*0.5, IF($J85="straight line", IF((LEFT(BH$39,4)*1)-INT($L85)<LEFT($BG$39,4)*1,0,((OFFSET(BS85,0,-INT($L85+0.5),1,1))/$L85)*(IF($L85-INT($L85)>0.5,$L85-0.5-INT($L85),IF($L85-INT($L85)<=0.5,$L85-0.5-INT($L85)+1,0)))) +BS85/$L85*0.5 +SUM(OFFSET(BS85,0,MAX(-INT($L85+(0.5-(10^-12))),-BH$40)+1,1,MIN(INT($L85+(0.5-(10^-12))),BH$40)-1))*1/$L85, IF($J85="Declining Balance",-$BG$38,0))))) -> 0.02184482142 | BI85: 0.03166993183 | BJ85: 0.03358148852 | BK85: 0.03635381047 | BL85: 0.03272651296 | BM85: 0.01939126208 | BN85: 0.01153635399 | BO85: 0.01162371513 | BP85: 0.01087902651 | BR85: =+IF($K85="Ongoing",AV85,IF(RIGHT($K85,2)=RIGHT(BR$39,2),SUM($AV85:AV85),0)+IF(RIGHT(BR$39,2)>RIGHT($K85,2),AV85,0)) -> 0.06568083717 | BS85: =+IF($K85="Ongoing",AW85,IF(RIGHT($K85,2)=RIGHT(BS$39,2),SUM($AV85:AW85),0)+IF(RIGHT(BS$39,2)>RIGHT($K85,2),AW85,0)) -> 0.08708653991 | BT85: =+IF($K85="Ongoing",AX85,IF(RIGHT($K85,2)=RIGHT(BT$39,2),SUM($AV85:AX85),0)+IF(RIGHT(BT$39,2)>RIGHT($K85,2),AX85,0)) -> 0.01116456417 | BU85: =+IF($K85="Ongoing",AY85,IF(RIGHT($K85,2)=RIGHT(BU$39,2),SUM($AV85:AY85),0)+IF(RIGHT(BU$39,2)>RIGHT($K85,2),AY85,0)) -> 0.007951002744 | BV85: =+IF($K85="Ongoing",AZ85,IF(RIGHT($K85,2)=RIGHT(BV$39,2),SUM($AV85:AZ85),0)+IF(RIGHT(BV$39,2)>RIGHT($K85,2),AZ85,0)) -> 0.01977221669 | BW85: =+IF($K85="Ongoing",BA85,IF(RIGHT($K85,2)=RIGHT(BW$39,2),SUM($AV85:BA85),0)+IF(RIGHT(BW$39,2)>RIGHT($K85,2),BA85,0)) -> 0.00963564538 | BX85: =+IF($K85="Ongoing",BB85,IF(RIGHT($K85,2)=RIGHT(BX$39,2),SUM($AV85:BB85),0)+IF(RIGHT(BX$39,2)>RIGHT($K85,2),BB85,0)) -> 0.009779222877 | BY85: =+IF($K85="Ongoing",BC85,IF(RIGHT($K85,2)=RIGHT(BY$39,2),SUM($AV85:BC85),0)+IF(RIGHT(BY$39,2)>RIGHT($K85,2),BC85,0)) -> 0.009922800374 | BZ85: =+IF($K85="Ongoing",BD85,IF(RIGHT($K85,2)=RIGHT(BZ$39,2),SUM($AV85:BD85),0)+IF(RIGHT(BZ$39,2)>RIGHT($K85,2),BD85,0)) -> 0.01006637787 | CA85: =+IF($K85="Ongoing",BE85,IF(RIGHT($K85,2)=RIGHT(CA$39,2),SUM($AV85:BE85),0)+IF(RIGHT(CA$39,2)>RIGHT($K85,2),BE85,0)) -> 0.01020995537 | CC85: =+O85*KeyAssumptionsPriceControl_FO!X$15 -> 0.06719149642 | CD85: =+P85*KeyAssumptionsPriceControl_FO!Y$15 -> 0.09113858952 | CE85: =+Q85*KeyAssumptionsPriceControl_FO!Z$15 -> 0.01195277311 | CF85: =+R85*KeyAssumptionsPriceControl_FO!AA$15 -> 0.008708120663 | CG85: =+S85*KeyAssumptionsPriceControl_FO!AB$15 -> 0.02215305012 | CH85: =+T85*KeyAssumptionsPriceControl_FO!AC$15 -> 0.01104420885 | CI85: =+U85*KeyAssumptionsPriceControl_FO!AD$15 -> 0.01146657669 | CJ85: =+V85*KeyAssumptionsPriceControl_FO!AE$15 -> 0.01190253108 | CK85: =+W85*KeyAssumptionsPriceControl_FO!AF$15 -> 0.01235247354 | CL85: =+X85*KeyAssumptionsPriceControl_FO!AG$15 -> 0.01281681692 | CN85: 0.006719149642 | CO85: =IF($M85=0,0, IF($M85<=0.5,CD85, IF(AND($J85="straight line",$M85<1.51),(CC85-((CC85/$M85)*0.5))+CD85/$M85*0.5, IF($J85="straight line", IF((LEFT(CO$39,4)*1)-INT($M85)<LEFT($CN$39,4)*1,0,((OFFSET(CD85,0,-INT($M85+0.5),1,1))/$M85)*(IF($M85-INT($M85)>0.5,$M85-0.5-INT($M85),IF($M85-INT($M85)<=0.5,$M85-0.5-INT($M85)+1,0)))) +CD85/$M85*0.5 +SUM(OFFSET(CD85,0,MAX(-INT($M85+(0.5-(10^-12))),-CO$40)+1,1,MIN(INT($M85+(0.5-(10^-12))),CO$40)-1))*1/$M85, IF($J85="Declining Balance",-$CN$38,0))))) -> 0.02255215824 | CP85: 0.0328612945 | CQ85: 0.03492738388 | CR85: 0.03801350095 | CS85: 0.03461407721 | CT85: 0.02103214717 | CU85: 0.01305992168 | CV85: 0.01341933277 | CW85: 0.01285014474
C86: Billing, customer records management and customer data management | E86: Recycled Water | F86: Improvements / Compliance | G86: Corporate | H86: Capital Programs / Allocation | J86: Straight line | K86: Ongoing | L86: 5 | M86: 5 | O86: 0.08508504271 | P86: 0.11281467 | Q86: 0.01446293106 | R86: 0.0102999815 | S86: 0.02561355754 | T86: 0.01248232108 | U86: 0.01266831594 | V86: 0.01285431079 | W86: 0.01304030564 | X86: 0.01322630049 | Z86: 0 | AA86: 0 | AB86: 0 | AC86: 0 | AD86: 0 | AE86: 0 | AF86: 0 | AG86: 0 | AH86: 0 | AI86: 0 | AK86: 0 | AL86: 0 | AM86: 0 | AN86: 0 | AO86: 0 | AP86: 0 | AQ86: 0 | AR86: 0 | AS86: 0 | AT86: 0 | AV86: 0.08508504271 | AW86: 0.11281467 | AX86: 0.01446293106 | AY86: 0.0102999815 | AZ86: 0.02561355754 | BA86: 0.01248232108 | BB86: 0.01266831594 | BC86: 0.01285431079 | BD86: 0.01304030564 | BE86: 0.01322630049 | BG86: 0.008508504271 | BH86: 0.02829847554 | BI86: 0.04102623564 | BJ86: 0.04350252689 | BK86: 0.0470938808 | BL86: 0.04239496439 | BM86: 0.02512005682 | BN86: 0.0149445594 | BO86: 0.01505772978 | BP86: 0.01409303649 | BR86: =+IF($K86="Ongoing",AV86,IF(RIGHT($K86,2)=RIGHT(BR$39,2),SUM($AV86:AV86),0)+IF(RIGHT(BR$39,2)>RIGHT($K86,2),AV86,0)) -> 0.08508504271 | BS86: =+IF($K86="Ongoing",AW86,IF(RIGHT($K86,2)=RIGHT(BS$39,2),SUM($AV86:AW86),0)+IF(RIGHT(BS$39,2)>RIGHT($K86,2),AW86,0)) -> 0.11281467 | BT86: =+IF($K86="Ongoing",AX86,IF(RIGHT($K86,2)=RIGHT(BT$39,2),SUM($AV86:AX86),0)+IF(RIGHT(BT$39,2)>RIGHT($K86,2),AX86,0)) -> 0.01446293106 | BU86: =+IF($K86="Ongoing",AY86,IF(RIGHT($K86,2)=RIGHT(BU$39,2),SUM($AV86:AY86),0)+IF(RIGHT(BU$39,2)>RIGHT($K86,2),AY86,0)) -> 0.0102999815 | BV86: =+IF($K86="Ongoing",AZ86,IF(RIGHT($K86,2)=RIGHT(BV$39,2),SUM($AV86:AZ86),0)+IF(RIGHT(BV$39,2)>RIGHT($K86,2),AZ86,0)) -> 0.02561355754 | BW86: =+IF($K86="Ongoing",BA86,IF(RIGHT($K86,2)=RIGHT(BW$39,2),SUM($AV86:BA86),0)+IF(RIGHT(BW$39,2)>RIGHT($K86,2),BA86,0)) -> 0.01248232108 | BX86: =+IF($K86="Ongoing",BB86,IF(RIGHT($K86,2)=RIGHT(BX$39,2),SUM($AV86:BB86),0)+IF(RIGHT(BX$39,2)>RIGHT($K86,2),BB86,0)) -> 0.01266831594 | BY86: =+IF($K86="Ongoing",BC86,IF(RIGHT($K86,2)=RIGHT(BY$39,2),SUM($AV86:BC86),0)+IF(RIGHT(BY$39,2)>RIGHT($K86,2),BC86,0)) -> 0.01285431079 | BZ86: =+IF($K86="Ongoing",BD86,IF(RIGHT($K86,2)=RIGHT(BZ$39,2),SUM($AV86:BD86),0)+IF(RIGHT(BZ$39,2)>RIGHT($K86,2),BD86,0)) -> 0.01304030564 | CA86: =+IF($K86="Ongoing",BE86,IF(RIGHT($K86,2)=RIGHT(CA$39,2),SUM($AV86:BE86),0)+IF(RIGHT(CA$39,2)>RIGHT($K86,2),BE86,0)) -> 0.01322630049 | CC86: =+O86*KeyAssumptionsPriceControl_FO!X$15 -> 0.08704199869 | CD86: =+P86*KeyAssumptionsPriceControl_FO!Y$15 -> 0.1180638237 | CE86: =+Q86*KeyAssumptionsPriceControl_FO!Z$15 -> 0.01548400194 | CF86: =+R86*KeyAssumptionsPriceControl_FO!AA$15 -> 0.01128077611 | CG86: =+S86*KeyAssumptionsPriceControl_FO!AB$15 -> 0.02869776478 | CH86: =+T86*KeyAssumptionsPriceControl_FO!AC$15 -> 0.01430701894 | CI86: =+U86*KeyAssumptionsPriceControl_FO!AD$15 -> 0.01485416767 | CJ86: =+V86*KeyAssumptionsPriceControl_FO!AE$15 -> 0.01541891682 | CK86: =+W86*KeyAssumptionsPriceControl_FO!AF$15 -> 0.01600178658 | CL86: =+X86*KeyAssumptionsPriceControl_FO!AG$15 -> 0.01660331174 | CN86: 0.008704199869 | CO86: 0.02921478211 | CP86: 0.04256956468 | CQ86: 0.04524604248 | CR86: 0.04924389657 | CS86: 0.04484017507 | CT86: 0.02724571149 | CU86: 0.01691823737 | CV86: 0.01738382991 | CW86: 0.01664648565
C87: Billing, customer records management and customer data management | E87: Water | F87: Renewals | G87: Corporate | H87: Capital Programs / Allocation | J87: Straight line | K87: Ongoing | L87: 5 | M87: 5 | O87: 0.3827131706 | P87: 0.5074412453 | Q87: 0.06505437412 | R87: 0.04632939531 | S87: 0.115209977 | T87: 0.05614557538 | U87: 0.05698218163 | V87: 0.05781878789 | W87: 0.05865539414 | X87: 0.0594920004 | Z87: 0 | AA87: 0 | AB87: 0 | AC87: 0 | AD87: 0 | AE87: 0 | AF87: 0 | AG87: 0 | AH87: 0 | AI87: 0 | AK87: 0 | AL87: 0 | AM87: 0 | AN87: 0 | AO87: 0 | AP87: 0 | AQ87: 0 | AR87: 0 | AS87: 0 | AT87: 0 | AV87: 0.3827131706 | AW87: 0.5074412453 | AX87: 0.06505437412 | AY87: 0.04632939531 | AZ87: 0.115209977 | BA87: 0.05614557538 | BB87: 0.05698218163 | BC87: 0.05781878789 | BD87: 0.05865539414 | BE87: 0.0594920004 | BG87: 0.03827131706 | BH87: 0.1272867587 | BI87: 0.1845363206 | BJ87: 0.1956746975 | BK87: 0.2118286348 | BL87: 0.190692873 | BM87: 0.1129902071 | BN87: 0.06722074207 | BO87: 0.06772978333 | BP87: 0.06339058555 | BR87: =+IF($K87="Ongoing",AV87,IF(RIGHT($K87,2)=RIGHT(BR$39,2),SUM($AV87:AV87),0)+IF(RIGHT(BR$39,2)>RIGHT($K87,2),AV87,0)) -> 0.3827131706 | BS87: =+IF($K87="Ongoing",AW87,IF(RIGHT($K87,2)=RIGHT(BS$39,2),SUM($AV87:AW87),0)+IF(RIGHT(BS$39,2)>RIGHT($K87,2),AW87,0)) -> 0.5074412453 | BT87: =+IF($K87="Ongoing",AX87,IF(RIGHT($K87,2)=RIGHT(BT$39,2),SUM($AV87:AX87),0)+IF(RIGHT(BT$39,2)>RIGHT($K87,2),AX87,0)) -> 0.06505437412 | BU87: =+IF($K87="Ongoing",AY87,IF(RIGHT($K87,2)=RIGHT(BU$39,2),SUM($AV87:AY87),0)+IF(RIGHT(BU$39,2)>RIGHT($K87,2),AY87,0)) -> 0.04632939531 | BV87: =+IF($K87="Ongoing",AZ87,IF(RIGHT($K87,2)=RIGHT(BV$39,2),SUM($AV87:AZ87),0)+IF(RIGHT(BV$39,2)>RIGHT($K87,2),AZ87,0)) -> 0.115209977 | BW87: =+IF($K87="Ongoing",BA87,IF(RIGHT($K87,2)=RIGHT(BW$39,2),SUM($AV87:BA87),0)+IF(RIGHT(BW$39,2)>RIGHT($K87,2),BA87,0)) -> 0.05614557538 | BX87: =+IF($K87="Ongoing",BB87,IF(RIGHT($K87,2)=RIGHT(BX$39,2),SUM($AV87:BB87),0)+IF(RIGHT(BX$39,2)>RIGHT($K87,2),BB87,0)) -> 0.05698218163 | BY87: =+IF($K87="Ongoing",BC87,IF(RIGHT($K87,2)=RIGHT(BY$39,2),SUM($AV87:BC87),0)+IF(RIGHT(BY$39,2)>RIGHT($K87,2),BC87,0)) -> 0.05781878789 | BZ87: =+IF($K87="Ongoing",BD87,IF(RIGHT($K87,2)=RIGHT(BZ$39,2),SUM($AV87:BD87),0)+IF(RIGHT(BZ$39,2)>RIGHT($K87,2),BD87,0)) -> 0.05865539414 | CA87: =+IF($K87="Ongoing",BE87,IF(RIGHT($K87,2)=RIGHT(CA$39,2),SUM($AV87:BE87),0)+IF(RIGHT(CA$39,2)>RIGHT($K87,2),BE87,0)) -> 0.0594920004 | CC87: =+O87*KeyAssumptionsPriceControl_FO!X$15 -> 0.3915155735 | CD87: =+P87*KeyAssumptionsPriceControl_FO!Y$15 -> 0.531051979 | CE87: =+Q87*KeyAssumptionsPriceControl_FO!Z$15 -> 0.06964715875 | CF87: =+R87*KeyAssumptionsPriceControl_FO!AA$15 -> 0.0507410169 | CG87: =+S87*KeyAssumptionsPriceControl_FO!AB$15 -> 0.1290827647 | CH87: =+T87*KeyAssumptionsPriceControl_FO!AC$15 -> 0.06435308024 | CI87: =+U87*KeyAssumptionsPriceControl_FO!AD$15 -> 0.06681415938 | CJ87: =+V87*KeyAssumptionsPriceControl_FO!AE$15 -> 0.06935440538 | CK87: =+W87*KeyAssumptionsPriceControl_FO!AF$15 -> 0.07197615801 | CL87: =+X87*KeyAssumptionsPriceControl_FO!AG$15 -> 0.07468182277 | CN87: 0.03915155735 | CO87: 0.1314083126 | CP87: 0.1914782264 | CQ87: 0.2035170439 | CR87: 0.2214994221 | CS87: 0.2016914492 | CT87: 0.122551418 | CU87: 0.07609836066 | CV87: 0.07819259943 | CW87: 0.07487601935
C88: Billing, customer records management and customer data management | E88: Sewerage | F88: Renewals | G88: Corporate | H88: Capital Programs / Allocation | J88: Straight line | K88: Ongoing | L88: 5 | M88: 5 | O88: 0.8218980435 | P88: 1.089758594 | Q88: 0.1397079247 | R88: 0.09949498028 | S88: 0.2474199008 | T88: 0.1205757787 | U88: 0.1223724376 | V88: 0.1241690966 | W88: 0.1259657555 | X88: 0.1277624145 | Z88: 0 | AA88: 0 | AB88: 0 | AC88: 0 | AD88: 0 | AE88: 0 | AF88: 0 | AG88: 0 | AH88: 0 | AI88: 0 | AK88: 0 | AL88: 0 | AM88: 0 | AN88: 0 | AO88: 0 | AP88: 0 | AQ88: 0 | AR88: 0 | AS88: 0 | AT88: 0 | AV88: 0.8218980435 | AW88: 1.089758594 | AX88: 0.1397079247 | AY88: 0.09949498028 | AZ88: 0.2474199008 | BA88: 0.1205757787 | BB88: 0.1223724376 | BC88: 0.1241690966 | BD88: 0.1259657555 | BE88: 0.1277624145 | BG88: 0.08218980435 | BH88: 0.2733554681 | BI88: 0.39630212 | BJ88: 0.4202224105 | BK88: 0.4549138986 | BL88: 0.4095236622 | BM88: 0.24265282 | BN88: 0.1443603216 | BO88: 0.1454535163 | BP88: 0.1361348452 | BR88: =+IF($K88="Ongoing",AV88,IF(RIGHT($K88,2)=RIGHT(BR$39,2),SUM($AV88:AV88),0)+IF(RIGHT(BR$39,2)>RIGHT($K88,2),AV88,0)) -> 0.8218980435 | BS88: =+IF($K88="Ongoing",AW88,IF(RIGHT($K88,2)=RIGHT(BS$39,2),SUM($AV88:AW88),0)+IF(RIGHT(BS$39,2)>RIGHT($K88,2),AW88,0)) -> 1.089758594 | BT88: =+IF($K88="Ongoing",AX88,IF(RIGHT($K88,2)=RIGHT(BT$39,2),SUM($AV88:AX88),0)+IF(RIGHT(BT$39,2)>RIGHT($K88,2),AX88,0)) -> 0.1397079247 | BU88: =+IF($K88="Ongoing",AY88,IF(RIGHT($K88,2)=RIGHT(BU$39,2),SUM($AV88:AY88),0)+IF(RIGHT(BU$39,2)>RIGHT($K88,2),AY88,0)) -> 0.09949498028 | BV88: =+IF($K88="Ongoing",AZ88,IF(RIGHT($K88,2)=RIGHT(BV$39,2),SUM($AV88:AZ88),0)+IF(RIGHT(BV$39,2)>RIGHT($K88,2),AZ88,0)) -> 0.2474199008 | BW88: =+IF($K88="Ongoing",BA88,IF(RIGHT($K88,2)=RIGHT(BW$39,2),SUM($AV88:BA88),0)+IF(RIGHT(BW$39,2)>RIGHT($K88,2),BA88,0)) -> 0.1205757787 | BX88: =+IF($K88="Ongoing",BB88,IF(RIGHT($K88,2)=RIGHT(BX$39,2),SUM($AV88:BB88),0)+IF(RIGHT(BX$39,2)>RIGHT($K88,2),BB88,0)) -> 0.1223724376 | BY88: =+IF($K88="Ongoing",BC88,IF(RIGHT($K88,2)=RIGHT(BY$39,2),SUM($AV88:BC88),0)+IF(RIGHT(BY$39,2)>RIGHT($K88,2),BC88,0)) -> 0.1241690966 | BZ88: =+IF($K88="Ongoing",BD88,IF(RIGHT($K88,2)=RIGHT(BZ$39,2),SUM($AV88:BD88),0)+IF(RIGHT(BZ$39,2)>RIGHT($K88,2),BD88,0)) -> 0.1259657555 | CA88: =+IF($K88="Ongoing",BE88,IF(RIGHT($K88,2)=RIGHT(CA$39,2),SUM($AV88:BE88),0)+IF(RIGHT(CA$39,2)>RIGHT($K88,2),BE88,0)) -> 0.1277624145 | CC88: =+O88*KeyAssumptionsPriceControl_FO!X$15 -> 0.8408016985 | CD88: =+P88*KeyAssumptionsPriceControl_FO!Y$15 -> 1.140463972 | CE88: =+Q88*KeyAssumptionsPriceControl_FO!Z$15 -> 0.1495711878 | CF88: =+R88*KeyAssumptionsPriceControl_FO!AA$15 -> 0.1089691856 | CG88: =+S88*KeyAssumptionsPriceControl_FO!AB$15 -> 0.277212492 | CH88: =+T88*KeyAssumptionsPriceControl_FO!AC$15 -> 0.1382018566 | CI88: =+U88*KeyAssumptionsPriceControl_FO!AD$15 -> 0.1434871624 | CJ88: =+V88*KeyAssumptionsPriceControl_FO!AE$15 -> 0.1489424835 | CK88: =+W88*KeyAssumptionsPriceControl_FO!AF$15 -> 0.1545728446 | CL88: =+X88*KeyAssumptionsPriceControl_FO!AG$15 -> 0.1603834117 | CN88: 0.08408016985 | CO88: 0.2822067369 | CP88: 0.4112102528 | CQ88: 0.4370642901 | CR88: 0.4756824579 | CS88: 0.4331437229 | CT88: 0.2631860578 | CU88: 0.1634255065 | CV88: 0.1679230019 | CW88: 0.1608004598
C89: Billing, customer records management and customer data management | E89: Recycled Water | F89: Renewals | G89: Corporate | H89: Capital Programs / Allocation | J89: Straight line | K89: Ongoing | L89: 5 | M89: 5 | O89: 1.064712832 | P89: 1.411707897 | Q89: 0.1809820832 | R89: 0.1288889577 | S89: 0.3205155984 | T89: 0.1561976936 | U89: 0.1585251426 | V89: 0.1608525917 | W89: 0.1631800408 | X89: 0.1655074899 | Z89: 0 | AA89: 0 | AB89: 0 | AC89: 0 | AD89: 0 | AE89: 0 | AF89: 0 | AG89: 0 | AH89: 0 | AI89: 0 | AK89: 0 | AL89: 0 | AM89: 0 | AN89: 0 | AO89: 0 | AP89: 0 | AQ89: 0 | AR89: 0 | AS89: 0 | AT89: 0 | AV89: 1.064712832 | AW89: 1.411707897 | AX89: 0.1809820832 | AY89: 0.1288889577 | AZ89: 0.3205155984 | BA89: 0.1561976936 | BB89: 0.1585251426 | BC89: 0.1608525917 | BD89: 0.1631800408 | BE89: 0.1655074899 | BG89: 0.1064712832 | BH89: 0.354113356 | BI89: 0.5133823541 | BJ89: 0.5443694581 | BK89: 0.5893099138 | BL89: 0.5305099598 | BM89: 0.3143401705 | BN89: 0.187008946 | BO89: 0.1884251051 | BP89: 0.1763534026 | BR89: =+IF($K89="Ongoing",AV89,IF(RIGHT($K89,2)=RIGHT(BR$39,2),SUM($AV89:AV89),0)+IF(RIGHT(BR$39,2)>RIGHT($K89,2),AV89,0)) -> 1.064712832 | BS89: =+IF($K89="Ongoing",AW89,IF(RIGHT($K89,2)=RIGHT(BS$39,2),SUM($AV89:AW89),0)+IF(RIGHT(BS$39,2)>RIGHT($K89,2),AW89,0)) -> 1.411707897 | BT89: =+IF($K89="Ongoing",AX89,IF(RIGHT($K89,2)=RIGHT(BT$39,2),SUM($AV89:AX89),0)+IF(RIGHT(BT$39,2)>RIGHT($K89,2),AX89,0)) -> 0.1809820832 | BU89: =+IF($K89="Ongoing",AY89,IF(RIGHT($K89,2)=RIGHT(BU$39,2),SUM($AV89:AY89),0)+IF(RIGHT(BU$39,2)>RIGHT($K89,2),AY89,0)) -> 0.1288889577 | BV89: =+IF($K89="Ongoing",AZ89,IF(RIGHT($K89,2)=RIGHT(BV$39,2),SUM($AV89:AZ89),0)+IF(RIGHT(BV$39,2)>RIGHT($K89,2),AZ89,0)) -> 0.3205155984 | BW89: =+IF($K89="Ongoing",BA89,IF(RIGHT($K89,2)=RIGHT(BW$39,2),SUM($AV89:BA89),0)+IF(RIGHT(BW$39,2)>RIGHT($K89,2),BA89,0)) -> 0.1561976936 | BX89: =+IF($K89="Ongoing",BB89,IF(RIGHT($K89,2)=RIGHT(BX$39,2),SUM($AV89:BB89),0)+IF(RIGHT(BX$39,2)>RIGHT($K89,2),BB89,0)) -> 0.1585251426 | BY89: =+IF($K89="Ongoing",BC89,IF(RIGHT($K89,2)=RIGHT(BY$39,2),SUM($AV89:BC89),0)+IF(RIGHT(BY$39,2)>RIGHT($K89,2),BC89,0)) -> 0.1608525917 | BZ89: =+IF($K89="Ongoing",BD89,IF(RIGHT($K89,2)=RIGHT(BZ$39,2),SUM($AV89:BD89),0)+IF(RIGHT(BZ$39,2)>RIGHT($K89,2),BD89,0)) -> 0.1631800408 | CA89: =+IF($K89="Ongoing",BE89,IF(RIGHT($K89,2)=RIGHT(CA$39,2),SUM($AV89:BE89),0)+IF(RIGHT(CA$39,2)>RIGHT($K89,2),BE89,0)) -> 0.1655074899 | CC89: =+O89*KeyAssumptionsPriceControl_FO!X$15 -> 1.089201227 | CD89: =+P89*KeyAssumptionsPriceControl_FO!Y$15 -> 1.477393254 | CE89: =+Q89*KeyAssumptionsPriceControl_FO!Z$15 -> 0.1937592675 | CF89: =+R89*KeyAssumptionsPriceControl_FO!AA$15 -> 0.1411621442 | CG89: =+S89*KeyAssumptionsPriceControl_FO!AB$15 -> 0.3591098674 | CH89: =+T89*KeyAssumptionsPriceControl_FO!AC$15 -> 0.1790310748 | CI89: =+U89*KeyAssumptionsPriceControl_FO!AD$15 -> 0.1858778278 | CJ89: =+V89*KeyAssumptionsPriceControl_FO!AE$15 -> 0.192944824 | CK89: =+W89*KeyAssumptionsPriceControl_FO!AF$15 -> 0.2002385726 | CL89: =+X89*KeyAssumptionsPriceControl_FO!AG$15 -> 0.2077657659 | CN89: 0.1089201227 | CO89: 0.3655795707 | CP89: 0.5326948229 | CQ89: 0.566186964 | CR89: 0.6162141652 | CS89: 0.5611081367 | CT89: 0.3409395789 | CU89: 0.211706592 | CV89: 0.2175327905 | CW89: 0.2083060232
C90: Other - Water | E90: Water | F90: Improvements / Compliance | G90: Pipelines/network | H90: Other Capital expenditure | J90: Straight line | K90: Ongoing | L90: 22.10022287 | M90: 22.10022287 | O90: 1.783197601 | P90: 1.802997245 | Q90: 1.593993454 | R90: 1.49250475 | S90: 1.45938857 | T90: 1.489214985 | U90: 1.489134218 | V90: 0.9071342182 | W90: 0.9071342182 | X90: 0.3268022182 | Z90: 0 | AA90: 0 | AB90: 0 | AC90: 0 | AD90: 0 | AE90: 0 | AF90: 0 | AG90: 0 | AH90: 0 | AI90: 0 | AK90: 0 | AL90: 0 | AM90: 0 | AN90: 0 | AO90: 0 | AP90: 0 | AQ90: 0 | AR90: 0 | AS90: 0 | AT90: 0 | AV90: 1.783197601 | AW90: 1.802997245 | AX90: 1.593993454 | AY90: 1.49250475 | AZ90: 1.45938857 | BA90: 1.489214985 | BB90: 1.489134218 | BC90: 0.9071342182 | BD90: 0.9071342182 | BE90: 0.3268022182 | BG90: 0.04034343029 | BH90: 0.1214782421 | BI90: 0.1983324602 | BJ90: 0.2681620321 | BK90: 0.3349462754 | BL90: 0.4016560903 | BM90: 0.4690388769 | BN90: 0.5232525482 | BO90: 0.5642989315 | BP90: 0.5922157639 | BR90: =+IF($K90="Ongoing",AV90,IF(RIGHT($K90,2)=RIGHT(BR$39,2),SUM($AV90:AV90),0)+IF(RIGHT(BR$39,2)>RIGHT($K90,2),AV90,0)) -> 1.783197601 | BS90: =+IF($K90="Ongoing",AW90,IF(RIGHT($K90,2)=RIGHT(BS$39,2),SUM($AV90:AW90),0)+IF(RIGHT(BS$39,2)>RIGHT($K90,2),AW90,0)) -> 1.802997245 | BT90: =+IF($K90="Ongoing",AX90,IF(RIGHT($K90,2)=RIGHT(BT$39,2),SUM($AV90:AX90),0)+IF(RIGHT(BT$39,2)>RIGHT($K90,2),AX90,0)) -> 1.593993454 | BU90: =+IF($K90="Ongoing",AY90,IF(RIGHT($K90,2)=RIGHT(BU$39,2),SUM($AV90:AY90),0)+IF(RIGHT(BU$39,2)>RIGHT($K90,2),AY90,0)) -> 1.49250475 | BV90: =+IF($K90="Ongoing",AZ90,IF(RIGHT($K90,2)=RIGHT(BV$39,2),SUM($AV90:AZ90),0)+IF(RIGHT(BV$39,2)>RIGHT($K90,2),AZ90,0)) -> 1.45938857 | BW90: =+IF($K90="Ongoing",BA90,IF(RIGHT($K90,2)=RIGHT(BW$39,2),SUM($AV90:BA90),0)+IF(RIGHT(BW$39,2)>RIGHT($K90,2),BA90,0)) -> 1.489214985 | BX90: =+IF($K90="Ongoing",BB90,IF(RIGHT($K90,2)=RIGHT(BX$39,2),SUM($AV90:BB90),0)+IF(RIGHT(BX$39,2)>RIGHT($K90,2),BB90,0)) -> 1.489134218 | BY90: =+IF($K90="Ongoing",BC90,IF(RIGHT($K90,2)=RIGHT(BY$39,2),SUM($AV90:BC90),0)+IF(RIGHT(BY$39,2)>RIGHT($K90,2),BC90,0)) -> 0.9071342182 | BZ90: =+IF($K90="Ongoing",BD90,IF(RIGHT($K90,2)=RIGHT(BZ$39,2),SUM($AV90:BD90),0)+IF(RIGHT(BZ$39,2)>RIGHT($K90,2),BD90,0)) -> 0.9071342182 | CA90: =+IF($K90="Ongoing",BE90,IF(RIGHT($K90,2)=RIGHT(CA$39,2),SUM($AV90:BE90),0)+IF(RIGHT(CA$39,2)>RIGHT($K90,2),BE90,0)) -> 0.3268022182 | CC90: =+O90*KeyAssumptionsPriceControl_FO!X$15 -> 1.824211146 | CD90: =+P90*KeyAssumptionsPriceControl_FO!Y$15 -> 1.886888904 | CE90: =+Q90*KeyAssumptionsPriceControl_FO!Z$15 -> 1.706528064 | CF90: =+R90*KeyAssumptionsPriceControl_FO!AA$15 -> 1.634625452 | CG90: =+S90*KeyAssumptionsPriceControl_FO!AB$15 -> 1.635118037 | CH90: =+T90*KeyAssumptionsPriceControl_FO!AC$15 -> 1.706912268 | CI90: =+U90*KeyAssumptionsPriceControl_FO!AD$15 -> 1.746076548 | CJ90: =+V90*KeyAssumptionsPriceControl_FO!AE$15 -> 1.088119565 | CK90: =+W90*KeyAssumptionsPriceControl_FO!AF$15 -> 1.113146315 | CL90: =+X90*KeyAssumptionsPriceControl_FO!AG$15 -> 0.410243145 | CN90: 0.04127132919 | CO90: 0.1252320221 | CP90: 0.2065302286 | CQ90: 0.2821211748 | CR90: 0.3560965258 | CS90: 0.4317073087 | CT90: 0.5098284398 | CU90: 0.5739498771 | CV90: 0.6237517704 | CW90: 0.6582172477
C91: Other - Water | E91: Water | F91: Growth | G91: Pipelines/network | H91: Other Capital expenditure | J91: Straight line | K91: Ongoing | L91: 90 | M91: 90 | O91: 1.358999 | P91: 0 | Q91: 0 | R91: 0 | S91: 0 | T91: 12.893708 | U91: 19.4984212 | V91: 3.0981908 | W91: 2.1012 | X91: 0 | Z91: 0 | AA91: 0 | AB91: 0 | AC91: 0 | AD91: 0 | AE91: 0 | AF91: 0 | AG91: 0 | AH91: 0 | AI91: 0 | AK91: 0 | AL91: 0 | AM91: 0 | AN91: 0 | AO91: 0 | AP91: 0 | AQ91: 0 | AR91: 0 | AS91: 0 | AT91: 0 | AV91: 1.358999 | AW91: 0 | AX91: 0 | AY91: 0 | AZ91: 0 | BA91: 12.893708 | BB91: 19.4984212 | BC91: 3.0981908 | BD91: 2.1012 | BE91: 0 | BG91: 0.007549994444 | BH91: 0.01509998889 | BI91: 0.01509998889 | BJ91: 0.01509998889 | BK91: 0.01509998889 | BL91: 0.0867317 | BM91: 0.2666879733 | BN91: 0.3922247067 | BO91: 0.4211102111 | BP91: 0.4327835444 | BR91: =+IF($K91="Ongoing",AV91,IF(RIGHT($K91,2)=RIGHT(BR$39,2),SUM($AV91:AV91),0)+IF(RIGHT(BR$39,2)>RIGHT($K91,2),AV91,0)) -> 1.358999 | BS91: =+IF($K91="Ongoing",AW91,IF(RIGHT($K91,2)=RIGHT(BS$39,2),SUM($AV91:AW91),0)+IF(RIGHT(BS$39,2)>RIGHT($K91,2),AW91,0)) -> 0 | BT91: =+IF($K91="Ongoing",AX91,IF(RIGHT($K91,2)=RIGHT(BT$39,2),SUM($AV91:AX91),0)+IF(RIGHT(BT$39,2)>RIGHT($K91,2),AX91,0)) -> 0 | BU91: =+IF($K91="Ongoing",AY91,IF(RIGHT($K91,2)=RIGHT(BU$39,2),SUM($AV91:AY91),0)+IF(RIGHT(BU$39,2)>RIGHT($K91,2),AY91,0)) -> 0 | BV91: =+IF($K91="Ongoing",AZ91,IF(RIGHT($K91,2)=RIGHT(BV$39,2),SUM($AV91:AZ91),0)+IF(RIGHT(BV$39,2)>RIGHT($K91,2),AZ91,0)) -> 0 | BW91: =+IF($K91="Ongoing",BA91,IF(RIGHT($K91,2)=RIGHT(BW$39,2),SUM($AV91:BA91),0)+IF(RIGHT(BW$39,2)>RIGHT($K91,2),BA91,0)) -> 12.893708 | BX91: =+IF($K91="Ongoing",BB91,IF(RIGHT($K91,2)=RIGHT(BX$39,2),SUM($AV91:BB91),0)+IF(RIGHT(BX$39,2)>RIGHT($K91,2),BB91,0)) -> 19.4984212 | BY91: =+IF($K91="Ongoing",BC91,IF(RIGHT($K91,2)=RIGHT(BY$39,2),SUM($AV91:BC91),0)+IF(RIGHT(BY$39,2)>RIGHT($K91,2),BC91,0)) -> 3.0981908 | BZ91: =+IF($K91="Ongoing",BD91,IF(RIGHT($K91,2)=RIGHT(BZ$39,2),SUM($AV91:BD91),0)+IF(RIGHT(BZ$39,2)>RIGHT($K91,2),BD91,0)) -> 2.1012 | CA91: =+IF($K91="Ongoing",BE91,IF(RIGHT($K91,2)=RIGHT(CA$39,2),SUM($AV91:BE91),0)+IF(RIGHT(CA$39,2)>RIGHT($K91,2),BE91,0)) -> 0 | CC91: =+O91*KeyAssumptionsPriceControl_FO!X$15 -> 1.390255977 | CD91: =+P91*KeyAssumptionsPriceControl_FO!Y$15 -> 0 | CE91: =+Q91*KeyAssumptionsPriceControl_FO!Z$15 -> 0 | CF91: =+R91*KeyAssumptionsPriceControl_FO!AA$15 -> 0 | CG91: =+S91*KeyAssumptionsPriceControl_FO!AB$15 -> 0 | CH91: =+T91*KeyAssumptionsPriceControl_FO!AC$15 -> 14.77854345 | CI91: =+U91*KeyAssumptionsPriceControl_FO!AD$15 -> 22.86277191 | CJ91: =+V91*KeyAssumptionsPriceControl_FO!AE$15 -> 3.716321088 | CK91: =+W91*KeyAssumptionsPriceControl_FO!AF$15 -> 2.578386957 | CL91: =+X91*KeyAssumptionsPriceControl_FO!AG$15 -> 0 | CN91: 0.007723644317 | CO91: 0.01544728863 | CP91: 0.01544728863 | CQ91: 0.01544728863 | CR91: 0.01544728863 | CS91: 0.09755030783 | CT91: 0.3066687265 | CU91: 0.4543303543 | CV91: 0.4893009545 | CW91: 0.5036253265
C92: Other - Water | E92: Water | F92: Renewals | G92: Pipelines/network | H92: Other Capital expenditure | J92: Straight line | K92: Ongoing | L92: 90 | M92: 90 | O92: 0.706 | P92: 0.7 | Q92: 0.69 | R92: 0.685 | S92: 0.685 | T92: 0.685 | U92: 0.685 | V92: 0.685 | W92: 0.685 | X92: 0 | Z92: 0 | AA92: 0 | AB92: 0 | AC92: 0 | AD92: 0 | AE92: 0 | AF92: 0 | AG92: 0 | AH92: 0 | AI92: 0 | AK92: 0 | AL92: 0 | AM92: 0 | AN92: 0 | AO92: 0 | AP92: 0 | AQ92: 0 | AR92: 0 | AS92: 0 | AT92: 0 | AV92: 0.706 | AW92: 0.7 | AX92: 0.69 | AY92: 0.685 | AZ92: 0.685 | BA92: 0.685 | BB92: 0.685 | BC92: 0.685 | BD92: 0.685 | BE92: 0 | BG92: 0.003922222222 | BH92: 0.01173333333 | BI92: 0.01945555556 | BJ92: 0.02709444444 | BK92: 0.03470555556 | BL92: 0.04231666667 | BM92: 0.04992777778 | BN92: 0.05753888889 | BO92: 0.06515 | BP92: 0.06895555556 | BR92: =+IF($K92="Ongoing",AV92,IF(RIGHT($K92,2)=RIGHT(BR$39,2),SUM($AV92:AV92),0)+IF(RIGHT(BR$39,2)>RIGHT($K92,2),AV92,0)) -> 0.706 | BS92: =+IF($K92="Ongoing",AW92,IF(RIGHT($K92,2)=RIGHT(BS$39,2),SUM($AV92:AW92),0)+IF(RIGHT(BS$39,2)>RIGHT($K92,2),AW92,0)) -> 0.7 | BT92: =+IF($K92="Ongoing",AX92,IF(RIGHT($K92,2)=RIGHT(BT$39,2),SUM($AV92:AX92),0)+IF(RIGHT(BT$39,2)>RIGHT($K92,2),AX92,0)) -> 0.69 | BU92: =+IF($K92="Ongoing",AY92,IF(RIGHT($K92,2)=RIGHT(BU$39,2),SUM($AV92:AY92),0)+IF(RIGHT(BU$39,2)>RIGHT($K92,2),AY92,0)) -> 0.685 | BV92: =+IF($K92="Ongoing",AZ92,IF(RIGHT($K92,2)=RIGHT(BV$39,2),SUM($AV92:AZ92),0)+IF(RIGHT(BV$39,2)>RIGHT($K92,2),AZ92,0)) -> 0.685 | BW92: =+IF($K92="Ongoing",BA92,IF(RIGHT($K92,2)=RIGHT(BW$39,2),SUM($AV92:BA92),0)+IF(RIGHT(BW$39,2)>RIGHT($K92,2),BA92,0)) -> 0.685 | BX92: =+IF($K92="Ongoing",BB92,IF(RIGHT($K92,2)=RIGHT(BX$39,2),SUM($AV92:BB92),0)+IF(RIGHT(BX$39,2)>RIGHT($K92,2),BB92,0)) -> 0.685 | BY92: =+IF($K92="Ongoing",BC92,IF(RIGHT($K92,2)=RIGHT(BY$39,2),SUM($AV92:BC92),0)+IF(RIGHT(BY$39,2)>RIGHT($K92,2),BC92,0)) -> 0.685 | BZ92: =+IF($K92="Ongoing",BD92,IF(RIGHT($K92,2)=RIGHT(BZ$39,2),SUM($AV92:BD92),0)+IF(RIGHT(BZ$39,2)>RIGHT($K92,2),BD92,0)) -> 0.685 | CA92: =+IF($K92="Ongoing",BE92,IF(RIGHT($K92,2)=RIGHT(CA$39,2),SUM($AV92:BE92),0)+IF(RIGHT(CA$39,2)>RIGHT($K92,2),BE92,0)) -> 0 | CC92: =+O92*KeyAssumptionsPriceControl_FO!X$15 -> 0.722238 | CD92: =+P92*KeyAssumptionsPriceControl_FO!Y$15 -> 0.7325703 | CE92: =+Q92*KeyAssumptionsPriceControl_FO!Z$15 -> 0.7387134252 | CF92: =+R92*KeyAssumptionsPriceControl_FO!AA$15 -> 0.7502277193 | CG92: =+S92*KeyAssumptionsPriceControl_FO!AB$15 -> 0.7674829568 | CH92: =+T92*KeyAssumptionsPriceControl_FO!AC$15 -> 0.7851350648 | CI92: =+U92*KeyAssumptionsPriceControl_FO!AD$15 -> 0.8031931713 | CJ92: =+V92*KeyAssumptionsPriceControl_FO!AE$15 -> 0.8216666143 | CK92: =+W92*KeyAssumptionsPriceControl_FO!AF$15 -> 0.8405649464 | CL92: =+X92*KeyAssumptionsPriceControl_FO!AG$15 -> 0 | CN92: 0.004012433333 | CO92: 0.01209470167 | CP92: 0.02026850014 | CQ92: 0.02854039539 | CR92: 0.03697212137 | CS92: 0.04559777704 | CT92: 0.0544218228 | CU92: 0.06344882161 | CV92: 0.07268344139 | CW92: 0.07735324665
C93: Other - Sewer | E93: Sewerage | F93: Improvements / Compliance | G93: Pipelines/network | H93: Other Capital expenditure | J93: Straight line | K93: Ongoing | L93: 30 | M93: 30 | O93: 0.15 | P93: 0.15 | Q93: 0 | R93: 0 | S93: 0.3541475656 | T93: 0.3630012547 | U93: 0.363 | V93: 0 | W93: 0 | X93: 0 | Z93: 0 | AA93: 0 | AB93: 0 | AC93: 0 | AD93: 0 | AE93: 0 | AF93: 0 | AG93: 0 | AH93: 0 | AI93: 0 | AK93: 0 | AL93: 0 | AM93: 0 | AN93: 0 | AO93: 0 | AP93: 0 | AQ93: 0 | AR93: 0 | AS93: 0 | AT93: 0 | AV93: 0.15 | AW93: 0.15 | AX93: 0 | AY93: 0 | AZ93: 0.3541475656 | BA93: 0.3630012547 | BB93: 0.363 | BC93: 0 | BD93: 0 | BE93: 0 | BG93: 0.0025 | BH93: 0.0075 | BI93: 0.01 | BJ93: 0.01 | BK93: 0.01590245943 | BL93: 0.02785493976 | BM93: 0.03995496068 | BN93: 0.04600496068 | BO93: 0.04600496068 | BP93: 0.04600496068 | BR93: =+IF($K93="Ongoing",AV93,IF(RIGHT($K93,2)=RIGHT(BR$39,2),SUM($AV93:AV93),0)+IF(RIGHT(BR$39,2)>RIGHT($K93,2),AV93,0)) -> 0.15 | BS93: =+IF($K93="Ongoing",AW93,IF(RIGHT($K93,2)=RIGHT(BS$39,2),SUM($AV93:AW93),0)+IF(RIGHT(BS$39,2)>RIGHT($K93,2),AW93,0)) -> 0.15 | BT93: =+IF($K93="Ongoing",AX93,IF(RIGHT($K93,2)=RIGHT(BT$39,2),SUM($AV93:AX93),0)+IF(RIGHT(BT$39,2)>RIGHT($K93,2),AX93,0)) -> 0 | BU93: =+IF($K93="Ongoing",AY93,IF(RIGHT($K93,2)=RIGHT(BU$39,2),SUM($AV93:AY93),0)+IF(RIGHT(BU$39,2)>RIGHT($K93,2),AY93,0)) -> 0 | BV93: =+IF($K93="Ongoing",AZ93,IF(RIGHT($K93,2)=RIGHT(BV$39,2),SUM($AV93:AZ93),0)+IF(RIGHT(BV$39,2)>RIGHT($K93,2),AZ93,0)) -> 0.3541475656 | BW93: =+IF($K93="Ongoing",BA93,IF(RIGHT($K93,2)=RIGHT(BW$39,2),SUM($AV93:BA93),0)+IF(RIGHT(BW$39,2)>RIGHT($K93,2),BA93,0)) -> 0.3630012547 | BX93: =+IF($K93="Ongoing",BB93,IF(RIGHT($K93,2)=RIGHT(BX$39,2),SUM($AV93:BB93),0)+IF(RIGHT(BX$39,2)>RIGHT($K93,2),BB93,0)) -> 0.363 | BY93: =+IF($K93="Ongoing",BC93,IF(RIGHT($K93,2)=RIGHT(BY$39,2),SUM($AV93:BC93),0)+IF(RIGHT(BY$39,2)>RIGHT($K93,2),BC93,0)) -> 0 | BZ93: =+IF($K93="Ongoing",BD93,IF(RIGHT($K93,2)=RIGHT(BZ$39,2),SUM($AV93:BD93),0)+IF(RIGHT(BZ$39,2)>RIGHT($K93,2),BD93,0)) -> 0 | CA93: =+IF($K93="Ongoing",BE93,IF(RIGHT($K93,2)=RIGHT(CA$39,2),SUM($AV93:BE93),0)+IF(RIGHT(CA$39,2)>RIGHT($K93,2),BE93,0)) -> 0 | CC93: =+O93*KeyAssumptionsPriceControl_FO!X$15 -> 0.15345 | CD93: =+P93*KeyAssumptionsPriceControl_FO!Y$15 -> 0.15697935 | CE93: =+Q93*KeyAssumptionsPriceControl_FO!Z$15 -> 0 | CF93: =+R93*KeyAssumptionsPriceControl_FO!AA$15 -> 0 | CG93: =+S93*KeyAssumptionsPriceControl_FO!AB$15 -> 0.3967915632 | CH93: =+T93*KeyAssumptionsPriceControl_FO!AC$15 -> 0.4160657133 | CI93: =+U93*KeyAssumptionsPriceControl_FO!AD$15 -> 0.4256337536 | CJ93: =+V93*KeyAssumptionsPriceControl_FO!AE$15 -> 0 | CK93: =+W93*KeyAssumptionsPriceControl_FO!AF$15 -> 0 | CL93: =+X93*KeyAssumptionsPriceControl_FO!AG$15 -> 0 | CN93: 0.0025575 | CO93: 0.0077313225 | CP93: 0.010347645 | CQ93: 0.010347645 | CR93: 0.01696083772 | CS93: 0.03050845899 | CT93: 0.04453678344 | CU93: 0.05163067934 | CV93: 0.05163067934 | CW93: 0.05163067934
C94: Other - Sewer | E94: Sewerage | F94: Growth | G94: Pipelines/network | H94: Other Capital expenditure | J94: Straight line | K94: Ongoing | L94: 30 | M94: 30 | O94: 0 | P94: 0 | Q94: 0.35 | R94: 0 | S94: 0 | T94: 0 | U94: 0 | V94: 0 | W94: 0 | X94: 0 | Z94: 0 | AA94: 0 | AB94: 0 | AC94: 0 | AD94: 0 | AE94: 0 | AF94: 0 | AG94: 0 | AH94: 0 | AI94: 0 | AK94: 0 | AL94: 0 | AM94: 0 | AN94: 0 | AO94: 0 | AP94: 0 | AQ94: 0 | AR94: 0 | AS94: 0 | AT94: 0 | AV94: 0 | AW94: 0 | AX94: 0.35 | AY94: 0 | AZ94: 0 | BA94: 0 | BB94: 0 | BC94: 0 | BD94: 0 | BE94: 0 | BG94: 0 | BH94: 0 | BI94: 0.005833333333 | BJ94: 0.01166666667 | BK94: 0.01166666667 | BL94: 0.01166666667 | BM94: 0.01166666667 | BN94: 0.01166666667 | BO94: 0.01166666667 | BP94: 0.01166666667 | BR94: =+IF($K94="Ongoing",AV94,IF(RIGHT($K94,2)=RIGHT(BR$39,2),SUM($AV94:AV94),0)+IF(RIGHT(BR$39,2)>RIGHT($K94,2),AV94,0)) -> 0 | BS94: =+IF($K94="Ongoing",AW94,IF(RIGHT($K94,2)=RIGHT(BS$39,2),SUM($AV94:AW94),0)+IF(RIGHT(BS$39,2)>RIGHT($K94,2),AW94,0)) -> 0 | BT94: =+IF($K94="Ongoing",AX94,IF(RIGHT($K94,2)=RIGHT(BT$39,2),SUM($AV94:AX94),0)+IF(RIGHT(BT$39,2)>RIGHT($K94,2),AX94,0)) -> 0.35 | BU94: =+IF($K94="Ongoing",AY94,IF(RIGHT($K94,2)=RIGHT(BU$39,2),SUM($AV94:AY94),0)+IF(RIGHT(BU$39,2)>RIGHT($K94,2),AY94,0)) -> 0 | BV94: =+IF($K94="Ongoing",AZ94,IF(RIGHT($K94,2)=RIGHT(BV$39,2),SUM($AV94:AZ94),0)+IF(RIGHT(BV$39,2)>RIGHT($K94,2),AZ94,0)) -> 0 | BW94: =+IF($K94="Ongoing",BA94,IF(RIGHT($K94,2)=RIGHT(BW$39,2),SUM($AV94:BA94),0)+IF(RIGHT(BW$39,2)>RIGHT($K94,2),BA94,0)) -> 0 | BX94: =+IF($K94="Ongoing",BB94,IF(RIGHT($K94,2)=RIGHT(BX$39,2),SUM($AV94:BB94),0)+IF(RIGHT(BX$39,2)>RIGHT($K94,2),BB94,0)) -> 0 | BY94: =+IF($K94="Ongoing",BC94,IF(RIGHT($K94,2)=RIGHT(BY$39,2),SUM($AV94:BC94),0)+IF(RIGHT(BY$39,2)>RIGHT($K94,2),BC94,0)) -> 0 | BZ94: =+IF($K94="Ongoing",BD94,IF(RIGHT($K94,2)=RIGHT(BZ$39,2),SUM($AV94:BD94),0)+IF(RIGHT(BZ$39,2)>RIGHT($K94,2),BD94,0)) -> 0 | CA94: =+IF($K94="Ongoing",BE94,IF(RIGHT($K94,2)=RIGHT(CA$39,2),SUM($AV94:BE94),0)+IF(RIGHT(CA$39,2)>RIGHT($K94,2),BE94,0)) -> 0 | CC94: =+O94*KeyAssumptionsPriceControl_FO!X$15 -> 0 | CD94: =+P94*KeyAssumptionsPriceControl_FO!Y$15 -> 0 | CE94: =+Q94*KeyAssumptionsPriceControl_FO!Z$15 -> 0.3747097084 | CF94: =+R94*KeyAssumptionsPriceControl_FO!AA$15 -> 0 | CG94: =+S94*KeyAssumptionsPriceControl_FO!AB$15 -> 0 | CH94: =+T94*KeyAssumptionsPriceControl_FO!AC$15 -> 0 | CI94: =+U94*KeyAssumptionsPriceControl_FO!AD$15 -> 0 | CJ94: =+V94*KeyAssumptionsPriceControl_FO!AE$15 -> 0 | CK94: =+W94*KeyAssumptionsPriceControl_FO!AF$15 -> 0 | CL94: =+X94*KeyAssumptionsPriceControl_FO!AG$15 -> 0 | CN94: 0 | CO94: 0 | CP94: 0.006245161807 | CQ94: 0.01249032361 | CR94: 0.01249032361 | CS94: 0.01249032361 | CT94: 0.01249032361 | CU94: 0.01249032361 | CV94: 0.01249032361 | CW94: 0.01249032361
C95: Other - Sewer | E95: Sewerage | F95: Renewals | G95: Pipelines/network | H95: Other Capital expenditure | J95: Straight line | K95: Ongoing | L95: 80 | M95: 80 | O95: 0.4961121708 | P95: 0.4989406913 | Q95: 0.5018399249 | R95: 0.5048116393 | S95: 0.5078576465 | T95: 0.5109798039 | U95: 0.5109713495 | V95: 0.5109713495 | W95: 0.5109713495 | X95: 0.3829713495 | Z95: 0 | AA95: 0 | AB95: 0 | AC95: 0 | AD95: 0 | AE95: 0 | AF95: 0 | AG95: 0 | AH95: 0 | AI95: 0 | AK95: 0 | AL95: 0 | AM95: 0 | AN95: 0 | AO95: 0 | AP95: 0 | AQ95: 0 | AR95: 0 | AS95: 0 | AT95: 0 | AV95: 0.4961121708 | AW95: 0.4989406913 | AX95: 0.5018399249 | AY95: 0.5048116393 | AZ95: 0.5078576465 | BA95: 0.5109798039 | BB95: 0.5109713495 | BC95: 0.5109713495 | BD95: 0.5109713495 | BE95: 0.3829713495 | BG95: 0.003100701067 | BH95: 0.009319781456 | BI95: 0.01557466031 | BJ95: 0.02186623258 | BK95: 0.02819541562 | BL95: 0.03456314968 | BM95: 0.04095034439 | BN95: 0.04733748626 | BO95: 0.05372462813 | BP95: 0.05931177 | BR95: =+IF($K95="Ongoing",AV95,IF(RIGHT($K95,2)=RIGHT(BR$39,2),SUM($AV95:AV95),0)+IF(RIGHT(BR$39,2)>RIGHT($K95,2),AV95,0)) -> 0.4961121708 | BS95: =+IF($K95="Ongoing",AW95,IF(RIGHT($K95,2)=RIGHT(BS$39,2),SUM($AV95:AW95),0)+IF(RIGHT(BS$39,2)>RIGHT($K95,2),AW95,0)) -> 0.4989406913 | BT95: =+IF($K95="Ongoing",AX95,IF(RIGHT($K95,2)=RIGHT(BT$39,2),SUM($AV95:AX95),0)+IF(RIGHT(BT$39,2)>RIGHT($K95,2),AX95,0)) -> 0.5018399249 | BU95: =+IF($K95="Ongoing",AY95,IF(RIGHT($K95,2)=RIGHT(BU$39,2),SUM($AV95:AY95),0)+IF(RIGHT(BU$39,2)>RIGHT($K95,2),AY95,0)) -> 0.5048116393 | BV95: =+IF($K95="Ongoing",AZ95,IF(RIGHT($K95,2)=RIGHT(BV$39,2),SUM($AV95:AZ95),0)+IF(RIGHT(BV$39,2)>RIGHT($K95,2),AZ95,0)) -> 0.5078576465 | BW95: =+IF($K95="Ongoing",BA95,IF(RIGHT($K95,2)=RIGHT(BW$39,2),SUM($AV95:BA95),0)+IF(RIGHT(BW$39,2)>RIGHT($K95,2),BA95,0)) -> 0.5109798039 | BX95: =+IF($K95="Ongoing",BB95,IF(RIGHT($K95,2)=RIGHT(BX$39,2),SUM($AV95:BB95),0)+IF(RIGHT(BX$39,2)>RIGHT($K95,2),BB95,0)) -> 0.5109713495 | BY95: =+IF($K95="Ongoing",BC95,IF(RIGHT($K95,2)=RIGHT(BY$39,2),SUM($AV95:BC95),0)+IF(RIGHT(BY$39,2)>RIGHT($K95,2),BC95,0)) -> 0.5109713495 | BZ95: =+IF($K95="Ongoing",BD95,IF(RIGHT($K95,2)=RIGHT(BZ$39,2),SUM($AV95:BD95),0)+IF(RIGHT(BZ$39,2)>RIGHT($K95,2),BD95,0)) -> 0.5109713495 | CA95: =+IF($K95="Ongoing",BE95,IF(RIGHT($K95,2)=RIGHT(CA$39,2),SUM($AV95:BE95),0)+IF(RIGHT(CA$39,2)>RIGHT($K95,2),BE95,0)) -> 0.3829713495 | CC95: =+O95*KeyAssumptionsPriceControl_FO!X$15 -> 0.5075227507 | CD95: =+P95*KeyAssumptionsPriceControl_FO!Y$15 -> 0.5221559027 | CE95: =+Q95*KeyAssumptionsPriceControl_FO!Z$15 -> 0.5372694055 | CF95: =+R95*KeyAssumptionsPriceControl_FO!AA$15 -> 0.5528812916 | CG95: =+S95*KeyAssumptionsPriceControl_FO!AB$15 -> 0.5690103477 | CH95: =+T95*KeyAssumptionsPriceControl_FO!AC$15 -> 0.5856761481 | CI95: =+U95*KeyAssumptionsPriceControl_FO!AD$15 -> 0.5991367864 | CJ95: =+V95*KeyAssumptionsPriceControl_FO!AE$15 -> 0.6129169324 | CK95: =+W95*KeyAssumptionsPriceControl_FO!AF$15 -> 0.6270140219 | CL95: =+X95*KeyAssumptionsPriceControl_FO!AG$15 -> 0.4807536855 | CN95: 0.003172017192 | CO95: 0.009607508776 | CP95: 0.01622891695 | CQ95: 0.02304235881 | CR95: 0.03005418156 | CS95: 0.03727097216 | CT95: 0.044676053 | CU95: 0.05225138874 | CV95: 0.0600009572 | CW95: 0.06692450537
C96: Other - Alt Water | E96: Recycled Water | F96: Renewals | G96: Pipelines/network | H96: Other Capital expenditure | J96: Straight line | K96: Ongoing | L96: 23.65511872 | M96: 23.65511872 | O96: 0.21 | P96: 0.894 | Q96: 1.011 | R96: 0.454 | S96: 0 | T96: 0 | U96: 0 | V96: 0 | W96: 0 | X96: 0 | Z96: 0 | AA96: 0 | AB96: 0 | AC96: 0 | AD96: 0 | AE96: 0 | AF96: 0 | AG96: 0 | AH96: 0 | AI96: 0 | AK96: 0 | AL96: 0 | AM96: 0 | AN96: 0 | AO96: 0 | AP96: 0 | AQ96: 0 | AR96: 0 | AS96: 0 | AT96: 0 | AV96: 0.21 | AW96: 0.894 | AX96: 1.011 | AY96: 0.454 | AZ96: 0 | BA96: 0 | BB96: 0 | BC96: 0 | BD96: 0 | BE96: 0 | BG96: 0.004438785585 | BH96: 0.02777411552 | BI96: 0.0680402419 | BJ96: 0.09900605562 | BK96: 0.1086022873 | BL96: 0.1086022873 | BM96: 0.1086022873 | BN96: 0.1086022873 | BO96: 0.1086022873 | BP96: 0.1086022873 | BR96: =+IF($K96="Ongoing",AV96,IF(RIGHT($K96,2)=RIGHT(BR$39,2),SUM($AV96:AV96),0)+IF(RIGHT(BR$39,2)>RIGHT($K96,2),AV96,0)) -> 0.21 | BS96: =+IF($K96="Ongoing",AW96,IF(RIGHT($K96,2)=RIGHT(BS$39,2),SUM($AV96:AW96),0)+IF(RIGHT(BS$39,2)>RIGHT($K96,2),AW96,0)) -> 0.894 | BT96: =+IF($K96="Ongoing",AX96,IF(RIGHT($K96,2)=RIGHT(BT$39,2),SUM($AV96:AX96),0)+IF(RIGHT(BT$39,2)>RIGHT($K96,2),AX96,0)) -> 1.011 | BU96: =+IF($K96="Ongoing",AY96,IF(RIGHT($K96,2)=RIGHT(BU$39,2),SUM($AV96:AY96),0)+IF(RIGHT(BU$39,2)>RIGHT($K96,2),AY96,0)) -> 0.454 | BV96: =+IF($K96="Ongoing",AZ96,IF(RIGHT($K96,2)=RIGHT(BV$39,2),SUM($AV96:AZ96),0)+IF(RIGHT(BV$39,2)>RIGHT($K96,2),AZ96,0)) -> 0 | BW96: =+IF($K96="Ongoing",BA96,IF(RIGHT($K96,2)=RIGHT(BW$39,2),SUM($AV96:BA96),0)+IF(RIGHT(BW$39,2)>RIGHT($K96,2),BA96,0)) -> 0 | BX96: =+IF($K96="Ongoing",BB96,IF(RIGHT($K96,2)=RIGHT(BX$39,2),SUM($AV96:BB96),0)+IF(RIGHT(BX$39,2)>RIGHT($K96,2),BB96,0)) -> 0 | BY96: =+IF($K96="Ongoing",BC96,IF(RIGHT($K96,2)=RIGHT(BY$39,2),SUM($AV96:BC96),0)+IF(RIGHT(BY$39,2)>RIGHT($K96,2),BC96,0)) -> 0 | BZ96: =+IF($K96="Ongoing",BD96,IF(RIGHT($K96,2)=RIGHT(BZ$39,2),SUM($AV96:BD96),0)+IF(RIGHT(BZ$39,2)>RIGHT($K96,2),BD96,0)) -> 0 | CA96: =+IF($K96="Ongoing",BE96,IF(RIGHT($K96,2)=RIGHT(CA$39,2),SUM($AV96:BE96),0)+IF(RIGHT(CA$39,2)>RIGHT($K96,2),BE96,0)) -> 0 | CC96: =+O96*KeyAssumptionsPriceControl_FO!X$15 -> 0.21483 | CD96: =+P96*KeyAssumptionsPriceControl_FO!Y$15 -> 0.935596926 | CE96: =+Q96*KeyAssumptionsPriceControl_FO!Z$15 -> 1.082375758 | CF96: =+R96*KeyAssumptionsPriceControl_FO!AA$15 -> 0.4972312183 | CG96: =+S96*KeyAssumptionsPriceControl_FO!AB$15 -> 0 | CH96: =+T96*KeyAssumptionsPriceControl_FO!AC$15 -> 0 | CI96: =+U96*KeyAssumptionsPriceControl_FO!AD$15 -> 0 | CJ96: =+V96*KeyAssumptionsPriceControl_FO!AE$15 -> 0 | CK96: =+W96*KeyAssumptionsPriceControl_FO!AF$15 -> 0 | CL96: =+X96*KeyAssumptionsPriceControl_FO!AG$15 -> 0 | CN96: 0.004540877653 | CO96: 0.02885753697 | CP96: 0.07151157535 | CQ96: 0.1048998452 | CR96: 0.1154098584 | CS96: 0.1154098584 | CT96: 0.1154098584 | CU96: 0.1154098584 | CV96: 0.1154098584 | CW96: 0.1154098584
C97: Other - Alt Water | E97: Recycled Water | F97: Growth | G97: Pipelines/network | H97: Other Capital expenditure | J97: Straight line | K97: Ongoing | L97: 66.35006328 | M97: 66.35006328 | O97: 2.27269 | P97: 0 | Q97: 0 | R97: 0 | S97: 0.1 | T97: 10.197854 | U97: 20.14751 | V97: 2.1215 | W97: 4.125614528 | X97: 3.862316929 | Z97: 0 | AA97: 0 | AB97: 0 | AC97: 0 | AD97: 0 | AE97: 0 | AF97: 0 | AG97: 0 | AH97: 0 | AI97: 0 | AK97: 0 | AL97: 0 | AM97: 0 | AN97: 0 | AO97: 0 | AP97: 0 | AQ97: 0 | AR97: 0 | AS97: 0 | AT97: 0 | AV97: 2.27269 | AW97: 0 | AX97: 0 | AY97: 0 | AZ97: 0.1 | BA97: 10.197854 | BB97: 20.14751 | BC97: 2.1215 | BD97: 4.125614528 | BE97: 3.862316929 | BG97: 0.01712650966 | BH97: 0.03425301933 | BI97: 0.03425301933 | BJ97: 0.03425301933 | BK97: 0.03500659811 | BL97: 0.1126090411 | BM97: 0.3412852661 | BN97: 0.5090998008 | BO97: 0.5561767305 | BP97: 0.6163720873 | BR97: =+IF($K97="Ongoing",AV97,IF(RIGHT($K97,2)=RIGHT(BR$39,2),SUM($AV97:AV97),0)+IF(RIGHT(BR$39,2)>RIGHT($K97,2),AV97,0)) -> 2.27269 | BS97: =+IF($K97="Ongoing",AW97,IF(RIGHT($K97,2)=RIGHT(BS$39,2),SUM($AV97:AW97),0)+IF(RIGHT(BS$39,2)>RIGHT($K97,2),AW97,0)) -> 0 | BT97: =+IF($K97="Ongoing",AX97,IF(RIGHT($K97,2)=RIGHT(BT$39,2),SUM($AV97:AX97),0)+IF(RIGHT(BT$39,2)>RIGHT($K97,2),AX97,0)) -> 0 | BU97: =+IF($K97="Ongoing",AY97,IF(RIGHT($K97,2)=RIGHT(BU$39,2),SUM($AV97:AY97),0)+IF(RIGHT(BU$39,2)>RIGHT($K97,2),AY97,0)) -> 0 | BV97: =+IF($K97="Ongoing",AZ97,IF(RIGHT($K97,2)=RIGHT(BV$39,2),SUM($AV97:AZ97),0)+IF(RIGHT(BV$39,2)>RIGHT($K97,2),AZ97,0)) -> 0.1 | BW97: =+IF($K97="Ongoing",BA97,IF(RIGHT($K97,2)=RIGHT(BW$39,2),SUM($AV97:BA97),0)+IF(RIGHT(BW$39,2)>RIGHT($K97,2),BA97,0)) -> 10.197854 | BX97: =+IF($K97="Ongoing",BB97,IF(RIGHT($K97,2)=RIGHT(BX$39,2),SUM($AV97:BB97),0)+IF(RIGHT(BX$39,2)>RIGHT($K97,2),BB97,0)) -> 20.14751 | BY97: =+IF($K97="Ongoing",BC97,IF(RIGHT($K97,2)=RIGHT(BY$39,2),SUM($AV97:BC97),0)+IF(RIGHT(BY$39,2)>RIGHT($K97,2),BC97,0)) -> 2.1215 | BZ97: =+IF($K97="Ongoing",BD97,IF(RIGHT($K97,2)=RIGHT(BZ$39,2),SUM($AV97:BD97),0)+IF(RIGHT(BZ$39,2)>RIGHT($K97,2),BD97,0)) -> 4.125614528 | CA97: =+IF($K97="Ongoing",BE97,IF(RIGHT($K97,2)=RIGHT(CA$39,2),SUM($AV97:BE97),0)+IF(RIGHT(CA$39,2)>RIGHT($K97,2),BE97,0)) -> 3.862316929 | CC97: =+O97*KeyAssumptionsPriceControl_FO!X$15 -> 2.32496187 | CD97: =+P97*KeyAssumptionsPriceControl_FO!Y$15 -> 0 | CE97: =+Q97*KeyAssumptionsPriceControl_FO!Z$15 -> 0 | CF97: =+R97*KeyAssumptionsPriceControl_FO!AA$15 -> 0 | CG97: =+S97*KeyAssumptionsPriceControl_FO!AB$15 -> 0.1120413076 | CH97: =+T97*KeyAssumptionsPriceControl_FO!AC$15 -> 11.68860257 | CI97: =+U97*KeyAssumptionsPriceControl_FO!AD$15 -> 23.62385759 | CJ97: =+V97*KeyAssumptionsPriceControl_FO!AE$15 -> 2.544767478 | CK97: =+W97*KeyAssumptionsPriceControl_FO!AF$15 -> 5.062550298 | CL97: =+X97*KeyAssumptionsPriceControl_FO!AG$15 -> 4.848464776 | CN97: 0.01752041939 | CO97: 0.03504083877 | CP97: 0.03504083877 | CQ97: 0.03504083877 | CR97: 0.0358851583 | CS97: 0.1248123069 | CT97: 0.3909195148 | CU97: 0.5881207214 | CV97: 0.6454478542 | CW97: 0.7201351611
C98: Other - Corporate | E98: Water | F98: Renewals | G98: Pipelines/network | H98: Other Capital expenditure | J98: Straight line | K98: Ongoing | L98: 11.05659133 | M98: 11.05659133 | O98: 0.1249934196 | P98: 0.1276654699 | Q98: 0.1304044119 | R98: 0.1332118457 | S98: 0.1360894109 | T98: 0.1557290287 | U98: 0.1510280054 | V98: 0.1455953433 | W98: 0.1503036504 | X98: 0 | Z98: 0 | AA98: 0 | AB98: 0 | AC98: 0 | AD98: 0 | AE98: 0 | AF98: 0 | AG98: 0 | AH98: 0 | AI98: 0 | AK98: 0 | AL98: 0 | AM98: 0 | AN98: 0 | AO98: 0 | AP98: 0 | AQ98: 0 | AR98: 0 | AS98: 0 | AT98: 0 | AV98: 0.1249934196 | AW98: 0.1276654699 | AX98: 0.1304044119 | AY98: 0.1332118457 | AZ98: 0.1360894109 | BA98: 0.1557290287 | BB98: 0.1510280054 | BC98: 0.1455953433 | BD98: 0.1503036504 | BE98: 0 | BG98: 0.005652439159 | BH98: 0.01707815265 | BI98: 0.02874856146 | BJ98: 0.04066978789 | BK98: 0.05284810075 | BL98: 0.06604468326 | BM98: 0.07991681731 | BN98: 0.09333068691 | BO98: 0.1067117998 | BP98: 0.1135088155 | BR98: =+IF($K98="Ongoing",AV98,IF(RIGHT($K98,2)=RIGHT(BR$39,2),SUM($AV98:AV98),0)+IF(RIGHT(BR$39,2)>RIGHT($K98,2),AV98,0)) -> 0.1249934196 | BS98: =+IF($K98="Ongoing",AW98,IF(RIGHT($K98,2)=RIGHT(BS$39,2),SUM($AV98:AW98),0)+IF(RIGHT(BS$39,2)>RIGHT($K98,2),AW98,0)) -> 0.1276654699 | BT98: =+IF($K98="Ongoing",AX98,IF(RIGHT($K98,2)=RIGHT(BT$39,2),SUM($AV98:AX98),0)+IF(RIGHT(BT$39,2)>RIGHT($K98,2),AX98,0)) -> 0.1304044119 | BU98: =+IF($K98="Ongoing",AY98,IF(RIGHT($K98,2)=RIGHT(BU$39,2),SUM($AV98:AY98),0)+IF(RIGHT(BU$39,2)>RIGHT($K98,2),AY98,0)) -> 0.1332118457 | BV98: =+IF($K98="Ongoing",AZ98,IF(RIGHT($K98,2)=RIGHT(BV$39,2),SUM($AV98:AZ98),0)+IF(RIGHT(BV$39,2)>RIGHT($K98,2),AZ98,0)) -> 0.1360894109 | BW98: =+IF($K98="Ongoing",BA98,IF(RIGHT($K98,2)=RIGHT(BW$39,2),SUM($AV98:BA98),0)+IF(RIGHT(BW$39,2)>RIGHT($K98,2),BA98,0)) -> 0.1557290287 | BX98: =+IF($K98="Ongoing",BB98,IF(RIGHT($K98,2)=RIGHT(BX$39,2),SUM($AV98:BB98),0)+IF(RIGHT(BX$39,2)>RIGHT($K98,2),BB98,0)) -> 0.1510280054 | BY98: =+IF($K98="Ongoing",BC98,IF(RIGHT($K98,2)=RIGHT(BY$39,2),SUM($AV98:BC98),0)+IF(RIGHT(BY$39,2)>RIGHT($K98,2),BC98,0)) -> 0.1455953433 | BZ98: =+IF($K98="Ongoing",BD98,IF(RIGHT($K98,2)=RIGHT(BZ$39,2),SUM($AV98:BD98),0)+IF(RIGHT(BZ$39,2)>RIGHT($K98,2),BD98,0)) -> 0.1503036504 | CA98: =+IF($K98="Ongoing",BE98,IF(RIGHT($K98,2)=RIGHT(CA$39,2),SUM($AV98:BE98),0)+IF(RIGHT(CA$39,2)>RIGHT($K98,2),BE98,0)) -> 0 | CC98: =+O98*KeyAssumptionsPriceControl_FO!X$15 -> 0.1278682682 | CD98: =+P98*KeyAssumptionsPriceControl_FO!Y$15 -> 0.1336056165 | CE98: =+Q98*KeyAssumptionsPriceControl_FO!Z$15 -> 0.1396108548 | CF98: =+R98*KeyAssumptionsPriceControl_FO!AA$15 -> 0.1458966703 | CG98: =+S98*KeyAssumptionsPriceControl_FO!AB$15 -> 0.1524763555 | CH98: =+T98*KeyAssumptionsPriceControl_FO!AC$15 -> 0.1784938994 | CI98: =+U98*KeyAssumptionsPriceControl_FO!AD$15 -> 0.1770870986 | CJ98: =+V98*KeyAssumptionsPriceControl_FO!AE$15 -> 0.1746435515 | CK98: =+W98*KeyAssumptionsPriceControl_FO!AF$15 -> 0.1844379268 | CL98: =+X98*KeyAssumptionsPriceControl_FO!AG$15 -> 0 | CN98: 0.005782445259 | CO98: 0.01760678953 | CP98: 0.02996215581 | CQ98: 0.04287334682 | CR98: 0.05636634013 | CS98: 0.07133344187 | CT98: 0.08741348804 | CU98: 0.1033194142 | CV98: 0.1195577587 | CW98: 0.127898391
C99: Other - Corporate | E99: Sewerage | F99: Renewals | G99: Corporate | H99: Other Capital expenditure | J99: Straight line | K99: Ongoing | L99: 11.05659133 | M99: 11.05659133 | O99: 0.161920446 | P99: 0.1653819047 | Q99: 0.1689300173 | R99: 0.1725668561 | S99: 0.1762945456 | T99: 0.2017363303 | U99: 0.1956464753 | V99: 0.1886088323 | W99: 0.1947081229 | X99: 0 | Z99: 0 | AA99: 0 | AB99: 0 | AC99: 0 | AD99: 0 | AE99: 0 | AF99: 0 | AG99: 0 | AH99: 0 | AI99: 0 | AK99: 0 | AL99: 0 | AM99: 0 | AN99: 0 | AO99: 0 | AP99: 0 | AQ99: 0 | AR99: 0 | AS99: 0 | AT99: 0 | AV99: 0.161920446 | AW99: 0.1653819047 | AX99: 0.1689300173 | AY99: 0.1725668561 | AZ99: 0.1762945456 | BA99: 0.2017363303 | BB99: 0.1956464753 | BC99: 0.1886088323 | BD99: 0.1947081229 | BE99: 0 | BG99: 0.007322349226 | BH99: 0.0221235814 | BI99: 0.03724179967 | BJ99: 0.05268493505 | BK99: 0.06846110834 | BL99: 0.08555638049 | BM99: 0.1035267836 | BN99: 0.1209035363 | BO99: 0.138237855 | BP99: 0.1470429251 | BR99: =+IF($K99="Ongoing",AV99,IF(RIGHT($K99,2)=RIGHT(BR$39,2),SUM($AV99:AV99),0)+IF(RIGHT(BR$39,2)>RIGHT($K99,2),AV99,0)) -> 0.161920446 | BS99: =+IF($K99="Ongoing",AW99,IF(RIGHT($K99,2)=RIGHT(BS$39,2),SUM($AV99:AW99),0)+IF(RIGHT(BS$39,2)>RIGHT($K99,2),AW99,0)) -> 0.1653819047 | BT99: =+IF($K99="Ongoing",AX99,IF(RIGHT($K99,2)=RIGHT(BT$39,2),SUM($AV99:AX99),0)+IF(RIGHT(BT$39,2)>RIGHT($K99,2),AX99,0)) -> 0.1689300173 | BU99: =+IF($K99="Ongoing",AY99,IF(RIGHT($K99,2)=RIGHT(BU$39,2),SUM($AV99:AY99),0)+IF(RIGHT(BU$39,2)>RIGHT($K99,2),AY99,0)) -> 0.1725668561 | BV99: =+IF($K99="Ongoing",AZ99,IF(RIGHT($K99,2)=RIGHT(BV$39,2),SUM($AV99:AZ99),0)+IF(RIGHT(BV$39,2)>RIGHT($K99,2),AZ99,0)) -> 0.1762945456 | BW99: =+IF($K99="Ongoing",BA99,IF(RIGHT($K99,2)=RIGHT(BW$39,2),SUM($AV99:BA99),0)+IF(RIGHT(BW$39,2)>RIGHT($K99,2),BA99,0)) -> 0.2017363303 | BX99: =+IF($K99="Ongoing",BB99,IF(RIGHT($K99,2)=RIGHT(BX$39,2),SUM($AV99:BB99),0)+IF(RIGHT(BX$39,2)>RIGHT($K99,2),BB99,0)) -> 0.1956464753 | BY99: =+IF($K99="Ongoing",BC99,IF(RIGHT($K99,2)=RIGHT(BY$39,2),SUM($AV99:BC99),0)+IF(RIGHT(BY$39,2)>RIGHT($K99,2),BC99,0)) -> 0.1886088323 | BZ99: =+IF($K99="Ongoing",BD99,IF(RIGHT($K99,2)=RIGHT(BZ$39,2),SUM($AV99:BD99),0)+IF(RIGHT(BZ$39,2)>RIGHT($K99,2),BD99,0)) -> 0.1947081229 | CA99: =+IF($K99="Ongoing",BE99,IF(RIGHT($K99,2)=RIGHT(CA$39,2),SUM($AV99:BE99),0)+IF(RIGHT(CA$39,2)>RIGHT($K99,2),BE99,0)) -> 0 | CC99: =+O99*KeyAssumptionsPriceControl_FO!X$15 -> 0.1656446162 | CD99: =+P99*KeyAssumptionsPriceControl_FO!Y$15 -> 0.1730769594 | CE99: =+Q99*KeyAssumptionsPriceControl_FO!Z$15 -> 0.1808563358 | CF99: =+R99*KeyAssumptionsPriceControl_FO!AA$15 -> 0.1889991809 | CG99: =+S99*KeyAssumptionsPriceControl_FO!AB$15 -> 0.197522714 | CH99: =+T99*KeyAssumptionsPriceControl_FO!AC$15 -> 0.2312266668 | CI99: =+U99*KeyAssumptionsPriceControl_FO!AD$15 -> 0.2294042525 | CJ99: =+V99*KeyAssumptionsPriceControl_FO!AE$15 -> 0.2262388039 | CK99: =+W99*KeyAssumptionsPriceControl_FO!AF$15 -> 0.2389267487 | CL99: =+X99*KeyAssumptionsPriceControl_FO!AG$15 -> 0 | CN99: 0.007490763259 | CO99: 0.02280839441 | CP99: 0.03881392833 | CQ99: 0.05553949526 | CR99: 0.07301874738 | CS99: 0.09240760639 | CT99: 0.1132382089 | CU99: 0.1338432509 | CV99: 0.1548789182 | CW99: 0.1656836382
C100: Other - Corporate | E100: Recycled Water | F100: Renewals | G100: Corporate | H100: Other Capital expenditure | J100: Straight line | K100: Ongoing | L100: 11.05659133 | M100: 11.05659133 | O100: 0.05820263024 | P100: 0.05944685857 | Q100: 0.06072223477 | R100: 0.06202950381 | S100: 0.06336942928 | T100: 0.07251453001 | U100: 0.07032551937 | V100: 0.06779582443 | W100: 0.06998822671 | X100: 0 | Z100: 0 | AA100: 0 | AB100: 0 | AC100: 0 | AD100: 0 | AE100: 0 | AF100: 0 | AG100: 0 | AH100: 0 | AI100: 0 | AK100: 0 | AL100: 0 | AM100: 0 | AN100: 0 | AO100: 0 | AP100: 0 | AQ100: 0 | AR100: 0 | AS100: 0 | AT100: 0 | AV100: 0.05820263024 | AW100: 0.05944685857 | AX100: 0.06072223477 | AY100: 0.06202950381 | AZ100: 0.06336942928 | BA100: 0.07251453001 | BB100: 0.07032551937 | BC100: 0.06779582443 | BD100: 0.06998822671 | BE100: 0 | BG100: 0.002632033169 | BH100: 0.007952365869 | BI100: 0.01338663986 | BJ100: 0.01893770596 | BK100: 0.0246084832 | BL100: 0.03075341319 | BM100: 0.03721291075 | BN100: 0.0434590195 | BO100: 0.04968987524 | BP100: 0.05285487541 | BR100: =+IF($K100="Ongoing",AV100,IF(RIGHT($K100,2)=RIGHT(BR$39,2),SUM($AV100:AV100),0)+IF(RIGHT(BR$39,2)>RIGHT($K100,2),AV100,0)) -> 0.05820263024 | BS100: =+IF($K100="Ongoing",AW100,IF(RIGHT($K100,2)=RIGHT(BS$39,2),SUM($AV100:AW100),0)+IF(RIGHT(BS$39,2)>RIGHT($K100,2),AW100,0)) -> 0.05944685857 | BT100: =+IF($K100="Ongoing",AX100,IF(RIGHT($K100,2)=RIGHT(BT$39,2),SUM($AV100:AX100),0)+IF(RIGHT(BT$39,2)>RIGHT($K100,2),AX100,0)) -> 0.06072223477 | BU100: =+IF($K100="Ongoing",AY100,IF(RIGHT($K100,2)=RIGHT(BU$39,2),SUM($AV100:AY100),0)+IF(RIGHT(BU$39,2)>RIGHT($K100,2),AY100,0)) -> 0.06202950381 | BV100: =+IF($K100="Ongoing",AZ100,IF(RIGHT($K100,2)=RIGHT(BV$39,2),SUM($AV100:AZ100),0)+IF(RIGHT(BV$39,2)>RIGHT($K100,2),AZ100,0)) -> 0.06336942928 | BW100: =+IF($K100="Ongoing",BA100,IF(RIGHT($K100,2)=RIGHT(BW$39,2),SUM($AV100:BA100),0)+IF(RIGHT(BW$39,2)>RIGHT($K100,2),BA100,0)) -> 0.07251453001 | BX100: =+IF($K100="Ongoing",BB100,IF(RIGHT($K100,2)=RIGHT(BX$39,2),SUM($AV100:BB100),0)+IF(RIGHT(BX$39,2)>RIGHT($K100,2),BB100,0)) -> 0.07032551937 | BY100: =+IF($K100="Ongoing",BC100,IF(RIGHT($K100,2)=RIGHT(BY$39,2),SUM($AV100:BC100),0)+IF(RIGHT(BY$39,2)>RIGHT($K100,2),BC100,0)) -> 0.06779582443 | BZ100: =+IF($K100="Ongoing",BD100,IF(RIGHT($K100,2)=RIGHT(BZ$39,2),SUM($AV100:BD100),0)+IF(RIGHT(BZ$39,2)>RIGHT($K100,2),BD100,0)) -> 0.06998822671 | CA100: =+IF($K100="Ongoing",BE100,IF(RIGHT($K100,2)=RIGHT(CA$39,2),SUM($AV100:BE100),0)+IF(RIGHT(CA$39,2)>RIGHT($K100,2),BE100,0)) -> 0 | CC100: =+O100*KeyAssumptionsPriceControl_FO!X$15 -> 0.05954129074 | CD100: =+P100*KeyAssumptionsPriceControl_FO!Y$15 -> 0.06221286145 | CE100: =+Q100*KeyAssumptionsPriceControl_FO!Z$15 -> 0.06500917397 | CF100: =+R100*KeyAssumptionsPriceControl_FO!AA$15 -> 0.06793613602 | CG100: =+S100*KeyAssumptionsPriceControl_FO!AB$15 -> 0.07099993716 | CH100: =+T100*KeyAssumptionsPriceControl_FO!AC$15 -> 0.08311489083 | CI100: =+U100*KeyAssumptionsPriceControl_FO!AD$15 -> 0.08245982033 | CJ100: =+V100*KeyAssumptionsPriceControl_FO!AE$15 -> 0.08132199346 | CK100: =+W100*KeyAssumptionsPriceControl_FO!AF$15 -> 0.08588270078 | CL100: =+X100*KeyAssumptionsPriceControl_FO!AG$15 -> 0 | CN100: 0.002692569932 | CO100: 0.008198523284 | CP100: 0.01395174467 | CQ100: 0.01996378337 | CR100: 0.02624673573 | CS100: 0.03321610013 | CT100: 0.04070370215 | CU100: 0.04811022596 | CV100: 0.0556715389 | CW100: 0.05955531728
C101: Other - Corporate | E101: Water | F101: Renewals | G101: Corporate | H101: Other Capital expenditure | J101: Straight line | K101: Ongoing | L101: 5 | M101: 5 | O101: 0.4589430329 | P101: 0.4704166087 | Q101: 0.4821770239 | R101: 0.4942314495 | S101: 0.5065872357 | T101: 0.5192519166 | U101: 0.5193624932 | V101: 0.5193624932 | W101: 0.5432662063 | X101: 0 | Z101: 0 | AA101: 0 | AB101: 0 | AC101: 0 | AD101: 0 | AE101: 0 | AF101: 0 | AG101: 0 | AH101: 0 | AI101: 0 | AK101: 0 | AL101: 0 | AM101: 0 | AN101: 0 | AO101: 0 | AP101: 0 | AQ101: 0 | AR101: 0 | AS101: 0 | AT101: 0 | AV101: 0.4589430329 | AW101: 0.4704166087 | AX101: 0.4821770239 | AY101: 0.4942314495 | AZ101: 0.5065872357 | BA101: 0.5192519166 | BB101: 0.5193624932 | BC101: 0.5193624932 | BD101: 0.5432662063 | BE101: 0 | BG101: 0.04589430329 | BH101: 0.1388302674 | BI101: 0.2340896307 | BJ101: 0.331730478 | BK101: 0.4318123466 | BL101: 0.4885019585 | BM101: 0.4994274353 | BN101: 0.5080405707 | BO101: 0.5166625933 | BP101: 0.4709073454 | BR101: =+IF($K101="Ongoing",AV101,IF(RIGHT($K101,2)=RIGHT(BR$39,2),SUM($AV101:AV101),0)+IF(RIGHT(BR$39,2)>RIGHT($K101,2),AV101,0)) -> 0.4589430329 | BS101: =+IF($K101="Ongoing",AW101,IF(RIGHT($K101,2)=RIGHT(BS$39,2),SUM($AV101:AW101),0)+IF(RIGHT(BS$39,2)>RIGHT($K101,2),AW101,0)) -> 0.4704166087 | BT101: =+IF($K101="Ongoing",AX101,IF(RIGHT($K101,2)=RIGHT(BT$39,2),SUM($AV101:AX101),0)+IF(RIGHT(BT$39,2)>RIGHT($K101,2),AX101,0)) -> 0.4821770239 | BU101: =+IF($K101="Ongoing",AY101,IF(RIGHT($K101,2)=RIGHT(BU$39,2),SUM($AV101:AY101),0)+IF(RIGHT(BU$39,2)>RIGHT($K101,2),AY101,0)) -> 0.4942314495 | BV101: =+IF($K101="Ongoing",AZ101,IF(RIGHT($K101,2)=RIGHT(BV$39,2),SUM($AV101:AZ101),0)+IF(RIGHT(BV$39,2)>RIGHT($K101,2),AZ101,0)) -> 0.5065872357 | BW101: =+IF($K101="Ongoing",BA101,IF(RIGHT($K101,2)=RIGHT(BW$39,2),SUM($AV101:BA101),0)+IF(RIGHT(BW$39,2)>RIGHT($K101,2),BA101,0)) -> 0.5192519166 | BX101: =+IF($K101="Ongoing",BB101,IF(RIGHT($K101,2)=RIGHT(BX$39,2),SUM($AV101:BB101),0)+IF(RIGHT(BX$39,2)>RIGHT($K101,2),BB101,0)) -> 0.5193624932 | BY101: =+IF($K101="Ongoing",BC101,IF(RIGHT($K101,2)=RIGHT(BY$39,2),SUM($AV101:BC101),0)+IF(RIGHT(BY$39,2)>RIGHT($K101,2),BC101,0)) -> 0.5193624932 | BZ101: =+IF($K101="Ongoing",BD101,IF(RIGHT($K101,2)=RIGHT(BZ$39,2),SUM($AV101:BD101),0)+IF(RIGHT(BZ$39,2)>RIGHT($K101,2),BD101,0)) -> 0.5432662063 | CA101: =+IF($K101="Ongoing",BE101,IF(RIGHT($K101,2)=RIGHT(CA$39,2),SUM($AV101:BE101),0)+IF(RIGHT(CA$39,2)>RIGHT($K101,2),BE101,0)) -> 0 | CC101: =+O101*KeyAssumptionsPriceControl_FO!X$15 -> 0.4694987226 | CD101: =+P101*KeyAssumptionsPriceControl_FO!Y$15 -> 0.4923046231 | CE101: =+Q101*KeyAssumptionsPriceControl_FO!Z$15 -> 0.5162183201 | CF101: =+R101*KeyAssumptionsPriceControl_FO!AA$15 -> 0.541293625 | CG101: =+S101*KeyAssumptionsPriceControl_FO!AB$15 -> 0.5675869629 | CH101: =+T101*KeyAssumptionsPriceControl_FO!AC$15 -> 0.5951574996 | CI101: =+U101*KeyAssumptionsPriceControl_FO!AD$15 -> 0.6089757781 | CJ101: =+V101*KeyAssumptionsPriceControl_FO!AE$15 -> 0.622982221 | CK101: =+W101*KeyAssumptionsPriceControl_FO!AF$15 -> 0.6666431089 | CL101: =+X101*KeyAssumptionsPriceControl_FO!AG$15 -> 0 | CN101: 0.04694987226 | CO101: 0.1431302068 | CP101: 0.2439825012 | CQ101: 0.3497336957 | CR101: 0.4606217545 | CS101: 0.5299463284 | CT101: 0.5541793216 | CU101: 0.5765228272 | CV101: 0.5997341657 | CW101: 0.5555104178
C102: Other - Corporate | E102: Sewerage | F102: Renewals | G102: Corporate | H102: Other Capital expenditure | J102: Straight line | K102: Ongoing | L102: 5 | M102: 5 | O102: 0.5945293823 | P102: 0.6093926169 | Q102: 0.6246274323 | R102: 0.6402431181 | S102: 0.6562491961 | T102: 0.672655426 | U102: 0.6727986704 | V102: 0.6727986704 | W102: 0.7037642996 | X102: 0 | Z102: 0 | AA102: 0 | AB102: 0 | AC102: 0 | AD102: 0 | AE102: 0 | AF102: 0 | AG102: 0 | AH102: 0 | AI102: 0 | AK102: 0 | AL102: 0 | AM102: 0 | AN102: 0 | AO102: 0 | AP102: 0 | AQ102: 0 | AR102: 0 | AS102: 0 | AT102: 0 | AV102: 0.5945293823 | AW102: 0.6093926169 | AX102: 0.6246274323 | AY102: 0.6402431181 | AZ102: 0.6562491961 | BA102: 0.672655426 | BB102: 0.6727986704 | BC102: 0.6727986704 | BD102: 0.7037642996 | BE102: 0 | BG102: 0.05945293823 | BH102: 0.1798451382 | BI102: 0.3032471431 | BJ102: 0.4297341981 | BK102: 0.5593834295 | BL102: 0.6328209535 | BM102: 0.6469741632 | BN102: 0.6581318924 | BO102: 0.6693011343 | BP102: 0.6100283329 | BR102: =+IF($K102="Ongoing",AV102,IF(RIGHT($K102,2)=RIGHT(BR$39,2),SUM($AV102:AV102),0)+IF(RIGHT(BR$39,2)>RIGHT($K102,2),AV102,0)) -> 0.5945293823 | BS102: =+IF($K102="Ongoing",AW102,IF(RIGHT($K102,2)=RIGHT(BS$39,2),SUM($AV102:AW102),0)+IF(RIGHT(BS$39,2)>RIGHT($K102,2),AW102,0)) -> 0.6093926169 | BT102: =+IF($K102="Ongoing",AX102,IF(RIGHT($K102,2)=RIGHT(BT$39,2),SUM($AV102:AX102),0)+IF(RIGHT(BT$39,2)>RIGHT($K102,2),AX102,0)) -> 0.6246274323 | BU102: =+IF($K102="Ongoing",AY102,IF(RIGHT($K102,2)=RIGHT(BU$39,2),SUM($AV102:AY102),0)+IF(RIGHT(BU$39,2)>RIGHT($K102,2),AY102,0)) -> 0.6402431181 | BV102: =+IF($K102="Ongoing",AZ102,IF(RIGHT($K102,2)=RIGHT(BV$39,2),SUM($AV102:AZ102),0)+IF(RIGHT(BV$39,2)>RIGHT($K102,2),AZ102,0)) -> 0.6562491961 | BW102: =+IF($K102="Ongoing",BA102,IF(RIGHT($K102,2)=RIGHT(BW$39,2),SUM($AV102:BA102),0)+IF(RIGHT(BW$39,2)>RIGHT($K102,2),BA102,0)) -> 0.672655426 | BX102: =+IF($K102="Ongoing",BB102,IF(RIGHT($K102,2)=RIGHT(BX$39,2),SUM($AV102:BB102),0)+IF(RIGHT(BX$39,2)>RIGHT($K102,2),BB102,0)) -> 0.6727986704 | BY102: =+IF($K102="Ongoing",BC102,IF(RIGHT($K102,2)=RIGHT(BY$39,2),SUM($AV102:BC102),0)+IF(RIGHT(BY$39,2)>RIGHT($K102,2),BC102,0)) -> 0.6727986704 | BZ102: =+IF($K102="Ongoing",BD102,IF(RIGHT($K102,2)=RIGHT(BZ$39,2),SUM($AV102:BD102),0)+IF(RIGHT(BZ$39,2)>RIGHT($K102,2),BD102,0)) -> 0.7037642996 | CA102: =+IF($K102="Ongoing",BE102,IF(RIGHT($K102,2)=RIGHT(CA$39,2),SUM($AV102:BE102),0)+IF(RIGHT(CA$39,2)>RIGHT($K102,2),BE102,0)) -> 0 | CC102: =+O102*KeyAssumptionsPriceControl_FO!X$15 -> 0.6082035581 | CD102: =+P102*KeyAssumptionsPriceControl_FO!Y$15 -> 0.6377470459 | CE102: =+Q102*KeyAssumptionsPriceControl_FO!Z$15 -> 0.6687256087 | CF102: =+R102*KeyAssumptionsPriceControl_FO!AA$15 -> 0.7012089551 | CG102: =+S102*KeyAssumptionsPriceControl_FO!AB$15 -> 0.7352701801 | CH102: =+T102*KeyAssumptionsPriceControl_FO!AC$15 -> 0.7709859291 | CI102: =+U102*KeyAssumptionsPriceControl_FO!AD$15 -> 0.788886566 | CJ102: =+V102*KeyAssumptionsPriceControl_FO!AE$15 -> 0.807030957 | CK102: =+W102*KeyAssumptionsPriceControl_FO!AF$15 -> 0.863590658 | CL102: =+X102*KeyAssumptionsPriceControl_FO!AG$15 -> 0 | CN102: 0.06082035581 | CO102: 0.1854154162 | CP102: 0.3160626817 | CQ102: 0.4530561381 | CR102: 0.5967040516 | CS102: 0.6865093067 | CT102: 0.7179014958 | CU102: 0.7468459827 | CV102: 0.7769146878 | CW102: 0.7196258401
C103: Other - Corporate | E103: Recycled Water | F103: Renewals | G103: Corporate | H103: Other Capital expenditure | J103: Straight line | K103: Ongoing | L103: 5 | M103: 5 | O103: 0.2137047833 | P103: 0.2190474028 | Q103: 0.2245235879 | R103: 0.2301366776 | S103: 0.2358900945 | T103: 0.2417873469 | U103: 0.2418388364 | V103: 0.2418388364 | W103: 0.2529694941 | X103: 0 | Z103: 0 | AA103: 0 | AB103: 0 | AC103: 0 | AD103: 0 | AE103: 0 | AF103: 0 | AG103: 0 | AH103: 0 | AI103: 0 | AK103: 0 | AL103: 0 | AM103: 0 | AN103: 0 | AO103: 0 | AP103: 0 | AQ103: 0 | AR103: 0 | AS103: 0 | AT103: 0 | AV103: 0.2137047833 | AW103: 0.2190474028 | AX103: 0.2245235879 | AY103: 0.2301366776 | AZ103: 0.2358900945 | BA103: 0.2417873469 | BB103: 0.2418388364 | BC103: 0.2418388364 | BD103: 0.2529694941 | BE103: 0 | BG103: 0.02137047833 | BH103: 0.06464569693 | BI103: 0.109002796 | BJ103: 0.1544688226 | BK103: 0.2010714998 | BL103: 0.2274687656 | BM103: 0.2325561653 | BN103: 0.2365668335 | BO103: 0.24058164 | BP103: 0.2192759122 | BR103: =+IF($K103="Ongoing",AV103,IF(RIGHT($K103,2)=RIGHT(BR$39,2),SUM($AV103:AV103),0)+IF(RIGHT(BR$39,2)>RIGHT($K103,2),AV103,0)) -> 0.2137047833 | BS103: =+IF($K103="Ongoing",AW103,IF(RIGHT($K103,2)=RIGHT(BS$39,2),SUM($AV103:AW103),0)+IF(RIGHT(BS$39,2)>RIGHT($K103,2),AW103,0)) -> 0.2190474028 | BT103: =+IF($K103="Ongoing",AX103,IF(RIGHT($K103,2)=RIGHT(BT$39,2),SUM($AV103:AX103),0)+IF(RIGHT(BT$39,2)>RIGHT($K103,2),AX103,0)) -> 0.2245235879 | BU103: =+IF($K103="Ongoing",AY103,IF(RIGHT($K103,2)=RIGHT(BU$39,2),SUM($AV103:AY103),0)+IF(RIGHT(BU$39,2)>RIGHT($K103,2),AY103,0)) -> 0.2301366776 | BV103: =+IF($K103="Ongoing",AZ103,IF(RIGHT($K103,2)=RIGHT(BV$39,2),SUM($AV103:AZ103),0)+IF(RIGHT(BV$39,2)>RIGHT($K103,2),AZ103,0)) -> 0.2358900945 | BW103: =+IF($K103="Ongoing",BA103,IF(RIGHT($K103,2)=RIGHT(BW$39,2),SUM($AV103:BA103),0)+IF(RIGHT(BW$39,2)>RIGHT($K103,2),BA103,0)) -> 0.2417873469 | BX103: =+IF($K103="Ongoing",BB103,IF(RIGHT($K103,2)=RIGHT(BX$39,2),SUM($AV103:BB103),0)+IF(RIGHT(BX$39,2)>RIGHT($K103,2),BB103,0)) -> 0.2418388364 | BY103: =+IF($K103="Ongoing",BC103,IF(RIGHT($K103,2)=RIGHT(BY$39,2),SUM($AV103:BC103),0)+IF(RIGHT(BY$39,2)>RIGHT($K103,2),BC103,0)) -> 0.2418388364 | BZ103: =+IF($K103="Ongoing",BD103,IF(RIGHT($K103,2)=RIGHT(BZ$39,2),SUM($AV103:BD103),0)+IF(RIGHT(BZ$39,2)>RIGHT($K103,2),BD103,0)) -> 0.2529694941 | CA103: =+IF($K103="Ongoing",BE103,IF(RIGHT($K103,2)=RIGHT(CA$39,2),SUM($AV103:BE103),0)+IF(RIGHT(CA$39,2)>RIGHT($K103,2),BE103,0)) -> 0 | CC103: =+O103*KeyAssumptionsPriceControl_FO!X$15 -> 0.2186199933 | CD103: =+P103*KeyAssumptionsPriceControl_FO!Y$15 -> 0.2292394594 | CE103: =+Q103*KeyAssumptionsPriceControl_FO!Z$15 -> 0.2403747662 | CF103: =+R103*KeyAssumptionsPriceControl_FO!AA$15 -> 0.2520509704 | CG103: =+S103*KeyAssumptionsPriceControl_FO!AB$15 -> 0.2642943463 | CH103: =+T103*KeyAssumptionsPriceControl_FO!AC$15 -> 0.2771324442 | CI103: =+U103*KeyAssumptionsPriceControl_FO!AD$15 -> 0.2835668642 | CJ103: =+V103*KeyAssumptionsPriceControl_FO!AE$15 -> 0.290088902 | CK103: =+W103*KeyAssumptionsPriceControl_FO!AF$15 -> 0.3104194004 | CL103: =+X103*KeyAssumptionsPriceControl_FO!AG$15 -> 0 | CN103: 0.02186199933 | CO103: 0.0666479446 | CP103: 0.1136093672 | CQ103: 0.1628519408 | CR103: 0.2144864725 | CS103: 0.2467671522 | CT103: 0.2580511378 | CU103: 0.2684552919 | CV103: 0.2792635484 | CW103: 0.2586709568
C104: [Capex Item - Significant Project / Capital Program / Other Capex] | E104: [Service] | F104: [Major Cost Driver] | G104: [Asset category] | H104: [Capital type] | J104: Straight line | K104: [Year finalised?] | AV104: 0 | AW104: 0 | AX104: 0 | AY104: 0 | AZ104: 0 | BA104: 0 | BB104: 0 | BC104: 0 | BD104: 0 | BE104: 0 | BG104: 0 | BH104: 0 | BI104: 0 | BJ104: 0 | BK104: 0 | BL104: 0 | BM104: 0 | BN104: 0 | BO104: 0 | BP104: 0 | BR104: =+IF($K104="Ongoing",AV104,IF(RIGHT($K104,2)=RIGHT(BR$39,2),SUM($AV104:AV104),0)+IF(RIGHT(BR$39,2)>RIGHT($K104,2),AV104,0)) -> 0 | BS104: =+IF($K104="Ongoing",AW104,IF(RIGHT($K104,2)=RIGHT(BS$39,2),SUM($AV104:AW104),0)+IF(RIGHT(BS$39,2)>RIGHT($K104,2),AW104,0)) -> 0 | BT104: =+IF($K104="Ongoing",AX104,IF(RIGHT($K104,2)=RIGHT(BT$39,2),SUM($AV104:AX104),0)+IF(RIGHT(BT$39,2)>RIGHT($K104,2),AX104,0)) -> 0 | BU104: =+IF($K104="Ongoing",AY104,IF(RIGHT($K104,2)=RIGHT(BU$39,2),SUM($AV104:AY104),0)+IF(RIGHT(BU$39,2)>RIGHT($K104,2),AY104,0)) -> 0 | BV104: =+IF($K104="Ongoing",AZ104,IF(RIGHT($K104,2)=RIGHT(BV$39,2),SUM($AV104:AZ104),0)+IF(RIGHT(BV$39,2)>RIGHT($K104,2),AZ104,0)) -> 0 | BW104: =+IF($K104="Ongoing",BA104,IF(RIGHT($K104,2)=RIGHT(BW$39,2),SUM($AV104:BA104),0)+IF(RIGHT(BW$39,2)>RIGHT($K104,2),BA104,0)) -> 0 | BX104: =+IF($K104="Ongoing",BB104,IF(RIGHT($K104,2)=RIGHT(BX$39,2),SUM($AV104:BB104),0)+IF(RIGHT(BX$39,2)>RIGHT($K104,2),BB104,0)) -> 0 | BY104: =+IF($K104="Ongoing",BC104,IF(RIGHT($K104,2)=RIGHT(BY$39,2),SUM($AV104:BC104),0)+IF(RIGHT(BY$39,2)>RIGHT($K104,2),BC104,0)) -> 0 | BZ104: =+IF($K104="Ongoing",BD104,IF(RIGHT($K104,2)=RIGHT(BZ$39,2),SUM($AV104:BD104),0)+IF(RIGHT(BZ$39,2)>RIGHT($K104,2),BD104,0)) -> 0 | CA104: =+IF($K104="Ongoing",BE104,IF(RIGHT($K104,2)=RIGHT(CA$39,2),SUM($AV104:BE104),0)+IF(RIGHT(CA$39,2)>RIGHT($K104,2),BE104,0)) -> 0 | CC104: =+O104*KeyAssumptionsPriceControl_FO!X$15 -> 0 | CD104: =+P104*KeyAssumptionsPriceControl_FO!Y$15 -> 0 | CE104: =+Q104*KeyAssumptionsPriceControl_FO!Z$15 -> 0 | CF104: =+R104*KeyAssumptionsPriceControl_FO!AA$15 -> 0 | CG104: =+S104*KeyAssumptionsPriceControl_FO!AB$15 -> 0 | CH104: =+T104*KeyAssumptionsPriceControl_FO!AC$15 -> 0 | CI104: =+U104*KeyAssumptionsPriceControl_FO!AD$15 -> 0 | CJ104: =+V104*KeyAssumptionsPriceControl_FO!AE$15 -> 0 | CK104: =+W104*KeyAssumptionsPriceControl_FO!AF$15 -> 0 | CL104: =+X104*KeyAssumptionsPriceControl_FO!AG$15 -> 0 | CN104: 0 | CO104: 0 | CP104: 0 | CQ104: 0 | CR104: 0 | CS104: 0 | CT104: 0 | CU104: 0 | CV104: 0 | CW104: 0
C105: [Capex Item - Significant Project / Capital Program / Other Capex] | E105: [Service] | F105: [Major Cost Driver] | G105: [Asset category] | H105: [Capital type] | J105: Straight line | K105: [Year finalised?] | AV105: 0 | AW105: 0 | AX105: 0 | AY105: 0 | AZ105: 0 | BA105: 0 | BB105: 0 | BC105: 0 | BD105: 0 | BE105: 0 | BG105: 0 | BH105: 0 | BI105: 0 | BJ105: 0 | BK105: 0 | BL105: 0 | BM105: 0 | BN105: 0 | BO105: 0 | BP105: 0 | BR105: =+IF($K105="Ongoing",AV105,IF(RIGHT($K105,2)=RIGHT(BR$39,2),SUM($AV105:AV105),0)+IF(RIGHT(BR$39,2)>RIGHT($K105,2),AV105,0)) -> 0 | BS105: =+IF($K105="Ongoing",AW105,IF(RIGHT($K105,2)=RIGHT(BS$39,2),SUM($AV105:AW105),0)+IF(RIGHT(BS$39,2)>RIGHT($K105,2),AW105,0)) -> 0 | BT105: =+IF($K105="Ongoing",AX105,IF(RIGHT($K105,2)=RIGHT(BT$39,2),SUM($AV105:AX105),0)+IF(RIGHT(BT$39,2)>RIGHT($K105,2),AX105,0)) -> 0 | BU105: =+IF($K105="Ongoing",AY105,IF(RIGHT($K105,2)=RIGHT(BU$39,2),SUM($AV105:AY105),0)+IF(RIGHT(BU$39,2)>RIGHT($K105,2),AY105,0)) -> 0 | BV105: =+IF($K105="Ongoing",AZ105,IF(RIGHT($K105,2)=RIGHT(BV$39,2),SUM($AV105:AZ105),0)+IF(RIGHT(BV$39,2)>RIGHT($K105,2),AZ105,0)) -> 0 | BW105: =+IF($K105="Ongoing",BA105,IF(RIGHT($K105,2)=RIGHT(BW$39,2),SUM($AV105:BA105),0)+IF(RIGHT(BW$39,2)>RIGHT($K105,2),BA105,0)) -> 0 | BX105: =+IF($K105="Ongoing",BB105,IF(RIGHT($K105,2)=RIGHT(BX$39,2),SUM($AV105:BB105),0)+IF(RIGHT(BX$39,2)>RIGHT($K105,2),BB105,0)) -> 0 | BY105: =+IF($K105="Ongoing",BC105,IF(RIGHT($K105,2)=RIGHT(BY$39,2),SUM($AV105:BC105),0)+IF(RIGHT(BY$39,2)>RIGHT($K105,2),BC105,0)) -> 0 | BZ105: =+IF($K105="Ongoing",BD105,IF(RIGHT($K105,2)=RIGHT(BZ$39,2),SUM($AV105:BD105),0)+IF(RIGHT(BZ$39,2)>RIGHT($K105,2),BD105,0)) -> 0 | CA105: =+IF($K105="Ongoing",BE105,IF(RIGHT($K105,2)=RIGHT(CA$39,2),SUM($AV105:BE105),0)+IF(RIGHT(CA$39,2)>RIGHT($K105,2),BE105,0)) -> 0 | CC105: =+O105*KeyAssumptionsPriceControl_FO!X$15 -> 0 | CD105: =+P105*KeyAssumptionsPriceControl_FO!Y$15 -> 0 | CE105: =+Q105*KeyAssumptionsPriceControl_FO!Z$15 -> 0 | CF105: =+R105*KeyAssumptionsPriceControl_FO!AA$15 -> 0 | CG105: =+S105*KeyAssumptionsPriceControl_FO!AB$15 -> 0 | CH105: =+T105*KeyAssumptionsPriceControl_FO!AC$15 -> 0 | CI105: =+U105*KeyAssumptionsPriceControl_FO!AD$15 -> 0 | CJ105: =+V105*KeyAssumptionsPriceControl_FO!AE$15 -> 0 | CK105: =+W105*KeyAssumptionsPriceControl_FO!AF$15 -> 0 | CL105: =+X105*KeyAssumptionsPriceControl_FO!AG$15 -> 0 | CN105: 0 | CO105: 0 | CP105: 0 | CQ105: 0 | CR105: 0 | CS105: 0 | CT105: 0 | CU105: 0 | CV105: 0 | CW105: 0
C106: [Capex Item - Significant Project / Capital Program / Other Capex] | E106: [Service] | F106: [Major Cost Driver] | G106: [Asset category] | H106: [Capital type] | J106: Straight line | K106: [Year finalised?] | AV106: 0 | AW106: 0 | AX106: 0 | AY106: 0 | AZ106: 0 | BA106: 0 | BB106: 0 | BC106: 0 | BD106: 0 | BE106: 0 | BG106: 0 | BH106: 0 | BI106: 0 | BJ106: 0 | BK106: 0 | BL106: 0 | BM106: 0 | BN106: 0 | BO106: 0 | BP106: 0 | BR106: =+IF($K106="Ongoing",AV106,IF(RIGHT($K106,2)=RIGHT(BR$39,2),SUM($AV106:AV106),0)+IF(RIGHT(BR$39,2)>RIGHT($K106,2),AV106,0)) -> 0 | BS106: =+IF($K106="Ongoing",AW106,IF(RIGHT($K106,2)=RIGHT(BS$39,2),SUM($AV106:AW106),0)+IF(RIGHT(BS$39,2)>RIGHT($K106,2),AW106,0)) -> 0 | BT106: =+IF($K106="Ongoing",AX106,IF(RIGHT($K106,2)=RIGHT(BT$39,2),SUM($AV106:AX106),0)+IF(RIGHT(BT$39,2)>RIGHT($K106,2),AX106,0)) -> 0 | BU106: =+IF($K106="Ongoing",AY106,IF(RIGHT($K106,2)=RIGHT(BU$39,2),SUM($AV106:AY106),0)+IF(RIGHT(BU$39,2)>RIGHT($K106,2),AY106,0)) -> 0 | BV106: =+IF($K106="Ongoing",AZ106,IF(RIGHT($K106,2)=RIGHT(BV$39,2),SUM($AV106:AZ106),0)+IF(RIGHT(BV$39,2)>RIGHT($K106,2),AZ106,0)) -> 0 | BW106: =+IF($K106="Ongoing",BA106,IF(RIGHT($K106,2)=RIGHT(BW$39,2),SUM($AV106:BA106),0)+IF(RIGHT(BW$39,2)>RIGHT($K106,2),BA106,0)) -> 0 | BX106: =+IF($K106="Ongoing",BB106,IF(RIGHT($K106,2)=RIGHT(BX$39,2),SUM($AV106:BB106),0)+IF(RIGHT(BX$39,2)>RIGHT($K106,2),BB106,0)) -> 0 | BY106: =+IF($K106="Ongoing",BC106,IF(RIGHT($K106,2)=RIGHT(BY$39,2),SUM($AV106:BC106),0)+IF(RIGHT(BY$39,2)>RIGHT($K106,2),BC106,0)) -> 0 | BZ106: =+IF($K106="Ongoing",BD106,IF(RIGHT($K106,2)=RIGHT(BZ$39,2),SUM($AV106:BD106),0)+IF(RIGHT(BZ$39,2)>RIGHT($K106,2),BD106,0)) -> 0 | CA106: =+IF($K106="Ongoing",BE106,IF(RIGHT($K106,2)=RIGHT(CA$39,2),SUM($AV106:BE106),0)+IF(RIGHT(CA$39,2)>RIGHT($K106,2),BE106,0)) -> 0 | CC106: =+O106*KeyAssumptionsPriceControl_FO!X$15 -> 0 | CD106: =+P106*KeyAssumptionsPriceControl_FO!Y$15 -> 0 | CE106: =+Q106*KeyAssumptionsPriceControl_FO!Z$15 -> 0 | CF106: =+R106*KeyAssumptionsPriceControl_FO!AA$15 -> 0 | CG106: =+S106*KeyAssumptionsPriceControl_FO!AB$15 -> 0 | CH106: =+T106*KeyAssumptionsPriceControl_FO!AC$15 -> 0 | CI106: =+U106*KeyAssumptionsPriceControl_FO!AD$15 -> 0 | CJ106: =+V106*KeyAssumptionsPriceControl_FO!AE$15 -> 0 | CK106: =+W106*KeyAssumptionsPriceControl_FO!AF$15 -> 0 | CL106: =+X106*KeyAssumptionsPriceControl_FO!AG$15 -> 0 | CN106: 0 | CO106: 0 | CP106: 0 | CQ106: 0 | CR106: 0 | CS106: 0 | CT106: 0 | CU106: 0 | CV106: 0 | CW106: 0
C107: [Capex Item - Significant Project / Capital Program / Other Capex] | E107: [Service] | F107: [Major Cost Driver] | G107: [Asset category] | H107: [Capital type] | J107: Straight line | K107: [Year finalised?] | AV107: 0 | AW107: 0 | AX107: 0 | AY107: 0 | AZ107: 0 | BA107: 0 | BB107: 0 | BC107: 0 | BD107: 0 | BE107: 0 | BG107: =IF($L107=0,0, IF($L107<=0.5,BR107, IF($J107="straight line", IF((LEFT(BG$39,4)*1)-INT($L107)<LEFT($BG$39,4)*1,0,((OFFSET(BR107,0,-INT($L107+0.5),1,1))/$L107)*(IF($L107-INT($L107)>0.5,$L107-0.5-INT($L107),IF($L107-INT($L107)<=0.5,$L107-0.5-INT($L107)+1,0)))) +BR107/$L107*0.5, IF($J107="Declining Balance",-$BG$38,0)))) -> 0 | BH107: 0 | BI107: 0 | BJ107: 0 | BK107: 0 | BL107: 0 | BM107: 0 | BN107: 0 | BO107: 0 | BP107: 0 | BR107: =+IF($K107="Ongoing",AV107,IF(RIGHT($K107,2)=RIGHT(BR$39,2),SUM($AV107:AV107),0)+IF(RIGHT(BR$39,2)>RIGHT($K107,2),AV107,0)) -> 0 | BS107: =+IF($K107="Ongoing",AW107,IF(RIGHT($K107,2)=RIGHT(BS$39,2),SUM($AV107:AW107),0)+IF(RIGHT(BS$39,2)>RIGHT($K107,2),AW107,0)) -> 0 | BT107: =+IF($K107="Ongoing",AX107,IF(RIGHT($K107,2)=RIGHT(BT$39,2),SUM($AV107:AX107),0)+IF(RIGHT(BT$39,2)>RIGHT($K107,2),AX107,0)) -> 0 | BU107: =+IF($K107="Ongoing",AY107,IF(RIGHT($K107,2)=RIGHT(BU$39,2),SUM($AV107:AY107),0)+IF(RIGHT(BU$39,2)>RIGHT($K107,2),AY107,0)) -> 0 | BV107: =+IF($K107="Ongoing",AZ107,IF(RIGHT($K107,2)=RIGHT(BV$39,2),SUM($AV107:AZ107),0)+IF(RIGHT(BV$39,2)>RIGHT($K107,2),AZ107,0)) -> 0 | BW107: =+IF($K107="Ongoing",BA107,IF(RIGHT($K107,2)=RIGHT(BW$39,2),SUM($AV107:BA107),0)+IF(RIGHT(BW$39,2)>RIGHT($K107,2),BA107,0)) -> 0 | BX107: =+IF($K107="Ongoing",BB107,IF(RIGHT($K107,2)=RIGHT(BX$39,2),SUM($AV107:BB107),0)+IF(RIGHT(BX$39,2)>RIGHT($K107,2),BB107,0)) -> 0 | BY107: =+IF($K107="Ongoing",BC107,IF(RIGHT($K107,2)=RIGHT(BY$39,2),SUM($AV107:BC107),0)+IF(RIGHT(BY$39,2)>RIGHT($K107,2),BC107,0)) -> 0 | BZ107: =+IF($K107="Ongoing",BD107,IF(RIGHT($K107,2)=RIGHT(BZ$39,2),SUM($AV107:BD107),0)+IF(RIGHT(BZ$39,2)>RIGHT($K107,2),BD107,0)) -> 0 | CA107: =+IF($K107="Ongoing",BE107,IF(RIGHT($K107,2)=RIGHT(CA$39,2),SUM($AV107:BE107),0)+IF(RIGHT(CA$39,2)>RIGHT($K107,2),BE107,0)) -> 0 | CC107: =+O107*KeyAssumptionsPriceControl_FO!X$15 -> 0 | CD107: =+P107*KeyAssumptionsPriceControl_FO!Y$15 -> 0 | CE107: =+Q107*KeyAssumptionsPriceControl_FO!Z$15 -> 0 | CF107: =+R107*KeyAssumptionsPriceControl_FO!AA$15 -> 0 | CG107: =+S107*KeyAssumptionsPriceControl_FO!AB$15 -> 0 | CH107: =+T107*KeyAssumptionsPriceControl_FO!AC$15 -> 0 | CI107: =+U107*KeyAssumptionsPriceControl_FO!AD$15 -> 0 | CJ107: =+V107*KeyAssumptionsPriceControl_FO!AE$15 -> 0 | CK107: =+W107*KeyAssumptionsPriceControl_FO!AF$15 -> 0 | CL107: =+X107*KeyAssumptionsPriceControl_FO!AG$15 -> 0 | CN107: =IF($M107=0,0, IF($M107<=0.5,CC107, IF($J107="straight line", IF((LEFT(CN$39,4)*1)-INT($M107)<LEFT($CN$39,4)*1,0,((OFFSET(CC107,0,-INT($M107+0.5),1,1))/$M107)*(IF($M107-INT($M107)>0.5,$M107-0.5-INT($M107),IF($M107-INT($M107)<=0.5,$M107-0.5-INT($M107)+1,0)))) +CC107/$M107*0.5, IF($J107="Declining Balance",-$CN$38,0)))) -> 0 | CO107: 0 | CP107: 0 | CQ107: 0 | CR107: 0 | CS107: 0 | CT107: 0 | CU107: 0 | CV107: 0 | CW107: 0
C108: [Capex Item - Significant Project / Capital Program / Other Capex] | E108: [Service] | F108: [Major Cost Driver] | G108: [Asset category] | H108: [Capital type] | J108: Straight line | K108: [Year finalised?] | AV108: 0 | AW108: 0 | AX108: 0 | AY108: 0 | AZ108: 0 | BA108: 0 | BB108: 0 | BC108: 0 | BD108: 0 | BE108: 0 | BG108: 0 | BH108: 0 | BI108: 0 | BJ108: 0 | BK108: 0 | BL108: 0 | BM108: 0 | BN108: 0 | BO108: 0 | BP108: 0 | BR108: =+IF($K108="Ongoing",AV108,IF(RIGHT($K108,2)=RIGHT(BR$39,2),SUM($AV108:AV108),0)+IF(RIGHT(BR$39,2)>RIGHT($K108,2),AV108,0)) -> 0 | BS108: =+IF($K108="Ongoing",AW108,IF(RIGHT($K108,2)=RIGHT(BS$39,2),SUM($AV108:AW108),0)+IF(RIGHT(BS$39,2)>RIGHT($K108,2),AW108,0)) -> 0 | BT108: =+IF($K108="Ongoing",AX108,IF(RIGHT($K108,2)=RIGHT(BT$39,2),SUM($AV108:AX108),0)+IF(RIGHT(BT$39,2)>RIGHT($K108,2),AX108,0)) -> 0 | BU108: =+IF($K108="Ongoing",AY108,IF(RIGHT($K108,2)=RIGHT(BU$39,2),SUM($AV108:AY108),0)+IF(RIGHT(BU$39,2)>RIGHT($K108,2),AY108,0)) -> 0 | BV108: =+IF($K108="Ongoing",AZ108,IF(RIGHT($K108,2)=RIGHT(BV$39,2),SUM($AV108:AZ108),0)+IF(RIGHT(BV$39,2)>RIGHT($K108,2),AZ108,0)) -> 0 | BW108: =+IF($K108="Ongoing",BA108,IF(RIGHT($K108,2)=RIGHT(BW$39,2),SUM($AV108:BA108),0)+IF(RIGHT(BW$39,2)>RIGHT($K108,2),BA108,0)) -> 0 | BX108: =+IF($K108="Ongoing",BB108,IF(RIGHT($K108,2)=RIGHT(BX$39,2),SUM($AV108:BB108),0)+IF(RIGHT(BX$39,2)>RIGHT($K108,2),BB108,0)) -> 0 | BY108: =+IF($K108="Ongoing",BC108,IF(RIGHT($K108,2)=RIGHT(BY$39,2),SUM($AV108:BC108),0)+IF(RIGHT(BY$39,2)>RIGHT($K108,2),BC108,0)) -> 0 | BZ108: =+IF($K108="Ongoing",BD108,IF(RIGHT($K108,2)=RIGHT(BZ$39,2),SUM($AV108:BD108),0)+IF(RIGHT(BZ$39,2)>RIGHT($K108,2),BD108,0)) -> 0 | CA108: =+IF($K108="Ongoing",BE108,IF(RIGHT($K108,2)=RIGHT(CA$39,2),SUM($AV108:BE108),0)+IF(RIGHT(CA$39,2)>RIGHT($K108,2),BE108,0)) -> 0 | CC108: =+O108*KeyAssumptionsPriceControl_FO!X$15 -> 0 | CD108: =+P108*KeyAssumptionsPriceControl_FO!Y$15 -> 0 | CE108: =+Q108*KeyAssumptionsPriceControl_FO!Z$15 -> 0 | CF108: =+R108*KeyAssumptionsPriceControl_FO!AA$15 -> 0 | CG108: =+S108*KeyAssumptionsPriceControl_FO!AB$15 -> 0 | CH108: =+T108*KeyAssumptionsPriceControl_FO!AC$15 -> 0 | CI108: =+U108*KeyAssumptionsPriceControl_FO!AD$15 -> 0 | CJ108: =+V108*KeyAssumptionsPriceControl_FO!AE$15 -> 0 | CK108: =+W108*KeyAssumptionsPriceControl_FO!AF$15 -> 0 | CL108: =+X108*KeyAssumptionsPriceControl_FO!AG$15 -> 0 | CN108: 0 | CO108: 0 | CP108: 0 | CQ108: 0 | CR108: 0 | CS108: 0 | CT108: 0 | CU108: 0 | CV108: 0 | CW108: 0
C109: [Capex Item - Significant Project / Capital Program / Other Capex] | E109: [Service] | F109: [Major Cost Driver] | G109: [Asset category] | H109: [Capital type] | J109: Straight line | K109: [Year finalised?] | AV109: 0 | AW109: 0 | AX109: 0 | AY109: 0 | AZ109: 0 | BA109: 0 | BB109: 0 | BC109: 0 | BD109: 0 | BE109: 0 | BG109: 0 | BH109: 0 | BI109: 0 | BJ109: 0 | BK109: 0 | BL109: 0 | BM109: 0 | BN109: 0 | BO109: 0 | BP109: 0 | BR109: =+IF($K109="Ongoing",AV109,IF(RIGHT($K109,2)=RIGHT(BR$39,2),SUM($AV109:AV109),0)+IF(RIGHT(BR$39,2)>RIGHT($K109,2),AV109,0)) -> 0 | BS109: =+IF($K109="Ongoing",AW109,IF(RIGHT($K109,2)=RIGHT(BS$39,2),SUM($AV109:AW109),0)+IF(RIGHT(BS$39,2)>RIGHT($K109,2),AW109,0)) -> 0 | BT109: =+IF($K109="Ongoing",AX109,IF(RIGHT($K109,2)=RIGHT(BT$39,2),SUM($AV109:AX109),0)+IF(RIGHT(BT$39,2)>RIGHT($K109,2),AX109,0)) -> 0 | BU109: =+IF($K109="Ongoing",AY109,IF(RIGHT($K109,2)=RIGHT(BU$39,2),SUM($AV109:AY109),0)+IF(RIGHT(BU$39,2)>RIGHT($K109,2),AY109,0)) -> 0 | BV109: =+IF($K109="Ongoing",AZ109,IF(RIGHT($K109,2)=RIGHT(BV$39,2),SUM($AV109:AZ109),0)+IF(RIGHT(BV$39,2)>RIGHT($K109,2),AZ109,0)) -> 0 | BW109: =+IF($K109="Ongoing",BA109,IF(RIGHT($K109,2)=RIGHT(BW$39,2),SUM($AV109:BA109),0)+IF(RIGHT(BW$39,2)>RIGHT($K109,2),BA109,0)) -> 0 | BX109: =+IF($K109="Ongoing",BB109,IF(RIGHT($K109,2)=RIGHT(BX$39,2),SUM($AV109:BB109),0)+IF(RIGHT(BX$39,2)>RIGHT($K109,2),BB109,0)) -> 0 | BY109: =+IF($K109="Ongoing",BC109,IF(RIGHT($K109,2)=RIGHT(BY$39,2),SUM($AV109:BC109),0)+IF(RIGHT(BY$39,2)>RIGHT($K109,2),BC109,0)) -> 0 | BZ109: =+IF($K109="Ongoing",BD109,IF(RIGHT($K109,2)=RIGHT(BZ$39,2),SUM($AV109:BD109),0)+IF(RIGHT(BZ$39,2)>RIGHT($K109,2),BD109,0)) -> 0 | CA109: =+IF($K109="Ongoing",BE109,IF(RIGHT($K109,2)=RIGHT(CA$39,2),SUM($AV109:BE109),0)+IF(RIGHT(CA$39,2)>RIGHT($K109,2),BE109,0)) -> 0 | CC109: =+O109*KeyAssumptionsPriceControl_FO!X$15 -> 0 | CD109: =+P109*KeyAssumptionsPriceControl_FO!Y$15 -> 0 | CE109: =+Q109*KeyAssumptionsPriceControl_FO!Z$15 -> 0 | CF109: =+R109*KeyAssumptionsPriceControl_FO!AA$15 -> 0 | CG109: =+S109*KeyAssumptionsPriceControl_FO!AB$15 -> 0 | CH109: =+T109*KeyAssumptionsPriceControl_FO!AC$15 -> 0 | CI109: =+U109*KeyAssumptionsPriceControl_FO!AD$15 -> 0 | CJ109: =+V109*KeyAssumptionsPriceControl_FO!AE$15 -> 0 | CK109: =+W109*KeyAssumptionsPriceControl_FO!AF$15 -> 0 | CL109: =+X109*KeyAssumptionsPriceControl_FO!AG$15 -> 0 | CN109: 0 | CO109: 0 | CP109: 0 | CQ109: 0 | CR109: 0 | CS109: 0 | CT109: 0 | CU109: 0 | CV109: 0 | CW109: 0
